Workbook

Sheet MENU

Sheet PANORAMA MUNDIAL
C11: Llegadas de turistas internacionales | M11: Ingresos por turismo internacional
E12: Series (1) | F12: (Millones) | H12: Variación (%) | M12: $ EE.UU. | Q12: Monedas Locales
M13: Miles de millones | O13: Variación (%) | Q13: Variación (%)
C14: Rango | F14: 2011 | G14: 2012* | H14: 11/10 | I14: 12*/11 | K14: Rango | M14: 2011 | N14: 2012* | O14: 11/10 | P14: 12*/11 | Q14: 11/10 | R14: 12*/11
C15: 1 | D15: Francia | E15: TF | F15: 81.6 | G15: 83 | H15: 5 | I15: 1.8 | K15: 1 | L15: Estados Unidos | M15: 115.6 | N15: 126.2 | O15: 11.7 | P15: 9.2 | Q15: 11.7 | R15: 9.2
C16: 2 | D16: Estados Unidos | E16: TF | F16: 62.7 | G16: 67 | H16: 4.9 | I16: 6.8 | K16: 2 | L16: España | M16: 59.9 | N16: 55.9 | O16: 14 | P16: -6.6 | Q16: 8.6 | R16: 12
C17: 3 | D17: China | E17: TF | F17: 57.6 | G17: 57.7 | H17: 3.4 | I17: 0.3 | K17: 3 | L17: Francia | M17: 54.5 | N17: 53.7 | O17: 16.2 | P17: -1.5 | Q17: 10.7 | R17: 6.7
C18: 4 | D18: España | E18: TF | F18: 56.2 | G18: 57.7 | H18: 6.6 | I18: 2.7 | K18: 4 | L18: China | M18: 48.5 | N18: 50 | O18: 5.8 | P18: 3.2 | Q18: 1 | R18: 0.8
C19: 5 | D19: Italia | E19: TF | F19: 46.1 | G19: 46.4 | H19: 5.7 | I19: 0.5 | K19: 5 | L19: Macao (China) | M19: 38.5 | N19: 43.7 | O19: 38.3 | P19: 13.7 | Q19: 38.6 | R19: 13.3
C20: 6 | D20: Turquía | E20: TF | F20: 34.7 | G20: 35.7 | H20: 10.5 | I20: 3 | K20: 6 | L20: Italia | M20: 43 | N20: 41.2 | O20: 10.9 | P20: -4.2 | Q20: 5.6 | R20: 3.8
C21: 7 | D21: Alemania | E21: TCE | F21: 28.4 | G21: 30.4 | H21: 5.5 | I21: 7.3 | K21: 7 | L21: Alemania | M21: 38.9 | N21: 38.1 | O21: 12.1 | P21: -1.9 | Q21: 6.7 | R21: 6.2
C22: 8 | D22: Reino Unido | E22: TF | F22: 29.3 | G22: 29.3 | H22: 3.6 | I22: -0.1 | K22: 8 | L22: Reino Unido | M22: 35.1 | N22: 36.4 | O22: 8.2 | P22: 3.7 | Q22: 4.4 | R22: 5.2
C23: 9 | D23: Federación de Rusia | E23: TF | F23: 22.7 | G23: 25.7 | H23: 11.9 | I23: 13.4 | K23: 9 | L23: Hong Kong (China) | M23: 27.7 | N23: 32.1 | O23: 24.6 | P23: 16 | Q23: 24.9 | R23: 16.6
C24: 10 | D24: Malasia | E24: TF | F24: 24.7 | G24: 25 | H24: 0.6 | I24: 1.3 | K24: 10 | L24: Australia | M24: 31.5 | N24: 31.5 | O24: 8.1 | P24: 0.2 | Q24: -3.8 | R24: -0.2
C26: * Cifra o dato provisional
C27: TF Llegadas de turistas internacionales a las fronteras (excluidos los visitantes del día)
C28: TCE Llegadas de turistas internacionales a establecimientos colectivos
C30: Fuente : Panorama OMT del turismo internacional
D31: Edición 2013
D32: Organización Mundial del Turismo (OMT)

Sheet PANORAMA MUNDIAL 1.1 (hidden)
E9: 2008 | F9: 2009 | G9: 2010 | H9: 2011 | I9: 2012*
E10: Real | I10: Proyección
E11: año completo, variación | I11: entre
D13: MUNDO | E13: 0.021 | F13: -0.038 | G13: 0.065 | H13: 0.044 | I13: +3% y +4%
D15: Europa | E15: 0.005 | F15: -0.049 | G15: 0.029 | H15: 0.06 | I15: +2% y +4%
D17: Asia y el Pacífico | E17: 0.012 | F17: -0.016 | G17: 0.129 | H17: 0.056 | I17: +4% y +6%
D19: Américas | E19: 0.027 | F19: -0.049 | G19: 0.065 | H19: 0.042 | I19: +2% y +4%
D21: Africa | E21: 0.034 | F21: 0.032 | G21: 0.067 | H21: 0 | I21: +4% y +6%
D23: Oriente Medio | E23: 0.201 | F23: -0.046 | G23: 0.151 | H23: -0.079 | I23: +0% y +5%
D25: Fuente: Organización Mundial del Turismo (OMT)
D26: (Cifras procedentes de la OMT, enero de 2012)
D27: * = cifra o dato provisional : = cifra o dato (aún) no disponible

Sheet MOVIMIENTOS - LLEGADAS
E10: MES | F10: 2009 | G10: 2010 | H10: 2011 | I10: 2012
J11: 2013 | K11: VAR%
K12: 2013/2012
E13: ENE | F13: 86544 | G13: 96109 | H13: 105548 | I13: 127116 | J13: 130842 | K13: =+J13/I13*100-100 -> 2.931180969
E14: FEB | F14: 72742 | G14: 89924 | H14: 86421 | I14: 99521 | J14: 103768 | K14: 4.267441043
E15: MAR | F15: 72226 | G15: 82452 | H15: 87495 | I15: 96948 | J15: 113361 | K15: 16.92969427
E16: ABR | F16: 72910 | G16: 70540 | H16: 87507 | I16: 92627 | J16: 89669 | K16: -3.193453313
E17: MAY | F17: 70277 | G17: 77618 | H17: 82870 | I17: 92644 | J17: 98420 | K17: 6.23461854
E18: JUN | F18: 89889 | G18: 91602 | H18: 99949 | I18: 118292 | J18: 121742 | K18: 2.916511683
E19: JUL | F19: 102571 | G19: 110545 | H19: 117966 | I19: 130779 | J19: 138140 | K19: =+J19/I19*100-100 -> 5.628579512
E20: AGO | F20: 87221 | G20: 95219 | H20: 98962 | I20: 106375 | J20: 112576 | K20: 5.829377203
E21: SEP | F21: 68124 | G21: 71776 | H21: 80090 | I21: 85990 | J21: 97372 | K21: 13.23642284
E22: OCT | F22: 77960 | G22: 83701 | H22: 88357 | I22: 99145 | J22: 111519 | K22: 12.48071007
E23: NOV | F23: 76965 | G23: 81253 | H23: 92573 | I23: 99674 | J23: 112061 | K23: 12.42751369
E24: DIC | F24: 91070 | G24: 96359 | H24: 113299 | I24: 122790 | J24: 136799 | K24: 11.40890952
E25: TOTAL | F25: =SUM(F13:F24) -> 968499 | G25: =SUM(G13:G24) -> 1047098 | H25: 1141037 | I25: 1271901 | J25: 1366269 | K25: 7.419445381
M31: MES | N31: 2012 | O31: 2013
M32: ENE | N32: 127116 | O32: 130842
M33: FEB | N33: 99521 | O33: 103768
M34: MAR | N34: 96948 | O34: 113361
M35: ABR | N35: 92627 | O35: 89669
M36: MAY | N36: 92644 | O36: 98420
M37: JUN | N37: 118292 | O37: 121742
M38: JUL | N38: 130779 | O38: 138140
M39: AGO | N39: 106375 | O39: 112576
M40: SEP | N40: 85990 | O40: 97372
M41: OCT | N41: 99145 | O41: 111519
M42: NOV | N42: 99674 | O42: 112061
M43: DIC | N43: 122790 | O43: 136799
N44: =SUM(N32:N43) -> 1271901 | O44: =SUM(O32:O43) -> 1366269

Sheet MOVIMIENTOS - SALIDAS
E10: MESES | F10: 2009 | G10: 2010 | H10: 2011 | I10: 2012 | K10: VAR%
J11: 2013 | K11: 2013/2012
E12: ENE | F12: 68480 | G12: 67521 | H12: 71172 | I12: 69602
E13: ENE | F13: 67521 | G13: 71172 | H13: 69601 | I13: 77532 | J13: 79108 | K13: =+J13/I13*100-100 -> 2.032709075
E14: FEB | F14: 72591 | G14: 74436 | H14: 68524 | I14: 90608 | J14: 94464 | K14: 4.255694861
E15: MAR | F15: 75150 | G15: 81686 | H15: 89613 | I15: 91453 | J15: 98292 | K15: 7.47815818
E16: ABR | F16: 64992 | G16: 72231 | H16: 80856 | I16: 80966 | J16: 94894 | K16: 17.20228244
E17: MAY | F17: 57869 | G17: 70330 | H17: 79986 | I17: 81047 | J17: 89092 | K17: 9.926339038
E18: JUN | F18: 55297 | G18: 61070 | H18: 70876 | I18: 66422 | J18: 88962 | K18: 33.93453976
E19: JUL | F19: 71234 | G19: 80855 | H19: 99145 | I19: 94567 | J19: 102343 | K19: 8.222741548
E20: AGO | F20: 81338 | G20: 96675 | H20: 117569 | I20: 113567 | J20: 126286 | K20: =+J20/I20*100-100 -> 11.19955621
E21: SEP | F21: 74494 | G21: 78575 | H21: 95658 | I21: 88803 | J21: 103598 | K21: 16.66047318
E22: OCT | F22: 70641 | G22: 79108 | H22: 90301 | I22: 84368 | J22: 102160 | K22: 21.08856438
E23: NOV | F23: 63713 | G23: 70227 | H23: 91092 | I23: 83399 | J23: 91549 | K23: 9.772299428
E24: DIC | F24: 58797 | G24: 62520 | H24: 69230 | I24: 69473 | J24: 84814 | K24: 22.0819599
E25: TOTAL | F25: =SUM(F13:F24) -> 813637 | G25: =SUM(G13:G24) -> 898885 | H25: 1022451 | I25: 1022205 | J25: 1155562 | K25: =+J25/I25*100-100 -> 13.04601328
E26: Fuente : Anuarios de Migración Internacional - INEC (2009-2011)
E27: Dirección Nacional de Migración (2012-2013)
E28: Elaboración : Dirección de Investigación - Ministerio de Turismo
M32: MESES | N32: 2012 | O32: 2013
M33: ENE | N33: 77532 | O33: 79108
M34: FEB | N34: 90608 | O34: 94464
M35: MAR | N35: 91453 | O35: 98292
M36: ABR | N36: 80966 | O36: 94894
M37: MAY | N37: 81047 | O37: 89092
M38: JUN | N38: 66422 | O38: 88962
M39: JUL | N39: 94567 | O39: 102343
M40: AGO | N40: 113567 | O40: 126286
M41: SEP | N41: 88803 | O41: 103598
M42: OCT | N42: 84368 | O42: 102160
M43: NOV | N43: 83399 | O43: 91549
M44: DIC | N44: 69473
N45: =SUM(N33:N44) -> 1022205 | O45: =SUM(O33:O44) -> 1070748

Sheet MOV. AÑOS Y MESES (hidden)
A1: ENTRADAS Y SALIDAS EN EL ECUADOR
A3: 2009-2012
A4: ( DATOS PROVISIONALES PARA LOS AÑOS 2012 Y 2013)
A6: LLEGADA DE EXTRANJEROS
B7: 2009 | C7: 2010 | D7: 2011 | E7: 2012 | F7: 2013 | G7: VAR% | I7: 2012 | J7: BRECHA %
G8: VAR% | J8: VAR%
G9: 2013/2012 | I9: PMTE (o) | J9: REAL / PMTE (o) | S9: 2011 | T9: 2012
A10: ENE | B10: 86544 | C10: 96109 | D10: 105548 | E10: 127116 | F10: 130842 | G10: =+F10/E10*100-100 -> 2.931180969 | I10: 109163 | J10: =+E10/I10*100-100 -> 16.44604857 | R10: ENE | S10: 105548 | T10: 127119 | U10: =+T10/S10-1 -> 0.2043714708
A11: FEB | B11: 72742 | C11: 89924 | D11: 86421 | E11: 99521 | F11: 103768 | G11: 4.267441043 | I11: 92534 | J11: 7.550738107 | R11: FEB | S11: 86421 | T11: 99551 | U11: 0.151930665
A12: MAR | B12: 72226 | C12: 82452 | D12: 87495 | E12: 96948 | F12: 113361 | G12: 16.92969427 | I12: 95711 | J12: 1.292432427 | R12: MAR | S12: 87495 | T12: 96975 | U12: 0.1083490485
A13: ABR | B13: 72910 | C13: 70540 | D13: 87507 | E13: 92627 | F13: 89669 | G13: -3.193453313 | I13: 86769 | J13: 6.75125909 | R13: ABR | S13: 87507 | T13: 92627 | U13: 0.05850960495
A14: MAY | B14: 70277 | C14: 77618 | D14: 82870 | E14: 92644 | F14: 98420 | G14: 6.23461854 | I14: 88731 | J14: 4.409958188 | R14: MAY | S14: 82870 | T14: 92646 | U14: 0.1179679015
A15: JUN | B15: 89889 | C15: 91602 | D15: 99949 | E15: 118292 | F15: 121742 | G15: 2.916511683 | I15: 108071 | J15: 9.457671346 | R15: JUN | S15: 99949 | T15: 118293 | U15: 0.1835336021
A16: JUL | B16: 102571 | C16: 110545 | D16: 117966 | E16: 130779 | F16: 138140 | G16: 5.628579512 | I16: 132047 | J16: -0.9602641484 | R16: JUL | S16: 117966 | T16: 130783 | U16: 0.10864995
A17: AGO | B17: 87221 | C17: 95219 | D17: 98962 | E17: 106375 | F17: 112576 | G17: 5.829377203 | I17: 113854 | J17: -6.568939168 | R17: AGO | S17: 98962 | T17: 106368 | U17: 0.07483680605
A18: SEP | B18: 68124 | C18: 71776 | D18: 80090 | E18: 85990 | F18: 97372 | G18: 13.23642284 | I18: 88091 | J18: -2.385033658 | R18: SEP | S18: 80090 | T18: 85986 | U18: 0.07361718067
A19: OCT | B19: 77960 | C19: 83701 | D19: 88357 | E19: 99145 | F19: 111519 | G19: 12.48071007 | I19: 95619 | J19: 3.687551637 | R19: OCT | S19: 88357 | T19: 99145 | U19: 0.1220955895
A20: NOV | B20: 76965 | C20: 81253 | D20: 92573 | E20: 99674 | F20: 112061 | G20: 12.42751369 | I20: 94710 | J20: 5.241262802 | R20: NOV | S20: 92573 | T20: 99676 | U20: 0.07672863578
A21: DIC | B21: 91070 | C21: 96359 | D21: 113299 | E21: 122790 | F21: 136799 | G21: 11.40890952 | I21: 108757 | J21: 12.9030775 | R21: DIC | S21: 113299 | T21: 122784 | U21: 0.08371653766
A22: TOTAL | B22: =SUM(B10:B21) -> 968499 | C22: =SUM(C10:C21) -> 1047098 | D22: 1141037 | E22: =SUM(E10:E21) -> 1271901 | F22: =SUM(F10:F21) -> 1366269 | G22: 7.419445381 | I22: =SUM(I10:I21) -> 1214057 | J22: 4.764520941 | S22: =SUM(S10:S21) -> 1141037 | T22: =SUM(T10:T21) -> 1271953
I24: PMTE: Plan de Mercadeo del Ecuador 2010-2014
I25: (o) escenario medio
A27: SALIDA DE ECUATORIANOS
B28: 2009 | C28: 2010 | D28: 2011 | E28: 2012 | F28: 2013 | G28: VAR%
G29: 2013/2012 | S29: 2011 | T29: 2012
A30: ENE | B30: 67521 | C30: 71172 | D30: 69601 | E30: 77532 | F30: 79108 | G30: =+F30/E30*100-100 -> 2.032709075 | R30: ENE | S30: 69601 | T30: 77598 | U30: =+T30/S30-1 -> 0.1148977745
A31: FEB | B31: 72591 | C31: 74436 | D31: 68524 | E31: 90608 | F31: 94464 | G31: 4.255694861 | R31: FEB | S31: 68524 | T31: 90686 | U31: 0.3234195318
A32: MAR | B32: 75150 | C32: 81686 | D32: 89613 | E32: 91453 | F32: 98292 | G32: 7.47815818 | R32: MAR | S32: 89613 | T32: 91903 | U32: 0.02555432806
A33: ABR | B33: 64992 | C33: 72231 | D33: 80856 | E33: 80966 | F33: 94894 | G33: 17.20228244 | R33: ABR | S33: 80856 | T33: 81100 | U33: 0.003017710498
A34: MAY | B34: 57869 | C34: 70330 | D34: 79986 | E34: 81047 | F34: 89092 | G34: 9.926339038 | R34: MAY | S34: 79986 | T34: 81050 | U34: 0.01330232791
A35: JUN | B35: 55297 | C35: 61070 | D35: 70876 | E35: 66422 | F35: 88962 | G35: 33.93453976 | R35: JUN | S35: 70876 | T35: 66423 | U35: -0.0628280377
A36: JUL | B36: 71234 | C36: 80855 | D36: 99145 | E36: 94567 | F36: 102343 | G36: 8.222741548 | R36: JUL | S36: 99145 | T36: 94627 | U36: -0.04556962025
A37: AGO | B37: 81338 | C37: 96675 | D37: 117569 | E37: 113567 | F37: 126286 | G37: 11.19955621 | R37: AGO | S37: 117569 | T37: 113659 | U37: -0.03325706606
A38: SEP | B38: 74494 | C38: 78575 | D38: 95658 | E38: 88803 | F38: 103598 | G38: 16.66047318 | R38: SEP | S38: 95658 | T38: 88896 | U38: -0.07068933074
A39: OCT | B39: 70641 | C39: 79108 | D39: 90301 | E39: 84368 | F39: 102160 | G39: 21.08856438 | R39: OCT | S39: 90301 | T39: 84369 | U39: -0.06569140984
A40: NOV | B40: 63713 | C40: 70227 | D40: 91092 | E40: 83399 | F40: 91549 | G40: 9.772299428 | R40: NOV | S40: 91092 | T40: 83406 | U40: -0.08437623502
A41: DIC | B41: 58797 | C41: 62520 | D41: 69230 | E41: 69473 | F41: 84814 | G41: 22.0819599 | R41: DIC | S41: 69230 | T41: 69502 | U41: 0.003928932544
A42: TOTAL | B42: =SUM(B30:B41) -> 813637 | C42: =SUM(C30:C41) -> 898885 | D42: =SUM(D30:D41) -> 1022451 | E42: =SUM(E30:E41) -> 1022205 | F42: =SUM(F30:F41) -> 1155562 | G42: 13.04601328 | S42: =SUM(S30:S41) -> 1022451 | T42: =SUM(T30:T41) -> 1023219
A43: Fuente : Anuarios de Migración Internacional - INEC (2009-2011)
A44: Dirección Nacional de Migración (2012- 2013)
A45: Elaboración : Dirección de Investigación
A46: Ministerio de Turismo
L47: 2013-10-04

Sheet M CLAVES
I25: Acumulado | J25: Acumulado
E26: País | F26: Dic. 2012 | G26: Dic. 2013 | H26: Variación | I26: ENE-DIC 2012 | J26: ENE-DIC 2013 | K26: Variación
D27: Mercados Clave | E27: Colombia | F27: 37803 | G27: =VLOOKUP(E27,'LLEGADA PAIS NACIONALIDAD TOTAL'!$D$14:$AB$238,25,0) -> 40896 | H27: =+G27-F27 -> 3093 | I27: 349455 | J27: =VLOOKUP(E27,'LLEGADA PAIS NACIONALIDAD TOTAL'!$D$14:$AD$238,27,0) -> 344363 | K27: =+J27-I27 -> -5092 | L27: =+J27/I27-1 -> -0.01457126096
E28: Estados Unidos | F28: 24605 | G28: =VLOOKUP(E28,'LLEGADA PAIS NACIONALIDAD TOTAL'!$D$14:$AB$238,25,0) -> 24622 | H28: =+G28-F28 -> 17 | I28: 248064 | J28: =VLOOKUP(E28,'LLEGADA PAIS NACIONALIDAD TOTAL'!$D$14:$AD$238,27,0) -> 250785 | K28: =+J28-I28 -> 2721 | L28: =+J28/I28-1 -> 0.0109689435
E29: Perú | F29: 10882 | G29: =VLOOKUP(E29,'LLEGADA PAIS NACIONALIDAD TOTAL'!$D$14:$AB$238,25,0) -> 12756 | H29: =+G29-F29 -> 1874 | I29: 137084 | J29: =VLOOKUP(E29,'LLEGADA PAIS NACIONALIDAD TOTAL'!$D$14:$AD$238,27,0) -> 150805 | K29: =+J29-I29 -> 13721 | L29: =+J29/I29-1 -> 0.1000919144
E30: España | F30: 5235 | G30: =VLOOKUP(E30,'LLEGADA PAIS NACIONALIDAD TOTAL'!$D$14:$AB$238,25,0) -> 5294 | H30: =+G30-F30 -> 59 | I30: 65764 | J30: =VLOOKUP(E30,'LLEGADA PAIS NACIONALIDAD TOTAL'!$D$14:$AD$238,27,0) -> 65245 | K30: =+J30-I30 -> -519 | L30: =+J30/I30-1 -> -0.007891855727
E31: Alemania | F31: 2317 | G31: =VLOOKUP(E31,'LLEGADA PAIS NACIONALIDAD TOTAL'!$D$14:$AB$238,25,0) -> 2391 | H31: =+G31-F31 -> 74 | I31: 29582 | J31: =VLOOKUP(E31,'LLEGADA PAIS NACIONALIDAD TOTAL'!$D$14:$AD$238,27,0) -> 28486 | K31: =+J31-I31 -> -1096 | L31: =+J31/I31-1 -> -0.03704955716
E32: TOTAL | G32: =SUM(G27:G31) -> 85959 | H32: =+G32/G33 -> 0.6283598564
E33: ARRIBOS DICIEMBRE | G33: =+'MOVIMIENTOS - LLEGADAS'!J24 -> 136799 | K33: Ver Gráficos

Sheet M CONSOLIDACION
I21: Acumulado | J21: Acumulado
E22: País | F22: Dic. 2012 | G22: Dic. 2013 | H22: Variación | I22: ENE-DIC 2012 | J22: ENE-DIC 2013 | K22: Variación
D23: Mercados de Consolidación | E23: Argentina | F23: 3394 | G23: =VLOOKUP(E23,'LLEGADA PAIS NACIONALIDAD TOTAL'!$D$14:$AB$238,25,0) -> 5315 | H23: =+G23-F23 -> 1921 | I23: 46199 | J23: =VLOOKUP(E23,'LLEGADA PAIS NACIONALIDAD TOTAL'!$D$14:$AD$238,27,0) -> 49575 | K23: =+J23-I23 -> 3376 | L23: =+J23/I23-1 -> 0.07307517479
E24: Chile | F24: 3485 | G24: =VLOOKUP(E24,'LLEGADA PAIS NACIONALIDAD TOTAL'!$D$14:$AB$238,25,0) -> 3397 | H24: -88 | I24: 41645 | J24: =VLOOKUP(E24,'LLEGADA PAIS NACIONALIDAD TOTAL'!$D$14:$AD$238,27,0) -> 40945 | K24: =+J24-I24 -> -700 | L24: -0.01680874055
E25: Canadá | F25: 3005 | G25: =VLOOKUP(E25,'LLEGADA PAIS NACIONALIDAD TOTAL'!$D$14:$AB$238,25,0) -> 2941 | H25: -64 | I25: 26979 | J25: =VLOOKUP(E25,'LLEGADA PAIS NACIONALIDAD TOTAL'!$D$14:$AD$238,27,0) -> 28257 | K25: =+J25-I25 -> 1278 | L25: 0.0473701768
E26: Gran Bretaña | F26: 1526 | G26: =VLOOKUP(E26,'LLEGADA PAIS NACIONALIDAD TOTAL'!$D$14:$AB$238,25,0) -> 1496 | H26: =+G26-F26 -> -30 | I26: 21142 | J26: =VLOOKUP(E26,'LLEGADA PAIS NACIONALIDAD TOTAL'!$D$14:$AD$238,27,0) -> 23479 | K26: 2337 | L26: =+J26/I26-1 -> 0.1105382651
E27: Francia | F27: 1338 | G27: =VLOOKUP(E27,'LLEGADA PAIS NACIONALIDAD TOTAL'!$D$14:$AB$238,25,0) -> 1304 | H27: =+G27-F27 -> -34 | I27: 19547 | J27: =VLOOKUP(E27,'LLEGADA PAIS NACIONALIDAD TOTAL'!$D$14:$AD$238,27,0) -> 20326 | K27: 779 | L27: =+J27/I27-1 -> 0.03985266281
E28: Brasil | F28: 1491 | G28: =VLOOKUP(E28,'LLEGADA PAIS NACIONALIDAD TOTAL'!$D$14:$AB$238,25,0) -> 1914 | H28: =+G28-F28 -> 423 | I28: 18174 | J28: =VLOOKUP(E28,'LLEGADA PAIS NACIONALIDAD TOTAL'!$D$14:$AD$238,27,0) -> 19445 | K28: 1271 | L28: 0.06993507208
E29: Italia | F29: 1319 | G29: =VLOOKUP(E29,'LLEGADA PAIS NACIONALIDAD TOTAL'!$D$14:$AB$238,25,0) -> 1374 | H29: 55 | I29: 14774 | J29: =VLOOKUP(E29,'LLEGADA PAIS NACIONALIDAD TOTAL'!$D$14:$AD$238,27,0) -> 14733 | K29: -41 | L29: -0.002775145526
E30: Holanda | F30: 1084 | G30: =VLOOKUP(E30,'LLEGADA PAIS NACIONALIDAD TOTAL'!$D$14:$AB$238,25,0) -> 1246 | H30: 162 | I30: 12392 | J30: =VLOOKUP(E30,'LLEGADA PAIS NACIONALIDAD TOTAL'!$D$14:$AD$238,27,0) -> 13930 | K30: 1538 | L30: 0.1241123305
E31: TOTAL | G31: =SUM(G23:G30) -> 18987 | H31: =+G31/G32 -> 0.1387948742
E32: ARRIBOS DICIEMBRE | G32: =+'MOVIMIENTOS - LLEGADAS'!J24 -> 136799 | K32: Ver Gráficos

Sheet M OPORTUNIDAD
I17: Acumulado | J17: Acumulado
E18: País | F18: Dic. 2012 | G18: Dic. 2013 | H18: Variación | I18: ENE -DIC 2012 | J18: ENE-DIC 2013 | K18: Variación
D19: Mercados de Oportunidad | E19: Venezuela | F19: 8264 | G19: =VLOOKUP(E19,'LLEGADA PAIS NACIONALIDAD TOTAL'!$D$14:$AB$238,25,0) -> 10433 | H19: =+G19-F19 -> 2169 | I19: 45701 | J19: =VLOOKUP(E19,'LLEGADA PAIS NACIONALIDAD TOTAL'!$D$14:$AD$238,27,0) -> 102317 | K19: =+J19-I19 -> 56616 | L19: =+J19/I19-1 -> 1.238835036
E20: México | F20: 1766 | G20: =VLOOKUP(E20,'LLEGADA PAIS NACIONALIDAD TOTAL'!$D$14:$AB$238,25,0) -> 2184 | H20: 418 | I20: 19642 | J20: =VLOOKUP(E20,'LLEGADA PAIS NACIONALIDAD TOTAL'!$D$14:$AD$238,27,0) -> 21280 | K20: 1638 | L20: 0.08339272986
E21: Panamá | F21: 856 | G21: =VLOOKUP(E21,'LLEGADA PAIS NACIONALIDAD TOTAL'!$D$14:$AB$238,25,0) -> 1089 | H21: 233 | I21: 10090 | J21: =VLOOKUP(E21,'LLEGADA PAIS NACIONALIDAD TOTAL'!$D$14:$AD$238,27,0) -> 11869 | K21: 1779 | L21: 0.1763131814
E22: Bélgica | F22: 429 | G22: =VLOOKUP(E22,'LLEGADA PAIS NACIONALIDAD TOTAL'!$D$14:$AB$238,25,0) -> 462 | H22: =+G22-F22 -> 33 | I22: 5341 | J22: =VLOOKUP(E22,'LLEGADA PAIS NACIONALIDAD TOTAL'!$D$14:$AD$238,27,0) -> 5452 | K22: =+J22-I22 -> 111 | L22: 0.02078262498
E23: Costa Rica | F23: 524 | G23: =VLOOKUP(E23,'LLEGADA PAIS NACIONALIDAD TOTAL'!$D$14:$AB$238,25,0) -> 797 | H23: =+G23-F23 -> 273 | I23: 5060 | J23: =VLOOKUP(E23,'LLEGADA PAIS NACIONALIDAD TOTAL'!$D$14:$AD$238,27,0) -> 7632 | K23: =+J23-I23 -> 2572 | L23: 0.5083003953
E24: Austria | F24: 273 | G24: =VLOOKUP(E24,'LLEGADA PAIS NACIONALIDAD TOTAL'!$D$14:$AB$238,25,0) -> 322 | H24: 49 | I24: 3095 | J24: =VLOOKUP(E24,'LLEGADA PAIS NACIONALIDAD TOTAL'!$D$14:$AD$238,27,0) -> 3054 | K24: -41 | L24: -0.01324717286
E25: TOTAL | G25: =SUM(G19:G24) -> 15287 | H25: =+G25/G26 -> 0.1117478929
E26: ARRIBOS DICIEMBRE | G26: =+'MOVIMIENTOS - LLEGADAS'!J24 -> 136799 | K26: Ver Gráficos

Sheet EXPLICACION VARIACIONES (hidden)
G21: Acumulado | H21: Acumulado
C22: País | D22: Oct 2010 | E22: Oct 2011 | F22: Variación | G22: Ene-Oct 2010 | H22: Ene-Oct 2011 | I22: Variación
B23: Mercados Clave | C23: EEUU | D23: 16230 | E23: 13229 | F23: =+E23-D23 -> -3001 | G23: 209043 | H23: 200390 | I23: =+H23-G23 -> -8653
C24: Colombia | D24: 16140 | E24: 20649 | F24: =+E24-D24 -> 4509 | G24: 167605 | H24: 213473 | I24: =+H24-G24 -> 45868
C25: Perú | D25: 13367 | E25: 12402 | F25: =+E25-D25 -> -965 | G25: 129751 | H25: 122743 | I25: =+H25-G25 -> -7008
C26: España | D26: 4658 | E26: 4188 | F26: =+E26-D26 -> -470 | G26: 48628 | H26: 50138 | I26: =+H26-G26 -> 1510
C27: Alemania | D27: 2343 | E27: 2503 | F27: =+E27-D27 -> 160 | G27: 20710 | H27: 22156 | I27: =+H27-G27 -> 1446
C28: TOTAL | E28: =SUM(E23:E27) -> 52971 | F28: =+E28/E29 -> 0.5342780776
C29: ARRIBOS OCTUBRE | E29: =+'MOV. AÑOS Y MESES'!E19 -> 99145 | I29: Ver Gráficos
G44: Acumulado | H44: Acumulado
C45: País | D45: Oct 2010 | E45: Oct 2011 | F45: Variación | G45: Ene-Oct 2010 | H45: Ene-Oct 2011 | I45: Variación
B46: Mercados de Consolidación | C46: Reino Unido | D46: 1862 | E46: 2037 | F46: =+E46-D46 -> 175 | G46: 19200 | H46: 19376 | I46: =+H46-G46 -> 176
C47: Canadá | D47: 1629 | E47: 1892 | F47: 263 | G47: 19527 | H47: 20295 | I47: 768
C48: Francia | D48: 2151 | E48: 2154 | F48: 3 | G48: 17012 | H48: 17092 | I48: 80
C49: Argentina | D49: 3034 | E49: 2370 | F49: -664 | G49: 25003 | H49: 30377 | I49: 5374
C50: Italia | D50: 1122 | E50: 1214 | F50: 92 | G50: 12410 | H50: 11893 | I50: -517
C51: Brasil | D51: 1280 | E51: 1422 | F51: 142 | G51: 12464 | H51: 14165 | I51: 1701
C52: Chile | D52: 2084 | E52: 2359 | F52: 275 | G52: 23705 | H52: 28810 | I52: 5105
C53: Holanda | D53: 998 | E53: 1047 | F53: 49 | G53: 8716 | H53: 8403 | I53: -313
C54: TOTAL | E54: =SUM(E46:E53) -> 14495 | F54: =+E54/E55 -> 0.1462000101
C55: ARRIBOS OCTUBRE | E55: =+'MOV. AÑOS Y MESES'!E19 -> 99145 | I55: Ver Gráficos
G66: Acumulado | H66: Acumulado
C67: País | D67: Oct 2010 | E67: Oct 2011 | F67: Variación | G67: Ene-Oct 2010 | H67: Ene-Oct 2011 | I67: Variación
B68: Mercados de Oportunidad | C68: Venezuela | D68: 2620 | E68: 3527 | F68: =+E68-D68 -> 907 | G68: 24906 | H68: 28703 | I68: =+H68-G68 -> 3797
C69: México | D69: 1476 | E69: 1749 | F69: 273 | G69: 13098 | H69: 14909 | I69: 1811
C70: Panamá | D70: 382 | E70: 875 | F70: 493 | G70: 3767 | H70: 7243 | I70: 3476
C71: Austria | D71: 203 | E71: 239 | F71: 36 | G71: 2042 | H71: 2247 | I71: 205
C72: Suiza | D72: 861 | E72: 899 | F72: 38 | G72: 7228 | H72: 7611 | I72: 383
C73: Bélgica | D73: 407 | E73: 429 | F73: 22 | G73: 4202 | H73: 4345 | I73: 143
C74: Costa Rica | D74: 458 | E74: 478 | F74: 20 | G74: 3696 | H74: 3857 | I74: 161
C75: TOTAL | E75: =SUM(E68:E74) -> 8196 | F75: =+E75/E76 -> 0.08266680115
C76: ARRIBOS OCTUBRE | E76: =+'MOV. AÑOS Y MESES'!E19 -> 99145 | I76: Ver Gráficos

Sheet GRAFICO M CLAVE

Sheet GRAFICO M CONSOLIDACION

Sheet GRAFICO M OPORTUNIDAD

Sheet MOV.JEFATURAS ENTRADAS
E10: ENE | G10: FEB | I10: MAR | K10: ABR | M10: MAY | O10: JUN
D11: JEFATURAS | E11: 2012 | F11: 2013 | G11: 2012 | H11: 2013 | I11: 2012 | J11: 2013 | K11: 2012 | L11: 2013 | M11: 2012 | N11: 2013 | O11: 2012 | P11: 2013
D14: PICHINCHA | E14: 41586 | F14: 48061 | G14: 38318 | H14: 43488 | I14: 41449 | J14: 51320 | K14: 38157 | L14: 43055 | M14: 41462 | N14: 48524 | O14: 53077 | P14: 58930
D15: GUAYAS | E15: 32169 | F15: 27662 | G15: 28608 | H15: 26403 | I15: 26352 | J15: 26884 | K15: 21841 | L15: 22168 | M15: 23220 | N15: 23871 | O15: 27724 | P15: 29966
D16: CARCHI | E16: 29598 | F16: 31801 | G16: 14407 | H16: 13042 | I16: 15364 | J16: 19796 | K16: 19293 | L16: 11333 | M16: 14288 | N16: 13110 | O16: 24036 | P16: 19194
D17: EL ORO | E17: 19470 | F17: 18359 | G17: 15551 | H17: 17836 | I17: 10334 | J17: 11736 | K17: 9957 | L17: 9933 | M17: 9591 | N17: 10119 | O17: 9388 | P17: 9953
D18: LOJA | E18: 1328 | F18: 1208 | G18: 1044 | H18: 1097 | I18: 878 | J18: 881 | K18: 1037 | L18: 831 | M18: 997 | N18: 829 | O18: 982 | P18: 881
D19: OTRAS JEFATURAS | E19: 2965 | F19: 3751 | G19: 1593 | H19: 1902 | I19: 2571 | J19: 2744 | K19: 2342 | L19: 2349 | M19: 3086 | N19: 1967 | O19: 3085 | P19: 2818
D20: TOTAL | E20: =SUM(E14:E19) -> 127116 | F20: =SUM(F14:F19) -> 130842 | G20: 99521 | H20: 103768 | I20: 96948 | J20: =SUM(J14:J19) -> 113361 | K20: 92627 | L20: 89669 | M20: 92644 | N20: 98420 | O20: 118292 | P20: 121742
E24: JUL | G24: AGO | I24: SEP | K24: OCT | M24: NOV | O24: DIC | Q24: ACUMULADO
D25: JEFATURAS | E25: 2012 | F25: 2013 | G25: 2012 | H25: 2013 | I25: 2012 | J25: 2013 | K25: 2012 | L25: 2013 | M25: 2012 | N25: 2013 | O25: 2012 | P25: 2013 | Q25: 2012 | R25: 2013
Q26: Ene-Dic | R26: Ene-Dic
D28: PICHINCHA | E28: 55940 | F28: 65099 | G28: 46426 | H28: 54057 | I28: 39845 | J28: 49735 | K28: 45427 | L28: 53867 | M28: 46399 | N28: 56212 | O28: 52000 | P28: 60585 | Q28: =+E14+G14+I14+K14+M14+O14+E28+G28+I28+K28+M28+O28 -> 540086 | R28: =+F14+H14+J14+L14+N14+P14+F28+H28+J28+L28+N28+P28 -> 632933
D29: GUAYAS | E29: 31912 | F29: 32765 | G29: 27330 | H29: 29903 | I29: 21401 | J29: 22226 | K29: 22922 | L29: 25250 | M29: 22496 | N29: 24321 | O29: 30581 | P29: 30089 | Q29: =+E15+G15+I15+K15+M15+O15+E29+G29+I29+K29+M29+O29 -> 316556 | R29: 321508
D30: CARCHI | E30: 26461 | F30: 23141 | G30: 16697 | H30: 11885 | I30: 12646 | J30: 12083 | K30: 15737 | L30: 14895 | M30: 16024 | N30: 14726 | O30: 23510 | P30: 25627 | Q30: 228061 | R30: 210633
D31: EL ORO | E31: 12320 | F31: 13561 | G31: 12425 | H31: 13376 | I31: 9023 | J31: 10383 | K31: 12111 | L31: 14174 | M31: 11265 | N31: 13585 | O31: 12547 | P31: 15089 | Q31: 143982 | R31: 158104
D32: LOJA | E32: 1341 | F32: 1028 | G32: 1378 | H32: 1238 | I32: 1128 | J32: 800 | K32: 1005 | L32: 920 | M32: 1042 | N32: 849 | O32: 1019 | P32: 1012 | Q32: 13179 | R32: 11574
D33: OTRAS JEFATURAS | E33: 2805 | F33: 2546 | G33: 2119 | H33: 2117 | I33: 1947 | J33: 2145 | K33: 1943 | L33: 2413 | M33: 2448 | N33: 2368 | O33: 3133 | P33: 4397 | Q33: 30037 | R33: 31517
D34: TOTAL | E34: =SUM(E28:E33) -> 130779 | F34: 138140 | G34: 106375 | H34: 112576 | I34: 85990 | J34: 97372 | K34: 99145 | L34: 111519 | M34: =SUM(M28:M33) -> 99674 | N34: 112061 | O34: =SUM(O28:O33) -> 122790 | P34: 136799 | Q34: 1271901 | R34: 1366269
D37: Fuente : Dirección Nacional de Migración
D38: Elaboración : Dirección de Investigación - Ministerio de Turismo
D39: 2013-12-04

Sheet MOV.JEFATURAS SALIDAS
E10: ENE | G10: FEB | I10: MAR | K10: ABR | M10: MAY | O10: JUN
D11: JEFATURAS | E11: 2012 | F11: 2013 | G11: 2012 | H11: 2013 | I11: 2012 | J11: 2013 | K11: 2012 | L11: 2013 | M11: 2012 | N11: 2013 | O11: 2012 | P11: 2013
D14: PICHINCHA | E14: 28207 | F14: 31539 | G14: 30411 | H14: 35938 | I14: 34400 | J14: 32343 | K14: 34713 | L14: 35570 | M14: 37677 | N14: 37754 | O14: 29578 | P14: 30223
D15: GUAYAS | E15: 37067 | F15: 35898 | G15: 42776 | H15: 40999 | I15: 44232 | J15: 49685 | K15: 34877 | L15: 44998 | M15: 33355 | N15: 39640 | O15: 27246 | P15: 33674
D16: CARCHI | E16: 2122 | F16: 2569 | G16: 2575 | H16: 3222 | I16: 2554 | J16: 2821 | K16: 2102 | L16: 2176 | M16: 1783 | N16: 2311 | O16: 1944 | P16: 2116
D17: EL ORO | E17: 8178 | F17: 7020 | G17: 12320 | H17: 11827 | I17: 7893 | J17: 10761 | K17: 7222 | L17: 9682 | M17: 6270 | N17: 7242 | O17: 5739 | P17: 7781
D18: LOJA | E18: 1432 | F18: 1643 | G18: 1953 | H18: 1924 | I18: 1666 | J18: 1748 | K18: 1497 | L18: 1707 | M18: 1431 | N18: 1547 | O18: 1443 | P18: 14463
D19: OTRAS JEFATURAS | E19: 526 | F19: 439 | G19: 573 | H19: 554 | I19: 708 | J19: 934 | K19: 555 | L19: 761 | M19: 531 | N19: 598 | O19: 472 | P19: 705
D20: TOTAL | E20: =SUM(E14:E19) -> 77532 | F20: =SUM(F14:F19) -> 79108 | G20: 90608 | H20: 94464 | I20: 91453 | J20: 98292 | K20: 80966 | L20: 94894 | M20: 81047 | N20: 89092 | O20: 66422 | P20: 88962
E24: JUL | G24: AGO | I24: SEP | K24: OCT | M24: NOV | O24: DIC | Q24: ACUMULADO
D25: JEFATURAS | E25: 2012 | F25: 2013 | G25: 2012 | H25: 2013 | I25: 2012 | J25: 2013 | K25: 2012 | L25: 2013 | M25: 2012 | N25: 2013 | O25: 2012 | P25: 2013 | Q25: 2012 | R25: 2013
Q26: Ene-Dic | R26: Ene-Dic
D28: PICHINCHA | E28: 48000 | F28: 46926 | G28: 53575 | H28: =VLOOKUP(D28,'[4]POR PROVINCIA'!A$7:B$12,2,0) -> 55965 | I28: 38810 | J28: 40815 | K28: 35431 | L28: 37946 | M28: 34528 | N28: 34890 | O28: 30619 | P28: 32516 | Q28: =+E14+G14+I14+K14+M14+O14+E28+G28+I28+K28+M28+O28 -> 435949 | R28: =+F14+H14+J14+L14+N14+P14+F28+H28+J28+L28+N28+P28 -> 452425
D29: GUAYAS | E29: 30596 | F29: 39761 | G29: 37405 | H29: =VLOOKUP(D29,'[4]POR PROVINCIA'!A$7:B$12,2,0) -> 47018 | I29: 36648 | J29: 49117 | K29: 36293 | L29: 46494 | M29: 34254 | N29: 42580 | O29: 24866 | P29: 33610 | Q29: =+E15+G15+I15+K15+M15+O15+E29+G29+I29+K29+M29+O29 -> 419615 | R29: 503474
D30: CARCHI | E30: 3946 | F30: 3630 | G30: 3751 | H30: =VLOOKUP(D30,'[4]POR PROVINCIA'!A$7:B$12,2,0) -> 2420 | I30: 2170 | J30: 2216 | K30: 2308 | L30: 3134 | M30: 2705 | N30: 3194 | O30: 3321 | P30: 4202 | Q30: 31281 | R30: 34011
D31: EL ORO | E31: 9260 | F31: 9503 | G31: 14358 | H31: =VLOOKUP(D31,'[4]POR PROVINCIA'!A$7:B$12,2,0) -> 17546 | I31: 8060 | J31: 9052 | K31: 7746 | L31: 11376 | M31: 9245 | N31: 8241 | O31: 7572 | P31: 10009 | Q31: 103863 | R31: 120040
D32: LOJA | E32: 2163 | F32: 1870 | G32: 2857 | H32: =VLOOKUP(D32,'[4]POR PROVINCIA'!A$7:B$12,2,0) -> 2648 | I32: 1856 | J32: 1695 | K32: 2101 | L32: 2416 | M32: 1924 | N32: 1973 | O32: 2553 | P32: 3715 | Q32: 22876 | R32: 37349
D33: OTRAS JEFATURAS | E33: 602 | F33: 653 | G33: 1621 | H33: 689 | I33: 1259 | J33: 703 | K33: 489 | L33: 794 | M33: 743 | N33: 671 | O33: 542 | P33: 762 | Q33: 8621 | R33: 8263
D34: TOTAL | E34: =SUM(E28:E33) -> 94567 | F34: 102343 | G34: =SUM(G28:G33) -> 113567 | H34: =SUM(H28:H33) -> 126286 | I34: =SUM(I28:I33) -> 88803 | J34: =SUM(J28:J33) -> 103598 | K34: 84368 | L34: 102160 | M34: 83399 | N34: 91549 | O34: 69473 | P34: 84814 | Q34: =SUM(Q28:Q33) -> 1022205 | R34: 1155562
D37: Fuente : Dirección Nacional de Migración
D38: Elaboración : Dirección de Investigación- Ministerio de Turismo
D39: 2013-12-09

Sheet LLEGADA PAIS NACIONALIDAD TOTAL
E11: ENERO | G11: FEBRERO | I11: MARZO | K11: ABRIL | M11: MAY | O11: JUN | Q11: JUL | S11: AGO | U11: SEP | W11: OCT | Y11: NOV | AA11: DIC | AC11: Acumulado Ene-Dic | AF11: %
D12: PAIS | E12: ECUATORIANOS | F12: EXTRANJEROS | G12: ECUATORIANOS | H12: EXTRANJEROS | I12: ECUATORIANOS | J12: EXTRANJEROS | K12: ECUATORIANOS | L12: EXTRANJEROS | M12: ECUATORIANOS | N12: EXTRANJEROS | O12: ECUATORIANOS | P12: EXTRANJEROS | Q12: ECUATORIANOS | R12: EXTRANJEROS | S12: ECUATORIANOS | T12: EXTRANJEROS | U12: ECUATORIANOS | V12: EXTRANJEROS | W12: ECUATORIANOS | X12: EXTRANJEROS | Y12: ECUATORIANOS | Z12: EXTRANJEROS | AA12: ECUATORIANOS | AB12: EXTRANJEROS | AC12: ECUATORIANOS | AD12: EXTRANJEROS | AF12: ECUATORIANOS | AG12: EXTRANJEROS
E13: SALIDA | F13: ENTRADA | G13: SALIDA | H13: ENTRADA | I13: SALIDA | J13: ENTRADA | K13: SALIDA | L13: ENTRADA | M13: SALIDA | N13: ENTRADA | O13: SALIDA | P13: ENTRADA | Q13: SALIDA | R13: ENTRADA | S13: SALIDA | T13: ENTRADA | U13: SALIDA | V13: ENTRADA | W13: SALIDA | X13: ENTRADA | Y13: SALIDA | Z13: ENTRADA | AA13: SALIDA | AB13: ENTRADA | AC13: SALIDA | AD13: ENTRADA | AF13: SALIDA | AG13: ENTRADA
D14: AFGANISTAN | E14: 1 | F14: 0 | G14: 0 | H14: 3 | I14: 0 | J14: 16 | K14: 1 | L14: 0 | M14: 0 | N14: 0 | O14: 4 | P14: 0 | Q14: 0 | R14: 0 | S14: 1 | T14: 0 | U14: 0 | V14: 1 | W14: 0 | X14: 5 | Y14: 1 | Z14: 0 | AA14: 0 | AB14: 0 | AC14: =+E14+G14+I14+K14+M14+O14+Q14+S14+U14+W14+Y14+AA14 -> 8 | AD14: =+F14+H14+J14+L14+N14+P14+R14+T14+V14+X14+Z14+AB14 -> 25 | AF14: =+AC14/AC$239*100 -> 0.0006923038314 | AG14: =+AD14/AD$239*100 -> 0.00182980072
D15: AFRICA SUD OCCIDENTAL | E15: 5 | F15: 37 | G15: 15 | H15: 44 | I15: 13 | J15: 72 | K15: 11 | L15: 61 | M15: 17 | N15: 61 | O15: 7 | P15: 58 | Q15: 9 | R15: 64 | S15: 19 | T15: 72 | U15: 7 | V15: 62 | W15: 9 | X15: 51 | Y15: 20 | Z15: 65 | AA15: 5 | AB15: 91 | AC15: =+E15+G15+I15+K15+M15+O15+Q15+S15+U15+W15+Y15+AA15 -> 137 | AD15: =+F15+H15+J15+L15+N15+P15+R15+T15+V15+X15+Z15+AB15 -> 738 | AF15: =+AC15/AC$239*100 -> 0.01185570311 | AG15: =+AD15/AD$239*100 -> 0.05401571726
D16: ALBANIA | E16: 0 | F16: 7 | G16: 1 | H16: 14 | I16: 1 | J16: 17 | K16: 1 | L16: 10 | M16: 0 | N16: 13 | O16: 0 | P16: 5 | Q16: 1 | R16: 7 | S16: 0 | T16: 8 | U16: 0 | V16: 9 | W16: 0 | X16: 18 | Y16: 0 | Z16: 32 | AA16: 0 | AB16: 8 | AC16: 4 | AD16: 148 | AF16: 0.0003461519157 | AG16: 0.01083242026
D17: ALEMANIA | E17: 434 | F17: 2166 | G17: 427 | H17: 2423 | I17: 442 | J17: 2703 | K17: 532 | L17: 1723 | M17: 360 | N17: 1866 | O17: 430 | P17: 1831 | Q17: 558 | R17: 2972 | S17: 522 | T17: 3157 | U17: 617 | V17: 2235 | W17: 507 | X17: 2516 | Y17: 269 | Z17: 2503 | AA17: 294 | AB17: 2391 | AC17: 5392 | AD17: 28486 | AF17: 0.4666127824 | AG17: 2.084948132
D18: ALTO VOLTA | E18: 0 | F18: 0 | G18: 0 | H18: 0 | I18: 0 | J18: 0 | K18: 0 | L18: 0 | M18: 0 | N18: 0 | O18: 0 | P18: 0 | Q18: 0 | R18: 0 | S18: 0 | T18: 0 | U18: 0 | V18: 0 | W18: 0 | X18: 0 | Y18: 0 | Z18: 0 | AA18: 0 | AB18: 0 | AC18: 0 | AD18: 0 | AF18: 0 | AG18: 0
D19: ANDORRA | E19: 2 | F19: 5 | G19: 2 | H19: 3 | I19: 0 | J19: 6 | K19: 1 | L19: 1 | M19: 0 | N19: 3 | O19: 0 | P19: 1 | Q19: 0 | R19: 3 | S19: 0 | T19: 1 | U19: 0 | V19: 3 | W19: 1 | X19: 2 | Y19: 4 | Z19: 2 | AA19: 0 | AB19: 0 | AC19: 10 | AD19: 30 | AF19: 0.0008653797892 | AG19: 0.002195760864
D20: ANGOLA | E20: 8 | F20: 8 | G20: 1 | H20: 0 | I20: 3 | J20: 45 | K20: 1 | L20: 2 | M20: 2 | N20: 4 | O20: 1 | P20: 1 | Q20: 5 | R20: 2 | S20: 7 | T20: 1 | U20: 3 | V20: 2 | W20: 3 | X20: 4 | Y20: 2 | Z20: 0 | AA20: 0 | AB20: 189 | AC20: 36 | AD20: 258 | AF20: 0.003115367241 | AG20: 0.01888354343
D21: ANTIGUA BARBUDA | E21: 1 | F21: 0 | G21: 0 | H21: 1 | I21: 0 | J21: 0 | K21: 0 | L21: 4 | M21: 0 | N21: 3 | O21: 0 | P21: 1 | Q21: 1 | R21: 3 | S21: 0 | T21: 0 | U21: 0 | V21: 0 | W21: 0 | X21: 0 | Y21: 0 | Z21: 0 | AA21: 1 | AB21: 0 | AC21: 3 | AD21: 12 | AF21: 0.0002596139368 | AG21: 0.0008783043456
D22: APATRIDAS | E22: 0 | F22: 0 | G22: 0 | H22: 0 | I22: 0 | J22: 0 | K22: 0 | L22: 0 | M22: 0 | N22: 0 | O22: 0 | P22: 0 | Q22: 0 | R22: 0 | S22: 0 | T22: 0 | U22: 0 | V22: 0 | W22: 0 | X22: 0 | Y22: 0 | Z22: 0 | AA22: 0 | AB22: 0 | AC22: 0 | AD22: 0 | AF22: 0 | AG22: 0
D23: ARABIA SAUDITA | E23: 9 | F23: 5 | G23: 11 | H23: 1 | I23: 5 | J23: 33 | K23: 4 | L23: 5 | M23: 1 | N23: 5 | O23: 7 | P23: 22 | Q23: 8 | R23: 4 | S23: 7 | T23: 14 | U23: 10 | V23: 2 | W23: 20 | X23: 5 | Y23: 16 | Z23: 13 | AA23: 10 | AB23: 9 | AC23: 108 | AD23: 118 | AF23: 0.009346101724 | AG23: 0.008636659399
D24: ARGELIA | E24: 2 | F24: 22 | G24: 25 | H24: 23 | I24: 3 | J24: 23 | K24: 6 | L24: 17 | M24: 4 | N24: 18 | O24: 2 | P24: 14 | Q24: 4 | R24: 7 | S24: 3 | T24: 10 | U24: 0 | V24: 1 | W24: 5 | X24: 13 | Y24: 9 | Z24: 12 | AA24: 3 | AB24: 39 | AC24: 66 | AD24: 199 | AF24: 0.005711506609 | AG24: 0.01456521373
D25: ARGENTINA | E25: 1490 | F25: 8106 | G25: 1930 | H25: 4989 | I25: 2817 | J25: 4348 | K25: 2785 | L25: 3136 | M25: 2180 | N25: 2874 | O25: 2215 | P25: 3509 | Q25: 2875 | R25: 4123 | S25: 3739 | T25: 3131 | U25: 3425 | V25: 3349 | W25: 3843 | X25: 3142 | Y25: 3853 | Z25: 3553 | AA25: 2194 | AB25: 5315 | AC25: 33346 | AD25: 49575 | AF25: 2.885695445 | AG25: 3.628494828
D26: ARMENIA | E26: 0 | F26: 4 | G26: 1 | H26: 0 | I26: 0 | J26: 4 | K26: 0 | L26: 1 | M26: 0 | N26: 3 | O26: 0 | P26: 1 | Q26: 0 | R26: 0 | S26: 0 | T26: 0 | U26: 0 | V26: 4 | W26: 0 | X26: 4 | Y26: 0 | Z26: 0 | AA26: 0 | AB26: 0 | AC26: 1 | AD26: 21 | AF26: 8.653797892e-05 | AG26: 0.001537032605
D27: AUSTRALIA | E27: 64 | F27: 1024 | G27: 106 | H27: 687 | I27: 37 | J27: 956 | K27: 25 | L27: 1070 | M27: 44 | N27: 1284 | O27: 35 | P27: 978 | Q27: 147 | R27: 869 | S27: 60 | T27: 925 | U27: 53 | V27: 1150 | W27: 33 | X27: 1071 | Y27: 46 | Z27: 1074 | AA27: 58 | AB27: 951 | AC27: 708 | AD27: 12039 | AF27: 0.06126888908 | AG27: 0.8811588348
D28: AUSTRIA | E28: 25 | F28: 278 | G28: 25 | H28: 243 | I28: 28 | J28: 202 | K28: 17 | L28: 148 | M28: 29 | N28: 162 | O28: 16 | P28: 187 | Q28: 48 | R28: 443 | S28: 30 | T28: 301 | U28: 47 | V28: 219 | W28: 26 | X28: 257 | Y28: 11 | Z28: 292 | AA28: 19 | AB28: 322 | AC28: 321 | AD28: 3054 | AF28: 0.02777869123 | AG28: 0.223528456
D29: AZERBAIYAN | E29: 0 | F29: 10 | G29: 0 | H29: 0 | I29: 3 | J29: 9 | K29: 1 | L29: 8 | M29: 0 | N29: 8 | O29: 0 | P29: 11 | Q29: 0 | R29: 2 | S29: 1 | T29: 5 | U29: 0 | V29: 2 | W29: 0 | X29: 4 | Y29: 0 | Z29: 14 | AA29: 0 | AB29: 1 | AC29: 5 | AD29: 74 | AF29: 0.0004326898946 | AG29: 0.005416210131
D30: BAHAMAS | E30: 49 | F30: 14 | G30: 29 | H30: 1 | I30: 11 | J30: 13 | K30: 18 | L30: 9 | M30: 25 | N30: 10 | O30: 71 | P30: 13 | Q30: 25 | R30: 10 | S30: 76 | T30: 7 | U30: 35 | V30: 8 | W30: 30 | X30: 2 | Y30: 16 | Z30: 4 | AA30: 19 | AB30: 5 | AC30: 404 | AD30: 96 | AF30: 0.03496134348 | AG30: 0.007026434765
D31: BAHREIN | E31: 1 | F31: 0 | G31: 0 | H31: 0 | I31: 0 | J31: 8 | K31: 0 | L31: 0 | M31: 0 | N31: 0 | O31: 0 | P31: 0 | Q31: 0 | R31: 0 | S31: 0 | T31: 0 | U31: 0 | V31: 0 | W31: 0 | X31: 1 | Y31: 0 | Z31: 0 | AA31: 0 | AB31: 0 | AC31: 1 | AD31: 9 | AF31: 8.653797892e-05 | AG31: 0.0006587282592
D32: BANGLADESH | E32: 2 | F32: 1 | G32: 0 | H32: 1 | I32: 1 | J32: 18 | K32: 0 | L32: 2 | M32: 1 | N32: 1 | O32: 0 | P32: 1 | Q32: 1 | R32: 1 | S32: 0 | T32: 3 | U32: 0 | V32: 1 | W32: 1 | X32: 4 | Y32: 0 | Z32: 3 | AA32: 0 | AB32: 0 | AC32: 6 | AD32: 36 | AF32: 0.0005192278735 | AG32: 0.002634913037
D33: BARBADOS | E33: 0 | F33: 2 | G33: 5 | H33: 1 | I33: 0 | J33: 0 | K33: 0 | L33: 10 | M33: 0 | N33: 2 | O33: 1 | P33: 3 | Q33: 0 | R33: 4 | S33: 0 | T33: 3 | U33: 1 | V33: 3 | W33: 0 | X33: 0 | Y33: 0 | Z33: 3 | AA33: 0 | AB33: 3 | AC33: 7 | AD33: 34 | AF33: 0.0006057658525 | AG33: 0.002488528979
D34: BELAU | E34: 0 | F34: 0 | G34: 0 | H34: 0 | I34: 0 | J34: 0 | K34: 0 | L34: 0 | M34: 0 | N34: 0 | O34: 0 | P34: 0 | Q34: 0 | R34: 0 | S34: 0 | T34: 0 | U34: 0 | V34: 0 | W34: 0 | X34: 0 | Y34: 0 | Z34: 0 | AA34: 0 | AB34: 0 | AC34: 0 | AD34: 0 | AF34: 0 | AG34: 0
D35: BÉLGICA | E35: 185 | F35: 378 | G35: 115 | H35: 352 | I35: 120 | J35: 463 | K35: 105 | L35: 283 | M35: 56 | N35: 341 | O35: 96 | P35: 572 | Q35: 209 | R35: 877 | S35: 368 | T35: 475 | U35: 219 | V35: 408 | W35: 95 | X35: 430 | Y35: 64 | Z35: 411 | AA35: 66 | AB35: 462 | AC35: 1698 | AD35: 5452 | AF35: 0.1469414882 | AG35: 0.399042941
D36: BELICE | E36: 13 | F36: 3 | G36: 9 | H36: 1 | I36: 7 | J36: 0 | K36: 1 | L36: 6 | M36: 0 | N36: 4 | O36: 1 | P36: 8 | Q36: 0 | R36: 10 | S36: 0 | T36: 7 | U36: 0 | V36: 4 | W36: 1 | X36: 6 | Y36: 0 | Z36: 4 | AA36: 2 | AB36: 2 | AC36: 34 | AD36: 55 | AF36: 0.002942291283 | AG36: 0.004025561584
D37: BENIN | E37: 0 | F37: 1 | G37: 0 | H37: 0 | I37: 0 | J37: 11 | K37: 0 | L37: 4 | M37: 0 | N37: 2 | O37: 0 | P37: 3 | Q37: 0 | R37: 0 | S37: 0 | T37: 0 | U37: 0 | V37: 0 | W37: 0 | X37: 1 | Y37: 0 | Z37: 2 | AA37: 0 | AB37: 1 | AC37: 0 | AD37: 25 | AF37: 0 | AG37: 0.00182980072
D38: BIELORUS | E38: 2 | F38: 23 | G38: 5 | H38: 22 | I38: 1 | J38: 24 | K38: 1 | L38: 15 | M38: 0 | N38: 35 | O38: 0 | P38: 19 | Q38: 3 | R38: 12 | S38: 2 | T38: 17 | U38: 7 | V38: 28 | W38: 20 | X38: 19 | Y38: 1 | Z38: 35 | AA38: 3 | AB38: 15 | AC38: 45 | AD38: 264 | AF38: 0.003894209052 | AG38: 0.0193226956
D39: BOLIVIA | E39: 155 | F39: 583 | G39: 160 | H39: 491 | I39: 135 | J39: 396 | K39: 132 | L39: 368 | M39: 139 | N39: 496 | O39: 159 | P39: 502 | Q39: 205 | R39: 644 | S39: 205 | T39: 547 | U39: 381 | V39: 524 | W39: 312 | X39: 497 | Y39: 254 | Z39: 612 | AA39: 155 | AB39: 622 | AC39: 2392 | AD39: 6282 | AF39: 0.2069988456 | AG39: 0.4597923249
D40: BOPHUTHATSWANA | E40: 0 | F40: 0 | G40: 0 | H40: 0 | I40: 0 | J40: 0 | K40: 0 | L40: 0 | M40: 0 | N40: 0 | O40: 0 | P40: 0 | Q40: 0 | R40: 0 | S40: 0 | T40: 0 | U40: 0 | V40: 0 | W40: 0 | X40: 0 | Y40: 0 | Z40: 0 | AA40: 0 | AB40: 0 | AC40: 0 | AD40: 0 | AF40: 0 | AG40: 0
D41: BOSNIA HERZEGOVINA | E41: 0 | F41: 2 | G41: 0 | H41: 2 | I41: 0 | J41: 8 | K41: 0 | L41: 3 | M41: 0 | N41: 3 | O41: 0 | P41: 0 | Q41: 0 | R41: 1 | S41: 0 | T41: 1 | U41: 0 | V41: 3 | W41: 0 | X41: 1 | Y41: 0 | Z41: 1 | AA41: 0 | AB41: 2 | AC41: 0 | AD41: 27 | AF41: 0 | AG41: 0.001976184778
D42: BOTSWANA | E42: 0 | F42: 0 | G42: 0 | H42: 0 | I42: 0 | J42: 3 | K42: 0 | L42: 0 | M42: 0 | N42: 0 | O42: 0 | P42: 0 | Q42: 0 | R42: 0 | S42: 0 | T42: 1 | U42: 0 | V42: 0 | W42: 0 | X42: 1 | Y42: 0 | Z42: 1 | AA42: 0 | AB42: 3 | AC42: 0 | AD42: 9 | AF42: 0 | AG42: 0.0006587282592
D43: BRASIL | E43: 918 | F43: 1828 | G43: 879 | H43: 1337 | I43: 1043 | J43: 1306 | K43: 1093 | L43: 1609 | M43: 992 | N43: 1592 | O43: 915 | P43: 1554 | Q43: 2810 | R43: 1805 | S43: 1229 | T43: 1486 | U43: 1178 | V43: 1633 | W43: 1154 | X43: 1641 | Y43: 1230 | Z43: 1740 | AA43: 955 | AB43: 1914 | AC43: 14396 | AD43: 19445 | AF43: 1.245800745 | AG43: 1.423219
D44: BRUNEI | E44: 0 | F44: 0 | G44: 3 | H44: 0 | I44: 0 | J44: 0 | K44: 0 | L44: 0 | M44: 0 | N44: 0 | O44: 0 | P44: 2 | Q44: 0 | R44: 0 | S44: 0 | T44: 2 | U44: 0 | V44: 0 | W44: 0 | X44: 0 | Y44: 0 | Z44: 0 | AA44: 0 | AB44: 0 | AC44: 3 | AD44: 4 | AF44: 0.0002596139368 | AG44: 0.0002927681152
D45: BULGARIA | E45: 0 | F45: 57 | G45: 0 | H45: 19 | I45: 0 | J45: 36 | K45: 0 | L45: 15 | M45: 2 | N45: 25 | O45: 0 | P45: 26 | Q45: 3 | R45: 56 | S45: 0 | T45: 36 | U45: 0 | V45: 24 | W45: 1 | X45: 36 | Y45: 1 | Z45: 18 | AA45: 1 | AB45: 31 | AC45: 8 | AD45: 379 | AF45: 0.0006923038314 | AG45: 0.02773977892
D46: BURUNDI | E46: 0 | F46: 0 | G46: 0 | H46: 0 | I46: 0 | J46: 5 | K46: 0 | L46: 1 | M46: 0 | N46: 0 | O46: 0 | P46: 0 | Q46: 0 | R46: 0 | S46: 0 | T46: 0 | U46: 0 | V46: 0 | W46: 0 | X46: 0 | Y46: 1 | Z46: 0 | AA46: 0 | AB46: 0 | AC46: 1 | AD46: 6 | AF46: 8.653797892e-05 | AG46: 0.0004391521728
D47: BUTAN | E47: 0 | F47: 0 | G47: 0 | H47: 0 | I47: 0 | J47: 0 | K47: 0 | L47: 0 | M47: 0 | N47: 0 | O47: 0 | P47: 0 | Q47: 0 | R47: 0 | S47: 0 | T47: 0 | U47: 0 | V47: 0 | W47: 0 | X47: 0 | Y47: 0 | Z47: 0 | AA47: 0 | AB47: 0 | AC47: 0 | AD47: 0 | AF47: 0 | AG47: 0
D48: BURKINA FASO | E48: 0 | F48: 0 | G48: 0 | H48: 0 | I48: 0 | J48: 0 | K48: 0 | L48: 0 | M48: 0 | N48: 0 | O48: 0 | P48: 0 | Q48: 0 | R48: 0 | S48: 0 | T48: 0 | U48: 0 | V48: 0 | W48: 0 | X48: 0 | Y48: 1 | Z48: 0 | AA48: 0 | AB48: 0 | AC48: 1 | AD48: 0 | AF48: 8.653797892e-05 | AG48: 0
D49: CABO VERDE | E49: 1 | F49: 6 | G49: 0 | H49: 4 | I49: 0 | J49: 1 | K49: 0 | L49: 2 | M49: 0 | N49: 4 | O49: 0 | P49: 3 | Q49: 0 | R49: 3 | S49: 0 | T49: 4 | U49: 0 | V49: 3 | W49: 3 | X49: 4 | Y49: 0 | Z49: 6 | AA49: 0 | AB49: 2 | AC49: 4 | AD49: 42 | AF49: 0.0003461519157 | AG49: 0.00307406521
D50: CAMBOYA | E50: 0 | F50: 1 | G50: 0 | H50: 0 | I50: 0 | J50: 9 | K50: 0 | L50: 0 | M50: 0 | N50: 0 | O50: 0 | P50: 1 | Q50: 0 | R50: 0 | S50: 0 | T50: 0 | U50: 0 | V50: 0 | W50: 0 | X50: 1 | Y50: 0 | Z50: 0 | AA50: 0 | AB50: 1 | AC50: 0 | AD50: 13 | AF50: 0 | AG50: 0.0009514963744
D51: CAMERUN | E51: 0 | F51: 9 | G51: 0 | H51: 2 | I51: 1 | J51: 5 | K51: 0 | L51: 12 | M51: 0 | N51: 4 | O51: 1 | P51: 15 | Q51: 1 | R51: 9 | S51: 0 | T51: 3 | U51: 0 | V51: 2 | W51: 0 | X51: 8 | Y51: 0 | Z51: 1 | AA51: 0 | AB51: 6 | AC51: 3 | AD51: 76 | AF51: 0.0002596139368 | AG51: 0.005562594189
D52: CANADÁ | E52: 665 | F52: 2490 | G52: 434 | H52: 2642 | I52: 574 | J52: 2877 | K52: 534 | L52: 2308 | M52: 646 | N52: 2276 | O52: 533 | P52: 1930 | Q52: 655 | R52: 2787 | S52: 854 | T52: 1893 | U52: 766 | V52: 1555 | W52: 405 | X52: 1909 | Y52: 340 | Z52: 2649 | AA52: 383 | AB52: 2941 | AC52: 6789 | AD52: 28257 | AF52: 0.5875063389 | AG52: 2.068187158
D53: CENTRO AFRICA REPUBLI | E53: 0 | F53: 1 | G53: 0 | H53: 0 | I53: 0 | J53: 1 | K53: 0 | L53: 1 | M53: 0 | N53: 0 | O53: 0 | P53: 1 | Q53: 0 | R53: 1 | S53: 0 | T53: 1 | U53: 0 | V53: 0 | W53: 0 | X53: 1 | Y53: 0 | Z53: 0 | AA53: 0 | AB53: 0 | AC53: 0 | AD53: 7 | AF53: 0 | AG53: 0.0005123442016
D54: CHAD | E54: 0 | F54: 3 | G54: 0 | H54: 5 | I54: 0 | J54: 7 | K54: 0 | L54: 0 | M54: 0 | N54: 1 | O54: 0 | P54: 0 | Q54: 0 | R54: 1 | S54: 0 | T54: 1 | U54: 0 | V54: 0 | W54: 0 | X54: 0 | Y54: 0 | Z54: 2 | AA54: 0 | AB54: 0 | AC54: 0 | AD54: 20 | AF54: 0 | AG54: 0.001463840576
D55: CHECOSLOVAQUIA | E55: 1 | F55: 109 | G55: 4 | H55: 145 | I55: 1 | J55: 97 | K55: 2 | L55: 38 | M55: 8 | N55: 60 | O55: 2 | P55: 50 | Q55: 2 | R55: 73 | S55: 9 | T55: 88 | U55: 14 | V55: 103 | W55: 2 | X55: 105 | Y55: 7 | Z55: 163 | AA55: 0 | AB55: 109 | AC55: 52 | AD55: 1140 | AF55: 0.004499974904 | AG55: 0.08343891283
D56: CHILE | E56: 2620 | F56: 5023 | G56: 2455 | H56: 6916 | I56: 3236 | J56: 2929 | K56: 2464 | L56: 2504 | M56: 1793 | N56: 2603 | O56: 1588 | P56: 2741 | Q56: 1829 | R56: 3484 | S56: 2350 | T56: 3087 | U56: 1985 | V56: 3074 | W56: 2757 | X56: 2731 | Y56: 2171 | Z56: 2456 | AA56: 1812 | AB56: 3397 | AC56: 27060 | AD56: 40945 | AF56: 2.34171771 | AG56: 2.996847619
D57: CHINA POPULAR (PEKIN) | E57: 127 | F57: 1021 | G57: 157 | H57: 862 | I57: 197 | J57: 1462 | K57: 325 | L57: 1247 | M57: 265 | N57: 1266 | O57: 190 | P57: 1199 | Q57: 183 | R57: 1218 | S57: 206 | T57: 1457 | U57: 285 | V57: 1244 | W57: 362 | X57: 1351 | Y57: 216 | Z57: 1271 | AA57: 73 | AB57: 1137 | AC57: 2586 | AD57: 14735 | AF57: 0.2237872135 | AG57: 1.078484544
D58: CHIPRE | E58: 0 | F58: 1 | G58: 0 | H58: 3 | I58: 0 | J58: 2 | K58: 0 | L58: 3 | M58: 0 | N58: 1 | O58: 0 | P58: 2 | Q58: 2 | R58: 1 | S58: 0 | T58: 4 | U58: 0 | V58: 3 | W58: 0 | X58: 3 | Y58: 0 | Z58: 4 | AA58: 0 | AB58: 10 | AC58: 2 | AD58: 37 | AF58: 0.0001730759578 | AG58: 0.002708105066
D59: CISKEI | E59: 0 | F59: 0 | G59: 0 | H59: 1 | I59: 0 | J59: 0 | K59: 0 | L59: 0 | M59: 0 | N59: 0 | O59: 0 | P59: 0 | Q59: 0 | R59: 0 | S59: 0 | T59: 0 | U59: 0 | V59: 0 | W59: 0 | X59: 1 | Y59: 0 | Z59: 0 | AA59: 0 | AB59: 0 | AC59: 0 | AD59: 2 | AF59: 0 | AG59: 0.0001463840576
D60: COLOMBIA | E60: 7798 | F60: 46006 | G60: 8674 | H60: 21340 | I60: 8069 | J60: 31800 | K60: 9964 | L60: 21035 | M60: 9248 | N60: 23069 | O60: 7850 | P60: 31197 | Q60: 10187 | R60: 35036 | S60: 10204 | T60: 22168 | U60: 9395 | V60: 21809 | W60: 9187 | X60: 25426 | Y60: 8127 | Z60: 24581 | AA60: 8911 | AB60: 40896 | AC60: 107614 | AD60: 344363 | AF60: 9.312698064 | AG60: 25.20462661
D61: COMORAS | E61: 0 | F61: 0 | G61: 0 | H61: 0 | I61: 0 | J61: 1 | K61: 0 | L61: 0 | M61: 0 | N61: 1 | O61: 0 | P61: 1 | Q61: 0 | R61: 0 | S61: 0 | T61: 0 | U61: 0 | V61: 0 | W61: 0 | X61: 0 | Y61: 0 | Z61: 0 | AA61: 0 | AB61: 0 | AC61: 0 | AD61: 3 | AF61: 0 | AG61: 0.0002195760864
D62: CONGO | E62: 0 | F62: 1 | G62: 0 | H62: 1 | I62: 0 | J62: 15 | K62: 0 | L62: 0 | M62: 0 | N62: 0 | O62: 0 | P62: 4 | Q62: 0 | R62: 2 | S62: 0 | T62: 5 | U62: 1 | V62: 1 | W62: 1 | X62: 3 | Y62: 1 | Z62: 1 | AA62: 0 | AB62: 7 | AC62: 3 | AD62: 40 | AF62: 0.0002596139368 | AG62: 0.002927681152
D63: COREA NORTE | E63: 0 | F63: 0 | G63: 0 | H63: 0 | I63: 0 | J63: 0 | K63: 0 | L63: 2 | M63: 0 | N63: 0 | O63: 0 | P63: 1 | Q63: 0 | R63: 1 | S63: 0 | T63: 1 | U63: 0 | V63: 0 | W63: 0 | X63: 1 | Y63: 0 | Z63: 1 | AA63: 0 | AB63: 1 | AC63: 0 | AD63: 8 | AF63: 0 | AG63: 0.0005855362304
D64: COREA SUR | E64: 0 | F64: 22 | G64: 0 | H64: 18 | I64: 0 | J64: 23 | K64: 0 | L64: 26 | M64: 0 | N64: 32 | O64: 0 | P64: 21 | Q64: 0 | R64: 23 | S64: 1 | T64: 22 | U64: 2 | V64: 20 | W64: 0 | X64: 23 | Y64: 0 | Z64: 24 | AA64: 0 | AB64: 32 | AC64: 3 | AD64: 286 | AF64: 0.0002596139368 | AG64: 0.02093292024
D65: COSTA DE MARFIL | E65: 3 | F65: 0 | G65: 4 | H65: 0 | I65: 0 | J65: 6 | K65: 2 | L65: 2 | M65: 1 | N65: 0 | O65: 0 | P65: 1 | Q65: 1 | R65: 2 | S65: 2 | T65: 1 | U65: 1 | V65: 2 | W65: 1 | X65: 4 | Y65: 0 | Z65: 3 | AA65: 1 | AB65: 1 | AC65: 16 | AD65: 22 | AF65: 0.001384607663 | AG65: 0.001610224634
D66: COSTA RICA | E66: 591 | F66: 471 | G66: 317 | H66: 341 | I66: 324 | J66: 656 | K66: 459 | L66: 563 | M66: 327 | N66: 561 | O66: 338 | P66: 623 | Q66: 345 | R66: 727 | S66: 331 | T66: 574 | U66: 361 | V66: 736 | W66: 276 | X66: 775 | Y66: 272 | Z66: 808 | AA66: 254 | AB66: 797 | AC66: 4195 | AD66: 7632 | AF66: 0.3630268216 | AG66: 0.5586015638
D67: CROACIA | E67: 1 | F67: 26 | G67: 0 | H67: 24 | I67: 5 | J67: 21 | K67: 2 | L67: 12 | M67: 1 | N67: 25 | O67: 1 | P67: 15 | Q67: 3 | R67: 66 | S67: 1 | T67: 27 | U67: 2 | V67: 19 | W67: 0 | X67: 35 | Y67: 0 | Z67: 54 | AA67: 5 | AB67: 72 | AC67: 21 | AD67: 396 | AF67: 0.001817297557 | AG67: 0.02898404341
D68: CUBA | E68: 642 | F68: 1772 | G68: 1424 | H68: 1371 | I68: 905 | J68: 1405 | K68: 888 | L68: 2004 | M68: 691 | N68: 1848 | O68: 628 | P68: 1761 | Q68: 899 | R68: 2049 | S68: 879 | T68: 2473 | U68: 1179 | V68: 2321 | W68: 818 | X68: 2262 | Y68: 680 | Z68: 2579 | AA68: 872 | AB68: 2764 | AC68: 10505 | AD68: 24609 | AF68: 0.9090814686 | AG68: 1.801182637
D69: CURAZAO | E69: 295 | F69: 1 | G69: 77 | H69: 0 | I69: 59 | J69: 1 | K69: 78 | L69: 4 | M69: 110 | N69: 0 | O69: 33 | P69: 2 | Q69: 43 | R69: 6 | S69: 703 | T69: 4 | U69: 59 | V69: 0 | W69: 137 | X69: 4 | Y69: 28 | Z69: 1 | AA69: 47 | AB69: 1 | AC69: 1669 | AD69: 24 | AF69: 0.1444318868 | AG69: 0.001756608691
D70: DINAMARCA | E70: 15 | F70: 310 | G70: 15 | H70: 255 | I70: 9 | J70: 293 | K70: 15 | L70: 190 | M70: 14 | N70: 150 | O70: 14 | P70: 162 | Q70: 26 | R70: 327 | S70: 35 | T70: 116 | U70: 21 | V70: 137 | W70: 9 | X70: 220 | Y70: 10 | Z70: 319 | AA70: 11 | AB70: 187 | AC70: 194 | AD70: 2666 | AF70: 0.01678836791 | AG70: 0.1951299488
D71: DJIBOUTI | E71: 0 | F71: 1 | G71: 0 | H71: 0 | I71: 0 | J71: 1 | K71: 0 | L71: 0 | M71: 0 | N71: 2 | O71: 0 | P71: 0 | Q71: 0 | R71: 0 | S71: 0 | T71: 0 | U71: 0 | V71: 0 | W71: 0 | X71: 0 | Y71: 0 | Z71: 1 | AA71: 0 | AB71: 0 | AC71: 0 | AD71: 5 | AF71: 0 | AG71: 0.000365960144
D72: DOMINICA | E72: 0 | F72: 2 | G72: 0 | H72: 4 | I72: 0 | J72: 2 | K72: 0 | L72: 6 | M72: 3 | N72: 6 | O72: 0 | P72: 4 | Q72: 0 | R72: 2 | S72: 1 | T72: 2 | U72: 0 | V72: 0 | W72: 1 | X72: 0 | Y72: 1 | Z72: 2 | AA72: 0 | AB72: 1 | AC72: 6 | AD72: 31 | AF72: 0.0005192278735 | AG72: 0.002268952893
D73: ECUADOR | E73: 0 | F73: 0 | G73: 0 | H73: 0 | I73: 0 | J73: 0 | K73: 0 | L73: 0 | M73: 0 | N73: 0 | O73: 0 | P73: 0 | Q73: 0 | R73: 0 | S73: 0 | T73: 0 | U73: 0 | V73: 0 | W73: 0 | X73: 0 | Y73: 0 | Z73: 0 | AA73: 0 | AB73: 0 | AC73: 0 | AD73: 0 | AF73: 0 | AG73: 0
D74: EGIPTO | E74: 4 | F74: 8 | G74: 47 | H74: 18 | I74: 43 | J74: 59 | K74: 50 | L74: 19 | M74: 50 | N74: 15 | O74: 30 | P74: 14 | Q74: 70 | R74: 26 | S74: 39 | T74: 14 | U74: 36 | V74: 12 | W74: 72 | X74: 15 | Y74: 6 | Z74: 20 | AA74: 3 | AB74: 48 | AC74: 450 | AD74: 268 | AF74: 0.03894209052 | AG74: 0.01961546372
D75: EL SALVADOR | E75: 198 | F75: 349 | G75: 218 | H75: 357 | I75: 264 | J75: 291 | K75: 361 | L75: 247 | M75: 298 | N75: 285 | O75: 305 | P75: 519 | Q75: 387 | R75: 332 | S75: 306 | T75: 362 | U75: 246 | V75: 201 | W75: 223 | X75: 217 | Y75: 355 | Z75: 299 | AA75: 199 | AB75: 185 | AC75: 3360 | AD75: 3644 | AF75: 0.2907676092 | AG75: 0.266711753
D76: EMIRATOS A. UNIDOS | E76: 35 | F76: 0 | G76: 24 | H76: 2 | I76: 17 | J76: 11 | K76: 22 | L76: 1 | M76: 32 | N76: 5 | O76: 13 | P76: 3 | Q76: 17 | R76: 1 | S76: 13 | T76: 0 | U76: 24 | V76: 4 | W76: 34 | X76: 1 | Y76: 20 | Z76: 0 | AA76: 31 | AB76: 3 | AC76: 282 | AD76: 31 | AF76: 0.02440371006 | AG76: 0.002268952893
D77: ESCOCIA | E77: 5 | F77: 6 | G77: 2 | H77: 8 | I77: 4 | J77: 18 | K77: 3 | L77: 4 | M77: 4 | N77: 5 | O77: 3 | P77: 10 | Q77: 6 | R77: 11 | S77: 3 | T77: 12 | U77: 9 | V77: 7 | W77: 5 | X77: 12 | Y77: 4 | Z77: 6 | AA77: 9 | AB77: 7 | AC77: 57 | AD77: 106 | AF77: 0.004932664799 | AG77: 0.007758355053
D78: ESLOVENIA | E78: 1 | F78: 8 | G78: 1 | H78: 3 | I78: 1 | J78: 5 | K78: 0 | L78: 28 | M78: 0 | N78: 17 | O78: 1 | P78: 12 | Q78: 1 | R78: 11 | S78: 0 | T78: 14 | U78: 0 | V78: 6 | W78: 7 | X78: 13 | Y78: 0 | Z78: 13 | AA78: 0 | AB78: 16 | AC78: 12 | AD78: 146 | AF78: 0.001038455747 | AG78: 0.01068603621
D79: ESPAÑA | E79: 8142 | F79: 5153 | G79: 8025 | H79: 4902 | I79: 9151 | J79: 4754 | K79: 8375 | L79: 4167 | M79: 9390 | N79: 4714 | O79: 7244 | P79: 7043 | Q79: 8276 | R79: 6002 | S79: 8269 | T79: 6688 | U79: 11448 | V79: 5921 | W79: 9452 | X79: 5039 | Y79: 6354 | Z79: 5568 | AA79: 5434 | AB79: 5294 | AC79: 99560 | AD79: 65245 | AF79: =+AC79/AC$239*100 -> 8.615721182 | AG79: 4.775413919
D80: ESTADOS UNIDOS | E80: 25192 | F80: 19066 | G80: 32666 | H80: 18900 | I80: 36111 | J80: 21984 | K80: 33434 | L80: 15382 | M80: 32202 | N80: 19921 | O80: 25251 | P80: 31587 | Q80: 34068 | R80: 30504 | S80: 42883 | T80: 22786 | U80: 36736 | V80: 14066 | W80: 34046 | X80: 16004 | Y80: 33883 | Z80: 15963 | AA80: 28599 | AB80: 24622 | AC80: =+E80+G80+I80+K80+M80+O80+Q80+S80+U80+W80+Y80+AA80 -> 395071 | AD80: =+F80+H80+J80+L80+N80+P80+R80+T80+V80+X80+Z80+AB80 -> 250785 | AF80: 34.18864587 | AG80: =+AD80/AD$239*100 -> 18.35546294
D81: ESTONIA | E81: 0 | F81: 27 | G81: 0 | H81: 11 | I81: 0 | J81: 25 | K81: 1 | L81: 16 | M81: 0 | N81: 2 | O81: 11 | P81: 3 | Q81: 0 | R81: 7 | S81: 1 | T81: 10 | U81: 1 | V81: 1 | W81: 0 | X81: 9 | Y81: 0 | Z81: 18 | AA81: 0 | AB81: 17 | AC81: 14 | AD81: 146 | AF81: 0.001211531705 | AG81: 0.01068603621
D82: ETIOPIA | E82: 1 | F82: 1 | G82: 1 | H82: 0 | I82: 2 | J82: 8 | K82: 0 | L82: 2 | M82: 2 | N82: 2 | O82: 0 | P82: 2 | Q82: 3 | R82: 1 | S82: 0 | T82: 0 | U82: 8 | V82: 0 | W82: 1 | X82: 0 | Y82: 2 | Z82: 0 | AA82: 2 | AB82: 4 | AC82: 22 | AD82: 20 | AF82: 0.001903835536 | AG82: 0.001463840576
D83: FIJI | E83: 0 | F83: 0 | G83: 1 | H83: 0 | I83: 0 | J83: 1 | K83: 1 | L83: 0 | M83: 0 | N83: 1 | O83: 0 | P83: 1 | Q83: 1 | R83: 0 | S83: 0 | T83: 0 | U83: 1 | V83: 0 | W83: 0 | X83: 0 | Y83: 0 | Z83: 2 | AA83: 1 | AB83: 0 | AC83: 5 | AD83: 5 | AF83: 0.0004326898946 | AG83: 0.000365960144
D84: FILIPINAS | E84: 2 | F84: 234 | G84: 3 | H84: 261 | I84: 2 | J84: 202 | K84: 5 | L84: 140 | M84: 2 | N84: 179 | O84: 5 | P84: 162 | Q84: 9 | R84: 211 | S84: 11 | T84: 203 | U84: 6 | V84: 198 | W84: 1 | X84: 311 | Y84: 4 | Z84: 286 | AA84: 0 | AB84: 425 | AC84: 50 | AD84: 2812 | AF84: 0.004326898946 | AG84: 0.205815985
D85: FINLANDIA | E85: 11 | F85: 98 | G85: 4 | H85: 100 | I85: 16 | J85: 125 | K85: 5 | L85: 60 | M85: 10 | N85: 73 | O85: 11 | P85: 74 | Q85: 7 | R85: 69 | S85: 11 | T85: 76 | U85: 5 | V85: 71 | W85: 8 | X85: 123 | Y85: 12 | Z85: 135 | AA85: 1 | AB85: 154 | AC85: 101 | AD85: 1158 | AF85: 0.008740335871 | AG85: 0.08475636935
D86: FRANCIA | E86: 245 | F86: 1594 | G86: 220 | H86: 1463 | I86: 275 | J86: 1718 | K86: 176 | L86: 1481 | M86: 325 | N86: 1653 | O86: 276 | P86: 1445 | Q86: 394 | R86: 2335 | S86: 554 | T86: 2008 | U86: 482 | V86: 1773 | W86: 341 | X86: 1851 | Y86: 222 | Z86: 1701 | AA86: 180 | AB86: 1304 | AC86: 3690 | AD86: 20326 | AF86: 0.3193251422 | AG86: 1.487701177
D87: GABON | E87: 2 | F87: 0 | G87: 0 | H87: 0 | I87: 0 | J87: 12 | K87: 2 | L87: 0 | M87: 0 | N87: 1 | O87: 0 | P87: 0 | Q87: 1 | R87: 4 | S87: 0 | T87: 0 | U87: 2 | V87: 0 | W87: 0 | X87: 0 | Y87: 2 | Z87: 1 | AA87: 0 | AB87: 0 | AC87: 9 | AD87: 18 | AF87: 0.0007788418103 | AG87: 0.001317456518
D88: GAMBIA | E88: 0 | F88: 0 | G88: 0 | H88: 1 | I88: 0 | J88: 0 | K88: 4 | L88: 1 | M88: 0 | N88: 1 | O88: 0 | P88: 0 | Q88: 0 | R88: 2 | S88: 0 | T88: 0 | U88: 0 | V88: 0 | W88: 0 | X88: 0 | Y88: 0 | Z88: 0 | AA88: 0 | AB88: 1 | AC88: 4 | AD88: 6 | AF88: 0.0003461519157 | AG88: 0.0004391521728
D89: GEORGIA | E89: 0 | F89: 3 | G89: 0 | H89: 3 | I89: 0 | J89: 5 | K89: 0 | L89: 4 | M89: 0 | N89: 14 | O89: 1 | P89: 2 | Q89: 0 | R89: 4 | S89: 0 | T89: 4 | U89: 1 | V89: 6 | W89: 0 | X89: 3 | Y89: 0 | Z89: 4 | AA89: 0 | AB89: 3 | AC89: 2 | AD89: 55 | AF89: 0.0001730759578 | AG89: 0.004025561584
D90: GHANA | E90: 0 | F90: 8 | G90: 0 | H90: 3 | I90: 1 | J90: 6 | K90: 0 | L90: 2 | M90: 0 | N90: 4 | O90: 1 | P90: 4 | Q90: 0 | R90: 11 | S90: 0 | T90: 11 | U90: 0 | V90: 6 | W90: 0 | X90: 7 | Y90: 1 | Z90: 7 | AA90: 0 | AB90: 5 | AC90: 3 | AD90: 74 | AF90: 0.0002596139368 | AG90: 0.005416210131
D91: GRAN BRETAÑA | E91: 251 | F91: 1841 | G91: 190 | H91: 1478 | I91: 204 | J91: 1880 | K91: 181 | L91: 1904 | M91: 192 | N91: 2071 | O91: 195 | P91: 1882 | Q91: 290 | R91: 3107 | S91: 285 | T91: 2098 | U91: 540 | V91: 1573 | W91: 235 | X91: 1963 | Y91: 203 | Z91: 2186 | AA91: 173 | AB91: 1496 | AC91: 2939 | AD91: 23479 | AF91: 0.2543351201 | AG91: 1.718475644
D92: GRANADA | E92: 1 | F92: 1 | G92: 0 | H92: 1 | I92: 0 | J92: 0 | K92: 0 | L92: 4 | M92: 0 | N92: 1 | O92: 0 | P92: 1 | Q92: 1 | R92: 2 | S92: 2 | T92: 0 | U92: 0 | V92: 0 | W92: 0 | X92: 4 | Y92: 0 | Z92: 0 | AA92: 0 | AB92: 0 | AC92: 4 | AD92: 14 | AF92: 0.0003461519157 | AG92: 0.001024688403
D93: GRECIA | E93: 5 | F93: 45 | G93: 2 | H93: 39 | I93: 0 | J93: 40 | K93: 11 | L93: 47 | M93: 13 | N93: 41 | O93: 7 | P93: 36 | Q93: 11 | R93: 38 | S93: 10 | T93: 52 | U93: 11 | V93: 32 | W93: 5 | X93: 46 | Y93: 6 | Z93: 53 | AA93: 1 | AB93: 67 | AC93: 82 | AD93: 536 | AF93: 0.007096114272 | AG93: 0.03923092744
D94: GUATEMALA | E94: 117 | F94: 221 | G94: 193 | H94: 190 | I94: 180 | J94: 219 | K94: 226 | L94: 305 | M94: 140 | N94: 277 | O94: 129 | P94: 369 | Q94: 110 | R94: 284 | S94: 127 | T94: 284 | U94: 133 | V94: 331 | W94: 177 | X94: 274 | Y94: 231 | Z94: 277 | AA94: 124 | AB94: 205 | AC94: 1887 | AD94: 3236 | AF94: 0.1632971662 | AG94: 0.2368494052
D95: GUINEA | E95: 7 | F95: 5 | G95: 0 | H95: 4 | I95: 2 | J95: 10 | K95: 2 | L95: 3 | M95: 2 | N95: 4 | O95: 0 | P95: 0 | Q95: 0 | R95: 1 | S95: 2 | T95: 1 | U95: 1 | V95: 1 | W95: 3 | X95: 3 | Y95: 1 | Z95: 2 | AA95: 0 | AB95: 1 | AC95: 20 | AD95: 35 | AF95: 0.001730759578 | AG95: 0.002561721008
D96: GUINEA BISAU | E96: 0 | F96: 0 | G96: 0 | H96: 1 | I96: 0 | J96: 1 | K96: 0 | L96: 0 | M96: 0 | N96: 0 | O96: 0 | P96: 0 | Q96: 0 | R96: 0 | S96: 0 | T96: 0 | U96: 0 | V96: 0 | W96: 0 | X96: 0 | Y96: 0 | Z96: 0 | AA96: 0 | AB96: 0 | AC96: 0 | AD96: 2 | AF96: 0 | AG96: 0.0001463840576
D97: GUINEA ECUATORIAL | E97: 0 | F97: 3 | G97: 1 | H97: 0 | I97: 1 | J97: 2 | K97: 1 | L97: 0 | M97: 0 | N97: 0 | O97: 0 | P97: 0 | Q97: 2 | R97: 0 | S97: 0 | T97: 0 | U97: 1 | V97: 0 | W97: 1 | X97: 1 | Y97: 0 | Z97: 0 | AA97: 0 | AB97: 0 | AC97: 7 | AD97: 6 | AF97: 0.0006057658525 | AG97: 0.0004391521728
D98: GUYANA | E98: 2 | F98: 3 | G98: 0 | H98: 10 | I98: 3 | J98: 4 | K98: 0 | L98: 7 | M98: 6 | N98: 5 | O98: 1 | P98: 6 | Q98: 2 | R98: 5 | S98: 1 | T98: 5 | U98: 0 | V98: 2 | W98: 2 | X98: 3 | Y98: 0 | Z98: 5 | AA98: 1 | AB98: 16 | AC98: 18 | AD98: 71 | AF98: 0.001557683621 | AG98: 0.005196634045
D99: HAITI | E99: 133 | F99: 642 | G99: 9 | H99: 678 | I99: 125 | J99: 1352 | K99: 44 | L99: 1285 | M99: 42 | N99: 1293 | O99: 49 | P99: 1194 | Q99: 126 | R99: 991 | S99: 5 | T99: 985 | U99: 19 | V99: 1325 | W99: 27 | X99: 1327 | Y99: 22 | Z99: 1178 | AA99: 51 | AB99: 1915 | AC99: 652 | AD99: 14165 | AF99: 0.05642276226 | AG99: 1.036765088
D100: HOLANDA | E100: 531 | F100: 1026 | G100: 322 | H100: 894 | I100: 582 | J100: 988 | K100: 625 | L100: 1246 | M100: 683 | N100: 1025 | O100: 719 | P100: 1048 | Q100: 857 | R100: 1858 | S100: 862 | T100: 1101 | U100: 673 | V100: 1016 | W100: 472 | X100: 1264 | Y100: 452 | Z100: 1218 | AA100: 365 | AB100: 1246 | AC100: 7143 | AD100: 13930 | AF100: 0.6181407834 | AG100: 1.019564961
D101: HONDURAS | E101: 321 | F101: 136 | G101: 116 | H101: 96 | I101: 178 | J101: 112 | K101: 361 | L101: 129 | M101: 330 | N101: 156 | O101: 223 | P101: 173 | Q101: 169 | R101: 116 | S101: 182 | T101: 131 | U101: 139 | V101: 109 | W101: 106 | X101: 172 | Y101: 91 | Z101: 127 | AA101: 283 | AB101: 156 | AC101: 2499 | AD101: 1613 | AF101: 0.2162584093 | AG101: 0.1180587425
D102: HUNGRÍA | E102: 0 | F102: 42 | G102: 3 | H102: 18 | I102: 1 | J102: 32 | K102: 8 | L102: 27 | M102: 6 | N102: 26 | O102: 1 | P102: 21 | Q102: 9 | R102: 20 | S102: 1 | T102: 23 | U102: 7 | V102: 18 | W102: 2 | X102: 33 | Y102: 2 | Z102: 63 | AA102: 4 | AB102: 26 | AC102: 44 | AD102: 349 | AF102: 0.003807671073 | AG102: 0.02554401805
D103: INDIA | E103: 21 | F103: 190 | G103: 23 | H103: 311 | I103: 30 | J103: 366 | K103: 6 | L103: 324 | M103: 14 | N103: 209 | O103: 8 | P103: 337 | Q103: 17 | R103: 265 | S103: 3 | T103: 220 | U103: 23 | V103: 278 | W103: 26 | X103: 255 | Y103: 39 | Z103: 281 | AA103: 72 | AB103: 363 | AC103: 282 | AD103: 3399 | AF103: 0.02440371006 | AG103: 0.2487797059
D104: INDONESIA | E104: 6 | F104: 20 | G104: 1 | H104: 63 | I104: 3 | J104: 54 | K104: 3 | L104: 20 | M104: 4 | N104: 9 | O104: 5 | P104: 36 | Q104: 7 | R104: 55 | S104: 8 | T104: 60 | U104: 3 | V104: 11 | W104: 9 | X104: 82 | Y104: 11 | Z104: 16 | AA104: 1 | AB104: 21 | AC104: 61 | AD104: 447 | AF104: 0.005278816714 | AG104: 0.03271683687
D105: IRAK | E105: 8 | F105: 2 | G105: 3 | H105: 0 | I105: 2 | J105: 12 | K105: 10 | L105: 0 | M105: 5 | N105: 6 | O105: 11 | P105: 1 | Q105: 8 | R105: 0 | S105: 12 | T105: 3 | U105: 6 | V105: 0 | W105: 8 | X105: 0 | Y105: 8 | Z105: 2 | AA105: 4 | AB105: 2 | AC105: 85 | AD105: 28 | AF105: 0.007355728208 | AG105: 0.002049376806
D106: IRAN | E106: 0 | F106: 0 | G106: 0 | H106: 1 | I106: 0 | J106: 1 | K106: 0 | L106: 0 | M106: 0 | N106: 0 | O106: 0 | P106: 0 | Q106: 0 | R106: 0 | S106: 0 | T106: 1 | U106: 0 | V106: 0 | W106: 0 | X106: 0 | Y106: 1 | Z106: 14 | AA106: 0 | AB106: 1 | AC106: 1 | AD106: 18 | AF106: 8.653797892e-05 | AG106: 0.001317456518
D107: IRLANDA | E107: 3 | F107: 215 | G107: 5 | H107: 171 | I107: 5 | J107: 220 | K107: 10 | L107: 212 | M107: 4 | N107: 286 | O107: 8 | P107: 262 | Q107: 8 | R107: 366 | S107: 6 | T107: 264 | U107: 2 | V107: 229 | W107: 8 | X107: 209 | Y107: 2 | Z107: 179 | AA107: 5 | AB107: 158 | AC107: 66 | AD107: 2771 | AF107: 0.005711506609 | AG107: 0.2028151118
D108: ISLANDIA | E108: 0 | F108: 5 | G108: 0 | H108: 5 | I108: 4 | J108: 30 | K108: 0 | L108: 7 | M108: 0 | N108: 10 | O108: 0 | P108: 12 | Q108: 0 | R108: 8 | S108: 0 | T108: 8 | U108: 0 | V108: 6 | W108: 0 | X108: 1 | Y108: 0 | Z108: 11 | AA108: 2 | AB108: 17 | AC108: 6 | AD108: 120 | AF108: 0.0005192278735 | AG108: 0.008783043456
D109: ISRAEL | E109: 32 | F109: 213 | G109: 62 | H109: 254 | I109: 62 | J109: 289 | K109: 65 | L109: 385 | M109: 79 | N109: 565 | O109: 93 | P109: 471 | Q109: 82 | R109: 534 | S109: 39 | T109: 366 | U109: 190 | V109: 419 | W109: 107 | X109: 228 | Y109: 49 | Z109: 198 | AA109: 22 | AB109: 166 | AC109: 882 | AD109: 4088 | AF109: 0.07632649741 | AG109: 0.2992090137
D110: ITALIA | E110: 2595 | F110: 1288 | G110: 2192 | H110: 1083 | I110: 2193 | J110: 1123 | K110: 1871 | L110: 1003 | M110: 1581 | N110: 965 | O110: 1450 | P110: 1253 | Q110: 1707 | R110: 1315 | S110: 1832 | T110: 1710 | U110: 3085 | V110: 1177 | W110: 1692 | X110: 1172 | Y110: 1201 | Z110: 1270 | AA110: 974 | AB110: 1374 | AC110: 22373 | AD110: 14733 | AF110: 1.936114202 | AG110: 1.07833816
D111: JAMAICA | E111: 19 | F111: 12 | G111: 180 | H111: 9 | I111: 41 | J111: 55 | K111: 8 | L111: 26 | M111: 33 | N111: 4 | O111: 15 | P111: 27 | Q111: 252 | R111: 7 | S111: 1024 | T111: 8 | U111: 23 | V111: 10 | W111: 19 | X111: 8 | Y111: 15 | Z111: 6 | AA111: 23 | AB111: 10 | AC111: 1652 | AD111: 182 | AF111: 0.1429607412 | AG111: 0.01332094924
D112: JAPÓN | E112: 26 | F112: 479 | G112: 14 | H112: 468 | I112: 25 | J112: 528 | K112: 20 | L112: 461 | M112: 30 | N112: 343 | O112: 20 | P112: 436 | Q112: 31 | R112: 410 | S112: 32 | T112: 466 | U112: 35 | V112: 527 | W112: 54 | X112: 361 | Y112: 32 | Z112: 511 | AA112: 11 | AB112: 602 | AC112: 330 | AD112: 5592 | AF112: 0.02855753304 | AG112: 0.4092898251
D113: JORDANIA | E113: 2 | F113: 6 | G113: 1 | H113: 9 | I113: 1 | J113: 16 | K113: 1 | L113: 5 | M113: 1 | N113: 5 | O113: 0 | P113: 9 | Q113: 2 | R113: 3 | S113: 1 | T113: 7 | U113: 3 | V113: 4 | W113: 3 | X113: 9 | Y113: 0 | Z113: 6 | AA113: 0 | AB113: 3 | AC113: 15 | AD113: 82 | AF113: 0.001298069684 | AG113: 0.006001746362
D114: KAMPUCHEA | E114: 0 | F114: 0 | G114: 0 | H114: 0 | I114: 0 | J114: 0 | K114: 0 | L114: 0 | M114: 0 | N114: 0 | O114: 0 | P114: 0 | Q114: 0 | R114: 0 | S114: 0 | T114: 0 | U114: 0 | V114: 0 | W114: 0 | X114: 0 | Y114: 0 | Z114: 0 | AA114: 0 | AB114: 0 | AC114: 0 | AD114: 0 | AF114: 0 | AG114: 0
D115: KAZAJSTAN | E115: 2 | F115: 37 | G115: 1 | H115: 7 | I115: 2 | J115: 14 | K115: 2 | L115: 3 | M115: 0 | N115: 7 | O115: 0 | P115: 17 | Q115: 1 | R115: 10 | S115: 0 | T115: 8 | U115: 1 | V115: 11 | W115: 1 | X115: 9 | Y115: 0 | Z115: 11 | AA115: 0 | AB115: 14 | AC115: 10 | AD115: 148 | AF115: 0.0008653797892 | AG115: 0.01083242026
D116: KENIA | E116: 2 | F116: 4 | G116: 2 | H116: 1 | I116: 1 | J116: 6 | K116: 2 | L116: 10 | M116: 4 | N116: 6 | O116: 3 | P116: 3 | Q116: 2 | R116: 0 | S116: 9 | T116: 1 | U116: 4 | V116: 2 | W116: 2 | X116: 4 | Y116: 2 | Z116: 1 | AA116: 0 | AB116: 5 | AC116: 33 | AD116: 43 | AF116: 0.002855753304 | AG116: 0.003147257239
D117: KIRGUISTAN | E117: 0 | F117: 2 | G117: 0 | H117: 0 | I117: 0 | J117: 3 | K117: 0 | L117: 0 | M117: 0 | N117: 1 | O117: 0 | P117: 0 | Q117: 0 | R117: 1 | S117: 0 | T117: 0 | U117: 2 | V117: 1 | W117: 0 | X117: 0 | Y117: 0 | Z117: 0 | AA117: 0 | AB117: 0 | AC117: 2 | AD117: 8 | AF117: 0.0001730759578 | AG117: 0.0005855362304
D118: KIRIBATI | E118: 6 | F118: 1 | G118: 2 | H118: 7 | I118: 3 | J118: 5 | K118: 1 | L118: 10 | M118: 21 | N118: 6 | O118: 9 | P118: 13 | Q118: 0 | R118: 6 | S118: 2 | T118: 1 | U118: 2 | V118: 13 | W118: 0 | X118: 12 | Y118: 6 | Z118: 6 | AA118: 6 | AB118: 2 | AC118: 58 | AD118: 82 | AF118: 0.005019202778 | AG118: 0.006001746362
D119: KUWAIT | E119: 9 | F119: 6 | G119: 2 | H119: 1 | I119: 0 | J119: 41 | K119: 1 | L119: 6 | M119: 1 | N119: 2 | O119: 2 | P119: 6 | Q119: 1 | R119: 4 | S119: 9 | T119: 0 | U119: 0 | V119: 5 | W119: 1 | X119: 5 | Y119: 0 | Z119: 1 | AA119: 2 | AB119: 3 | AC119: 28 | AD119: 80 | AF119: 0.00242306341 | AG119: 0.005855362304
D120: LAOS | E120: 0 | F120: 0 | G120: 0 | H120: 0 | I120: 0 | J120: 0 | K120: 0 | L120: 0 | M120: 0 | N120: 0 | O120: 0 | P120: 0 | Q120: 0 | R120: 0 | S120: 0 | T120: 0 | U120: 0 | V120: 0 | W120: 0 | X120: 0 | Y120: 0 | Z120: 0 | AA120: 0 | AB120: 0 | AC120: 0 | AD120: 0 | AF120: 0 | AG120: 0
D121: LESOTHO | E121: 0 | F121: 0 | G121: 0 | H121: 0 | I121: 0 | J121: 5 | K121: 0 | L121: 0 | M121: 0 | N121: 0 | O121: 0 | P121: 1 | Q121: 0 | R121: 0 | S121: 0 | T121: 0 | U121: 0 | V121: 1 | W121: 0 | X121: 0 | Y121: 0 | Z121: 0 | AA121: 0 | AB121: 0 | AC121: 0 | AD121: 7 | AF121: 0 | AG121: 0.0005123442016
D122: LETONIA | E122: 0 | F122: 14 | G122: 0 | H122: 21 | I122: 0 | J122: 13 | K122: 0 | L122: 4 | M122: 0 | N122: 11 | O122: 0 | P122: 6 | Q122: 0 | R122: 3 | S122: 1 | T122: 8 | U122: 1 | V122: 6 | W122: 0 | X122: 7 | Y122: 0 | Z122: 7 | AA122: 0 | AB122: 9 | AC122: 2 | AD122: 109 | AF122: 0.0001730759578 | AG122: 0.007977931139
D123: LÍBANO | E123: 0 | F123: 18 | G123: 1 | H123: 37 | I123: 2 | J123: 22 | K123: 1 | L123: 23 | M123: 0 | N123: 27 | O123: 12 | P123: 36 | Q123: 1 | R123: 17 | S123: 16 | T123: 22 | U123: 4 | V123: 27 | W123: 1 | X123: 22 | Y123: 0 | Z123: 30 | AA123: 2 | AB123: 22 | AC123: 40 | AD123: 303 | AF123: 0.003461519157 | AG123: 0.02217718473
D124: LIBERIA | E124: 1 | F124: 0 | G124: 0 | H124: 0 | I124: 0 | J124: 2 | K124: 0 | L124: 0 | M124: 0 | N124: 0 | O124: 0 | P124: 0 | Q124: 0 | R124: 0 | S124: 0 | T124: 0 | U124: 1 | V124: 1 | W124: 0 | X124: 0 | Y124: 0 | Z124: 0 | AA124: 2 | AB124: 2 | AC124: 4 | AD124: 5 | AF124: 0.0003461519157 | AG124: 0.000365960144
D125: LIBIA | E125: 2 | F125: 0 | G125: 0 | H125: 0 | I125: 1 | J125: 1 | K125: 1 | L125: 0 | M125: 3 | N125: 1 | O125: 0 | P125: 1 | Q125: 0 | R125: 0 | S125: 0 | T125: 0 | U125: 0 | V125: 0 | W125: 1 | X125: 0 | Y125: 0 | Z125: 1 | AA125: 0 | AB125: 1 | AC125: 8 | AD125: 5 | AF125: 0.0006923038314 | AG125: 0.000365960144
D126: LIECHTENSTEIN | E126: 0 | F126: 3 | G126: 0 | H126: 0 | I126: 0 | J126: 1 | K126: 0 | L126: 1 | M126: 1 | N126: 1 | O126: 0 | P126: 0 | Q126: 2 | R126: 2 | S126: 0 | T126: 3 | U126: 0 | V126: 2 | W126: 0 | X126: 1 | Y126: 0 | Z126: 3 | AA126: 0 | AB126: 4 | AC126: 3 | AD126: 21 | AF126: 0.0002596139368 | AG126: 0.001537032605
D127: LITUANIA | E127: 0 | F127: 41 | G127: 0 | H127: 32 | I127: 1 | J127: 34 | K127: 1 | L127: 121 | M127: 0 | N127: 29 | O127: 0 | P127: 23 | Q127: 3 | R127: 21 | S127: 0 | T127: 18 | U127: 0 | V127: 23 | W127: 0 | X127: 24 | Y127: 1 | Z127: 28 | AA127: 1 | AB127: 51 | AC127: 7 | AD127: 445 | AF127: 0.0006057658525 | AG127: 0.03257045282
D128: LUXEMBURGO | E128: 2 | F128: 8 | G128: 5 | H128: 9 | I128: 3 | J128: 26 | K128: 0 | L128: 8 | M128: 0 | N128: 8 | O128: 0 | P128: 9 | Q128: 1 | R128: 21 | S128: 3 | T128: 47 | U128: 6 | V128: 16 | W128: 4 | X128: 5 | Y128: 4 | Z128: 19 | AA128: 1 | AB128: 10 | AC128: 29 | AD128: 186 | AF128: 0.002509601389 | AG128: 0.01361371736
D129: MADAGASCAR | E129: 0 | F129: 1 | G129: 0 | H129: 4 | I129: 0 | J129: 1 | K129: 0 | L129: 4 | M129: 0 | N129: 2 | O129: 1 | P129: 1 | Q129: 0 | R129: 0 | S129: 0 | T129: 1 | U129: 0 | V129: 1 | W129: 0 | X129: 0 | Y129: 0 | Z129: 0 | AA129: 0 | AB129: 1 | AC129: 1 | AD129: 16 | AF129: 8.653797892e-05 | AG129: 0.001171072461
D130: MALASIA | E130: 12 | F130: 13 | G130: 4 | H130: 7 | I130: 1 | J130: 18 | K130: 3 | L130: 24 | M130: 5 | N130: 33 | O130: 6 | P130: 14 | Q130: 1 | R130: 11 | S130: 16 | T130: 17 | U130: 6 | V130: 22 | W130: 8 | X130: 29 | Y130: 5 | Z130: 21 | AA130: 2 | AB130: 33 | AC130: 69 | AD130: 242 | AF130: 0.005971120546 | AG130: 0.01771247097
D131: MALAWI | E131: 0 | F131: 1 | G131: 0 | H131: 0 | I131: 0 | J131: 0 | K131: 0 | L131: 0 | M131: 0 | N131: 1 | O131: 0 | P131: 0 | Q131: 0 | R131: 0 | S131: 0 | T131: 0 | U131: 0 | V131: 1 | W131: 0 | X131: 0 | Y131: 0 | Z131: 0 | AA131: 0 | AB131: 0 | AC131: 0 | AD131: 3 | AF131: 0 | AG131: 0.0002195760864
D132: MALDIVAS | E132: 0 | F132: 0 | G132: 0 | H132: 0 | I132: 0 | J132: 9 | K132: 0 | L132: 0 | M132: 0 | N132: 2 | O132: 0 | P132: 0 | Q132: 0 | R132: 0 | S132: 0 | T132: 0 | U132: 0 | V132: 0 | W132: 0 | X132: 0 | Y132: 0 | Z132: 0 | AA132: 0 | AB132: 1 | AC132: 0 | AD132: 12 | AF132: 0 | AG132: 0.0008783043456
D133: MALI | E133: 0 | F133: 0 | G133: 0 | H133: 0 | I133: 0 | J133: 5 | K133: 0 | L133: 0 | M133: 0 | N133: 1 | O133: 0 | P133: 0 | Q133: 0 | R133: 0 | S133: 0 | T133: 1 | U133: 0 | V133: 1 | W133: 0 | X133: 0 | Y133: 0 | Z133: 0 | AA133: 0 | AB133: 2 | AC133: 0 | AD133: 10 | AF133: 0 | AG133: 0.000731920288
D134: MALTA | E134: 1 | F134: 7 | G134: 2 | H134: 0 | I134: 2 | J134: 3 | K134: 1 | L134: 2 | M134: 0 | N134: 2 | O134: 1 | P134: 6 | Q134: 2 | R134: 1 | S134: 1 | T134: 4 | U134: 7 | V134: 4 | W134: 0 | X134: 2 | Y134: 2 | Z134: 4 | AA134: 0 | AB134: 1 | AC134: 19 | AD134: 36 | AF134: 0.0016442216 | AG134: 0.002634913037
D135: MALVINAS | E135: 0 | F135: 0 | G135: 0 | H135: 0 | I135: 0 | J135: 0 | K135: 0 | L135: 0 | M135: 0 | N135: 0 | O135: 0 | P135: 0 | Q135: 0 | R135: 0 | S135: 0 | T135: 0 | U135: 0 | V135: 0 | W135: 0 | X135: 0 | Y135: 0 | Z135: 0 | AA135: 0 | AB135: 0 | AC135: 0 | AD135: 0 | AF135: 0 | AG135: 0
D136: MANCHURIA | E136: 0 | F136: 0 | G136: 0 | H136: 0 | I136: 0 | J136: 0 | K136: 0 | L136: 0 | M136: 0 | N136: 0 | O136: 0 | P136: 0 | Q136: 0 | R136: 0 | S136: 0 | T136: 0 | U136: 0 | V136: 0 | W136: 0 | X136: 0 | Y136: 0 | Z136: 0 | AA136: 0 | AB136: 0 | AC136: 0 | AD136: 0 | AF136: 0 | AG136: 0
D137: MARRUECOS | E137: 2 | F137: 5 | G137: 1 | H137: 12 | I137: 3 | J137: 28 | K137: 0 | L137: 5 | M137: 3 | N137: 14 | O137: 7 | P137: 10 | Q137: 0 | R137: 11 | S137: 1 | T137: 8 | U137: 17 | V137: 12 | W137: 0 | X137: 14 | Y137: 9 | Z137: 7 | AA137: 0 | AB137: 25 | AC137: 43 | AD137: 151 | AF137: 0.003721133094 | AG137: 0.01105199635
D138: MARSHALL ISLAS | E138: 0 | F138: 0 | G138: 0 | H138: 0 | I138: 0 | J138: 0 | K138: 0 | L138: 1 | M138: 0 | N138: 0 | O138: 0 | P138: 0 | Q138: 0 | R138: 0 | S138: 0 | T138: 0 | U138: 0 | V138: 0 | W138: 0 | X138: 0 | Y138: 0 | Z138: 0 | AA138: 0 | AB138: 0 | AC138: 0 | AD138: 1 | AF138: 0 | AG138: 7.31920288e-05
D139: MAURICIO | E139: 0 | F139: 0 | G139: 0 | H139: 1 | I139: 0 | J139: 0 | K139: 0 | L139: 2 | M139: 0 | N139: 0 | O139: 0 | P139: 1 | Q139: 2 | R139: 1 | S139: 0 | T139: 5 | U139: 0 | V139: 2 | W139: 0 | X139: 0 | Y139: 0 | Z139: 1 | AA139: 0 | AB139: 0 | AC139: 2 | AD139: 13 | AF139: 0.0001730759578 | AG139: 0.0009514963744
D140: MAURITANIA | E140: 0 | F140: 0 | G140: 0 | H140: 0 | I140: 0 | J140: 1 | K140: 0 | L140: 1 | M140: 0 | N140: 1 | O140: 0 | P140: 0 | Q140: 0 | R140: 1 | S140: 0 | T140: 0 | U140: 0 | V140: 0 | W140: 0 | X140: 0 | Y140: 0 | Z140: 0 | AA140: 0 | AB140: 1 | AC140: 0 | AD140: 5 | AF140: 0 | AG140: 0.000365960144
D141: MÉXICO | E141: 1598 | F141: 1622 | G141: 2771 | H141: 1447 | I141: 1872 | J141: 1754 | K141: 2210 | L141: 1753 | M141: 1977 | N141: 1667 | O141: 1439 | P141: 1706 | Q141: 3021 | R141: 2095 | S141: 4623 | T141: 1654 | U141: 2143 | V141: 1741 | W141: 2112 | X141: 1887 | Y141: 2374 | Z141: 1770 | AA141: 2158 | AB141: 2184 | AC141: 28298 | AD141: 21280 | AF141: 2.448851728 | AG141: 1.557526373
D142: MICRONESIA | E142: 0 | F142: 0 | G142: 0 | H142: 1 | I142: 0 | J142: 3 | K142: 0 | L142: 0 | M142: 0 | N142: 0 | O142: 0 | P142: 0 | Q142: 0 | R142: 0 | S142: 0 | T142: 0 | U142: 0 | V142: 0 | W142: 0 | X142: 0 | Y142: 0 | Z142: 0 | AA142: 0 | AB142: 0 | AC142: 0 | AD142: 4 | AF142: 0 | AG142: 0.0002927681152
D143: MOLDOVA | E143: 0 | F143: 2 | G143: 0 | H143: 2 | I143: 0 | J143: 1 | K143: 0 | L143: 1 | M143: 0 | N143: 2 | O143: 0 | P143: 2 | Q143: 0 | R143: 3 | S143: 0 | T143: 4 | U143: 0 | V143: 4 | W143: 0 | X143: 2 | Y143: 0 | Z143: 1 | AA143: 0 | AB143: 2 | AC143: 0 | AD143: 26 | AF143: =+AC143/AC$239*100 -> 0 | AG143: 0.001902992749
D144: MÓNACO | E144: 0 | F144: 0 | G144: 0 | H144: 0 | I144: 1 | J144: 0 | K144: 0 | L144: 0 | M144: 0 | N144: 1 | O144: 0 | P144: 0 | Q144: 2 | R144: 0 | S144: 0 | T144: 4 | U144: 0 | V144: 1 | W144: 0 | X144: 2 | Y144: 0 | Z144: 0 | AA144: 0 | AB144: 0 | AC144: =+E144+G144+I144+K144+M144+O144+Q144+S144+U144+W144+Y144+AA144 -> 3 | AD144: =+F144+H144+J144+L144+N144+P144+R144+T144+V144+X144+Z144+AB144 -> 8 | AF144: 0.0002596139368 | AG144: =+AD144/AD$239*100 -> 0.0005855362304
D145: MONGOLIA | E145: 0 | F145: 1 | G145: 0 | H145: 0 | I145: 0 | J145: 7 | K145: 0 | L145: 0 | M145: 0 | N145: 0 | O145: 0 | P145: 2 | Q145: 0 | R145: 1 | S145: 0 | T145: 0 | U145: 0 | V145: 0 | W145: 3 | X145: 1 | Y145: 0 | Z145: 2 | AA145: 0 | AB145: 1 | AC145: 3 | AD145: 15 | AF145: 0.0002596139368 | AG145: 0.001097880432
D146: MOZAMBIQUE | E146: 1 | F146: 0 | G146: 1 | H146: 0 | I146: 1 | J146: 4 | K146: 0 | L146: 2 | M146: 0 | N146: 2 | O146: 0 | P146: 1 | Q146: 1 | R146: 1 | S146: 0 | T146: 2 | U146: 2 | V146: 1 | W146: 0 | X146: 5 | Y146: 1 | Z146: 2 | AA146: 0 | AB146: 56 | AC146: 7 | AD146: 76 | AF146: 0.0006057658525 | AG146: 0.005562594189
D147: MYANMAR | E147: 0 | F147: 2 | G147: 0 | H147: 8 | I147: 0 | J147: 4 | K147: 0 | L147: 22 | M147: 0 | N147: 15 | O147: 0 | P147: 5 | Q147: 0 | R147: 14 | S147: 0 | T147: 3 | U147: 0 | V147: 0 | W147: 0 | X147: 0 | Y147: 0 | Z147: 2 | AA147: 0 | AB147: 9 | AC147: 0 | AD147: 84 | AF147: 0 | AG147: 0.006148130419
D148: NAMIBIA | E148: 0 | F148: 2 | G148: 0 | H148: 0 | I148: 0 | J148: 13 | K148: 0 | L148: 1 | M148: 0 | N148: 0 | O148: 0 | P148: 0 | Q148: 0 | R148: 0 | S148: 0 | T148: 0 | U148: 0 | V148: 3 | W148: 1 | X148: 5 | Y148: 0 | Z148: 0 | AA148: 0 | AB148: 230 | AC148: 1 | AD148: 254 | AF148: 8.653797892e-05 | AG148: 0.01859077532
D149: NAURU | E149: 0 | F149: 0 | G149: 0 | H149: 0 | I149: 0 | J149: 0 | K149: 0 | L149: 0 | M149: 0 | N149: 0 | O149: 0 | P149: 0 | Q149: 0 | R149: 0 | S149: 0 | T149: 0 | U149: 0 | V149: 0 | W149: 0 | X149: 0 | Y149: 0 | Z149: 0 | AA149: 0 | AB149: 0 | AC149: 0 | AD149: 0 | AF149: 0 | AG149: 0
D150: NEPAL | E150: 0 | F150: 0 | G150: 0 | H150: 1 | I150: 0 | J150: 4 | K150: 1 | L150: 2 | M150: 0 | N150: 2 | O150: 0 | P150: 1 | Q150: 0 | R150: 2 | S150: 0 | T150: 1 | U150: 0 | V150: 2 | W150: 0 | X150: 3 | Y150: 0 | Z150: 0 | AA150: 0 | AB150: 2 | AC150: 1 | AD150: 20 | AF150: 8.653797892e-05 | AG150: 0.001463840576
D151: NICARAGUA | E151: 319 | F151: 103 | G151: 183 | H151: 79 | I151: 291 | J151: 90 | K151: 137 | L151: 92 | M151: 90 | N151: 93 | O151: 77 | P151: 89 | Q151: 50 | R151: 149 | S151: 51 | T151: 120 | U151: 44 | V151: 80 | W151: 76 | X151: 90 | Y151: 93 | Z151: 124 | AA151: 39 | AB151: 86 | AC151: 1450 | AD151: 1195 | AF151: 0.1254800694 | AG151: 0.08746447442
D152: NIGER | E152: 0 | F152: 0 | G152: 0 | H152: 0 | I152: 0 | J152: 0 | K152: 0 | L152: 0 | M152: 0 | N152: 0 | O152: 0 | P152: 0 | Q152: 0 | R152: 0 | S152: 0 | T152: 0 | U152: 0 | V152: 0 | W152: 0 | X152: 0 | Y152: 0 | Z152: 0 | AA152: 0 | AB152: 0 | AC152: 0 | AD152: 0 | AF152: 0 | AG152: 0
D153: NIGERIA | E153: 0 | F153: 8 | G153: 0 | H153: 14 | I153: 1 | J153: 51 | K153: 2 | L153: 5 | M153: 0 | N153: 12 | O153: 0 | P153: 6 | Q153: 0 | R153: 11 | S153: 0 | T153: 7 | U153: 0 | V153: 8 | W153: 1 | X153: 6 | Y153: 0 | Z153: 9 | AA153: 2 | AB153: 8 | AC153: 6 | AD153: 145 | AF153: 0.0005192278735 | AG153: 0.01061284418
D154: NORUEGA | E154: 27 | F154: 148 | G154: 13 | H154: 199 | I154: 7 | J154: 227 | K154: 16 | L154: 148 | M154: 5 | N154: 88 | O154: 27 | P154: 164 | Q154: 31 | R154: 183 | S154: 34 | T154: 138 | U154: 11 | V154: 63 | W154: 6 | X154: 193 | Y154: 19 | Z154: 167 | AA154: 11 | AB154: 164 | AC154: 207 | AD154: 1882 | AF154: 0.01791336164 | AG154: 0.1377473982
D155: NUEVA GUINEA | E155: 0 | F155: 1 | G155: 0 | H155: 0 | I155: 0 | J155: 1 | K155: 0 | L155: 1 | M155: 0 | N155: 0 | O155: 0 | P155: 1 | Q155: 0 | R155: 1 | S155: 0 | T155: 1 | U155: 0 | V155: 0 | W155: 0 | X155: 1 | Y155: 0 | Z155: 0 | AA155: 0 | AB155: 0 | AC155: 0 | AD155: 7 | AF155: 0 | AG155: 0.0005123442016
D156: NUEVA ZELANDIA | E156: 12 | F156: 91 | G156: 4 | H156: 73 | I156: 3 | J156: 116 | K156: 2 | L156: 195 | M156: 1 | N156: 169 | O156: 6 | P156: 167 | Q156: 10 | R156: 203 | S156: 7 | T156: 169 | U156: 5 | V156: 154 | W156: 6 | X156: 142 | Y156: 7 | Z156: 128 | AA156: 2 | AB156: 150 | AC156: 65 | AD156: 1757 | AF156: 0.00562496863 | AG156: 0.1285983946
D157: O.N. AFRICA | E157: 0 | F157: 0 | G157: 0 | H157: 1 | I157: 0 | J157: 1 | K157: 0 | L157: 0 | M157: 0 | N157: 0 | O157: 0 | P157: 0 | Q157: 0 | R157: 0 | S157: 0 | T157: 0 | U157: 0 | V157: 0 | W157: 0 | X157: 0 | Y157: 0 | Z157: 1 | AA157: 0 | AB157: 0 | AC157: 0 | AD157: 3 | AF157: 0 | AG157: 0.0002195760864
D158: O.N. AMERICA | E158: 0 | F158: 0 | G158: 0 | H158: 0 | I158: 0 | J158: 1 | K158: 0 | L158: 0 | M158: 0 | N158: 0 | O158: 0 | P158: 0 | Q158: 0 | R158: 0 | S158: 0 | T158: 0 | U158: 0 | V158: 0 | W158: 0 | X158: 0 | Y158: 0 | Z158: 0 | AA158: 0 | AB158: 0 | AC158: 0 | AD158: 1 | AF158: 0 | AG158: 7.31920288e-05
D159: O.N. ASIA | E159: 0 | F159: 0 | G159: 0 | H159: 0 | I159: 0 | J159: 0 | K159: 0 | L159: 0 | M159: 0 | N159: 0 | O159: 0 | P159: 0 | Q159: 0 | R159: 0 | S159: 0 | T159: 0 | U159: 0 | V159: 0 | W159: 0 | X159: 0 | Y159: 0 | Z159: 0 | AA159: 0 | AB159: 0 | AC159: 0 | AD159: 0 | AF159: 0 | AG159: 0
D160: O.N. EUROPA | E160: 0 | F160: 0 | G160: 0 | H160: 0 | I160: 0 | J160: 0 | K160: 0 | L160: 0 | M160: 0 | N160: 0 | O160: 0 | P160: 0 | Q160: 0 | R160: 0 | S160: 0 | T160: 0 | U160: 0 | V160: 0 | W160: 0 | X160: 0 | Y160: 0 | Z160: 0 | AA160: 0 | AB160: 0 | AC160: 0 | AD160: 0 | AF160: 0 | AG160: 0
D161: O.N. OCEANIA | E161: 0 | F161: 0 | G161: 0 | H161: 0 | I161: 0 | J161: 0 | K161: 0 | L161: 0 | M161: 0 | N161: 0 | O161: 0 | P161: 0 | Q161: 0 | R161: 0 | S161: 0 | T161: 0 | U161: 0 | V161: 0 | W161: 0 | X161: 0 | Y161: 0 | Z161: 0 | AA161: 0 | AB161: 0 | AC161: 0 | AD161: 0 | AF161: 0 | AG161: 0
D162: OMAN | E162: 13 | F162: 0 | G162: 1 | H162: 0 | I162: 2 | J162: 7 | K162: 1 | L162: 0 | M162: 2 | N162: 1 | O162: 0 | P162: 0 | Q162: 1 | R162: 0 | S162: 13 | T162: 4 | U162: 3 | V162: 0 | W162: 2 | X162: 0 | Y162: 2 | Z162: 1 | AA162: 4 | AB162: 1 | AC162: 44 | AD162: 14 | AF162: 0.003807671073 | AG162: 0.001024688403
D163: PAKISTÁN | E163: 4 | F163: 13 | G163: 2 | H163: 7 | I163: 2 | J163: 17 | K163: 3 | L163: 12 | M163: 1 | N163: 19 | O163: 1 | P163: 13 | Q163: 1 | R163: 11 | S163: 2 | T163: 7 | U163: 4 | V163: 9 | W163: 7 | X163: 8 | Y163: 2 | Z163: 12 | AA163: 3 | AB163: 12 | AC163: 32 | AD163: 140 | AF163: 0.002769215326 | AG163: 0.01024688403
D164: PALESTINA | E164: 0 | F164: 0 | G164: 0 | H164: 0 | I164: 0 | J164: 0 | K164: 0 | L164: 0 | M164: 0 | N164: 0 | O164: 0 | P164: 0 | Q164: 0 | R164: 0 | S164: 0 | T164: 0 | U164: 0 | V164: 0 | W164: 0 | X164: 0 | Y164: 0 | Z164: 0 | AA164: 0 | AB164: 0 | AC164: 0 | AD164: 0 | AF164: 0 | AG164: 0
D165: PANAMÁ | E165: 4392 | F165: 820 | G165: 5433 | H165: 861 | I165: 6518 | J165: 1022 | K165: 5734 | L165: 938 | M165: 5197 | N165: 933 | O165: 3704 | P165: 1017 | Q165: 6742 | R165: 1093 | S165: 9688 | T165: 1090 | U165: 5747 | V165: 980 | W165: 6524 | X165: 1039 | Y165: 7141 | Z165: 987 | AA165: 5740 | AB165: 1089 | AC165: 72560 | AD165: 11869 | AF165: 6.279195751 | AG165: 0.8687161899
D166: PAPUA NUEVA GUINEA | E166: 0 | F166: 0 | G166: 0 | H166: 0 | I166: 1 | J166: 0 | K166: 0 | L166: 0 | M166: 0 | N166: 0 | O166: 0 | P166: 2 | Q166: 0 | R166: 0 | S166: 0 | T166: 0 | U166: 0 | V166: 0 | W166: 3 | X166: 0 | Y166: 0 | Z166: 0 | AA166: 0 | AB166: 0 | AC166: 4 | AD166: 2 | AF166: 0.0003461519157 | AG166: 0.0001463840576
D167: PARAGUAY | E167: 50 | F167: 124 | G167: 53 | H167: 92 | I167: 63 | J167: 244 | K167: 56 | L167: 96 | M167: 97 | N167: 108 | O167: 33 | P167: 81 | Q167: 64 | R167: 88 | S167: 84 | T167: 123 | U167: 95 | V167: 89 | W167: 69 | X167: 125 | Y167: 72 | Z167: 104 | AA167: 50 | AB167: 70 | AC167: 786 | AD167: 1344 | AF167: 0.06801885143 | AG167: 0.09837008671
D168: PERÚ | E168: 12972 | F168: 14211 | G168: 18155 | H168: 14852 | I168: 16821 | J168: 11264 | K168: 16490 | L168: 9327 | M168: 13649 | N168: 10278 | O168: 14960 | P168: 9880 | Q168: 16309 | R168: 13891 | S168: 25819 | T168: 14019 | U168: 15811 | V168: 11340 | W168: 19075 | X168: 15189 | Y168: 15556 | Z168: 13798 | AA168: 17557 | AB168: 12756 | AC168: 203174 | AD168: 150805 | AF168: 17.58226733 | AG168: 11.0377239
D169: POLONIA | E169: 7 | F169: 227 | G169: 6 | H169: 188 | I169: 2 | J169: 219 | K169: 11 | L169: 148 | M169: 7 | N169: 142 | O169: 8 | P169: 199 | Q169: 9 | R169: 170 | S169: 5 | T169: 128 | U169: 14 | V169: 110 | W169: 3 | X169: 154 | Y169: 16 | Z169: 223 | AA169: 8 | AB169: 136 | AC169: 96 | AD169: 2044 | AF169: 0.008307645977 | AG169: 0.1496045069
D170: PORTUGAL | E170: 19 | F170: 147 | G170: 16 | H170: 178 | I170: 16 | J170: 167 | K170: 33 | L170: 129 | M170: 21 | N170: 135 | O170: 15 | P170: 165 | Q170: 28 | R170: 163 | S170: 4 | T170: 150 | U170: 26 | V170: 159 | W170: 24 | X170: 160 | Y170: 31 | Z170: 185 | AA170: 15 | AB170: 173 | AC170: 248 | AD170: 1911 | AF170: 0.02146141877 | AG170: 0.139869967
D171: PUERTO RICO | E171: 48 | F171: 1 | G171: 60 | H171: 6 | I171: 51 | J171: 5 | K171: 49 | L171: 13 | M171: 36 | N171: 17 | O171: 54 | P171: 23 | Q171: 56 | R171: 7 | S171: 80 | T171: 7 | U171: 34 | V171: 5 | W171: 63 | X171: 10 | Y171: 54 | Z171: 21 | AA171: 54 | AB171: 10 | AC171: 639 | AD171: 125 | AF171: 0.05529776853 | AG171: 0.0091490036
D172: QATAR | E172: 2 | F172: 17 | G172: 2 | H172: 60 | I172: 1 | J172: 9 | K172: 4 | L172: 0 | M172: 6 | N172: 3 | O172: 2 | P172: 5 | Q172: 4 | R172: 1 | S172: 5 | T172: 1 | U172: 3 | V172: 1 | W172: 41 | X172: 2 | Y172: 0 | Z172: 0 | AA172: 11 | AB172: 3 | AC172: 81 | AD172: 102 | AF172: 0.007009576293 | AG172: 0.007465586938
D173: REP.ARABE UNIDA | E173: 0 | F173: 0 | G173: 0 | H173: 0 | I173: 0 | J173: 0 | K173: 0 | L173: 0 | M173: 0 | N173: 0 | O173: 0 | P173: 0 | Q173: 0 | R173: 0 | S173: 0 | T173: 0 | U173: 0 | V173: 0 | W173: 0 | X173: 0 | Y173: 0 | Z173: 0 | AA173: 0 | AB173: 0 | AC173: 0 | AD173: 0 | AF173: 0 | AG173: 0
D174: REP. DOMINICANA | E174: 550 | F174: 195 | G174: 1338 | H174: 288 | I174: 343 | J174: 257 | K174: 539 | L174: 268 | M174: 1222 | N174: 331 | O174: 514 | P174: 316 | Q174: 1887 | R174: 304 | S174: 754 | T174: 282 | U174: 427 | V174: 286 | W174: 1542 | X174: 331 | Y174: 305 | Z174: 363 | AA174: 291 | AB174: 251 | AC174: 9712 | AD174: 3472 | AF174: 0.8404568513 | AG174: 0.254122724
D175: RUANDA | E175: 0 | F175: 0 | G175: 0 | H175: 0 | I175: 0 | J175: 0 | K175: 0 | L175: 0 | M175: 0 | N175: 0 | O175: 0 | P175: 0 | Q175: 0 | R175: 0 | S175: 0 | T175: 0 | U175: 0 | V175: 0 | W175: 0 | X175: 0 | Y175: 0 | Z175: 0 | AA175: 0 | AB175: 0 | AC175: 0 | AD175: 0 | AF175: 0 | AG175: 0
D176: RUMANIA | E176: 0 | F176: 64 | G176: 1 | H176: 73 | I176: 2 | J176: 67 | K176: 1 | L176: 34 | M176: 8 | N176: 62 | O176: 5 | P176: 65 | Q176: 8 | R176: 65 | S176: 4 | T176: 68 | U176: 5 | V176: 66 | W176: 5 | X176: 68 | Y176: 1 | Z176: 95 | AA176: 4 | AB176: 82 | AC176: 44 | AD176: 809 | AF176: 0.003807671073 | AG176: 0.0592123513
D177: RUSIA | E177: 0 | F177: 10 | G177: 0 | H177: 7 | I177: 0 | J177: 4 | K177: 0 | L177: 7 | M177: 0 | N177: 6 | O177: 0 | P177: 3 | Q177: 3 | R177: 10 | S177: 1 | T177: 10 | U177: 0 | V177: 16 | W177: 0 | X177: 9 | Y177: 0 | Z177: 12 | AA177: 0 | AB177: 9 | AC177: 4 | AD177: 103 | AF177: 0.0003461519157 | AG177: 0.007538778967
D178: SALOMON ISLAS | E178: 0 | F178: 0 | G178: 0 | H178: 0 | I178: 0 | J178: 0 | K178: 0 | L178: 0 | M178: 0 | N178: 0 | O178: 0 | P178: 0 | Q178: 0 | R178: 0 | S178: 0 | T178: 0 | U178: 0 | V178: 0 | W178: 0 | X178: 0 | Y178: 0 | Z178: 0 | AA178: 0 | AB178: 0 | AC178: 0 | AD178: 0 | AF178: 0 | AG178: 0
D179: SAMOA OCCIDENTAL | E179: 0 | F179: 1 | G179: 1 | H179: 0 | I179: 2 | J179: 0 | K179: 0 | L179: 2 | M179: 0 | N179: 0 | O179: 0 | P179: 0 | Q179: 6 | R179: 1 | S179: 0 | T179: 1 | U179: 0 | V179: 0 | W179: 1 | X179: 0 | Y179: 0 | Z179: 1 | AA179: 1 | AB179: 0 | AC179: 11 | AD179: 6 | AF179: 0.0009519177682 | AG179: 0.0004391521728
D180: SAN MARINO | E180: 1 | F180: 0 | G180: 0 | H180: 0 | I180: 0 | J180: 4 | K180: 0 | L180: 2 | M180: 1 | N180: 0 | O180: 0 | P180: 0 | Q180: 7 | R180: 0 | S180: 136 | T180: 0 | U180: 0 | V180: 0 | W180: 0 | X180: 2 | Y180: 1 | Z180: 1 | AA180: 0 | AB180: 2 | AC180: 146 | AD180: 11 | AF180: 0.01263454492 | AG180: 0.0008051123168
D181: SAN VICENTE Y LAS GRANADI | E181: 0 | F181: 1 | G181: 0 | H181: 0 | I181: 0 | J181: 2 | K181: 0 | L181: 1 | M181: 0 | N181: 0 | O181: 0 | P181: 2 | Q181: 0 | R181: 3 | S181: 0 | T181: 0 | U181: 0 | V181: 0 | W181: 0 | X181: 0 | Y181: 0 | Z181: 0 | AA181: 0 | AB181: 0 | AC181: 0 | AD181: 9 | AF181: 0 | AG181: 0.0006587282592
D182: SANTA LUCÍA | E182: 2 | F182: 0 | G182: 0 | H182: 3 | I182: 0 | J182: 0 | K182: 0 | L182: 2 | M182: 0 | N182: 0 | O182: 0 | P182: 1 | Q182: 0 | R182: 2 | S182: 2 | T182: 1 | U182: 0 | V182: 0 | W182: 0 | X182: 0 | Y182: 0 | Z182: 0 | AA182: 0 | AB182: 3 | AC182: 4 | AD182: 12 | AF182: 0.0003461519157 | AG182: 0.0008783043456
D183: SANTO TOME Y PRINCIPE | E183: 0 | F183: 0 | G183: 0 | H183: 1 | I183: 1 | J183: 6 | K183: 0 | L183: 0 | M183: 0 | N183: 0 | O183: 0 | P183: 0 | Q183: 0 | R183: 0 | S183: 0 | T183: 0 | U183: 0 | V183: 0 | W183: 3 | X183: 0 | Y183: 0 | Z183: 0 | AA183: 0 | AB183: 0 | AC183: 4 | AD183: 7 | AF183: 0.0003461519157 | AG183: 0.0005123442016
D184: SENEGAL | E184: 0 | F184: 134 | G184: 0 | H184: 123 | I184: 0 | J184: 123 | K184: 0 | L184: 110 | M184: 0 | N184: 142 | O184: 0 | P184: 75 | Q184: 0 | R184: 89 | S184: 0 | T184: 67 | U184: 0 | V184: 161 | W184: 0 | X184: 103 | Y184: 2 | Z184: 148 | AA184: 0 | AB184: 113 | AC184: 2 | AD184: 1388 | AF184: 0.0001730759578 | AG184: 0.101590536
D185: SEYCHELLES | E185: 0 | F185: 0 | G185: 0 | H185: 0 | I185: 0 | J185: 0 | K185: 0 | L185: 0 | M185: 0 | N185: 0 | O185: 0 | P185: 0 | Q185: 0 | R185: 1 | S185: 0 | T185: 0 | U185: 0 | V185: 1 | W185: 0 | X185: 0 | Y185: 0 | Z185: 0 | AA185: 0 | AB185: 0 | AC185: 0 | AD185: 2 | AF185: 0 | AG185: 0.0001463840576
D186: SIERRA LEONA | E186: 0 | F186: 4 | G186: 0 | H186: 3 | I186: 0 | J186: 8 | K186: 0 | L186: 4 | M186: 0 | N186: 5 | O186: 0 | P186: 5 | Q186: 0 | R186: 4 | S186: 0 | T186: 4 | U186: 0 | V186: 1 | W186: 0 | X186: 5 | Y186: 0 | Z186: 0 | AA186: 0 | AB186: 2 | AC186: 0 | AD186: 45 | AF186: 0 | AG186: 0.003293641296
D187: SINGAPUR | E187: 13 | F187: 43 | G187: 3 | H187: 19 | I187: 2 | J187: 65 | K187: 2 | L187: 35 | M187: 4 | N187: 38 | O187: 3 | P187: 42 | Q187: 4 | R187: 48 | S187: 13 | T187: 46 | U187: 8 | V187: 34 | W187: 11 | X187: 48 | Y187: 4 | Z187: 40 | AA187: 4 | AB187: 68 | AC187: 71 | AD187: 526 | AF187: 0.006144196504 | AG187: 0.03849900715
D188: SIRIA | E188: 0 | F188: 0 | G188: 0 | H188: 5 | I188: 0 | J188: 2 | K188: 1 | L188: 0 | M188: 0 | N188: 4 | O188: 0 | P188: 0 | Q188: 0 | R188: 0 | S188: 0 | T188: 1 | U188: 0 | V188: 0 | W188: 0 | X188: 0 | Y188: 0 | Z188: 3 | AA188: 0 | AB188: 1 | AC188: 1 | AD188: 16 | AF188: 8.653797892e-05 | AG188: 0.001171072461
D189: SOMALIA | E189: 0 | F189: 0 | G189: 0 | H189: 0 | I189: 0 | J189: 0 | K189: 0 | L189: 0 | M189: 0 | N189: 1 | O189: 0 | P189: 0 | Q189: 0 | R189: 2 | S189: 0 | T189: 0 | U189: 0 | V189: 0 | W189: 0 | X189: 0 | Y189: 0 | Z189: 1 | AA189: 0 | AB189: 0 | AC189: 0 | AD189: 4 | AF189: 0 | AG189: 0.0002927681152
D190: SRILANKA | E190: 0 | F190: 5 | G190: 0 | H190: 4 | I190: 1 | J190: 15 | K190: 0 | L190: 4 | M190: 0 | N190: 24 | O190: 0 | P190: 9 | Q190: 0 | R190: 3 | S190: 0 | T190: 1 | U190: 1 | V190: 1 | W190: 0 | X190: 2 | Y190: 0 | Z190: 1 | AA190: 0 | AB190: 87 | AC190: 2 | AD190: 156 | AF190: 0.0001730759578 | AG190: 0.01141795649
D191: SUAZILANDIA | E191: 0 | F191: 0 | G191: 0 | H191: 0 | I191: 0 | J191: 0 | K191: 0 | L191: 0 | M191: 0 | N191: 0 | O191: 0 | P191: 0 | Q191: 0 | R191: 0 | S191: 0 | T191: 0 | U191: 0 | V191: 0 | W191: 0 | X191: 0 | Y191: 0 | Z191: 0 | AA191: 0 | AB191: 0 | AC191: 0 | AD191: 0 | AF191: 0 | AG191: 0
D192: SUDÁFRICA | E192: 5 | F192: 37 | G192: 15 | H192: 44 | I192: 13 | J192: 72 | K192: 11 | L192: 61 | M192: 17 | N192: 61 | O192: 7 | P192: 58 | Q192: 9 | R192: 64 | S192: 19 | T192: 72 | U192: 7 | V192: 62 | W192: 9 | X192: 51 | Y192: 20 | Z192: 65 | AA192: 5 | AB192: 91 | AC192: 137 | AD192: 738 | AF192: 0.01185570311 | AG192: 0.05401571726
D193: SUDÁN | E193: 1 | F193: 0 | G193: 0 | H193: 0 | I193: 0 | J193: 7 | K193: 0 | L193: 1 | M193: 0 | N193: 0 | O193: 0 | P193: 2 | Q193: 1 | R193: 1 | S193: 1 | T193: 1 | U193: 0 | V193: 0 | W193: 0 | X193: 0 | Y193: 0 | Z193: 0 | AA193: 0 | AB193: 0 | AC193: 3 | AD193: 12 | AF193: 0.0002596139368 | AG193: 0.0008783043456
D194: SUECIA | E194: 47 | F194: 409 | G194: 45 | H194: 324 | I194: 59 | J194: 396 | K194: 24 | L194: 226 | M194: 36 | N194: 148 | O194: 40 | P194: 262 | Q194: 58 | R194: 260 | S194: 75 | T194: 97 | U194: 21 | V194: 163 | W194: 11 | X194: 389 | Y194: 23 | Z194: 518 | AA194: 13 | AB194: 561 | AC194: 452 | AD194: 3753 | AF194: 0.03911516647 | AG194: 0.2746896841
D195: SUIZA | E195: 336 | F195: 828 | G195: 186 | H195: 679 | I195: 182 | J195: 834 | K195: 166 | L195: 795 | M195: 163 | N195: 869 | O195: 174 | P195: 719 | Q195: 314 | R195: 1433 | S195: 377 | T195: 703 | U195: 220 | V195: 695 | W195: 202 | X195: 884 | Y195: 144 | Z195: 918 | AA195: 134 | AB195: 1080 | AC195: 2598 | AD195: 10437 | AF195: 0.2248256692 | AG195: 0.7639052046
D196: SURINAM | E196: 1 | F196: 2 | G196: 0 | H196: 6 | I196: 1 | J196: 6 | K196: 0 | L196: 14 | M196: 2 | N196: 10 | O196: 0 | P196: 3 | Q196: 1 | R196: 9 | S196: 19 | T196: 12 | U196: 0 | V196: 7 | W196: 58 | X196: 9 | Y196: 54 | Z196: 7 | AA196: 2 | AB196: 3 | AC196: 138 | AD196: 88 | AF196: 0.01194224109 | AG196: 0.006440898535
D197: SWAZILANDIA | E197: 0 | F197: 0 | G197: 0 | H197: 0 | I197: 0 | J197: 0 | K197: 0 | L197: 0 | M197: 0 | N197: 0 | O197: 0 | P197: 0 | Q197: 0 | R197: 0 | S197: 0 | T197: 0 | U197: 0 | V197: 0 | W197: 0 | X197: 0 | Y197: 0 | Z197: 0 | AA197: 0 | AB197: 0 | AC197: 0 | AD197: 0 | AF197: 0 | AG197: 0
D198: TAILANDIA | E198: 4 | F198: 19 | G198: 14 | H198: 5 | I198: 9 | J198: 57 | K198: 5 | L198: 16 | M198: 6 | N198: 21 | O198: 8 | P198: 26 | Q198: 8 | R198: 10 | S198: 4 | T198: 13 | U198: 8 | V198: 13 | W198: 12 | X198: 14 | Y198: 7 | Z198: 17 | AA198: 2 | AB198: 13 | AC198: 87 | AD198: 224 | AF198: 0.007528804166 | AG198: 0.01639501445
D199: TAIWAN-CHINA | E199: 4 | F199: 49 | G199: 7 | H199: 87 | I199: 10 | J199: 51 | K199: 6 | L199: 83 | M199: 4 | N199: 66 | O199: 6 | P199: 72 | Q199: 4 | R199: 51 | S199: 15 | T199: 52 | U199: 16 | V199: 58 | W199: 20 | X199: 81 | Y199: 6 | Z199: 68 | AA199: 5 | AB199: 97 | AC199: 103 | AD199: 815 | AF199: 0.008913411829 | AG199: 0.05965150347
D200: TANGANICA | E200: 0 | F200: 0 | G200: 0 | H200: 0 | I200: 0 | J200: 0 | K200: 0 | L200: 0 | M200: 0 | N200: 0 | O200: 0 | P200: 0 | Q200: 0 | R200: 0 | S200: 0 | T200: 0 | U200: 0 | V200: 0 | W200: 0 | X200: 0 | Y200: 0 | Z200: 0 | AA200: 0 | AB200: 0 | AC200: 0 | AD200: 0 | AF200: 0 | AG200: 0
D201: TANZANIA | E201: 0 | F201: 1 | G201: 0 | H201: 0 | I201: 0 | J201: 0 | K201: 0 | L201: 0 | M201: 0 | N201: 0 | O201: 0 | P201: 0 | Q201: 0 | R201: 1 | S201: 1 | T201: 2 | U201: 0 | V201: 1 | W201: 0 | X201: 0 | Y201: 0 | Z201: 0 | AA201: 0 | AB201: 1 | AC201: 1 | AD201: 6 | AF201: 8.653797892e-05 | AG201: 0.0004391521728
D202: TAYIKISTAN | E202: 0 | F202: 3 | G202: 0 | H202: 1 | I202: 0 | J202: 0 | K202: 0 | L202: 0 | M202: 0 | N202: 1 | O202: 0 | P202: 0 | Q202: 0 | R202: 0 | S202: 0 | T202: 2 | U202: 0 | V202: 0 | W202: 0 | X202: 0 | Y202: 0 | Z202: 1 | AA202: 0 | AB202: 0 | AC202: 0 | AD202: 8 | AF202: 0 | AG202: 0.0005855362304
D203: TOGO | E203: 0 | F203: 0 | G203: 0 | H203: 2 | I203: 0 | J203: 3 | K203: 0 | L203: 0 | M203: 0 | N203: 0 | O203: 0 | P203: 1 | Q203: 0 | R203: 1 | S203: 0 | T203: 0 | U203: 0 | V203: 0 | W203: 0 | X203: 0 | Y203: 0 | Z203: 0 | AA203: 0 | AB203: 0 | AC203: 0 | AD203: 7 | AF203: 0 | AG203: 0.0005123442016
D204: TONGA | E204: 0 | F204: 0 | G204: 0 | H204: 0 | I204: 0 | J204: 0 | K204: 0 | L204: 0 | M204: 0 | N204: 0 | O204: 0 | P204: 0 | Q204: 0 | R204: 0 | S204: 0 | T204: 0 | U204: 0 | V204: 0 | W204: 0 | X204: 0 | Y204: 0 | Z204: 0 | AA204: 0 | AB204: 0 | AC204: 0 | AD204: 0 | AF204: 0 | AG204: 0
D205: TRANSKEI | E205: 0 | F205: 0 | G205: 0 | H205: 0 | I205: 0 | J205: 0 | K205: 0 | L205: 0 | M205: 0 | N205: 0 | O205: 0 | P205: 0 | Q205: 0 | R205: 0 | S205: 0 | T205: 0 | U205: 0 | V205: 0 | W205: 0 | X205: 0 | Y205: 0 | Z205: 0 | AA205: 0 | AB205: 0 | AC205: 0 | AD205: 0 | AF205: 0 | AG205: 0
D206: TRINIDAD Y TOBAGO | E206: 7 | F206: 22 | G206: 11 | H206: 13 | I206: 16 | J206: 20 | K206: 1 | L206: 36 | M206: 6 | N206: 15 | O206: 11 | P206: 19 | Q206: 17 | R206: 39 | S206: 25 | T206: 21 | U206: 11 | V206: 14 | W206: 13 | X206: 20 | Y206: 13 | Z206: 9 | AA206: 11 | AB206: 31 | AC206: 142 | AD206: 259 | AF206: 0.01228839301 | AG206: 0.01895673546
D207: TÚNEZ | E207: 1 | F207: 2 | G207: 1 | H207: 4 | I207: 3 | J207: 4 | K207: 1 | L207: 1 | M207: 0 | N207: 2 | O207: 0 | P207: 4 | Q207: 0 | R207: 8 | S207: 1 | T207: 5 | U207: 0 | V207: 4 | W207: 0 | X207: 3 | Y207: 2 | Z207: 3 | AA207: 0 | AB207: 10 | AC207: 9 | AD207: 50 | AF207: =+AC207/AC$239*100 -> 0.0007788418103 | AG207: 0.00365960144
D208: TURKMENISTAN | E208: 0 | F208: 0 | G208: 0 | H208: 2 | I208: 0 | J208: 1 | K208: 0 | L208: 0 | M208: 0 | N208: 0 | O208: 0 | P208: 0 | Q208: 0 | R208: 0 | S208: 0 | T208: 0 | U208: 0 | V208: 2 | W208: 0 | X208: 1 | Y208: 0 | Z208: 0 | AA208: 0 | AB208: 0 | AC208: =+E208+G208+I208+K208+M208+O208+Q208+S208+U208+W208+Y208+AA208 -> 0 | AD208: =+F208+H208+J208+L208+N208+P208+R208+T208+V208+X208+Z208+AB208 -> 6 | AF208: 0 | AG208: =+AD208/AD$239*100 -> 0.0004391521728
D209: TURQUÍA | E209: 18 | F209: 68 | G209: 14 | H209: 28 | I209: 31 | J209: 91 | K209: 22 | L209: 40 | M209: 34 | N209: 46 | O209: 31 | P209: 48 | Q209: 27 | R209: 56 | S209: 36 | T209: 37 | U209: 44 | V209: 42 | W209: 23 | X209: 70 | Y209: 13 | Z209: 39 | AA209: 18 | AB209: 39 | AC209: 311 | AD209: 604 | AF209: 0.02691331144 | AG209: 0.0442079854
D210: TUVALU | E210: 0 | F210: 0 | G210: 0 | H210: 0 | I210: 0 | J210: 0 | K210: 0 | L210: 1 | M210: 0 | N210: 0 | O210: 0 | P210: 0 | Q210: 0 | R210: 0 | S210: 0 | T210: 0 | U210: 0 | V210: 1 | W210: 0 | X210: 0 | Y210: 0 | Z210: 0 | AA210: 0 | AB210: 0 | AC210: 0 | AD210: 2 | AF210: 0 | AG210: 0.0001463840576
... 32 more rows

Sheet LLEGADAS EXTRANJEROS
F11: ENTRADA | G11: ENTRADA | H11: ENTRADA | I11: ENTRADA | J11: ENTRADA | K11: ENTRADA | L11: ENTRADA | M11: ENTRADA | N11: ENTRADA | O11: ENTRADA | P11: ENTRADA | Q11: ENTRADA | R11: ENTRADA | T11: ENTRADA
D12: RK | E12: PAIS | F12: ENE | G12: FEB | H12: MAR | I12: ABR | J12: MAY | K12: JUN | L12: JUL | M12: AGO | N12: SEP | O12: OCT | P12: NOV | Q12: DIC | R12: Acumulado Ene-Dic | T12: %
D13: 1 | E13: COLOMBIA | F13: 46006 | G13: 21340 | H13: 31800 | I13: 21035 | J13: 23069 | K13: 31197 | L13: 35036 | M13: 22168 | N13: 21809 | O13: =VLOOKUP(E13,'LLEGADA PAIS NACIONALIDAD TOTAL'!$D$14:$X$238,21,0) -> 25426 | P13: =VLOOKUP(E13,'LLEGADA PAIS NACIONALIDAD TOTAL'!$D$14:$Z$238,23,0) -> 24581 | Q13: =VLOOKUP(E13,'LLEGADA PAIS NACIONALIDAD TOTAL'!$D$14:$AB$238,25,0) -> 40896 | R13: =SUM(F13:Q13) -> 344363 | T13: =+R13/R$232*100 -> 25.20462661
D14: 2 | E14: ESTADOS UNIDOS | F14: 19066 | G14: 18900 | H14: 21984 | I14: 15382 | J14: 19921 | K14: 31587 | L14: 30504 | M14: 22786 | N14: 14066 | O14: =VLOOKUP(E14,'LLEGADA PAIS NACIONALIDAD TOTAL'!$D$14:$X$238,21,0) -> 16004 | P14: =VLOOKUP(E14,'LLEGADA PAIS NACIONALIDAD TOTAL'!$D$14:$Z$238,23,0) -> 15963 | Q14: =VLOOKUP(E14,'LLEGADA PAIS NACIONALIDAD TOTAL'!$D$14:$AB$238,25,0) -> 24622 | R14: 250785 | T14: =+R14/R$232*100 -> 18.35546294
D15: 3 | E15: PERÚ | F15: 14211 | G15: 14852 | H15: 11264 | I15: 9327 | J15: 10278 | K15: 9880 | L15: 13891 | M15: 14019 | N15: 11340 | O15: =VLOOKUP(E15,'LLEGADA PAIS NACIONALIDAD TOTAL'!$D$14:$X$238,21,0) -> 15189 | P15: =VLOOKUP(E15,'LLEGADA PAIS NACIONALIDAD TOTAL'!$D$14:$Z$238,23,0) -> 13798 | Q15: =VLOOKUP(E15,'LLEGADA PAIS NACIONALIDAD TOTAL'!$D$14:$AB$238,25,0) -> 12756 | R15: 150805 | T15: 11.0377239
D16: 4 | E16: VENEZUELA | F16: 4841 | G16: 6135 | H16: 5411 | I16: 5984 | J16: 6553 | K16: 7546 | L16: 9664 | M16: 9623 | N16: 9461 | O16: =VLOOKUP(E16,'LLEGADA PAIS NACIONALIDAD TOTAL'!$D$14:$X$238,21,0) -> 12951 | P16: =VLOOKUP(E16,'LLEGADA PAIS NACIONALIDAD TOTAL'!$D$14:$Z$238,23,0) -> 13715 | Q16: =VLOOKUP(E16,'LLEGADA PAIS NACIONALIDAD TOTAL'!$D$14:$AB$238,25,0) -> 10433 | R16: 102317 | T16: 7.488788811
D17: 5 | E17: ESPAÑA | F17: 5153 | G17: 4902 | H17: 4754 | I17: 4167 | J17: 4714 | K17: 7043 | L17: 6002 | M17: 6688 | N17: 5921 | O17: =VLOOKUP(E17,'LLEGADA PAIS NACIONALIDAD TOTAL'!$D$14:$X$238,21,0) -> 5039 | P17: =VLOOKUP(E17,'LLEGADA PAIS NACIONALIDAD TOTAL'!$D$14:$Z$238,23,0) -> 5568 | Q17: =VLOOKUP(E17,'LLEGADA PAIS NACIONALIDAD TOTAL'!$D$14:$AB$238,25,0) -> 5294 | R17: 65245 | T17: 4.775413919
D18: 6 | E18: ARGENTINA | F18: 8106 | G18: 4989 | H18: 4348 | I18: 3136 | J18: 2874 | K18: 3509 | L18: 4123 | M18: 3131 | N18: 3349 | O18: =VLOOKUP(E18,'LLEGADA PAIS NACIONALIDAD TOTAL'!$D$14:$X$238,21,0) -> 3142 | P18: =VLOOKUP(E18,'LLEGADA PAIS NACIONALIDAD TOTAL'!$D$14:$Z$238,23,0) -> 3553 | Q18: =VLOOKUP(E18,'LLEGADA PAIS NACIONALIDAD TOTAL'!$D$14:$AB$238,25,0) -> 5315 | R18: 49575 | T18: 3.628494828
D19: 7 | E19: CHILE | F19: 5023 | G19: 6916 | H19: 2929 | I19: 2504 | J19: 2603 | K19: 2741 | L19: 3484 | M19: 3087 | N19: 3074 | O19: =VLOOKUP(E19,'LLEGADA PAIS NACIONALIDAD TOTAL'!$D$14:$X$238,21,0) -> 2731 | P19: =VLOOKUP(E19,'LLEGADA PAIS NACIONALIDAD TOTAL'!$D$14:$Z$238,23,0) -> 2456 | Q19: =VLOOKUP(E19,'LLEGADA PAIS NACIONALIDAD TOTAL'!$D$14:$AB$238,25,0) -> 3397 | R19: 40945 | T19: 2.996847619
D20: 8 | E20: ALEMANIA | F20: 2166 | G20: 2423 | H20: 2703 | I20: 1723 | J20: 1866 | K20: 1831 | L20: 2972 | M20: 3157 | N20: 2235 | O20: =VLOOKUP(E20,'LLEGADA PAIS NACIONALIDAD TOTAL'!$D$14:$X$238,21,0) -> 2516 | P20: =VLOOKUP(E20,'LLEGADA PAIS NACIONALIDAD TOTAL'!$D$14:$Z$238,23,0) -> 2503 | Q20: =VLOOKUP(E20,'LLEGADA PAIS NACIONALIDAD TOTAL'!$D$14:$AB$238,25,0) -> 2391 | R20: 28486 | T20: 2.084948132
D21: 9 | E21: CANADÁ | F21: 2490 | G21: 2642 | H21: 2877 | I21: 2308 | J21: 2276 | K21: 1930 | L21: 2787 | M21: 1893 | N21: 1555 | O21: =VLOOKUP(E21,'LLEGADA PAIS NACIONALIDAD TOTAL'!$D$14:$X$238,21,0) -> 1909 | P21: =VLOOKUP(E21,'LLEGADA PAIS NACIONALIDAD TOTAL'!$D$14:$Z$238,23,0) -> 2649 | Q21: =VLOOKUP(E21,'LLEGADA PAIS NACIONALIDAD TOTAL'!$D$14:$AB$238,25,0) -> 2941 | R21: 28257 | T21: 2.068187158
D22: 10 | E22: CUBA | F22: 1772 | G22: 1371 | H22: 1405 | I22: 2004 | J22: 1848 | K22: 1761 | L22: 2049 | M22: 2473 | N22: 2321 | O22: =VLOOKUP(E22,'LLEGADA PAIS NACIONALIDAD TOTAL'!$D$14:$X$238,21,0) -> 2262 | P22: =VLOOKUP(E22,'LLEGADA PAIS NACIONALIDAD TOTAL'!$D$14:$Z$238,23,0) -> 2579 | Q22: =VLOOKUP(E22,'LLEGADA PAIS NACIONALIDAD TOTAL'!$D$14:$AB$238,25,0) -> 2764 | R22: 24609 | T22: 1.801182637
D23: 11 | E23: GRAN BRETAÑA | F23: 1841 | G23: 1478 | H23: 1880 | I23: 1904 | J23: 2071 | K23: 1882 | L23: 3107 | M23: 2098 | N23: 1573 | O23: =VLOOKUP(E23,'LLEGADA PAIS NACIONALIDAD TOTAL'!$D$14:$X$238,21,0) -> 1963 | P23: =VLOOKUP(E23,'LLEGADA PAIS NACIONALIDAD TOTAL'!$D$14:$Z$238,23,0) -> 2186 | Q23: =VLOOKUP(E23,'LLEGADA PAIS NACIONALIDAD TOTAL'!$D$14:$AB$238,25,0) -> 1496 | R23: 23479 | T23: =+R23/R$232*100 -> 1.718475644
D24: 12 | E24: MÉXICO | F24: 1622 | G24: 1447 | H24: 1754 | I24: 1753 | J24: 1667 | K24: 1706 | L24: 2095 | M24: 1654 | N24: 1741 | O24: =VLOOKUP(E24,'LLEGADA PAIS NACIONALIDAD TOTAL'!$D$14:$X$238,21,0) -> 1887 | P24: =VLOOKUP(E24,'LLEGADA PAIS NACIONALIDAD TOTAL'!$D$14:$Z$238,23,0) -> 1770 | Q24: =VLOOKUP(E24,'LLEGADA PAIS NACIONALIDAD TOTAL'!$D$14:$AB$238,25,0) -> 2184 | R24: 21280 | T24: =+R24/R$232*100 -> 1.557526373
D25: 13 | E25: FRANCIA | F25: 1594 | G25: 1463 | H25: 1718 | I25: 1481 | J25: 1653 | K25: 1445 | L25: 2335 | M25: 2008 | N25: 1773 | O25: =VLOOKUP(E25,'LLEGADA PAIS NACIONALIDAD TOTAL'!$D$14:$X$238,21,0) -> 1851 | P25: =VLOOKUP(E25,'LLEGADA PAIS NACIONALIDAD TOTAL'!$D$14:$Z$238,23,0) -> 1701 | Q25: =VLOOKUP(E25,'LLEGADA PAIS NACIONALIDAD TOTAL'!$D$14:$AB$238,25,0) -> 1304 | R25: 20326 | T25: 1.487701177
D26: 14 | E26: BRASIL | F26: 1828 | G26: 1337 | H26: 1306 | I26: 1609 | J26: 1592 | K26: 1554 | L26: 1805 | M26: 1486 | N26: 1633 | O26: =VLOOKUP(E26,'LLEGADA PAIS NACIONALIDAD TOTAL'!$D$14:$X$238,21,0) -> 1641 | P26: =VLOOKUP(E26,'LLEGADA PAIS NACIONALIDAD TOTAL'!$D$14:$Z$238,23,0) -> 1740 | Q26: =VLOOKUP(E26,'LLEGADA PAIS NACIONALIDAD TOTAL'!$D$14:$AB$238,25,0) -> 1914 | R26: 19445 | T26: 1.423219
D27: 15 | E27: CHINA POPULAR (PEKIN) | F27: 1021 | G27: 862 | H27: 1462 | I27: 1247 | J27: 1266 | K27: 1199 | L27: 1218 | M27: 1457 | N27: 1244 | O27: =VLOOKUP(E27,'LLEGADA PAIS NACIONALIDAD TOTAL'!$D$14:$X$238,21,0) -> 1351 | P27: =VLOOKUP(E27,'LLEGADA PAIS NACIONALIDAD TOTAL'!$D$14:$Z$238,23,0) -> 1271 | Q27: =VLOOKUP(E27,'LLEGADA PAIS NACIONALIDAD TOTAL'!$D$14:$AB$238,25,0) -> 1137 | R27: 14735 | T27: 1.078484544
D28: 16 | E28: ITALIA | F28: 1288 | G28: 1083 | H28: 1123 | I28: 1003 | J28: 965 | K28: 1253 | L28: 1315 | M28: 1710 | N28: 1177 | O28: =VLOOKUP(E28,'LLEGADA PAIS NACIONALIDAD TOTAL'!$D$14:$X$238,21,0) -> 1172 | P28: =VLOOKUP(E28,'LLEGADA PAIS NACIONALIDAD TOTAL'!$D$14:$Z$238,23,0) -> 1270 | Q28: =VLOOKUP(E28,'LLEGADA PAIS NACIONALIDAD TOTAL'!$D$14:$AB$238,25,0) -> 1374 | R28: 14733 | T28: 1.07833816
D29: 17 | E29: HAITI | F29: 642 | G29: 678 | H29: 1352 | I29: 1285 | J29: 1293 | K29: 1194 | L29: 991 | M29: 985 | N29: 1325 | O29: =VLOOKUP(E29,'LLEGADA PAIS NACIONALIDAD TOTAL'!$D$14:$X$238,21,0) -> 1327 | P29: =VLOOKUP(E29,'LLEGADA PAIS NACIONALIDAD TOTAL'!$D$14:$Z$238,23,0) -> 1178 | Q29: =VLOOKUP(E29,'LLEGADA PAIS NACIONALIDAD TOTAL'!$D$14:$AB$238,25,0) -> 1915 | R29: 14165 | T29: 1.036765088
D30: 18 | E30: HOLANDA | F30: 1026 | G30: 894 | H30: 988 | I30: 1246 | J30: 1025 | K30: 1048 | L30: 1858 | M30: 1101 | N30: 1016 | O30: =VLOOKUP(E30,'LLEGADA PAIS NACIONALIDAD TOTAL'!$D$14:$X$238,21,0) -> 1264 | P30: =VLOOKUP(E30,'LLEGADA PAIS NACIONALIDAD TOTAL'!$D$14:$Z$238,23,0) -> 1218 | Q30: =VLOOKUP(E30,'LLEGADA PAIS NACIONALIDAD TOTAL'!$D$14:$AB$238,25,0) -> 1246 | R30: 13930 | T30: 1.019564961
D31: 19 | E31: AUSTRALIA | F31: 1024 | G31: 687 | H31: 956 | I31: 1070 | J31: 1284 | K31: 978 | L31: 869 | M31: 925 | N31: 1150 | O31: =VLOOKUP(E31,'LLEGADA PAIS NACIONALIDAD TOTAL'!$D$14:$X$238,21,0) -> 1071 | P31: =VLOOKUP(E31,'LLEGADA PAIS NACIONALIDAD TOTAL'!$D$14:$Z$238,23,0) -> 1074 | Q31: =VLOOKUP(E31,'LLEGADA PAIS NACIONALIDAD TOTAL'!$D$14:$AB$238,25,0) -> 951 | R31: 12039 | T31: 0.8811588348
D32: 20 | E32: PANAMÁ | F32: 820 | G32: 861 | H32: 1022 | I32: 938 | J32: 933 | K32: 1017 | L32: 1093 | M32: 1090 | N32: 980 | O32: =VLOOKUP(E32,'LLEGADA PAIS NACIONALIDAD TOTAL'!$D$14:$X$238,21,0) -> 1039 | P32: =VLOOKUP(E32,'LLEGADA PAIS NACIONALIDAD TOTAL'!$D$14:$Z$238,23,0) -> 987 | Q32: =VLOOKUP(E32,'LLEGADA PAIS NACIONALIDAD TOTAL'!$D$14:$AB$238,25,0) -> 1089 | R32: 11869 | T32: 0.8687161899
D33: 21 | E33: SUIZA | F33: 828 | G33: 679 | H33: 834 | I33: 795 | J33: 869 | K33: 719 | L33: 1433 | M33: 703 | N33: 695 | O33: =VLOOKUP(E33,'LLEGADA PAIS NACIONALIDAD TOTAL'!$D$14:$X$238,21,0) -> 884 | P33: =VLOOKUP(E33,'LLEGADA PAIS NACIONALIDAD TOTAL'!$D$14:$Z$238,23,0) -> 918 | Q33: =VLOOKUP(E33,'LLEGADA PAIS NACIONALIDAD TOTAL'!$D$14:$AB$238,25,0) -> 1080 | R33: 10437 | T33: 0.7639052046
D34: 22 | E34: COSTA RICA | F34: 471 | G34: 341 | H34: 656 | I34: 563 | J34: 561 | K34: 623 | L34: 727 | M34: 574 | N34: 736 | O34: =VLOOKUP(E34,'LLEGADA PAIS NACIONALIDAD TOTAL'!$D$14:$X$238,21,0) -> 775 | P34: =VLOOKUP(E34,'LLEGADA PAIS NACIONALIDAD TOTAL'!$D$14:$Z$238,23,0) -> 808 | Q34: =VLOOKUP(E34,'LLEGADA PAIS NACIONALIDAD TOTAL'!$D$14:$AB$238,25,0) -> 797 | R34: =SUM(F34:Q34) -> 7632 | T34: =+R34/R$232*100 -> 0.5586015638
D35: 23 | E35: BOLIVIA | F35: 583 | G35: 491 | H35: 396 | I35: 368 | J35: 496 | K35: 502 | L35: 644 | M35: 547 | N35: 524 | O35: =VLOOKUP(E35,'LLEGADA PAIS NACIONALIDAD TOTAL'!$D$14:$X$238,21,0) -> 497 | P35: =VLOOKUP(E35,'LLEGADA PAIS NACIONALIDAD TOTAL'!$D$14:$Z$238,23,0) -> 612 | Q35: =VLOOKUP(E35,'LLEGADA PAIS NACIONALIDAD TOTAL'!$D$14:$AB$238,25,0) -> 622 | R35: 6282 | T35: 0.4597923249
D36: 24 | E36: JAPÓN | F36: 479 | G36: 468 | H36: 528 | I36: 461 | J36: 343 | K36: 436 | L36: 410 | M36: 466 | N36: 527 | O36: =VLOOKUP(E36,'LLEGADA PAIS NACIONALIDAD TOTAL'!$D$14:$X$238,21,0) -> 361 | P36: =VLOOKUP(E36,'LLEGADA PAIS NACIONALIDAD TOTAL'!$D$14:$Z$238,23,0) -> 511 | Q36: =VLOOKUP(E36,'LLEGADA PAIS NACIONALIDAD TOTAL'!$D$14:$AB$238,25,0) -> 602 | R36: 5592 | T36: 0.4092898251
D37: 25 | E37: BÉLGICA | F37: 378 | G37: 352 | H37: 463 | I37: 283 | J37: 341 | K37: 572 | L37: 877 | M37: 475 | N37: 408 | O37: =VLOOKUP(E37,'LLEGADA PAIS NACIONALIDAD TOTAL'!$D$14:$X$238,21,0) -> 430 | P37: =VLOOKUP(E37,'LLEGADA PAIS NACIONALIDAD TOTAL'!$D$14:$Z$238,23,0) -> 411 | Q37: =VLOOKUP(E37,'LLEGADA PAIS NACIONALIDAD TOTAL'!$D$14:$AB$238,25,0) -> 462 | R37: 5452 | T37: 0.399042941
D38: 26 | E38: URUGUAY | F38: 407 | G38: 282 | H38: 389 | I38: 359 | J38: 327 | K38: 375 | L38: 311 | M38: 376 | N38: 305 | O38: =VLOOKUP(E38,'LLEGADA PAIS NACIONALIDAD TOTAL'!$D$14:$X$238,21,0) -> 557 | P38: =VLOOKUP(E38,'LLEGADA PAIS NACIONALIDAD TOTAL'!$D$14:$Z$238,23,0) -> 347 | Q38: =VLOOKUP(E38,'LLEGADA PAIS NACIONALIDAD TOTAL'!$D$14:$AB$238,25,0) -> 281 | R38: 4316 | T38: 0.3158967963
D39: 27 | E39: ISRAEL | F39: 213 | G39: 254 | H39: 289 | I39: 385 | J39: 565 | K39: 471 | L39: 534 | M39: 366 | N39: 419 | O39: =VLOOKUP(E39,'LLEGADA PAIS NACIONALIDAD TOTAL'!$D$14:$X$238,21,0) -> 228 | P39: =VLOOKUP(E39,'LLEGADA PAIS NACIONALIDAD TOTAL'!$D$14:$Z$238,23,0) -> 198 | Q39: =VLOOKUP(E39,'LLEGADA PAIS NACIONALIDAD TOTAL'!$D$14:$AB$238,25,0) -> 166 | R39: 4088 | T39: 0.2992090137
D40: 28 | E40: SUECIA | F40: 409 | G40: 324 | H40: 396 | I40: 226 | J40: 148 | K40: 262 | L40: 260 | M40: 97 | N40: 163 | O40: =VLOOKUP(E40,'LLEGADA PAIS NACIONALIDAD TOTAL'!$D$14:$X$238,21,0) -> 389 | P40: =VLOOKUP(E40,'LLEGADA PAIS NACIONALIDAD TOTAL'!$D$14:$Z$238,23,0) -> 518 | Q40: =VLOOKUP(E40,'LLEGADA PAIS NACIONALIDAD TOTAL'!$D$14:$AB$238,25,0) -> 561 | R40: 3753 | T40: 0.2746896841
D41: 29 | E41: EL SALVADOR | F41: 349 | G41: 357 | H41: 291 | I41: 247 | J41: 285 | K41: 519 | L41: 332 | M41: 362 | N41: 201 | O41: =VLOOKUP(E41,'LLEGADA PAIS NACIONALIDAD TOTAL'!$D$14:$X$238,21,0) -> 217 | P41: =VLOOKUP(E41,'LLEGADA PAIS NACIONALIDAD TOTAL'!$D$14:$Z$238,23,0) -> 299 | Q41: =VLOOKUP(E41,'LLEGADA PAIS NACIONALIDAD TOTAL'!$D$14:$AB$238,25,0) -> 185 | R41: 3644 | T41: 0.266711753
D42: 30 | E42: REP. DOMINICANA | F42: 195 | G42: 288 | H42: 257 | I42: 268 | J42: 331 | K42: 316 | L42: 304 | M42: 282 | N42: 286 | O42: =VLOOKUP(E42,'LLEGADA PAIS NACIONALIDAD TOTAL'!$D$14:$X$238,21,0) -> 331 | P42: =VLOOKUP(E42,'LLEGADA PAIS NACIONALIDAD TOTAL'!$D$14:$Z$238,23,0) -> 363 | Q42: =VLOOKUP(E42,'LLEGADA PAIS NACIONALIDAD TOTAL'!$D$14:$AB$238,25,0) -> 251 | R42: 3472 | T42: 0.254122724
D43: 31 | E43: INDIA | F43: 190 | G43: 311 | H43: 366 | I43: 324 | J43: 209 | K43: 337 | L43: 265 | M43: 220 | N43: 278 | O43: =VLOOKUP(E43,'LLEGADA PAIS NACIONALIDAD TOTAL'!$D$14:$X$238,21,0) -> 255 | P43: =VLOOKUP(E43,'LLEGADA PAIS NACIONALIDAD TOTAL'!$D$14:$Z$238,23,0) -> 281 | Q43: =VLOOKUP(E43,'LLEGADA PAIS NACIONALIDAD TOTAL'!$D$14:$AB$238,25,0) -> 363 | R43: 3399 | T43: 0.2487797059
D44: 32 | E44: GUATEMALA | F44: 221 | G44: 190 | H44: 219 | I44: 305 | J44: 277 | K44: 369 | L44: 284 | M44: 284 | N44: 331 | O44: =VLOOKUP(E44,'LLEGADA PAIS NACIONALIDAD TOTAL'!$D$14:$X$238,21,0) -> 274 | P44: =VLOOKUP(E44,'LLEGADA PAIS NACIONALIDAD TOTAL'!$D$14:$Z$238,23,0) -> 277 | Q44: =VLOOKUP(E44,'LLEGADA PAIS NACIONALIDAD TOTAL'!$D$14:$AB$238,25,0) -> 205 | R44: 3236 | T44: 0.2368494052
D45: 33 | E45: AUSTRIA | F45: 278 | G45: 243 | H45: 202 | I45: 148 | J45: 162 | K45: 187 | L45: 443 | M45: 301 | N45: 219 | O45: =VLOOKUP(E45,'LLEGADA PAIS NACIONALIDAD TOTAL'!$D$14:$X$238,21,0) -> 257 | P45: =VLOOKUP(E45,'LLEGADA PAIS NACIONALIDAD TOTAL'!$D$14:$Z$238,23,0) -> 292 | Q45: =VLOOKUP(E45,'LLEGADA PAIS NACIONALIDAD TOTAL'!$D$14:$AB$238,25,0) -> 322 | R45: 3054 | T45: 0.223528456
D46: 34 | E46: FILIPINAS | F46: 234 | G46: 261 | H46: 202 | I46: 140 | J46: 179 | K46: 162 | L46: 211 | M46: 203 | N46: 198 | O46: =VLOOKUP(E46,'LLEGADA PAIS NACIONALIDAD TOTAL'!$D$14:$X$238,21,0) -> 311 | P46: =VLOOKUP(E46,'LLEGADA PAIS NACIONALIDAD TOTAL'!$D$14:$Z$238,23,0) -> 286 | Q46: =VLOOKUP(E46,'LLEGADA PAIS NACIONALIDAD TOTAL'!$D$14:$AB$238,25,0) -> 425 | R46: 2812 | T46: 0.205815985
D47: 35 | E47: IRLANDA | F47: 215 | G47: 171 | H47: 220 | I47: 212 | J47: 286 | K47: 262 | L47: 366 | M47: 264 | N47: 229 | O47: =VLOOKUP(E47,'LLEGADA PAIS NACIONALIDAD TOTAL'!$D$14:$X$238,21,0) -> 209 | P47: =VLOOKUP(E47,'LLEGADA PAIS NACIONALIDAD TOTAL'!$D$14:$Z$238,23,0) -> 179 | Q47: =VLOOKUP(E47,'LLEGADA PAIS NACIONALIDAD TOTAL'!$D$14:$AB$238,25,0) -> 158 | R47: 2771 | T47: 0.2028151118
D48: 36 | E48: DINAMARCA | F48: 310 | G48: 255 | H48: 293 | I48: 190 | J48: 150 | K48: 162 | L48: 327 | M48: 116 | N48: 137 | O48: =VLOOKUP(E48,'LLEGADA PAIS NACIONALIDAD TOTAL'!$D$14:$X$238,21,0) -> 220 | P48: =VLOOKUP(E48,'LLEGADA PAIS NACIONALIDAD TOTAL'!$D$14:$Z$238,23,0) -> 319 | Q48: =VLOOKUP(E48,'LLEGADA PAIS NACIONALIDAD TOTAL'!$D$14:$AB$238,25,0) -> 187 | R48: 2666 | T48: 0.1951299488
D49: 37 | E49: POLONIA | F49: 227 | G49: 188 | H49: 219 | I49: 148 | J49: 142 | K49: 199 | L49: 170 | M49: 128 | N49: 110 | O49: =VLOOKUP(E49,'LLEGADA PAIS NACIONALIDAD TOTAL'!$D$14:$X$238,21,0) -> 154 | P49: =VLOOKUP(E49,'LLEGADA PAIS NACIONALIDAD TOTAL'!$D$14:$Z$238,23,0) -> 223 | Q49: =VLOOKUP(E49,'LLEGADA PAIS NACIONALIDAD TOTAL'!$D$14:$AB$238,25,0) -> 136 | R49: 2044 | T49: 0.1496045069
D50: 38 | E50: PORTUGAL | F50: 147 | G50: 178 | H50: 167 | I50: 129 | J50: 135 | K50: 165 | L50: 163 | M50: 150 | N50: 159 | O50: =VLOOKUP(E50,'LLEGADA PAIS NACIONALIDAD TOTAL'!$D$14:$X$238,21,0) -> 160 | P50: =VLOOKUP(E50,'LLEGADA PAIS NACIONALIDAD TOTAL'!$D$14:$Z$238,23,0) -> 185 | Q50: =VLOOKUP(E50,'LLEGADA PAIS NACIONALIDAD TOTAL'!$D$14:$AB$238,25,0) -> 173 | R50: 1911 | T50: 0.139869967
D51: 39 | E51: NORUEGA | F51: 148 | G51: 199 | H51: 227 | I51: 148 | J51: 88 | K51: 164 | L51: 183 | M51: 138 | N51: 63 | O51: =VLOOKUP(E51,'LLEGADA PAIS NACIONALIDAD TOTAL'!$D$14:$X$238,21,0) -> 193 | P51: =VLOOKUP(E51,'LLEGADA PAIS NACIONALIDAD TOTAL'!$D$14:$Z$238,23,0) -> 167 | Q51: =VLOOKUP(E51,'LLEGADA PAIS NACIONALIDAD TOTAL'!$D$14:$AB$238,25,0) -> 164 | R51: 1882 | T51: 0.1377473982
D52: 40 | E52: NUEVA ZELANDIA | F52: 91 | G52: 73 | H52: 116 | I52: 195 | J52: 169 | K52: 167 | L52: 203 | M52: 169 | N52: 154 | O52: =VLOOKUP(E52,'LLEGADA PAIS NACIONALIDAD TOTAL'!$D$14:$X$238,21,0) -> 142 | P52: =VLOOKUP(E52,'LLEGADA PAIS NACIONALIDAD TOTAL'!$D$14:$Z$238,23,0) -> 128 | Q52: =VLOOKUP(E52,'LLEGADA PAIS NACIONALIDAD TOTAL'!$D$14:$AB$238,25,0) -> 150 | R52: 1757 | T52: 0.1285983946
D53: 41 | E53: HONDURAS | F53: 136 | G53: 96 | H53: 112 | I53: 129 | J53: 156 | K53: 173 | L53: 116 | M53: 131 | N53: 109 | O53: =VLOOKUP(E53,'LLEGADA PAIS NACIONALIDAD TOTAL'!$D$14:$X$238,21,0) -> 172 | P53: =VLOOKUP(E53,'LLEGADA PAIS NACIONALIDAD TOTAL'!$D$14:$Z$238,23,0) -> 127 | Q53: =VLOOKUP(E53,'LLEGADA PAIS NACIONALIDAD TOTAL'!$D$14:$AB$238,25,0) -> 156 | R53: 1613 | T53: 0.1180587425
D54: 42 | E54: UCRANIA | F54: 109 | G54: 119 | H54: 85 | I54: 201 | J54: 124 | K54: 106 | L54: 117 | M54: 117 | N54: 156 | O54: =VLOOKUP(E54,'LLEGADA PAIS NACIONALIDAD TOTAL'!$D$14:$X$238,21,0) -> 93 | P54: =VLOOKUP(E54,'LLEGADA PAIS NACIONALIDAD TOTAL'!$D$14:$Z$238,23,0) -> 148 | Q54: =VLOOKUP(E54,'LLEGADA PAIS NACIONALIDAD TOTAL'!$D$14:$AB$238,25,0) -> 222 | R54: 1597 | T54: 0.11688767
D55: 43 | E55: SENEGAL | F55: 134 | G55: 123 | H55: 123 | I55: 110 | J55: 142 | K55: 75 | L55: 89 | M55: 67 | N55: 161 | O55: =VLOOKUP(E55,'LLEGADA PAIS NACIONALIDAD TOTAL'!$D$14:$X$238,21,0) -> 103 | P55: =VLOOKUP(E55,'LLEGADA PAIS NACIONALIDAD TOTAL'!$D$14:$Z$238,23,0) -> 148 | Q55: =VLOOKUP(E55,'LLEGADA PAIS NACIONALIDAD TOTAL'!$D$14:$AB$238,25,0) -> 113 | R55: 1388 | T55: 0.101590536
D56: 44 | E56: PARAGUAY | F56: 124 | G56: 92 | H56: 244 | I56: 96 | J56: 108 | K56: 81 | L56: 88 | M56: 123 | N56: 89 | O56: =VLOOKUP(E56,'LLEGADA PAIS NACIONALIDAD TOTAL'!$D$14:$X$238,21,0) -> 125 | P56: =VLOOKUP(E56,'LLEGADA PAIS NACIONALIDAD TOTAL'!$D$14:$Z$238,23,0) -> 104 | Q56: =VLOOKUP(E56,'LLEGADA PAIS NACIONALIDAD TOTAL'!$D$14:$AB$238,25,0) -> 70 | R56: 1344 | T56: 0.09837008671
D57: 45 | E57: NICARAGUA | F57: 103 | G57: 79 | H57: 90 | I57: 92 | J57: 93 | K57: 89 | L57: 149 | M57: 120 | N57: 80 | O57: =VLOOKUP(E57,'LLEGADA PAIS NACIONALIDAD TOTAL'!$D$14:$X$238,21,0) -> 90 | P57: =VLOOKUP(E57,'LLEGADA PAIS NACIONALIDAD TOTAL'!$D$14:$Z$238,23,0) -> 124 | Q57: =VLOOKUP(E57,'LLEGADA PAIS NACIONALIDAD TOTAL'!$D$14:$AB$238,25,0) -> 86 | R57: 1195 | T57: 0.08746447442
D58: 46 | E58: FINLANDIA | F58: 98 | G58: 100 | H58: 125 | I58: 60 | J58: 73 | K58: 74 | L58: 69 | M58: 76 | N58: 71 | O58: =VLOOKUP(E58,'LLEGADA PAIS NACIONALIDAD TOTAL'!$D$14:$X$238,21,0) -> 123 | P58: =VLOOKUP(E58,'LLEGADA PAIS NACIONALIDAD TOTAL'!$D$14:$Z$238,23,0) -> 135 | Q58: =VLOOKUP(E58,'LLEGADA PAIS NACIONALIDAD TOTAL'!$D$14:$AB$238,25,0) -> 154 | R58: 1158 | T58: 0.08475636935
D59: 47 | E59: CHECOSLOVAQUIA | F59: 109 | G59: 145 | H59: 97 | I59: 38 | J59: 60 | K59: 50 | L59: 73 | M59: 88 | N59: 103 | O59: =VLOOKUP(E59,'LLEGADA PAIS NACIONALIDAD TOTAL'!$D$14:$X$238,21,0) -> 105 | P59: =VLOOKUP(E59,'LLEGADA PAIS NACIONALIDAD TOTAL'!$D$14:$Z$238,23,0) -> 163 | Q59: =VLOOKUP(E59,'LLEGADA PAIS NACIONALIDAD TOTAL'!$D$14:$AB$238,25,0) -> 109 | R59: 1140 | T59: 0.08343891283
D60: 48 | E60: TAIWAN-CHINA | F60: 49 | G60: 87 | H60: 51 | I60: 83 | J60: 66 | K60: 72 | L60: 51 | M60: 52 | N60: 58 | O60: =VLOOKUP(E60,'LLEGADA PAIS NACIONALIDAD TOTAL'!$D$14:$X$238,21,0) -> 81 | P60: =VLOOKUP(E60,'LLEGADA PAIS NACIONALIDAD TOTAL'!$D$14:$Z$238,23,0) -> 68 | Q60: =VLOOKUP(E60,'LLEGADA PAIS NACIONALIDAD TOTAL'!$D$14:$AB$238,25,0) -> 97 | R60: 815 | T60: 0.05965150347
D61: 49 | E61: RUMANIA | F61: 64 | G61: 73 | H61: 67 | I61: 34 | J61: 62 | K61: 65 | L61: 65 | M61: 68 | N61: 66 | O61: =VLOOKUP(E61,'LLEGADA PAIS NACIONALIDAD TOTAL'!$D$14:$X$238,21,0) -> 68 | P61: =VLOOKUP(E61,'LLEGADA PAIS NACIONALIDAD TOTAL'!$D$14:$Z$238,23,0) -> 95 | Q61: =VLOOKUP(E61,'LLEGADA PAIS NACIONALIDAD TOTAL'!$D$14:$AB$238,25,0) -> 82 | R61: 809 | T61: 0.0592123513
D62: 50 | E62: AFRICA SUD OCCIDENTAL | F62: 37 | G62: 44 | H62: 72 | I62: 61 | J62: 61 | K62: 58 | L62: 64 | M62: 72 | N62: 62 | O62: =VLOOKUP(E62,'LLEGADA PAIS NACIONALIDAD TOTAL'!$D$14:$X$238,21,0) -> 51 | P62: =VLOOKUP(E62,'LLEGADA PAIS NACIONALIDAD TOTAL'!$D$14:$Z$238,23,0) -> 65 | Q62: =VLOOKUP(E62,'LLEGADA PAIS NACIONALIDAD TOTAL'!$D$14:$AB$238,25,0) -> 91 | R62: 738 | T62: 0.05401571726
D63: 51 | E63: SUDÁFRICA | F63: 37 | G63: 44 | H63: 72 | I63: 61 | J63: 61 | K63: 58 | L63: 64 | M63: 72 | N63: 62 | O63: =VLOOKUP(E63,'LLEGADA PAIS NACIONALIDAD TOTAL'!$D$14:$X$238,21,0) -> 51 | P63: =VLOOKUP(E63,'LLEGADA PAIS NACIONALIDAD TOTAL'!$D$14:$Z$238,23,0) -> 65 | Q63: =VLOOKUP(E63,'LLEGADA PAIS NACIONALIDAD TOTAL'!$D$14:$AB$238,25,0) -> 91 | R63: 738 | T63: 0.05401571726
D64: 52 | E64: TURQUÍA | F64: 68 | G64: 28 | H64: 91 | I64: 40 | J64: 46 | K64: 48 | L64: 56 | M64: 37 | N64: 42 | O64: =VLOOKUP(E64,'LLEGADA PAIS NACIONALIDAD TOTAL'!$D$14:$X$238,21,0) -> 70 | P64: =VLOOKUP(E64,'LLEGADA PAIS NACIONALIDAD TOTAL'!$D$14:$Z$238,23,0) -> 39 | Q64: =VLOOKUP(E64,'LLEGADA PAIS NACIONALIDAD TOTAL'!$D$14:$AB$238,25,0) -> 39 | R64: 604 | T64: 0.0442079854
D65: 53 | E65: GRECIA | F65: 45 | G65: 39 | H65: 40 | I65: 47 | J65: 41 | K65: 36 | L65: 38 | M65: 52 | N65: 32 | O65: =VLOOKUP(E65,'LLEGADA PAIS NACIONALIDAD TOTAL'!$D$14:$X$238,21,0) -> 46 | P65: =VLOOKUP(E65,'LLEGADA PAIS NACIONALIDAD TOTAL'!$D$14:$Z$238,23,0) -> 53 | Q65: =VLOOKUP(E65,'LLEGADA PAIS NACIONALIDAD TOTAL'!$D$14:$AB$238,25,0) -> 67 | R65: 536 | T65: 0.03923092744
D66: 54 | E66: SINGAPUR | F66: 43 | G66: 19 | H66: 65 | I66: 35 | J66: 38 | K66: 42 | L66: 48 | M66: 46 | N66: 34 | O66: =VLOOKUP(E66,'LLEGADA PAIS NACIONALIDAD TOTAL'!$D$14:$X$238,21,0) -> 48 | P66: =VLOOKUP(E66,'LLEGADA PAIS NACIONALIDAD TOTAL'!$D$14:$Z$238,23,0) -> 40 | Q66: =VLOOKUP(E66,'LLEGADA PAIS NACIONALIDAD TOTAL'!$D$14:$AB$238,25,0) -> 68 | R66: 526 | T66: 0.03849900715
D67: 55 | E67: INDONESIA | F67: 20 | G67: 63 | H67: 54 | I67: 20 | J67: 9 | K67: 36 | L67: 55 | M67: 60 | N67: 11 | O67: =VLOOKUP(E67,'LLEGADA PAIS NACIONALIDAD TOTAL'!$D$14:$X$238,21,0) -> 82 | P67: =VLOOKUP(E67,'LLEGADA PAIS NACIONALIDAD TOTAL'!$D$14:$Z$238,23,0) -> 16 | Q67: =VLOOKUP(E67,'LLEGADA PAIS NACIONALIDAD TOTAL'!$D$14:$AB$238,25,0) -> 21 | R67: 447 | T67: 0.03271683687
D68: 56 | E68: LITUANIA | F68: 41 | G68: 32 | H68: 34 | I68: 121 | J68: 29 | K68: 23 | L68: 21 | M68: 18 | N68: 23 | O68: =VLOOKUP(E68,'LLEGADA PAIS NACIONALIDAD TOTAL'!$D$14:$X$238,21,0) -> 24 | P68: =VLOOKUP(E68,'LLEGADA PAIS NACIONALIDAD TOTAL'!$D$14:$Z$238,23,0) -> 28 | Q68: =VLOOKUP(E68,'LLEGADA PAIS NACIONALIDAD TOTAL'!$D$14:$AB$238,25,0) -> 51 | R68: 445 | T68: 0.03257045282
D69: 57 | E69: CROACIA | F69: 26 | G69: 24 | H69: 21 | I69: 12 | J69: 25 | K69: 15 | L69: 66 | M69: 27 | N69: 19 | O69: =VLOOKUP(E69,'LLEGADA PAIS NACIONALIDAD TOTAL'!$D$14:$X$238,21,0) -> 35 | P69: =VLOOKUP(E69,'LLEGADA PAIS NACIONALIDAD TOTAL'!$D$14:$Z$238,23,0) -> 54 | Q69: =VLOOKUP(E69,'LLEGADA PAIS NACIONALIDAD TOTAL'!$D$14:$AB$238,25,0) -> 72 | R69: 396 | T69: 0.02898404341
D70: 58 | E70: BULGARIA | F70: 57 | G70: 19 | H70: 36 | I70: 15 | J70: 25 | K70: 26 | L70: 56 | M70: 36 | N70: 24 | O70: =VLOOKUP(E70,'LLEGADA PAIS NACIONALIDAD TOTAL'!$D$14:$X$238,21,0) -> 36 | P70: =VLOOKUP(E70,'LLEGADA PAIS NACIONALIDAD TOTAL'!$D$14:$Z$238,23,0) -> 18 | Q70: =VLOOKUP(E70,'LLEGADA PAIS NACIONALIDAD TOTAL'!$D$14:$AB$238,25,0) -> 31 | R70: 379 | T70: 0.02773977892
D71: 59 | E71: HUNGRÍA | F71: 42 | G71: 18 | H71: 32 | I71: 27 | J71: 26 | K71: 21 | L71: 20 | M71: 23 | N71: 18 | O71: =VLOOKUP(E71,'LLEGADA PAIS NACIONALIDAD TOTAL'!$D$14:$X$238,21,0) -> 33 | P71: =VLOOKUP(E71,'LLEGADA PAIS NACIONALIDAD TOTAL'!$D$14:$Z$238,23,0) -> 63 | Q71: =VLOOKUP(E71,'LLEGADA PAIS NACIONALIDAD TOTAL'!$D$14:$AB$238,25,0) -> 26 | R71: 349 | T71: 0.02554401805
D72: 60 | E72: LÍBANO | F72: 18 | G72: 37 | H72: 22 | I72: 23 | J72: 27 | K72: 36 | L72: 17 | M72: 22 | N72: 27 | O72: =VLOOKUP(E72,'LLEGADA PAIS NACIONALIDAD TOTAL'!$D$14:$X$238,21,0) -> 22 | P72: =VLOOKUP(E72,'LLEGADA PAIS NACIONALIDAD TOTAL'!$D$14:$Z$238,23,0) -> 30 | Q72: =VLOOKUP(E72,'LLEGADA PAIS NACIONALIDAD TOTAL'!$D$14:$AB$238,25,0) -> 22 | R72: 303 | T72: 0.02217718473
D73: 61 | E73: COREA SUR | F73: 22 | G73: 18 | H73: 23 | I73: 26 | J73: 32 | K73: 21 | L73: 23 | M73: 22 | N73: 20 | O73: =VLOOKUP(E73,'LLEGADA PAIS NACIONALIDAD TOTAL'!$D$14:$X$238,21,0) -> 23 | P73: =VLOOKUP(E73,'LLEGADA PAIS NACIONALIDAD TOTAL'!$D$14:$Z$238,23,0) -> 24 | Q73: =VLOOKUP(E73,'LLEGADA PAIS NACIONALIDAD TOTAL'!$D$14:$AB$238,25,0) -> 32 | R73: 286 | T73: 0.02093292024
D74: 62 | E74: EGIPTO | F74: 8 | G74: 18 | H74: 59 | I74: 19 | J74: 15 | K74: 14 | L74: 26 | M74: 14 | N74: 12 | O74: =VLOOKUP(E74,'LLEGADA PAIS NACIONALIDAD TOTAL'!$D$14:$X$238,21,0) -> 15 | P74: =VLOOKUP(E74,'LLEGADA PAIS NACIONALIDAD TOTAL'!$D$14:$Z$238,23,0) -> 20 | Q74: =VLOOKUP(E74,'LLEGADA PAIS NACIONALIDAD TOTAL'!$D$14:$AB$238,25,0) -> 48 | R74: 268 | T74: 0.01961546372
D75: 63 | E75: BIELORUS | F75: 23 | G75: 22 | H75: 24 | I75: 15 | J75: 35 | K75: 19 | L75: 12 | M75: 17 | N75: 28 | O75: =VLOOKUP(E75,'LLEGADA PAIS NACIONALIDAD TOTAL'!$D$14:$X$238,21,0) -> 19 | P75: =VLOOKUP(E75,'LLEGADA PAIS NACIONALIDAD TOTAL'!$D$14:$Z$238,23,0) -> 35 | Q75: =VLOOKUP(E75,'LLEGADA PAIS NACIONALIDAD TOTAL'!$D$14:$AB$238,25,0) -> 15 | R75: 264 | T75: 0.0193226956
D76: 64 | E76: VIETNAM NORTE | F76: 96 | G76: 3 | H76: 16 | I76: 1 | J76: 4 | K76: 2 | L76: 6 | M76: 18 | N76: 4 | O76: =VLOOKUP(E76,'LLEGADA PAIS NACIONALIDAD TOTAL'!$D$14:$X$238,21,0) -> 7 | P76: =VLOOKUP(E76,'LLEGADA PAIS NACIONALIDAD TOTAL'!$D$14:$Z$238,23,0) -> 6 | Q76: =VLOOKUP(E76,'LLEGADA PAIS NACIONALIDAD TOTAL'!$D$14:$AB$238,25,0) -> 99 | R76: 262 | T76: 0.01917631155
D77: 65 | E77: VIETNAM SUR | F77: 96 | G77: 3 | H77: 16 | I77: 1 | J77: 4 | K77: 2 | L77: 6 | M77: 18 | N77: 4 | O77: =VLOOKUP(E77,'LLEGADA PAIS NACIONALIDAD TOTAL'!$D$14:$X$238,21,0) -> 7 | P77: =VLOOKUP(E77,'LLEGADA PAIS NACIONALIDAD TOTAL'!$D$14:$Z$238,23,0) -> 6 | Q77: =VLOOKUP(E77,'LLEGADA PAIS NACIONALIDAD TOTAL'!$D$14:$AB$238,25,0) -> 99 | R77: 262 | T77: 0.01917631155
D78: 66 | E78: TRINIDAD Y TOBAGO | F78: 22 | G78: 13 | H78: 20 | I78: 36 | J78: 15 | K78: 19 | L78: 39 | M78: 21 | N78: 14 | O78: =VLOOKUP(E78,'LLEGADA PAIS NACIONALIDAD TOTAL'!$D$14:$X$238,21,0) -> 20 | P78: =VLOOKUP(E78,'LLEGADA PAIS NACIONALIDAD TOTAL'!$D$14:$Z$238,23,0) -> 9 | Q78: =VLOOKUP(E78,'LLEGADA PAIS NACIONALIDAD TOTAL'!$D$14:$AB$238,25,0) -> 31 | R78: 259 | T78: 0.01895673546
D79: 67 | E79: ANGOLA | F79: 8 | G79: 0 | H79: 45 | I79: 2 | J79: 4 | K79: 1 | L79: 2 | M79: 1 | N79: 2 | O79: =VLOOKUP(E79,'LLEGADA PAIS NACIONALIDAD TOTAL'!$D$14:$X$238,21,0) -> 4 | P79: =VLOOKUP(E79,'LLEGADA PAIS NACIONALIDAD TOTAL'!$D$14:$Z$238,23,0) -> 0 | Q79: =VLOOKUP(E79,'LLEGADA PAIS NACIONALIDAD TOTAL'!$D$14:$AB$238,25,0) -> 189 | R79: 258 | T79: 0.01888354343
D80: 68 | E80: HONG KONG | F80: 14 | G80: 15 | H80: 29 | I80: 24 | J80: 16 | K80: 16 | L80: 12 | M80: 17 | N80: 25 | O80: =VLOOKUP(E80,'LLEGADA PAIS NACIONALIDAD TOTAL'!$D$14:$X$238,21,0) -> 28 | P80: =VLOOKUP(E80,'LLEGADA PAIS NACIONALIDAD TOTAL'!$D$14:$Z$238,23,0) -> 21 | Q80: =VLOOKUP(E80,'LLEGADA PAIS NACIONALIDAD TOTAL'!$D$14:$AB$238,25,0) -> 38 | R80: 255 | T80: 0.01866396734
D81: 69 | E81: NAMIBIA | F81: 2 | G81: 0 | H81: 13 | I81: 1 | J81: 0 | K81: 0 | L81: 0 | M81: 0 | N81: 3 | O81: =VLOOKUP(E81,'LLEGADA PAIS NACIONALIDAD TOTAL'!$D$14:$X$238,21,0) -> 5 | P81: =VLOOKUP(E81,'LLEGADA PAIS NACIONALIDAD TOTAL'!$D$14:$Z$238,23,0) -> 0 | Q81: =VLOOKUP(E81,'LLEGADA PAIS NACIONALIDAD TOTAL'!$D$14:$AB$238,25,0) -> 230 | R81: 254 | T81: 0.01859077532
D82: 70 | E82: MALASIA | F82: 13 | G82: 7 | H82: 18 | I82: 24 | J82: 33 | K82: 14 | L82: 11 | M82: 17 | N82: 22 | O82: =VLOOKUP(E82,'LLEGADA PAIS NACIONALIDAD TOTAL'!$D$14:$X$238,21,0) -> 29 | P82: =VLOOKUP(E82,'LLEGADA PAIS NACIONALIDAD TOTAL'!$D$14:$Z$238,23,0) -> 21 | Q82: =VLOOKUP(E82,'LLEGADA PAIS NACIONALIDAD TOTAL'!$D$14:$AB$238,25,0) -> 33 | R82: 242 | T82: 0.01771247097
D83: 71 | E83: TAILANDIA | F83: 19 | G83: 5 | H83: 57 | I83: 16 | J83: 21 | K83: 26 | L83: 10 | M83: 13 | N83: 13 | O83: =VLOOKUP(E83,'LLEGADA PAIS NACIONALIDAD TOTAL'!$D$14:$X$238,21,0) -> 14 | P83: =VLOOKUP(E83,'LLEGADA PAIS NACIONALIDAD TOTAL'!$D$14:$Z$238,23,0) -> 17 | Q83: =VLOOKUP(E83,'LLEGADA PAIS NACIONALIDAD TOTAL'!$D$14:$AB$238,25,0) -> 13 | R83: 224 | T83: 0.01639501445
D84: 72 | E84: ARGELIA | F84: 22 | G84: 23 | H84: 23 | I84: 17 | J84: 18 | K84: 14 | L84: 7 | M84: 10 | N84: 1 | O84: =VLOOKUP(E84,'LLEGADA PAIS NACIONALIDAD TOTAL'!$D$14:$X$238,21,0) -> 13 | P84: =VLOOKUP(E84,'LLEGADA PAIS NACIONALIDAD TOTAL'!$D$14:$Z$238,23,0) -> 12 | Q84: =VLOOKUP(E84,'LLEGADA PAIS NACIONALIDAD TOTAL'!$D$14:$AB$238,25,0) -> 39 | R84: 199 | T84: 0.01456521373
D85: 73 | E85: LUXEMBURGO | F85: 8 | G85: 9 | H85: 26 | I85: 8 | J85: 8 | K85: 9 | L85: 21 | M85: 47 | N85: 16 | O85: =VLOOKUP(E85,'LLEGADA PAIS NACIONALIDAD TOTAL'!$D$14:$X$238,21,0) -> 5 | P85: =VLOOKUP(E85,'LLEGADA PAIS NACIONALIDAD TOTAL'!$D$14:$Z$238,23,0) -> 19 | Q85: =VLOOKUP(E85,'LLEGADA PAIS NACIONALIDAD TOTAL'!$D$14:$AB$238,25,0) -> 10 | R85: 186 | T85: 0.01361371736
D86: 74 | E86: JAMAICA | F86: 12 | G86: 9 | H86: 55 | I86: 26 | J86: 4 | K86: 27 | L86: 7 | M86: 8 | N86: 10 | O86: =VLOOKUP(E86,'LLEGADA PAIS NACIONALIDAD TOTAL'!$D$14:$X$238,21,0) -> 8 | P86: =VLOOKUP(E86,'LLEGADA PAIS NACIONALIDAD TOTAL'!$D$14:$Z$238,23,0) -> 6 | Q86: =VLOOKUP(E86,'LLEGADA PAIS NACIONALIDAD TOTAL'!$D$14:$AB$238,25,0) -> 10 | R86: 182 | T86: 0.01332094924
D87: 75 | E87: YUGOSLAVIA | F87: 13 | G87: 23 | H87: 21 | I87: 5 | J87: 14 | K87: 13 | L87: 10 | M87: 7 | N87: 9 | O87: =VLOOKUP(E87,'LLEGADA PAIS NACIONALIDAD TOTAL'!$D$14:$X$238,21,0) -> 15 | P87: =VLOOKUP(E87,'LLEGADA PAIS NACIONALIDAD TOTAL'!$D$14:$Z$238,23,0) -> 9 | Q87: =VLOOKUP(E87,'LLEGADA PAIS NACIONALIDAD TOTAL'!$D$14:$AB$238,25,0) -> 22 | R87: 161 | T87: 0.01178391664
D88: 76 | E88: SRILANKA | F88: 5 | G88: 4 | H88: 15 | I88: 4 | J88: 24 | K88: 9 | L88: 3 | M88: 1 | N88: 1 | O88: =VLOOKUP(E88,'LLEGADA PAIS NACIONALIDAD TOTAL'!$D$14:$X$238,21,0) -> 2 | P88: =VLOOKUP(E88,'LLEGADA PAIS NACIONALIDAD TOTAL'!$D$14:$Z$238,23,0) -> 1 | Q88: =VLOOKUP(E88,'LLEGADA PAIS NACIONALIDAD TOTAL'!$D$14:$AB$238,25,0) -> 87 | R88: 156 | T88: 0.01141795649
D89: 77 | E89: MARRUECOS | F89: 5 | G89: 12 | H89: 28 | I89: 5 | J89: 14 | K89: 10 | L89: 11 | M89: 8 | N89: 12 | O89: =VLOOKUP(E89,'LLEGADA PAIS NACIONALIDAD TOTAL'!$D$14:$X$238,21,0) -> 14 | P89: =VLOOKUP(E89,'LLEGADA PAIS NACIONALIDAD TOTAL'!$D$14:$Z$238,23,0) -> 7 | Q89: =VLOOKUP(E89,'LLEGADA PAIS NACIONALIDAD TOTAL'!$D$14:$AB$238,25,0) -> 25 | R89: 151 | T89: 0.01105199635
D90: 78 | E90: ALBANIA | F90: 7 | G90: 14 | H90: 17 | I90: 10 | J90: 13 | K90: 5 | L90: 7 | M90: 8 | N90: 9 | O90: =VLOOKUP(E90,'LLEGADA PAIS NACIONALIDAD TOTAL'!$D$14:$X$238,21,0) -> 18 | P90: =VLOOKUP(E90,'LLEGADA PAIS NACIONALIDAD TOTAL'!$D$14:$Z$238,23,0) -> 32 | Q90: =VLOOKUP(E90,'LLEGADA PAIS NACIONALIDAD TOTAL'!$D$14:$AB$238,25,0) -> 8 | R90: 148 | T90: 0.01083242026
D91: 79 | E91: KAZAJSTAN | F91: 37 | G91: 7 | H91: 14 | I91: 3 | J91: 7 | K91: 17 | L91: 10 | M91: 8 | N91: 11 | O91: =VLOOKUP(E91,'LLEGADA PAIS NACIONALIDAD TOTAL'!$D$14:$X$238,21,0) -> 9 | P91: =VLOOKUP(E91,'LLEGADA PAIS NACIONALIDAD TOTAL'!$D$14:$Z$238,23,0) -> 11 | Q91: =VLOOKUP(E91,'LLEGADA PAIS NACIONALIDAD TOTAL'!$D$14:$AB$238,25,0) -> 14 | R91: 148 | T91: 0.01083242026
D92: 80 | E92: ESLOVENIA | F92: 8 | G92: 3 | H92: 5 | I92: 28 | J92: 17 | K92: 12 | L92: 11 | M92: 14 | N92: 6 | O92: =VLOOKUP(E92,'LLEGADA PAIS NACIONALIDAD TOTAL'!$D$14:$X$238,21,0) -> 13 | P92: =VLOOKUP(E92,'LLEGADA PAIS NACIONALIDAD TOTAL'!$D$14:$Z$238,23,0) -> 13 | Q92: =VLOOKUP(E92,'LLEGADA PAIS NACIONALIDAD TOTAL'!$D$14:$AB$238,25,0) -> 16 | R92: 146 | T92: 0.01068603621
D93: 81 | E93: ESTONIA | F93: 27 | G93: 11 | H93: 25 | I93: 16 | J93: 2 | K93: 3 | L93: 7 | M93: 10 | N93: 1 | O93: =VLOOKUP(E93,'LLEGADA PAIS NACIONALIDAD TOTAL'!$D$14:$X$238,21,0) -> 9 | P93: =VLOOKUP(E93,'LLEGADA PAIS NACIONALIDAD TOTAL'!$D$14:$Z$238,23,0) -> 18 | Q93: =VLOOKUP(E93,'LLEGADA PAIS NACIONALIDAD TOTAL'!$D$14:$AB$238,25,0) -> 17 | R93: 146 | T93: 0.01068603621
D94: 82 | E94: NIGERIA | F94: 8 | G94: 14 | H94: 51 | I94: 5 | J94: 12 | K94: 6 | L94: 11 | M94: 7 | N94: 8 | O94: =VLOOKUP(E94,'LLEGADA PAIS NACIONALIDAD TOTAL'!$D$14:$X$238,21,0) -> 6 | P94: =VLOOKUP(E94,'LLEGADA PAIS NACIONALIDAD TOTAL'!$D$14:$Z$238,23,0) -> 9 | Q94: =VLOOKUP(E94,'LLEGADA PAIS NACIONALIDAD TOTAL'!$D$14:$AB$238,25,0) -> 8 | R94: 145 | T94: 0.01061284418
D95: 83 | E95: PAKISTÁN | F95: 13 | G95: 7 | H95: 17 | I95: 12 | J95: 19 | K95: 13 | L95: 11 | M95: 7 | N95: 9 | O95: =VLOOKUP(E95,'LLEGADA PAIS NACIONALIDAD TOTAL'!$D$14:$X$238,21,0) -> 8 | P95: =VLOOKUP(E95,'LLEGADA PAIS NACIONALIDAD TOTAL'!$D$14:$Z$238,23,0) -> 12 | Q95: =VLOOKUP(E95,'LLEGADA PAIS NACIONALIDAD TOTAL'!$D$14:$AB$238,25,0) -> 12 | R95: 140 | T95: 0.01024688403
D96: 84 | E96: PUERTO RICO | F96: 1 | G96: 6 | H96: 5 | I96: 13 | J96: 17 | K96: 23 | L96: 7 | M96: 7 | N96: 5 | O96: =VLOOKUP(E96,'LLEGADA PAIS NACIONALIDAD TOTAL'!$D$14:$X$238,21,0) -> 10 | P96: =VLOOKUP(E96,'LLEGADA PAIS NACIONALIDAD TOTAL'!$D$14:$Z$238,23,0) -> 21 | Q96: =VLOOKUP(E96,'LLEGADA PAIS NACIONALIDAD TOTAL'!$D$14:$AB$238,25,0) -> 10 | R96: 125 | T96: 0.0091490036
D97: 85 | E97: ISLANDIA | F97: 5 | G97: 5 | H97: 30 | I97: 7 | J97: 10 | K97: 12 | L97: 8 | M97: 8 | N97: 6 | O97: =VLOOKUP(E97,'LLEGADA PAIS NACIONALIDAD TOTAL'!$D$14:$X$238,21,0) -> 1 | P97: =VLOOKUP(E97,'LLEGADA PAIS NACIONALIDAD TOTAL'!$D$14:$Z$238,23,0) -> 11 | Q97: =VLOOKUP(E97,'LLEGADA PAIS NACIONALIDAD TOTAL'!$D$14:$AB$238,25,0) -> 17 | R97: 120 | T97: 0.008783043456
D98: 86 | E98: ARABIA SAUDITA | F98: 5 | G98: 1 | H98: 33 | I98: 5 | J98: 5 | K98: 22 | L98: 4 | M98: 14 | N98: 2 | O98: =VLOOKUP(E98,'LLEGADA PAIS NACIONALIDAD TOTAL'!$D$14:$X$238,21,0) -> 5 | P98: =VLOOKUP(E98,'LLEGADA PAIS NACIONALIDAD TOTAL'!$D$14:$Z$238,23,0) -> 13 | Q98: =VLOOKUP(E98,'LLEGADA PAIS NACIONALIDAD TOTAL'!$D$14:$AB$238,25,0) -> 9 | R98: =SUM(F98:Q98) -> 118 | T98: =+R98/R$232*100 -> 0.008636659399
D99: 87 | E99: LETONIA | F99: 14 | G99: 21 | H99: 13 | I99: 4 | J99: 11 | K99: 6 | L99: 3 | M99: 8 | N99: 6 | O99: =VLOOKUP(E99,'LLEGADA PAIS NACIONALIDAD TOTAL'!$D$14:$X$238,21,0) -> 7 | P99: =VLOOKUP(E99,'LLEGADA PAIS NACIONALIDAD TOTAL'!$D$14:$Z$238,23,0) -> 7 | Q99: =VLOOKUP(E99,'LLEGADA PAIS NACIONALIDAD TOTAL'!$D$14:$AB$238,25,0) -> 9 | R99: 109 | T99: 0.007977931139
D100: 88 | E100: ESCOCIA | F100: 6 | G100: 8 | H100: 18 | I100: 4 | J100: 5 | K100: 10 | L100: 11 | M100: 12 | N100: 7 | O100: =VLOOKUP(E100,'LLEGADA PAIS NACIONALIDAD TOTAL'!$D$14:$X$238,21,0) -> 12 | P100: =VLOOKUP(E100,'LLEGADA PAIS NACIONALIDAD TOTAL'!$D$14:$Z$238,23,0) -> 6 | Q100: =VLOOKUP(E100,'LLEGADA PAIS NACIONALIDAD TOTAL'!$D$14:$AB$238,25,0) -> 7 | R100: 106 | T100: 0.007758355053
D101: 89 | E101: RUSIA | F101: 10 | G101: 7 | H101: 4 | I101: 7 | J101: 6 | K101: 3 | L101: 10 | M101: 10 | N101: 16 | O101: =VLOOKUP(E101,'LLEGADA PAIS NACIONALIDAD TOTAL'!$D$14:$X$238,21,0) -> 9 | P101: =VLOOKUP(E101,'LLEGADA PAIS NACIONALIDAD TOTAL'!$D$14:$Z$238,23,0) -> 12 | Q101: =VLOOKUP(E101,'LLEGADA PAIS NACIONALIDAD TOTAL'!$D$14:$AB$238,25,0) -> 9 | R101: 103 | T101: 0.007538778967
D102: 90 | E102: QATAR | F102: 17 | G102: 60 | H102: 9 | I102: 0 | J102: 3 | K102: 5 | L102: 1 | M102: 1 | N102: 1 | O102: =VLOOKUP(E102,'LLEGADA PAIS NACIONALIDAD TOTAL'!$D$14:$X$238,21,0) -> 2 | P102: =VLOOKUP(E102,'LLEGADA PAIS NACIONALIDAD TOTAL'!$D$14:$Z$238,23,0) -> 0 | Q102: =VLOOKUP(E102,'LLEGADA PAIS NACIONALIDAD TOTAL'!$D$14:$AB$238,25,0) -> 3 | R102: 102 | T102: 0.007465586938
D103: 91 | E103: BAHAMAS | F103: 14 | G103: 1 | H103: 13 | I103: 9 | J103: 10 | K103: 13 | L103: 10 | M103: 7 | N103: 8 | O103: =VLOOKUP(E103,'LLEGADA PAIS NACIONALIDAD TOTAL'!$D$14:$X$238,21,0) -> 2 | P103: =VLOOKUP(E103,'LLEGADA PAIS NACIONALIDAD TOTAL'!$D$14:$Z$238,23,0) -> 4 | Q103: =VLOOKUP(E103,'LLEGADA PAIS NACIONALIDAD TOTAL'!$D$14:$AB$238,25,0) -> 5 | R103: 96 | T103: 0.007026434765
D104: 92 | E104: SURINAM | F104: 2 | G104: 6 | H104: 6 | I104: 14 | J104: 10 | K104: 3 | L104: 9 | M104: 12 | N104: 7 | O104: =VLOOKUP(E104,'LLEGADA PAIS NACIONALIDAD TOTAL'!$D$14:$X$238,21,0) -> 9 | P104: =VLOOKUP(E104,'LLEGADA PAIS NACIONALIDAD TOTAL'!$D$14:$Z$238,23,0) -> 7 | Q104: =VLOOKUP(E104,'LLEGADA PAIS NACIONALIDAD TOTAL'!$D$14:$AB$238,25,0) -> 3 | R104: 88 | T104: 0.006440898535
D105: 93 | E105: MYANMAR | F105: 2 | G105: 8 | H105: 4 | I105: 22 | J105: 15 | K105: 5 | L105: 14 | M105: 3 | N105: 0 | O105: =VLOOKUP(E105,'LLEGADA PAIS NACIONALIDAD TOTAL'!$D$14:$X$238,21,0) -> 0 | P105: =VLOOKUP(E105,'LLEGADA PAIS NACIONALIDAD TOTAL'!$D$14:$Z$238,23,0) -> 2 | Q105: =VLOOKUP(E105,'LLEGADA PAIS NACIONALIDAD TOTAL'!$D$14:$AB$238,25,0) -> 9 | R105: 84 | T105: 0.006148130419
D106: 94 | E106: KIRIBATI | F106: 1 | G106: 7 | H106: 5 | I106: 10 | J106: 6 | K106: 13 | L106: 6 | M106: 1 | N106: 13 | O106: =VLOOKUP(E106,'LLEGADA PAIS NACIONALIDAD TOTAL'!$D$14:$X$238,21,0) -> 12 | P106: =VLOOKUP(E106,'LLEGADA PAIS NACIONALIDAD TOTAL'!$D$14:$Z$238,23,0) -> 6 | Q106: =VLOOKUP(E106,'LLEGADA PAIS NACIONALIDAD TOTAL'!$D$14:$AB$238,25,0) -> 2 | R106: 82 | T106: 0.006001746362
D107: 95 | E107: JORDANIA | F107: 6 | G107: 9 | H107: 16 | I107: 5 | J107: 5 | K107: 9 | L107: 3 | M107: 7 | N107: 4 | O107: =VLOOKUP(E107,'LLEGADA PAIS NACIONALIDAD TOTAL'!$D$14:$X$238,21,0) -> 9 | P107: =VLOOKUP(E107,'LLEGADA PAIS NACIONALIDAD TOTAL'!$D$14:$Z$238,23,0) -> 6 | Q107: =VLOOKUP(E107,'LLEGADA PAIS NACIONALIDAD TOTAL'!$D$14:$AB$238,25,0) -> 3 | R107: 82 | T107: 0.006001746362
D108: 96 | E108: KUWAIT | F108: 6 | G108: 1 | H108: 41 | I108: 6 | J108: 2 | K108: 6 | L108: 4 | M108: 0 | N108: 5 | O108: =VLOOKUP(E108,'LLEGADA PAIS NACIONALIDAD TOTAL'!$D$14:$X$238,21,0) -> 5 | P108: =VLOOKUP(E108,'LLEGADA PAIS NACIONALIDAD TOTAL'!$D$14:$Z$238,23,0) -> 1 | Q108: =VLOOKUP(E108,'LLEGADA PAIS NACIONALIDAD TOTAL'!$D$14:$AB$238,25,0) -> 3 | R108: 80 | T108: 0.005855362304
D109: 97 | E109: CAMERUN | F109: 9 | G109: 2 | H109: 5 | I109: 12 | J109: 4 | K109: 15 | L109: 9 | M109: 3 | N109: 2 | O109: =VLOOKUP(E109,'LLEGADA PAIS NACIONALIDAD TOTAL'!$D$14:$X$238,21,0) -> 8 | P109: =VLOOKUP(E109,'LLEGADA PAIS NACIONALIDAD TOTAL'!$D$14:$Z$238,23,0) -> 1 | Q109: =VLOOKUP(E109,'LLEGADA PAIS NACIONALIDAD TOTAL'!$D$14:$AB$238,25,0) -> 6 | R109: 76 | T109: 0.005562594189
D110: 98 | E110: MOZAMBIQUE | F110: 0 | G110: 0 | H110: 4 | I110: 2 | J110: 2 | K110: 1 | L110: 1 | M110: 2 | N110: 1 | O110: =VLOOKUP(E110,'LLEGADA PAIS NACIONALIDAD TOTAL'!$D$14:$X$238,21,0) -> 5 | P110: =VLOOKUP(E110,'LLEGADA PAIS NACIONALIDAD TOTAL'!$D$14:$Z$238,23,0) -> 2 | Q110: =VLOOKUP(E110,'LLEGADA PAIS NACIONALIDAD TOTAL'!$D$14:$AB$238,25,0) -> 56 | R110: 76 | T110: 0.005562594189
D111: 99 | E111: AZERBAIYAN | F111: 10 | G111: 0 | H111: 9 | I111: 8 | J111: 8 | K111: 11 | L111: 2 | M111: 5 | N111: 2 | O111: =VLOOKUP(E111,'LLEGADA PAIS NACIONALIDAD TOTAL'!$D$14:$X$238,21,0) -> 4 | P111: =VLOOKUP(E111,'LLEGADA PAIS NACIONALIDAD TOTAL'!$D$14:$Z$238,23,0) -> 14 | Q111: =VLOOKUP(E111,'LLEGADA PAIS NACIONALIDAD TOTAL'!$D$14:$AB$238,25,0) -> 1 | R111: 74 | T111: 0.005416210131
D112: 100 | E112: GHANA | F112: 8 | G112: 3 | H112: 6 | I112: 2 | J112: 4 | K112: 4 | L112: 11 | M112: 11 | N112: 6 | O112: =VLOOKUP(E112,'LLEGADA PAIS NACIONALIDAD TOTAL'!$D$14:$X$238,21,0) -> 7 | P112: =VLOOKUP(E112,'LLEGADA PAIS NACIONALIDAD TOTAL'!$D$14:$Z$238,23,0) -> 7 | Q112: =VLOOKUP(E112,'LLEGADA PAIS NACIONALIDAD TOTAL'!$D$14:$AB$238,25,0) -> 5 | R112: 74 | T112: 0.005416210131
D113: 101 | E113: GUYANA | F113: 3 | G113: 10 | H113: 4 | I113: 7 | J113: 5 | K113: 6 | L113: 5 | M113: 5 | N113: 2 | O113: =VLOOKUP(E113,'LLEGADA PAIS NACIONALIDAD TOTAL'!$D$14:$X$238,21,0) -> 3 | P113: =VLOOKUP(E113,'LLEGADA PAIS NACIONALIDAD TOTAL'!$D$14:$Z$238,23,0) -> 5 | Q113: =VLOOKUP(E113,'LLEGADA PAIS NACIONALIDAD TOTAL'!$D$14:$AB$238,25,0) -> 16 | R113: 71 | T113: 0.005196634045
D114: 102 | E114: BELICE | F114: 3 | G114: 1 | H114: 0 | I114: 6 | J114: 4 | K114: 8 | L114: 10 | M114: 7 | N114: 4 | O114: =VLOOKUP(E114,'LLEGADA PAIS NACIONALIDAD TOTAL'!$D$14:$X$238,21,0) -> 6 | P114: =VLOOKUP(E114,'LLEGADA PAIS NACIONALIDAD TOTAL'!$D$14:$Z$238,23,0) -> 4 | Q114: =VLOOKUP(E114,'LLEGADA PAIS NACIONALIDAD TOTAL'!$D$14:$AB$238,25,0) -> 2 | R114: 55 | T114: 0.004025561584
D115: 103 | E115: GEORGIA | F115: 3 | G115: 3 | H115: 5 | I115: 4 | J115: 14 | K115: 2 | L115: 4 | M115: 4 | N115: 6 | O115: =VLOOKUP(E115,'LLEGADA PAIS NACIONALIDAD TOTAL'!$D$14:$X$238,21,0) -> 3 | P115: =VLOOKUP(E115,'LLEGADA PAIS NACIONALIDAD TOTAL'!$D$14:$Z$238,23,0) -> 4 | Q115: =VLOOKUP(E115,'LLEGADA PAIS NACIONALIDAD TOTAL'!$D$14:$AB$238,25,0) -> 3 | R115: 55 | T115: 0.004025561584
D116: 104 | E116: TÚNEZ | F116: 2 | G116: 4 | H116: 4 | I116: 1 | J116: 2 | K116: 4 | L116: 8 | M116: 5 | N116: 4 | O116: =VLOOKUP(E116,'LLEGADA PAIS NACIONALIDAD TOTAL'!$D$14:$X$238,21,0) -> 3 | P116: =VLOOKUP(E116,'LLEGADA PAIS NACIONALIDAD TOTAL'!$D$14:$Z$238,23,0) -> 3 | Q116: =VLOOKUP(E116,'LLEGADA PAIS NACIONALIDAD TOTAL'!$D$14:$AB$238,25,0) -> 10 | R116: 50 | T116: 0.00365960144
D117: 105 | E117: SIERRA LEONA | F117: 4 | G117: 3 | H117: 8 | I117: 4 | J117: 5 | K117: 5 | L117: 4 | M117: 4 | N117: 1 | O117: =VLOOKUP(E117,'LLEGADA PAIS NACIONALIDAD TOTAL'!$D$14:$X$238,21,0) -> 5 | P117: =VLOOKUP(E117,'LLEGADA PAIS NACIONALIDAD TOTAL'!$D$14:$Z$238,23,0) -> 0 | Q117: =VLOOKUP(E117,'LLEGADA PAIS NACIONALIDAD TOTAL'!$D$14:$AB$238,25,0) -> 2 | R117: 45 | T117: 0.003293641296
D118: 106 | E118: KENIA | F118: 4 | G118: 1 | H118: 6 | I118: 10 | J118: 6 | K118: 3 | L118: 0 | M118: 1 | N118: 2 | O118: =VLOOKUP(E118,'LLEGADA PAIS NACIONALIDAD TOTAL'!$D$14:$X$238,21,0) -> 4 | P118: =VLOOKUP(E118,'LLEGADA PAIS NACIONALIDAD TOTAL'!$D$14:$Z$238,23,0) -> 1 | Q118: =VLOOKUP(E118,'LLEGADA PAIS NACIONALIDAD TOTAL'!$D$14:$AB$238,25,0) -> 5 | R118: 43 | T118: 0.003147257239
D119: 107 | E119: UGANDA | F119: 0 | G119: 2 | H119: 17 | I119: 1 | J119: 2 | K119: 4 | L119: 3 | M119: 1 | N119: 5 | O119: =VLOOKUP(E119,'LLEGADA PAIS NACIONALIDAD TOTAL'!$D$14:$X$238,21,0) -> 2 | P119: =VLOOKUP(E119,'LLEGADA PAIS NACIONALIDAD TOTAL'!$D$14:$Z$238,23,0) -> 3 | Q119: =VLOOKUP(E119,'LLEGADA PAIS NACIONALIDAD TOTAL'!$D$14:$AB$238,25,0) -> 2 | R119: 42 | T119: 0.00307406521
D120: 108 | E120: CABO VERDE | F120: 6 | G120: 4 | H120: 1 | I120: 2 | J120: 4 | K120: 3 | L120: 3 | M120: 4 | N120: 3 | O120: =VLOOKUP(E120,'LLEGADA PAIS NACIONALIDAD TOTAL'!$D$14:$X$238,21,0) -> 4 | P120: =VLOOKUP(E120,'LLEGADA PAIS NACIONALIDAD TOTAL'!$D$14:$Z$238,23,0) -> 6 | Q120: =VLOOKUP(E120,'LLEGADA PAIS NACIONALIDAD TOTAL'!$D$14:$AB$238,25,0) -> 2 | R120: 42 | T120: 0.00307406521
D121: 109 | E121: PAÍSES BAJOS (LOS) | F121: 0 | G121: 3 | H121: 5 | I121: 5 | J121: 4 | K121: 1 | L121: 2 | M121: 2 | N121: 6 | O121: =VLOOKUP(E121,'LLEGADA PAIS NACIONALIDAD TOTAL'!$D$14:$X$238,21,0) -> 3 | P121: =VLOOKUP(E121,'LLEGADA PAIS NACIONALIDAD TOTAL'!$D$14:$Z$238,23,0) -> 6 | Q121: =VLOOKUP(E121,'LLEGADA PAIS NACIONALIDAD TOTAL'!$D$14:$AB$238,25,0) -> 4 | R121: 41 | T121: 0.003000873181
D122: 110 | E122: CONGO | F122: 1 | G122: 1 | H122: 15 | I122: 0 | J122: 0 | K122: 4 | L122: 2 | M122: 5 | N122: 1 | O122: =VLOOKUP(E122,'LLEGADA PAIS NACIONALIDAD TOTAL'!$D$14:$X$238,21,0) -> 3 | P122: =VLOOKUP(E122,'LLEGADA PAIS NACIONALIDAD TOTAL'!$D$14:$Z$238,23,0) -> 1 | Q122: =VLOOKUP(E122,'LLEGADA PAIS NACIONALIDAD TOTAL'!$D$14:$AB$238,25,0) -> 7 | R122: 40 | T122: 0.002927681152
D123: 111 | E123: ZIMBABWE | F123: 1 | G123: 2 | H123: 16 | I123: 1 | J123: 3 | K123: 3 | L123: 4 | M123: 1 | N123: 2 | O123: =VLOOKUP(E123,'LLEGADA PAIS NACIONALIDAD TOTAL'!$D$14:$X$238,21,0) -> 4 | P123: =VLOOKUP(E123,'LLEGADA PAIS NACIONALIDAD TOTAL'!$D$14:$Z$238,23,0) -> 1 | Q123: =VLOOKUP(E123,'LLEGADA PAIS NACIONALIDAD TOTAL'!$D$14:$AB$238,25,0) -> 1 | R123: 39 | T123: 0.002854489123
D124: 112 | E124: CHIPRE | F124: 1 | G124: 3 | H124: 2 | I124: 3 | J124: 1 | K124: 2 | L124: 1 | M124: 4 | N124: 3 | O124: =VLOOKUP(E124,'LLEGADA PAIS NACIONALIDAD TOTAL'!$D$14:$X$238,21,0) -> 3 | P124: =VLOOKUP(E124,'LLEGADA PAIS NACIONALIDAD TOTAL'!$D$14:$Z$238,23,0) -> 4 | Q124: =VLOOKUP(E124,'LLEGADA PAIS NACIONALIDAD TOTAL'!$D$14:$AB$238,25,0) -> 10 | R124: 37 | T124: 0.002708105066
D125: 113 | E125: BANGLADESH | F125: 1 | G125: 1 | H125: 18 | I125: 2 | J125: 1 | K125: 1 | L125: 1 | M125: 3 | N125: 1 | O125: =VLOOKUP(E125,'LLEGADA PAIS NACIONALIDAD TOTAL'!$D$14:$X$238,21,0) -> 4 | P125: =VLOOKUP(E125,'LLEGADA PAIS NACIONALIDAD TOTAL'!$D$14:$Z$238,23,0) -> 3 | Q125: =VLOOKUP(E125,'LLEGADA PAIS NACIONALIDAD TOTAL'!$D$14:$AB$238,25,0) -> 0 | R125: 36 | T125: 0.002634913037
D126: 114 | E126: MALTA | F126: 7 | G126: 0 | H126: 3 | I126: 2 | J126: 2 | K126: 6 | L126: 1 | M126: 4 | N126: 4 | O126: =VLOOKUP(E126,'LLEGADA PAIS NACIONALIDAD TOTAL'!$D$14:$X$238,21,0) -> 2 | P126: =VLOOKUP(E126,'LLEGADA PAIS NACIONALIDAD TOTAL'!$D$14:$Z$238,23,0) -> 4 | Q126: =VLOOKUP(E126,'LLEGADA PAIS NACIONALIDAD TOTAL'!$D$14:$AB$238,25,0) -> 1 | R126: 36 | T126: 0.002634913037
D127: 115 | E127: GUINEA | F127: 5 | G127: 4 | H127: 10 | I127: 3 | J127: 4 | K127: 0 | L127: 1 | M127: 1 | N127: 1 | O127: =VLOOKUP(E127,'LLEGADA PAIS NACIONALIDAD TOTAL'!$D$14:$X$238,21,0) -> 3 | P127: =VLOOKUP(E127,'LLEGADA PAIS NACIONALIDAD TOTAL'!$D$14:$Z$238,23,0) -> 2 | Q127: =VLOOKUP(E127,'LLEGADA PAIS NACIONALIDAD TOTAL'!$D$14:$AB$238,25,0) -> 1 | R127: 35 | T127: 0.002561721008
D128: 116 | E128: SAHARA OCCIDENTAL | F128: 2 | G128: 0 | H128: 0 | I128: 4 | J128: 4 | K128: 1 | L128: 2 | M128: 0 | N128: 0 | O128: =VLOOKUP(E128,'LLEGADA PAIS NACIONALIDAD TOTAL'!$D$14:$X$238,21,0) -> 0 | P128: =VLOOKUP(E128,'LLEGADA PAIS NACIONALIDAD TOTAL'!$D$14:$Z$238,23,0) -> 1 | Q128: =VLOOKUP(E128,'LLEGADA PAIS NACIONALIDAD TOTAL'!$D$14:$AB$238,25,0) -> 21 | R128: 35 | T128: 0.002561721008
D129: 117 | E129: BARBADOS | F129: 2 | G129: 1 | H129: 0 | I129: 10 | J129: 2 | K129: 3 | L129: 4 | M129: 3 | N129: 3 | O129: =VLOOKUP(E129,'LLEGADA PAIS NACIONALIDAD TOTAL'!$D$14:$X$238,21,0) -> 0 | P129: =VLOOKUP(E129,'LLEGADA PAIS NACIONALIDAD TOTAL'!$D$14:$Z$238,23,0) -> 3 | Q129: =VLOOKUP(E129,'LLEGADA PAIS NACIONALIDAD TOTAL'!$D$14:$AB$238,25,0) -> 3 | R129: 34 | T129: 0.002488528979
D130: 118 | E130: YEMEN ARABE | F130: 3 | G130: 1 | H130: 4 | I130: 5 | J130: 2 | K130: 3 | L130: 2 | M130: 2 | N130: 2 | O130: =VLOOKUP(E130,'LLEGADA PAIS NACIONALIDAD TOTAL'!$D$14:$X$238,21,0) -> 1 | P130: =VLOOKUP(E130,'LLEGADA PAIS NACIONALIDAD TOTAL'!$D$14:$Z$238,23,0) -> 3 | Q130: =VLOOKUP(E130,'LLEGADA PAIS NACIONALIDAD TOTAL'!$D$14:$AB$238,25,0) -> 5 | R130: 33 | T130: 0.00241533695
D131: 119 | E131: YEMEN POPULAR | F131: 3 | G131: 1 | H131: 4 | I131: 5 | J131: 2 | K131: 3 | L131: 2 | M131: 2 | N131: 2 | O131: =VLOOKUP(E131,'LLEGADA PAIS NACIONALIDAD TOTAL'!$D$14:$X$238,21,0) -> 1 | P131: =VLOOKUP(E131,'LLEGADA PAIS NACIONALIDAD TOTAL'!$D$14:$Z$238,23,0) -> 3 | Q131: =VLOOKUP(E131,'LLEGADA PAIS NACIONALIDAD TOTAL'!$D$14:$AB$238,25,0) -> 5 | R131: 33 | T131: 0.00241533695
D132: 120 | E132: DOMINICA | F132: 2 | G132: 4 | H132: 2 | I132: 6 | J132: 6 | K132: 4 | L132: 2 | M132: 2 | N132: 0 | O132: =VLOOKUP(E132,'LLEGADA PAIS NACIONALIDAD TOTAL'!$D$14:$X$238,21,0) -> 0 | P132: =VLOOKUP(E132,'LLEGADA PAIS NACIONALIDAD TOTAL'!$D$14:$Z$238,23,0) -> 2 | Q132: =VLOOKUP(E132,'LLEGADA PAIS NACIONALIDAD TOTAL'!$D$14:$AB$238,25,0) -> 1 | R132: 31 | T132: 0.002268952893
D133: 121 | E133: EMIRATOS A. UNIDOS | F133: 0 | G133: 2 | H133: 11 | I133: 1 | J133: 5 | K133: 3 | L133: 1 | M133: 0 | N133: 4 | O133: =VLOOKUP(E133,'LLEGADA PAIS NACIONALIDAD TOTAL'!$D$14:$X$238,21,0) -> 1 | P133: =VLOOKUP(E133,'LLEGADA PAIS NACIONALIDAD TOTAL'!$D$14:$Z$238,23,0) -> 0 | Q133: =VLOOKUP(E133,'LLEGADA PAIS NACIONALIDAD TOTAL'!$D$14:$AB$238,25,0) -> 3 | R133: 31 | T133: 0.002268952893
D134: 122 | E134: BERMUDAS | F134: 5 | G134: 3 | H134: 0 | I134: 2 | J134: 0 | K134: 6 | L134: 6 | M134: 2 | N134: 1 | O134: =VLOOKUP(E134,'LLEGADA PAIS NACIONALIDAD TOTAL'!$D$14:$X$238,21,0) -> 1 | P134: =VLOOKUP(E134,'LLEGADA PAIS NACIONALIDAD TOTAL'!$D$14:$Z$238,23,0) -> 2 | Q134: =VLOOKUP(E134,'LLEGADA PAIS NACIONALIDAD TOTAL'!$D$14:$AB$238,25,0) -> 3 | R134: 31 | T134: 0.002268952893
D135: 123 | E135: ANDORRA | F135: 5 | G135: 3 | H135: 6 | I135: 1 | J135: 3 | K135: 1 | L135: 3 | M135: 1 | N135: 3 | O135: =VLOOKUP(E135,'LLEGADA PAIS NACIONALIDAD TOTAL'!$D$14:$X$238,21,0) -> 2 | P135: =VLOOKUP(E135,'LLEGADA PAIS NACIONALIDAD TOTAL'!$D$14:$Z$238,23,0) -> 2 | Q135: =VLOOKUP(E135,'LLEGADA PAIS NACIONALIDAD TOTAL'!$D$14:$AB$238,25,0) -> 0 | R135: 30 | T135: 0.002195760864
D136: 124 | E136: IRAK | F136: 2 | G136: 0 | H136: 12 | I136: 0 | J136: 6 | K136: 1 | L136: 0 | M136: 3 | N136: 0 | O136: =VLOOKUP(E136,'LLEGADA PAIS NACIONALIDAD TOTAL'!$D$14:$X$238,21,0) -> 0 | P136: =VLOOKUP(E136,'LLEGADA PAIS NACIONALIDAD TOTAL'!$D$14:$Z$238,23,0) -> 2 | Q136: =VLOOKUP(E136,'LLEGADA PAIS NACIONALIDAD TOTAL'!$D$14:$AB$238,25,0) -> 2 | R136: 28 | T136: 0.002049376806
D137: 125 | E137: REPÚBLICA ESLOVACA/ESLOVAQUIA | F137: 2 | G137: 5 | H137: 2 | I137: 1 | J137: 0 | K137: 3 | L137: 1 | M137: 4 | N137: 1 | O137: =VLOOKUP(E137,'LLEGADA PAIS NACIONALIDAD TOTAL'!$D$14:$X$238,21,0) -> 3 | P137: =VLOOKUP(E137,'LLEGADA PAIS NACIONALIDAD TOTAL'!$D$14:$Z$238,23,0) -> 4 | Q137: =VLOOKUP(E137,'LLEGADA PAIS NACIONALIDAD TOTAL'!$D$14:$AB$238,25,0) -> 1 | R137: 27 | T137: 0.001976184778
D138: 126 | E138: BOSNIA HERZEGOVINA | F138: 2 | G138: 2 | H138: 8 | I138: 3 | J138: 3 | K138: 0 | L138: 1 | M138: 1 | N138: 3 | O138: =VLOOKUP(E138,'LLEGADA PAIS NACIONALIDAD TOTAL'!$D$14:$X$238,21,0) -> 1 | P138: =VLOOKUP(E138,'LLEGADA PAIS NACIONALIDAD TOTAL'!$D$14:$Z$238,23,0) -> 1 | Q138: =VLOOKUP(E138,'LLEGADA PAIS NACIONALIDAD TOTAL'!$D$14:$AB$238,25,0) -> 2 | R138: 27 | T138: 0.001976184778
D139: 127 | E139: MOLDOVA | F139: 2 | G139: 2 | H139: 1 | I139: 1 | J139: 2 | K139: 2 | L139: 3 | M139: 4 | N139: 4 | O139: =VLOOKUP(E139,'LLEGADA PAIS NACIONALIDAD TOTAL'!$D$14:$X$238,21,0) -> 2 | P139: =VLOOKUP(E139,'LLEGADA PAIS NACIONALIDAD TOTAL'!$D$14:$Z$238,23,0) -> 1 | Q139: =VLOOKUP(E139,'LLEGADA PAIS NACIONALIDAD TOTAL'!$D$14:$AB$238,25,0) -> 2 | R139: 26 | T139: 0.001902992749
D140: 128 | E140: AFGANISTAN | F140: 0 | G140: 3 | H140: 16 | I140: 0 | J140: 0 | K140: 0 | L140: 0 | M140: 0 | N140: 1 | O140: =VLOOKUP(E140,'LLEGADA PAIS NACIONALIDAD TOTAL'!$D$14:$X$238,21,0) -> 5 | P140: =VLOOKUP(E140,'LLEGADA PAIS NACIONALIDAD TOTAL'!$D$14:$Z$238,23,0) -> 0 | Q140: =VLOOKUP(E140,'LLEGADA PAIS NACIONALIDAD TOTAL'!$D$14:$AB$238,25,0) -> 0 | R140: 25 | T140: 0.00182980072
D141: 129 | E141: BENIN | F141: 1 | G141: 0 | H141: 11 | I141: 4 | J141: 2 | K141: 3 | L141: 0 | M141: 0 | N141: 0 | O141: =VLOOKUP(E141,'LLEGADA PAIS NACIONALIDAD TOTAL'!$D$14:$X$238,21,0) -> 1 | P141: =VLOOKUP(E141,'LLEGADA PAIS NACIONALIDAD TOTAL'!$D$14:$Z$238,23,0) -> 2 | Q141: =VLOOKUP(E141,'LLEGADA PAIS NACIONALIDAD TOTAL'!$D$14:$AB$238,25,0) -> 1 | R141: 25 | T141: 0.00182980072
D142: 130 | E142: CURAZAO | F142: 1 | G142: 0 | H142: 1 | I142: 4 | J142: 0 | K142: 2 | L142: 6 | M142: 4 | N142: 0 | O142: =VLOOKUP(E142,'LLEGADA PAIS NACIONALIDAD TOTAL'!$D$14:$X$238,21,0) -> 4 | P142: =VLOOKUP(E142,'LLEGADA PAIS NACIONALIDAD TOTAL'!$D$14:$Z$238,23,0) -> 1 | Q142: =VLOOKUP(E142,'LLEGADA PAIS NACIONALIDAD TOTAL'!$D$14:$AB$238,25,0) -> 1 | R142: 24 | T142: 0.001756608691
D143: 131 | E143: COSTA DE MARFIL | F143: 0 | G143: 0 | H143: 6 | I143: 2 | J143: 0 | K143: 1 | L143: 2 | M143: 1 | N143: 2 | O143: =VLOOKUP(E143,'LLEGADA PAIS NACIONALIDAD TOTAL'!$D$14:$X$238,21,0) -> 4 | P143: =VLOOKUP(E143,'LLEGADA PAIS NACIONALIDAD TOTAL'!$D$14:$Z$238,23,0) -> 3 | Q143: =VLOOKUP(E143,'LLEGADA PAIS NACIONALIDAD TOTAL'!$D$14:$AB$238,25,0) -> 1 | R143: 22 | T143: 0.001610224634
D144: 132 | E144: ARMENIA | F144: 4 | G144: 0 | H144: 4 | I144: 1 | J144: 3 | K144: 1 | L144: 0 | M144: 0 | N144: 4 | O144: =VLOOKUP(E144,'LLEGADA PAIS NACIONALIDAD TOTAL'!$D$14:$X$238,21,0) -> 4 | P144: =VLOOKUP(E144,'LLEGADA PAIS NACIONALIDAD TOTAL'!$D$14:$Z$238,23,0) -> 0 | Q144: =VLOOKUP(E144,'LLEGADA PAIS NACIONALIDAD TOTAL'!$D$14:$AB$238,25,0) -> 0 | R144: 21 | T144: 0.001537032605
D145: 133 | E145: LIECHTENSTEIN | F145: 3 | G145: 0 | H145: 1 | I145: 1 | J145: 1 | K145: 0 | L145: 2 | M145: 3 | N145: 2 | O145: =VLOOKUP(E145,'LLEGADA PAIS NACIONALIDAD TOTAL'!$D$14:$X$238,21,0) -> 1 | P145: =VLOOKUP(E145,'LLEGADA PAIS NACIONALIDAD TOTAL'!$D$14:$Z$238,23,0) -> 3 | Q145: =VLOOKUP(E145,'LLEGADA PAIS NACIONALIDAD TOTAL'!$D$14:$AB$238,25,0) -> 4 | R145: 21 | T145: 0.001537032605
D146: 134 | E146: CHAD | F146: 3 | G146: 5 | H146: 7 | I146: 0 | J146: 1 | K146: 0 | L146: 1 | M146: 1 | N146: 0 | O146: =VLOOKUP(E146,'LLEGADA PAIS NACIONALIDAD TOTAL'!$D$14:$X$238,21,0) -> 0 | P146: =VLOOKUP(E146,'LLEGADA PAIS NACIONALIDAD TOTAL'!$D$14:$Z$238,23,0) -> 2 | Q146: =VLOOKUP(E146,'LLEGADA PAIS NACIONALIDAD TOTAL'!$D$14:$AB$238,25,0) -> 0 | R146: 20 | T146: 0.001463840576
D147: 135 | E147: NEPAL | F147: 0 | G147: 1 | H147: 4 | I147: 2 | J147: 2 | K147: 1 | L147: 2 | M147: 1 | N147: 2 | O147: =VLOOKUP(E147,'LLEGADA PAIS NACIONALIDAD TOTAL'!$D$14:$X$238,21,0) -> 3 | P147: =VLOOKUP(E147,'LLEGADA PAIS NACIONALIDAD TOTAL'!$D$14:$Z$238,23,0) -> 0 | Q147: =VLOOKUP(E147,'LLEGADA PAIS NACIONALIDAD TOTAL'!$D$14:$AB$238,25,0) -> 2 | R147: 20 | T147: 0.001463840576
D148: 136 | E148: ETIOPIA | F148: 1 | G148: 0 | H148: 8 | I148: 2 | J148: 2 | K148: 2 | L148: 1 | M148: 0 | N148: 0 | O148: =VLOOKUP(E148,'LLEGADA PAIS NACIONALIDAD TOTAL'!$D$14:$X$238,21,0) -> 0 | P148: =VLOOKUP(E148,'LLEGADA PAIS NACIONALIDAD TOTAL'!$D$14:$Z$238,23,0) -> 0 | Q148: =VLOOKUP(E148,'LLEGADA PAIS NACIONALIDAD TOTAL'!$D$14:$AB$238,25,0) -> 4 | R148: 20 | T148: 0.001463840576
D149: 137 | E149: GABON | F149: 0 | G149: 0 | H149: 12 | I149: 0 | J149: 1 | K149: 0 | L149: 4 | M149: 0 | N149: 0 | O149: =VLOOKUP(E149,'LLEGADA PAIS NACIONALIDAD TOTAL'!$D$14:$X$238,21,0) -> 0 | P149: =VLOOKUP(E149,'LLEGADA PAIS NACIONALIDAD TOTAL'!$D$14:$Z$238,23,0) -> 1 | Q149: =VLOOKUP(E149,'LLEGADA PAIS NACIONALIDAD TOTAL'!$D$14:$AB$238,25,0) -> 0 | R149: 18 | T149: 0.001317456518
D150: 138 | E150: NUEVA CALEDONIA | F150: 2 | G150: 1 | H150: 5 | I150: 2 | J150: 1 | K150: 0 | L150: 1 | M150: 1 | N150: 3 | O150: =VLOOKUP(E150,'LLEGADA PAIS NACIONALIDAD TOTAL'!$D$14:$X$238,21,0) -> 1 | P150: =VLOOKUP(E150,'LLEGADA PAIS NACIONALIDAD TOTAL'!$D$14:$Z$238,23,0) -> 0 | Q150: =VLOOKUP(E150,'LLEGADA PAIS NACIONALIDAD TOTAL'!$D$14:$AB$238,25,0) -> 1 | R150: 18 | T150: 0.001317456518
D151: 139 | E151: IRAN | F151: 0 | G151: 1 | H151: 1 | I151: 0 | J151: 0 | K151: 0 | L151: 0 | M151: 1 | N151: 0 | O151: =VLOOKUP(E151,'LLEGADA PAIS NACIONALIDAD TOTAL'!$D$14:$X$238,21,0) -> 0 | P151: =VLOOKUP(E151,'LLEGADA PAIS NACIONALIDAD TOTAL'!$D$14:$Z$238,23,0) -> 14 | Q151: =VLOOKUP(E151,'LLEGADA PAIS NACIONALIDAD TOTAL'!$D$14:$AB$238,25,0) -> 1 | R151: 18 | T151: 0.001317456518
D152: 140 | E152: ZAMBIA | F152: 0 | G152: 0 | H152: 12 | I152: 0 | J152: 1 | K152: 1 | L152: 2 | M152: 0 | N152: 0 | O152: =VLOOKUP(E152,'LLEGADA PAIS NACIONALIDAD TOTAL'!$D$14:$X$238,21,0) -> 0 | P152: =VLOOKUP(E152,'LLEGADA PAIS NACIONALIDAD TOTAL'!$D$14:$Z$238,23,0) -> 0 | Q152: =VLOOKUP(E152,'LLEGADA PAIS NACIONALIDAD TOTAL'!$D$14:$AB$238,25,0) -> 1 | R152: 17 | T152: 0.00124426449
D153: 141 | E153: MADAGASCAR | F153: 1 | G153: 4 | H153: 1 | I153: 4 | J153: 2 | K153: 1 | L153: 0 | M153: 1 | N153: 1 | O153: =VLOOKUP(E153,'LLEGADA PAIS NACIONALIDAD TOTAL'!$D$14:$X$238,21,0) -> 0 | P153: =VLOOKUP(E153,'LLEGADA PAIS NACIONALIDAD TOTAL'!$D$14:$Z$238,23,0) -> 0 | Q153: =VLOOKUP(E153,'LLEGADA PAIS NACIONALIDAD TOTAL'!$D$14:$AB$238,25,0) -> 1 | R153: 16 | T153: 0.001171072461
D154: 142 | E154: SIRIA | F154: 0 | G154: 5 | H154: 2 | I154: 0 | J154: 4 | K154: 0 | L154: 0 | M154: 1 | N154: 0 | O154: =VLOOKUP(E154,'LLEGADA PAIS NACIONALIDAD TOTAL'!$D$14:$X$238,21,0) -> 0 | P154: =VLOOKUP(E154,'LLEGADA PAIS NACIONALIDAD TOTAL'!$D$14:$Z$238,23,0) -> 3 | Q154: =VLOOKUP(E154,'LLEGADA PAIS NACIONALIDAD TOTAL'!$D$14:$AB$238,25,0) -> 1 | R154: 16 | T154: 0.001171072461
D155: 143 | E155: MONGOLIA | F155: 1 | G155: 0 | H155: 7 | I155: 0 | J155: 0 | K155: 2 | L155: 1 | M155: 0 | N155: 0 | O155: =VLOOKUP(E155,'LLEGADA PAIS NACIONALIDAD TOTAL'!$D$14:$X$238,21,0) -> 1 | P155: =VLOOKUP(E155,'LLEGADA PAIS NACIONALIDAD TOTAL'!$D$14:$Z$238,23,0) -> 2 | Q155: =VLOOKUP(E155,'LLEGADA PAIS NACIONALIDAD TOTAL'!$D$14:$AB$238,25,0) -> 1 | R155: 15 | T155: 0.001097880432
D156: 144 | E156: UZBEKISTAN | F156: 0 | G156: 1 | H156: 2 | I156: 3 | J156: 0 | K156: 1 | L156: 0 | M156: 0 | N156: 0 | O156: =VLOOKUP(E156,'LLEGADA PAIS NACIONALIDAD TOTAL'!$D$14:$X$238,21,0) -> 0 | P156: =VLOOKUP(E156,'LLEGADA PAIS NACIONALIDAD TOTAL'!$D$14:$Z$238,23,0) -> 0 | Q156: =VLOOKUP(E156,'LLEGADA PAIS NACIONALIDAD TOTAL'!$D$14:$AB$238,25,0) -> 8 | R156: 15 | T156: 0.001097880432
D157: 145 | E157: GRANADA | F157: 1 | G157: 1 | H157: 0 | I157: 4 | J157: 1 | K157: 1 | L157: 2 | M157: 0 | N157: 0 | O157: =VLOOKUP(E157,'LLEGADA PAIS NACIONALIDAD TOTAL'!$D$14:$X$238,21,0) -> 4 | P157: =VLOOKUP(E157,'LLEGADA PAIS NACIONALIDAD TOTAL'!$D$14:$Z$238,23,0) -> 0 | Q157: =VLOOKUP(E157,'LLEGADA PAIS NACIONALIDAD TOTAL'!$D$14:$AB$238,25,0) -> 0 | R157: 14 | T157: 0.001024688403
D158: 146 | E158: BURKINA FASO | F158: 0 | G158: 0 | H158: 11 | I158: 0 | J158: 0 | K158: 1 | L158: 1 | M158: 0 | N158: 0 | O158: =VLOOKUP(E158,'LLEGADA PAIS NACIONALIDAD TOTAL'!$D$14:$X$238,21,0) -> 0 | P158: 1 | Q158: =VLOOKUP(E158,'LLEGADA PAIS NACIONALIDAD TOTAL'!$D$14:$AB$238,25,0) -> 0 | R158: 14 | T158: 0.001024688403
D159: 147 | E159: OMAN | F159: 0 | G159: 0 | H159: 7 | I159: 0 | J159: 1 | K159: 0 | L159: 0 | M159: 4 | N159: 0 | O159: =VLOOKUP(E159,'LLEGADA PAIS NACIONALIDAD TOTAL'!$D$14:$X$238,21,0) -> 0 | P159: =VLOOKUP(E159,'LLEGADA PAIS NACIONALIDAD TOTAL'!$D$14:$Z$238,23,0) -> 1 | Q159: =VLOOKUP(E159,'LLEGADA PAIS NACIONALIDAD TOTAL'!$D$14:$AB$238,25,0) -> 1 | R159: 14 | T159: 0.001024688403
D160: 148 | E160: MAURICIO | F160: 0 | G160: 1 | H160: 0 | I160: 2 | J160: 0 | K160: 1 | L160: 1 | M160: 5 | N160: 2 | O160: =VLOOKUP(E160,'LLEGADA PAIS NACIONALIDAD TOTAL'!$D$14:$X$238,21,0) -> 0 | P160: =VLOOKUP(E160,'LLEGADA PAIS NACIONALIDAD TOTAL'!$D$14:$Z$238,23,0) -> 1 | Q160: =VLOOKUP(E160,'LLEGADA PAIS NACIONALIDAD TOTAL'!$D$14:$AB$238,25,0) -> 0 | R160: 13 | T160: 0.0009514963744
D161: 149 | E161: CAMBOYA | F161: 1 | G161: 0 | H161: 9 | I161: 0 | J161: 0 | K161: 1 | L161: 0 | M161: 0 | N161: 0 | O161: =VLOOKUP(E161,'LLEGADA PAIS NACIONALIDAD TOTAL'!$D$14:$X$238,21,0) -> 1 | P161: =VLOOKUP(E161,'LLEGADA PAIS NACIONALIDAD TOTAL'!$D$14:$Z$238,23,0) -> 0 | Q161: =VLOOKUP(E161,'LLEGADA PAIS NACIONALIDAD TOTAL'!$D$14:$AB$238,25,0) -> 1 | R161: 13 | T161: 0.0009514963744
D162: 150 | E162: ANTIGUA BARBUDA | F162: 0 | G162: 1 | H162: 0 | I162: 4 | J162: 3 | K162: 1 | L162: 3 | M162: 0 | N162: 0 | O162: =VLOOKUP(E162,'LLEGADA PAIS NACIONALIDAD TOTAL'!$D$14:$X$238,21,0) -> 0 | P162: =VLOOKUP(E162,'LLEGADA PAIS NACIONALIDAD TOTAL'!$D$14:$Z$238,23,0) -> 0 | Q162: =VLOOKUP(E162,'LLEGADA PAIS NACIONALIDAD TOTAL'!$D$14:$AB$238,25,0) -> 0 | R162: =SUM(F162:Q162) -> 12 | T162: =+R162/R$232*100 -> 0.0008783043456
D163: 151 | E163: SUDÁN | F163: 0 | G163: 0 | H163: 7 | I163: 1 | J163: 0 | K163: 2 | L163: 1 | M163: 1 | N163: 0 | O163: =VLOOKUP(E163,'LLEGADA PAIS NACIONALIDAD TOTAL'!$D$14:$X$238,21,0) -> 0 | P163: =VLOOKUP(E163,'LLEGADA PAIS NACIONALIDAD TOTAL'!$D$14:$Z$238,23,0) -> 0 | Q163: =VLOOKUP(E163,'LLEGADA PAIS NACIONALIDAD TOTAL'!$D$14:$AB$238,25,0) -> 0 | R163: 12 | T163: 0.0008783043456
D164: 152 | E164: GUADALUPE | F164: 1 | G164: 2 | H164: 1 | I164: 1 | J164: 1 | K164: 0 | L164: 2 | M164: 0 | N164: 2 | O164: =VLOOKUP(E164,'LLEGADA PAIS NACIONALIDAD TOTAL'!$D$14:$X$238,21,0) -> 1 | P164: =VLOOKUP(E164,'LLEGADA PAIS NACIONALIDAD TOTAL'!$D$14:$Z$238,23,0) -> 1 | Q164: =VLOOKUP(E164,'LLEGADA PAIS NACIONALIDAD TOTAL'!$D$14:$AB$238,25,0) -> 0 | R164: 12 | T164: 0.0008783043456
D165: 153 | E165: MALDIVAS | F165: 0 | G165: 0 | H165: 9 | I165: 0 | J165: 2 | K165: 0 | L165: 0 | M165: 0 | N165: 0 | O165: =VLOOKUP(E165,'LLEGADA PAIS NACIONALIDAD TOTAL'!$D$14:$X$238,21,0) -> 0 | P165: =VLOOKUP(E165,'LLEGADA PAIS NACIONALIDAD TOTAL'!$D$14:$Z$238,23,0) -> 0 | Q165: =VLOOKUP(E165,'LLEGADA PAIS NACIONALIDAD TOTAL'!$D$14:$AB$238,25,0) -> 1 | R165: 12 | T165: 0.0008783043456
D166: 154 | E166: SANTA LUCÍA | F166: 0 | G166: 3 | H166: 0 | I166: 2 | J166: 0 | K166: 1 | L166: 2 | M166: 1 | N166: 0 | O166: =VLOOKUP(E166,'LLEGADA PAIS NACIONALIDAD TOTAL'!$D$14:$X$238,21,0) -> 0 | P166: =VLOOKUP(E166,'LLEGADA PAIS NACIONALIDAD TOTAL'!$D$14:$Z$238,23,0) -> 0 | Q166: =VLOOKUP(E166,'LLEGADA PAIS NACIONALIDAD TOTAL'!$D$14:$AB$238,25,0) -> 3 | R166: 12 | T166: 0.0008783043456
D167: 155 | E167: SAN MARINO | F167: 0 | G167: 0 | H167: 4 | I167: 2 | J167: 0 | K167: 0 | L167: 0 | M167: 0 | N167: 0 | O167: =VLOOKUP(E167,'LLEGADA PAIS NACIONALIDAD TOTAL'!$D$14:$X$238,21,0) -> 2 | P167: =VLOOKUP(E167,'LLEGADA PAIS NACIONALIDAD TOTAL'!$D$14:$Z$238,23,0) -> 1 | Q167: =VLOOKUP(E167,'LLEGADA PAIS NACIONALIDAD TOTAL'!$D$14:$AB$238,25,0) -> 2 | R167: 11 | T167: 0.0008051123168
D168: 156 | E168: MALI | F168: 0 | G168: 0 | H168: 5 | I168: 0 | J168: 1 | K168: 0 | L168: 0 | M168: 1 | N168: 1 | O168: =VLOOKUP(E168,'LLEGADA PAIS NACIONALIDAD TOTAL'!$D$14:$X$238,21,0) -> 0 | P168: =VLOOKUP(E168,'LLEGADA PAIS NACIONALIDAD TOTAL'!$D$14:$Z$238,23,0) -> 0 | Q168: =VLOOKUP(E168,'LLEGADA PAIS NACIONALIDAD TOTAL'!$D$14:$AB$238,25,0) -> 2 | R168: 10 | T168: 0.000731920288
D169: 157 | E169: SAN VICENTE Y LAS GRANADI | F169: 1 | G169: 0 | H169: 2 | I169: 1 | J169: 0 | K169: 2 | L169: 3 | M169: 0 | N169: 0 | O169: =VLOOKUP(E169,'LLEGADA PAIS NACIONALIDAD TOTAL'!$D$14:$X$238,21,0) -> 0 | P169: =VLOOKUP(E169,'LLEGADA PAIS NACIONALIDAD TOTAL'!$D$14:$Z$238,23,0) -> 0 | Q169: =VLOOKUP(E169,'LLEGADA PAIS NACIONALIDAD TOTAL'!$D$14:$AB$238,25,0) -> 0 | R169: 9 | T169: 0.0006587282592
D170: 158 | E170: BAHREIN | F170: 0 | G170: 0 | H170: 8 | I170: 0 | J170: 0 | K170: 0 | L170: 0 | M170: 0 | N170: 0 | O170: =VLOOKUP(E170,'LLEGADA PAIS NACIONALIDAD TOTAL'!$D$14:$X$238,21,0) -> 1 | P170: =VLOOKUP(E170,'LLEGADA PAIS NACIONALIDAD TOTAL'!$D$14:$Z$238,23,0) -> 0 | Q170: =VLOOKUP(E170,'LLEGADA PAIS NACIONALIDAD TOTAL'!$D$14:$AB$238,25,0) -> 0 | R170: 9 | T170: 0.0006587282592
D171: 159 | E171: BOTSWANA | F171: 0 | G171: 0 | H171: 3 | I171: 0 | J171: 0 | K171: 0 | L171: 0 | M171: 1 | N171: 0 | O171: =VLOOKUP(E171,'LLEGADA PAIS NACIONALIDAD TOTAL'!$D$14:$X$238,21,0) -> 1 | P171: =VLOOKUP(E171,'LLEGADA PAIS NACIONALIDAD TOTAL'!$D$14:$Z$238,23,0) -> 1 | Q171: =VLOOKUP(E171,'LLEGADA PAIS NACIONALIDAD TOTAL'!$D$14:$AB$238,25,0) -> 3 | R171: 9 | T171: 0.0006587282592
D172: 160 | E172: KIRGUISTAN | F172: 2 | G172: 0 | H172: 3 | I172: 0 | J172: 1 | K172: 0 | L172: 1 | M172: 0 | N172: 1 | O172: =VLOOKUP(E172,'LLEGADA PAIS NACIONALIDAD TOTAL'!$D$14:$X$238,21,0) -> 0 | P172: =VLOOKUP(E172,'LLEGADA PAIS NACIONALIDAD TOTAL'!$D$14:$Z$238,23,0) -> 0 | Q172: =VLOOKUP(E172,'LLEGADA PAIS NACIONALIDAD TOTAL'!$D$14:$AB$238,25,0) -> 0 | R172: 8 | T172: 0.0005855362304
D173: 161 | E173: MÓNACO | F173: 0 | G173: 0 | H173: 0 | I173: 0 | J173: 1 | K173: 0 | L173: 0 | M173: 4 | N173: 1 | O173: =VLOOKUP(E173,'LLEGADA PAIS NACIONALIDAD TOTAL'!$D$14:$X$238,21,0) -> 2 | P173: =VLOOKUP(E173,'LLEGADA PAIS NACIONALIDAD TOTAL'!$D$14:$Z$238,23,0) -> 0 | Q173: =VLOOKUP(E173,'LLEGADA PAIS NACIONALIDAD TOTAL'!$D$14:$AB$238,25,0) -> 0 | R173: 8 | T173: 0.0005855362304
D174: 162 | E174: TAYIKISTAN | F174: 3 | G174: 1 | H174: 0 | I174: 0 | J174: 1 | K174: 0 | L174: 0 | M174: 2 | N174: 0 | O174: =VLOOKUP(E174,'LLEGADA PAIS NACIONALIDAD TOTAL'!$D$14:$X$238,21,0) -> 0 | P174: =VLOOKUP(E174,'LLEGADA PAIS NACIONALIDAD TOTAL'!$D$14:$Z$238,23,0) -> 1 | Q174: =VLOOKUP(E174,'LLEGADA PAIS NACIONALIDAD TOTAL'!$D$14:$AB$238,25,0) -> 0 | R174: 8 | T174: 0.0005855362304
D175: 163 | E175: COREA NORTE | F175: 0 | G175: 0 | H175: 0 | I175: 2 | J175: 0 | K175: 1 | L175: 1 | M175: 1 | N175: 0 | O175: =VLOOKUP(E175,'LLEGADA PAIS NACIONALIDAD TOTAL'!$D$14:$X$238,21,0) -> 1 | P175: =VLOOKUP(E175,'LLEGADA PAIS NACIONALIDAD TOTAL'!$D$14:$Z$238,23,0) -> 1 | Q175: =VLOOKUP(E175,'LLEGADA PAIS NACIONALIDAD TOTAL'!$D$14:$AB$238,25,0) -> 1 | R175: 8 | T175: 0.0005855362304
D176: 164 | E176: SANTO TOME Y PRINCIPE | F176: 0 | G176: 1 | H176: 6 | I176: 0 | J176: 0 | K176: 0 | L176: 0 | M176: 0 | N176: 0 | O176: =VLOOKUP(E176,'LLEGADA PAIS NACIONALIDAD TOTAL'!$D$14:$X$238,21,0) -> 0 | P176: =VLOOKUP(E176,'LLEGADA PAIS NACIONALIDAD TOTAL'!$D$14:$Z$238,23,0) -> 0 | Q176: =VLOOKUP(E176,'LLEGADA PAIS NACIONALIDAD TOTAL'!$D$14:$AB$238,25,0) -> 0 | R176: 7 | T176: 0.0005123442016
D177: 165 | E177: TOGO | F177: 0 | G177: 2 | H177: 3 | I177: 0 | J177: 0 | K177: 1 | L177: 1 | M177: 0 | N177: 0 | O177: =VLOOKUP(E177,'LLEGADA PAIS NACIONALIDAD TOTAL'!$D$14:$X$238,21,0) -> 0 | P177: =VLOOKUP(E177,'LLEGADA PAIS NACIONALIDAD TOTAL'!$D$14:$Z$238,23,0) -> 0 | Q177: =VLOOKUP(E177,'LLEGADA PAIS NACIONALIDAD TOTAL'!$D$14:$AB$238,25,0) -> 0 | R177: 7 | T177: 0.0005123442016
D178: 166 | E178: LESOTHO | F178: 0 | G178: 0 | H178: 5 | I178: 0 | J178: 0 | K178: 1 | L178: 0 | M178: 0 | N178: 1 | O178: =VLOOKUP(E178,'LLEGADA PAIS NACIONALIDAD TOTAL'!$D$14:$X$238,21,0) -> 0 | P178: =VLOOKUP(E178,'LLEGADA PAIS NACIONALIDAD TOTAL'!$D$14:$Z$238,23,0) -> 0 | Q178: =VLOOKUP(E178,'LLEGADA PAIS NACIONALIDAD TOTAL'!$D$14:$AB$238,25,0) -> 0 | R178: 7 | T178: 0.0005123442016
D179: 167 | E179: CENTRO AFRICA REPUBLI | F179: 1 | G179: 0 | H179: 1 | I179: 1 | J179: 0 | K179: 1 | L179: 1 | M179: 1 | N179: 0 | O179: =VLOOKUP(E179,'LLEGADA PAIS NACIONALIDAD TOTAL'!$D$14:$X$238,21,0) -> 1 | P179: =VLOOKUP(E179,'LLEGADA PAIS NACIONALIDAD TOTAL'!$D$14:$Z$238,23,0) -> 0 | Q179: =VLOOKUP(E179,'LLEGADA PAIS NACIONALIDAD TOTAL'!$D$14:$AB$238,25,0) -> 0 | R179: 7 | T179: 0.0005123442016
D180: 168 | E180: NUEVA GUINEA | F180: 1 | G180: 0 | H180: 1 | I180: 1 | J180: 0 | K180: 1 | L180: 1 | M180: 1 | N180: 0 | O180: =VLOOKUP(E180,'LLEGADA PAIS NACIONALIDAD TOTAL'!$D$14:$X$238,21,0) -> 1 | P180: =VLOOKUP(E180,'LLEGADA PAIS NACIONALIDAD TOTAL'!$D$14:$Z$238,23,0) -> 0 | Q180: =VLOOKUP(E180,'LLEGADA PAIS NACIONALIDAD TOTAL'!$D$14:$AB$238,25,0) -> 0 | R180: 7 | T180: 0.0005123442016
D181: 169 | E181: BURUNDI | F181: 0 | G181: 0 | H181: 5 | I181: 1 | J181: 0 | K181: 0 | L181: 0 | M181: 0 | N181: 0 | O181: =VLOOKUP(E181,'LLEGADA PAIS NACIONALIDAD TOTAL'!$D$14:$X$238,21,0) -> 0 | P181: =VLOOKUP(E181,'LLEGADA PAIS NACIONALIDAD TOTAL'!$D$14:$Z$238,23,0) -> 0 | Q181: =VLOOKUP(E181,'LLEGADA PAIS NACIONALIDAD TOTAL'!$D$14:$AB$238,25,0) -> 0 | R181: 6 | T181: 0.0004391521728
D182: 170 | E182: GUINEA ECUATORIAL | F182: 3 | G182: 0 | H182: 2 | I182: 0 | J182: 0 | K182: 0 | L182: 0 | M182: 0 | N182: 0 | O182: =VLOOKUP(E182,'LLEGADA PAIS NACIONALIDAD TOTAL'!$D$14:$X$238,21,0) -> 1 | P182: =VLOOKUP(E182,'LLEGADA PAIS NACIONALIDAD TOTAL'!$D$14:$Z$238,23,0) -> 0 | Q182: =VLOOKUP(E182,'LLEGADA PAIS NACIONALIDAD TOTAL'!$D$14:$AB$238,25,0) -> 0 | R182: 6 | T182: 0.0004391521728
D183: 171 | E183: TURKMENISTAN | F183: 0 | G183: 2 | H183: 1 | I183: 0 | J183: 0 | K183: 0 | L183: 0 | M183: 0 | N183: 2 | O183: =VLOOKUP(E183,'LLEGADA PAIS NACIONALIDAD TOTAL'!$D$14:$X$238,21,0) -> 1 | P183: =VLOOKUP(E183,'LLEGADA PAIS NACIONALIDAD TOTAL'!$D$14:$Z$238,23,0) -> 0 | Q183: =VLOOKUP(E183,'LLEGADA PAIS NACIONALIDAD TOTAL'!$D$14:$AB$238,25,0) -> 0 | R183: 6 | T183: 0.0004391521728
D184: 172 | E184: SAMOA OCCIDENTAL | F184: 1 | G184: 0 | H184: 0 | I184: 2 | J184: 0 | K184: 0 | L184: 1 | M184: 1 | N184: 0 | O184: =VLOOKUP(E184,'LLEGADA PAIS NACIONALIDAD TOTAL'!$D$14:$X$238,21,0) -> 0 | P184: =VLOOKUP(E184,'LLEGADA PAIS NACIONALIDAD TOTAL'!$D$14:$Z$238,23,0) -> 1 | Q184: =VLOOKUP(E184,'LLEGADA PAIS NACIONALIDAD TOTAL'!$D$14:$AB$238,25,0) -> 0 | R184: 6 | T184: 0.0004391521728
D185: 173 | E185: GAMBIA | F185: 0 | G185: 1 | H185: 0 | I185: 1 | J185: 1 | K185: 0 | L185: 2 | M185: 0 | N185: 0 | O185: =VLOOKUP(E185,'LLEGADA PAIS NACIONALIDAD TOTAL'!$D$14:$X$238,21,0) -> 0 | P185: =VLOOKUP(E185,'LLEGADA PAIS NACIONALIDAD TOTAL'!$D$14:$Z$238,23,0) -> 0 | Q185: =VLOOKUP(E185,'LLEGADA PAIS NACIONALIDAD TOTAL'!$D$14:$AB$238,25,0) -> 1 | R185: 6 | T185: 0.0004391521728
D186: 174 | E186: TANZANIA | F186: 1 | G186: 0 | H186: 0 | I186: 0 | J186: 0 | K186: 0 | L186: 1 | M186: 2 | N186: 1 | O186: =VLOOKUP(E186,'LLEGADA PAIS NACIONALIDAD TOTAL'!$D$14:$X$238,21,0) -> 0 | P186: =VLOOKUP(E186,'LLEGADA PAIS NACIONALIDAD TOTAL'!$D$14:$Z$238,23,0) -> 0 | Q186: =VLOOKUP(E186,'LLEGADA PAIS NACIONALIDAD TOTAL'!$D$14:$AB$238,25,0) -> 1 | R186: 6 | T186: 0.0004391521728
D187: 175 | E187: DJIBOUTI | F187: 1 | G187: 0 | H187: 1 | I187: 0 | J187: 2 | K187: 0 | L187: 0 | M187: 0 | N187: 0 | O187: =VLOOKUP(E187,'LLEGADA PAIS NACIONALIDAD TOTAL'!$D$14:$X$238,21,0) -> 0 | P187: =VLOOKUP(E187,'LLEGADA PAIS NACIONALIDAD TOTAL'!$D$14:$Z$238,23,0) -> 1 | Q187: =VLOOKUP(E187,'LLEGADA PAIS NACIONALIDAD TOTAL'!$D$14:$AB$238,25,0) -> 0 | R187: 5 | T187: 0.000365960144
D188: 176 | E188: FIJI | F188: 0 | G188: 0 | H188: 1 | I188: 0 | J188: 1 | K188: 1 | L188: 0 | M188: 0 | N188: 0 | O188: =VLOOKUP(E188,'LLEGADA PAIS NACIONALIDAD TOTAL'!$D$14:$X$238,21,0) -> 0 | P188: =VLOOKUP(E188,'LLEGADA PAIS NACIONALIDAD TOTAL'!$D$14:$Z$238,23,0) -> 2 | Q188: =VLOOKUP(E188,'LLEGADA PAIS NACIONALIDAD TOTAL'!$D$14:$AB$238,25,0) -> 0 | R188: 5 | T188: 0.000365960144
D189: 177 | E189: MAURITANIA | F189: 0 | G189: 0 | H189: 1 | I189: 1 | J189: 1 | K189: 0 | L189: 1 | M189: 0 | N189: 0 | O189: =VLOOKUP(E189,'LLEGADA PAIS NACIONALIDAD TOTAL'!$D$14:$X$238,21,0) -> 0 | P189: =VLOOKUP(E189,'LLEGADA PAIS NACIONALIDAD TOTAL'!$D$14:$Z$238,23,0) -> 0 | Q189: =VLOOKUP(E189,'LLEGADA PAIS NACIONALIDAD TOTAL'!$D$14:$AB$238,25,0) -> 1 | R189: 5 | T189: 0.000365960144
D190: 178 | E190: LIBIA | F190: 0 | G190: 0 | H190: 1 | I190: 0 | J190: 1 | K190: 1 | L190: 0 | M190: 0 | N190: 0 | O190: =VLOOKUP(E190,'LLEGADA PAIS NACIONALIDAD TOTAL'!$D$14:$X$238,21,0) -> 0 | P190: =VLOOKUP(E190,'LLEGADA PAIS NACIONALIDAD TOTAL'!$D$14:$Z$238,23,0) -> 1 | Q190: =VLOOKUP(E190,'LLEGADA PAIS NACIONALIDAD TOTAL'!$D$14:$AB$238,25,0) -> 1 | R190: 5 | T190: 0.000365960144
D191: 179 | E191: LIBERIA | F191: 0 | G191: 0 | H191: 2 | I191: 0 | J191: 0 | K191: 0 | L191: 0 | M191: 0 | N191: 1 | O191: =VLOOKUP(E191,'LLEGADA PAIS NACIONALIDAD TOTAL'!$D$14:$X$238,21,0) -> 0 | P191: =VLOOKUP(E191,'LLEGADA PAIS NACIONALIDAD TOTAL'!$D$14:$Z$238,23,0) -> 0 | Q191: =VLOOKUP(E191,'LLEGADA PAIS NACIONALIDAD TOTAL'!$D$14:$AB$238,25,0) -> 2 | R191: 5 | T191: 0.000365960144
D192: 180 | E192: MICRONESIA | F192: 0 | G192: 1 | H192: 3 | I192: 0 | J192: 0 | K192: 0 | L192: 0 | M192: 0 | N192: 0 | O192: =VLOOKUP(E192,'LLEGADA PAIS NACIONALIDAD TOTAL'!$D$14:$X$238,21,0) -> 0 | P192: =VLOOKUP(E192,'LLEGADA PAIS NACIONALIDAD TOTAL'!$D$14:$Z$238,23,0) -> 0 | Q192: =VLOOKUP(E192,'LLEGADA PAIS NACIONALIDAD TOTAL'!$D$14:$AB$238,25,0) -> 0 | R192: 4 | T192: 0.0002927681152
D193: 181 | E193: BRUNEI | F193: 0 | G193: 0 | H193: 0 | I193: 0 | J193: 0 | K193: 2 | L193: 0 | M193: 2 | N193: 0 | O193: =VLOOKUP(E193,'LLEGADA PAIS NACIONALIDAD TOTAL'!$D$14:$X$238,21,0) -> 0 | P193: =VLOOKUP(E193,'LLEGADA PAIS NACIONALIDAD TOTAL'!$D$14:$Z$238,23,0) -> 0 | Q193: =VLOOKUP(E193,'LLEGADA PAIS NACIONALIDAD TOTAL'!$D$14:$AB$238,25,0) -> 0 | R193: 4 | T193: 0.0002927681152
D194: 182 | E194: POLINESIA FRANCESA | F194: 1 | G194: 0 | H194: 0 | I194: 1 | J194: 0 | K194: 0 | L194: 1 | M194: 0 | N194: 0 | O194: =VLOOKUP(E194,'LLEGADA PAIS NACIONALIDAD TOTAL'!$D$14:$X$238,21,0) -> 0 | P194: =VLOOKUP(E194,'LLEGADA PAIS NACIONALIDAD TOTAL'!$D$14:$Z$238,23,0) -> 1 | Q194: =VLOOKUP(E194,'LLEGADA PAIS NACIONALIDAD TOTAL'!$D$14:$AB$238,25,0) -> 0 | R194: 4 | T194: 0.0002927681152
D195: 183 | E195: SOMALIA | F195: 0 | G195: 0 | H195: 0 | I195: 0 | J195: 1 | K195: 0 | L195: 2 | M195: 0 | N195: 0 | O195: =VLOOKUP(E195,'LLEGADA PAIS NACIONALIDAD TOTAL'!$D$14:$X$238,21,0) -> 0 | P195: =VLOOKUP(E195,'LLEGADA PAIS NACIONALIDAD TOTAL'!$D$14:$Z$238,23,0) -> 1 | Q195: =VLOOKUP(E195,'LLEGADA PAIS NACIONALIDAD TOTAL'!$D$14:$AB$238,25,0) -> 0 | R195: 4 | T195: 0.0002927681152
D196: 184 | E196: COMORAS | F196: 0 | G196: 0 | H196: 1 | I196: 0 | J196: 1 | K196: 1 | L196: 0 | M196: 0 | N196: 0 | O196: =VLOOKUP(E196,'LLEGADA PAIS NACIONALIDAD TOTAL'!$D$14:$X$238,21,0) -> 0 | P196: =VLOOKUP(E196,'LLEGADA PAIS NACIONALIDAD TOTAL'!$D$14:$Z$238,23,0) -> 0 | Q196: =VLOOKUP(E196,'LLEGADA PAIS NACIONALIDAD TOTAL'!$D$14:$AB$238,25,0) -> 0 | R196: 3 | T196: 0.0002195760864
D197: 185 | E197: MALAWI | F197: 1 | G197: 0 | H197: 0 | I197: 0 | J197: 1 | K197: 0 | L197: 0 | M197: 0 | N197: 1 | O197: =VLOOKUP(E197,'LLEGADA PAIS NACIONALIDAD TOTAL'!$D$14:$X$238,21,0) -> 0 | P197: =VLOOKUP(E197,'LLEGADA PAIS NACIONALIDAD TOTAL'!$D$14:$Z$238,23,0) -> 0 | Q197: =VLOOKUP(E197,'LLEGADA PAIS NACIONALIDAD TOTAL'!$D$14:$AB$238,25,0) -> 0 | R197: 3 | T197: 0.0002195760864
D198: 186 | E198: O.N. AFRICA | F198: 0 | G198: 1 | H198: 1 | I198: 0 | J198: 0 | K198: 0 | L198: 0 | M198: 0 | N198: 0 | O198: =VLOOKUP(E198,'LLEGADA PAIS NACIONALIDAD TOTAL'!$D$14:$X$238,21,0) -> 0 | P198: =VLOOKUP(E198,'LLEGADA PAIS NACIONALIDAD TOTAL'!$D$14:$Z$238,23,0) -> 1 | Q198: =VLOOKUP(E198,'LLEGADA PAIS NACIONALIDAD TOTAL'!$D$14:$AB$238,25,0) -> 0 | R198: 3 | T198: 0.0002195760864
D199: 187 | E199: PAPUA NUEVA GUINEA | F199: 0 | G199: 0 | H199: 0 | I199: 0 | J199: 0 | K199: 2 | L199: 0 | M199: 0 | N199: 0 | O199: =VLOOKUP(E199,'LLEGADA PAIS NACIONALIDAD TOTAL'!$D$14:$X$238,21,0) -> 0 | P199: =VLOOKUP(E199,'LLEGADA PAIS NACIONALIDAD TOTAL'!$D$14:$Z$238,23,0) -> 0 | Q199: =VLOOKUP(E199,'LLEGADA PAIS NACIONALIDAD TOTAL'!$D$14:$AB$238,25,0) -> 0 | R199: 2 | T199: 0.0001463840576
D200: 188 | E200: GUINEA BISAU | F200: 0 | G200: 1 | H200: 1 | I200: 0 | J200: 0 | K200: 0 | L200: 0 | M200: 0 | N200: 0 | O200: =VLOOKUP(E200,'LLEGADA PAIS NACIONALIDAD TOTAL'!$D$14:$X$238,21,0) -> 0 | P200: =VLOOKUP(E200,'LLEGADA PAIS NACIONALIDAD TOTAL'!$D$14:$Z$238,23,0) -> 0 | Q200: =VLOOKUP(E200,'LLEGADA PAIS NACIONALIDAD TOTAL'!$D$14:$AB$238,25,0) -> 0 | R200: 2 | T200: 0.0001463840576
D201: 189 | E201: TUVALU | F201: 0 | G201: 0 | H201: 0 | I201: 1 | J201: 0 | K201: 0 | L201: 0 | M201: 0 | N201: 1 | O201: =VLOOKUP(E201,'LLEGADA PAIS NACIONALIDAD TOTAL'!$D$14:$X$238,21,0) -> 0 | P201: =VLOOKUP(E201,'LLEGADA PAIS NACIONALIDAD TOTAL'!$D$14:$Z$238,23,0) -> 0 | Q201: =VLOOKUP(E201,'LLEGADA PAIS NACIONALIDAD TOTAL'!$D$14:$AB$238,25,0) -> 0 | R201: 2 | T201: 0.0001463840576
D202: 190 | E202: ISLA BOUVET | F202: 0 | G202: 0 | H202: 1 | I202: 0 | J202: 0 | K202: 0 | L202: 0 | M202: 0 | N202: 1 | O202: =VLOOKUP(E202,'LLEGADA PAIS NACIONALIDAD TOTAL'!$D$14:$X$238,21,0) -> 0 | P202: =VLOOKUP(E202,'LLEGADA PAIS NACIONALIDAD TOTAL'!$D$14:$Z$238,23,0) -> 0 | Q202: =VLOOKUP(E202,'LLEGADA PAIS NACIONALIDAD TOTAL'!$D$14:$AB$238,25,0) -> 0 | R202: 2 | T202: 0.0001463840576
D203: 191 | E203: VATICANO O SANTA SEDE | F203: 0 | G203: 0 | H203: 0 | I203: 0 | J203: 1 | K203: 0 | L203: 0 | M203: 0 | N203: 1 | O203: =VLOOKUP(E203,'LLEGADA PAIS NACIONALIDAD TOTAL'!$D$14:$X$238,21,0) -> 0 | P203: =VLOOKUP(E203,'LLEGADA PAIS NACIONALIDAD TOTAL'!$D$14:$Z$238,23,0) -> 0 | Q203: =VLOOKUP(E203,'LLEGADA PAIS NACIONALIDAD TOTAL'!$D$14:$AB$238,25,0) -> 0 | R203: 2 | T203: 0.0001463840576
D204: 192 | E204: SEYCHELLES | F204: 0 | G204: 0 | H204: 0 | I204: 0 | J204: 0 | K204: 0 | L204: 1 | M204: 0 | N204: 1 | O204: =VLOOKUP(E204,'LLEGADA PAIS NACIONALIDAD TOTAL'!$D$14:$X$238,21,0) -> 0 | P204: =VLOOKUP(E204,'LLEGADA PAIS NACIONALIDAD TOTAL'!$D$14:$Z$238,23,0) -> 0 | Q204: =VLOOKUP(E204,'LLEGADA PAIS NACIONALIDAD TOTAL'!$D$14:$AB$238,25,0) -> 0 | R204: 2 | T204: 0.0001463840576
D205: 193 | E205: CISKEI | F205: 0 | G205: 1 | H205: 0 | I205: 0 | J205: 0 | K205: 0 | L205: 0 | M205: 0 | N205: 0 | O205: =VLOOKUP(E205,'LLEGADA PAIS NACIONALIDAD TOTAL'!$D$14:$X$238,21,0) -> 1 | P205: =VLOOKUP(E205,'LLEGADA PAIS NACIONALIDAD TOTAL'!$D$14:$Z$238,23,0) -> 0 | Q205: =VLOOKUP(E205,'LLEGADA PAIS NACIONALIDAD TOTAL'!$D$14:$AB$238,25,0) -> 0 | R205: 2 | T205: 0.0001463840576
D206: 194 | E206: MARSHALL ISLAS | F206: 0 | G206: 0 | H206: 0 | I206: 1 | J206: 0 | K206: 0 | L206: 0 | M206: 0 | N206: 0 | O206: =VLOOKUP(E206,'LLEGADA PAIS NACIONALIDAD TOTAL'!$D$14:$X$238,21,0) -> 0 | P206: =VLOOKUP(E206,'LLEGADA PAIS NACIONALIDAD TOTAL'!$D$14:$Z$238,23,0) -> 0 | Q206: =VLOOKUP(E206,'LLEGADA PAIS NACIONALIDAD TOTAL'!$D$14:$AB$238,25,0) -> 0 | R206: 1 | T206: 7.31920288e-05
D207: 195 | E207: O.N. AMERICA | F207: 0 | G207: 0 | H207: 1 | I207: 0 | J207: 0 | K207: 0 | L207: 0 | M207: 0 | N207: 0 | O207: =VLOOKUP(E207,'LLEGADA PAIS NACIONALIDAD TOTAL'!$D$14:$X$238,21,0) -> 0 | P207: =VLOOKUP(E207,'LLEGADA PAIS NACIONALIDAD TOTAL'!$D$14:$Z$238,23,0) -> 0 | Q207: =VLOOKUP(E207,'LLEGADA PAIS NACIONALIDAD TOTAL'!$D$14:$AB$238,25,0) -> 0 | R207: 1 | T207: 7.31920288e-05
D208: 196 | E208: VANUATO | F208: 0 | G208: 1 | H208: 0 | I208: 0 | J208: 0 | K208: 0 | L208: 0 | M208: 0 | N208: 0 | O208: =VLOOKUP(E208,'LLEGADA PAIS NACIONALIDAD TOTAL'!$D$14:$X$238,21,0) -> 0 | P208: =VLOOKUP(E208,'LLEGADA PAIS NACIONALIDAD TOTAL'!$D$14:$Z$238,23,0) -> 0 | Q208: =VLOOKUP(E208,'LLEGADA PAIS NACIONALIDAD TOTAL'!$D$14:$AB$238,25,0) -> 0 | R208: 1 | T208: 7.31920288e-05
D209: 197 | E209: NIGER | F209: 0 | G209: 0 | H209: 0 | I209: 0 | J209: 0 | K209: 0 | L209: 0 | M209: 0 | N209: 0 | O209: =VLOOKUP(E209,'LLEGADA PAIS NACIONALIDAD TOTAL'!$D$14:$X$238,21,0) -> 0 | P209: =VLOOKUP(E209,'LLEGADA PAIS NACIONALIDAD TOTAL'!$D$14:$Z$238,23,0) -> 0 | Q209: =VLOOKUP(E209,'LLEGADA PAIS NACIONALIDAD TOTAL'!$D$14:$AB$238,25,0) -> 0 | R209: 0 | T209: 0
D210: 198 | E210: NAURU | F210: 0 | G210: 0 | H210: 0 | I210: 0 | J210: 0 | K210: 0 | L210: 0 | M210: 0 | N210: 0 | O210: =VLOOKUP(E210,'LLEGADA PAIS NACIONALIDAD TOTAL'!$D$14:$X$238,21,0) -> 0 | P210: =VLOOKUP(E210,'LLEGADA PAIS NACIONALIDAD TOTAL'!$D$14:$Z$238,23,0) -> 0 | Q210: =VLOOKUP(E210,'LLEGADA PAIS NACIONALIDAD TOTAL'!$D$14:$AB$238,25,0) -> 0 | R210: 0 | T210: 0
... 24 more rows

Sheet SALIDAS ECUATORIANOS
F11: SALIDA | G11: SALIDA | H11: SALIDA | I11: SALIDA | J11: SALIDA | K11: SALIDA | L11: SALIDA | M11: SALIDA | N11: SALIDA | O11: SALIDA | P11: SALIDA | Q11: SALIDA | R11: SALIDA | T11: SALIDA
D12: RK | E12: PAIS | F12: ENERO | G12: FEBRERO | H12: MARZO | I12: ABRIL | J12: MAY | K12: JUN | L12: JUL | M12: AGO | N12: SEP | O12: OCT | P12: NOV | Q12: DIC | R12: Acumulado Ene-Dic | T12: %
D13: 1 | E13: ESTADOS UNIDOS | F13: 25192 | G13: 32666 | H13: 36111 | I13: 33434 | J13: =VLOOKUP(E13,'LLEGADA PAIS NACIONALIDAD TOTAL'!$D$14:$AD$238,10,0) -> 32202 | K13: =+VLOOKUP(E13,'LLEGADA PAIS NACIONALIDAD TOTAL'!$D$14:$AD$238,12,0) -> 25251 | L13: 34068 | M13: =VLOOKUP(E13,'LLEGADA PAIS NACIONALIDAD TOTAL'!$D$14:$T$238,16,0) -> 42883 | N13: 36736 | O13: =VLOOKUP(E13,'LLEGADA PAIS NACIONALIDAD TOTAL'!$D$14:$W$238,20,0) -> 34046 | P13: =VLOOKUP(E13,'LLEGADA PAIS NACIONALIDAD TOTAL'!$D$14:$Z$238,22,0) -> 33883 | Q13: =VLOOKUP(E13,'LLEGADA PAIS NACIONALIDAD TOTAL'!$D$14:$AB$238,24,0) -> 28599 | R13: =SUM(F13:Q13) -> 395071 | T13: =+R13/R$235*100 -> 34.18867546
D14: 2 | E14: PERÚ | F14: 12972 | G14: 18155 | H14: 16821 | I14: 16490 | J14: =VLOOKUP(E14,'LLEGADA PAIS NACIONALIDAD TOTAL'!$D$14:$AD$238,10,0) -> 13649 | K14: =+VLOOKUP(E14,'LLEGADA PAIS NACIONALIDAD TOTAL'!$D$14:$AD$238,12,0) -> 14960 | L14: 16309 | M14: =VLOOKUP(E14,'LLEGADA PAIS NACIONALIDAD TOTAL'!$D$14:$T$238,16,0) -> 25819 | N14: 15811 | O14: =VLOOKUP(E14,'LLEGADA PAIS NACIONALIDAD TOTAL'!$D$14:$W$238,20,0) -> 19075 | P14: =VLOOKUP(E14,'LLEGADA PAIS NACIONALIDAD TOTAL'!$D$14:$Z$238,22,0) -> 15556 | Q14: =VLOOKUP(E14,'LLEGADA PAIS NACIONALIDAD TOTAL'!$D$14:$AB$238,24,0) -> 17557 | R14: 203174 | T14: =+R14/R$235*100 -> 17.58228255
D15: 3 | E15: COLOMBIA | F15: 7798 | G15: 8674 | H15: 8069 | I15: 9964 | J15: =VLOOKUP(E15,'LLEGADA PAIS NACIONALIDAD TOTAL'!$D$14:$AD$238,10,0) -> 9248 | K15: =+VLOOKUP(E15,'LLEGADA PAIS NACIONALIDAD TOTAL'!$D$14:$AD$238,12,0) -> 7850 | L15: 10187 | M15: =VLOOKUP(E15,'LLEGADA PAIS NACIONALIDAD TOTAL'!$D$14:$T$238,16,0) -> 10204 | N15: 9395 | O15: =VLOOKUP(E15,'LLEGADA PAIS NACIONALIDAD TOTAL'!$D$14:$W$238,20,0) -> 9187 | P15: =VLOOKUP(E15,'LLEGADA PAIS NACIONALIDAD TOTAL'!$D$14:$Z$238,22,0) -> 8127 | Q15: =VLOOKUP(E15,'LLEGADA PAIS NACIONALIDAD TOTAL'!$D$14:$AB$238,24,0) -> 8911 | R15: 107614 | T15: 9.312706123
D16: 4 | E16: ESPAÑA | F16: 8142 | G16: 8025 | H16: 9151 | I16: 8375 | J16: =VLOOKUP(E16,'LLEGADA PAIS NACIONALIDAD TOTAL'!$D$14:$AD$238,10,0) -> 9390 | K16: =+VLOOKUP(E16,'LLEGADA PAIS NACIONALIDAD TOTAL'!$D$14:$AD$238,12,0) -> 7244 | L16: 8276 | M16: =VLOOKUP(E16,'LLEGADA PAIS NACIONALIDAD TOTAL'!$D$14:$T$238,16,0) -> 8269 | N16: 11448 | O16: =VLOOKUP(E16,'LLEGADA PAIS NACIONALIDAD TOTAL'!$D$14:$W$238,20,0) -> 9452 | P16: =VLOOKUP(E16,'LLEGADA PAIS NACIONALIDAD TOTAL'!$D$14:$Z$238,22,0) -> 6354 | Q16: =VLOOKUP(E16,'LLEGADA PAIS NACIONALIDAD TOTAL'!$D$14:$AB$238,24,0) -> 5434 | R16: 99560 | T16: 8.615728637
D17: 5 | E17: PANAMÁ | F17: 4392 | G17: 5433 | H17: 6518 | I17: 5734 | J17: =VLOOKUP(E17,'LLEGADA PAIS NACIONALIDAD TOTAL'!$D$14:$AD$238,10,0) -> 5197 | K17: =+VLOOKUP(E17,'LLEGADA PAIS NACIONALIDAD TOTAL'!$D$14:$AD$238,12,0) -> 3704 | L17: 6742 | M17: =VLOOKUP(E17,'LLEGADA PAIS NACIONALIDAD TOTAL'!$D$14:$T$238,16,0) -> 9688 | N17: 5747 | O17: =VLOOKUP(E17,'LLEGADA PAIS NACIONALIDAD TOTAL'!$D$14:$W$238,20,0) -> 6524 | P17: =VLOOKUP(E17,'LLEGADA PAIS NACIONALIDAD TOTAL'!$D$14:$Z$238,22,0) -> 7141 | Q17: =VLOOKUP(E17,'LLEGADA PAIS NACIONALIDAD TOTAL'!$D$14:$AB$238,24,0) -> 5740 | R17: 72560 | T17: 6.279201185
D18: 6 | E18: ARGENTINA | F18: 1490 | G18: 1930 | H18: 2817 | I18: 2785 | J18: =VLOOKUP(E18,'LLEGADA PAIS NACIONALIDAD TOTAL'!$D$14:$AD$238,10,0) -> 2180 | K18: =+VLOOKUP(E18,'LLEGADA PAIS NACIONALIDAD TOTAL'!$D$14:$AD$238,12,0) -> 2215 | L18: 2875 | M18: =VLOOKUP(E18,'LLEGADA PAIS NACIONALIDAD TOTAL'!$D$14:$T$238,16,0) -> 3739 | N18: 3425 | O18: =VLOOKUP(E18,'LLEGADA PAIS NACIONALIDAD TOTAL'!$D$14:$W$238,20,0) -> 3843 | P18: =VLOOKUP(E18,'LLEGADA PAIS NACIONALIDAD TOTAL'!$D$14:$Z$238,22,0) -> 3853 | Q18: =VLOOKUP(E18,'LLEGADA PAIS NACIONALIDAD TOTAL'!$D$14:$AB$238,24,0) -> 2194 | R18: =SUM(F18:Q18) -> 33346 | T18: =+R18/R$235*100 -> 2.885697942
D19: 7 | E19: MÉXICO | F19: 1598 | G19: 2771 | H19: 1872 | I19: 2210 | J19: =VLOOKUP(E19,'LLEGADA PAIS NACIONALIDAD TOTAL'!$D$14:$AD$238,10,0) -> 1977 | K19: =+VLOOKUP(E19,'LLEGADA PAIS NACIONALIDAD TOTAL'!$D$14:$AD$238,12,0) -> 1439 | L19: 3021 | M19: =VLOOKUP(E19,'LLEGADA PAIS NACIONALIDAD TOTAL'!$D$14:$T$238,16,0) -> 4623 | N19: 2143 | O19: =VLOOKUP(E19,'LLEGADA PAIS NACIONALIDAD TOTAL'!$D$14:$W$238,20,0) -> 2112 | P19: =VLOOKUP(E19,'LLEGADA PAIS NACIONALIDAD TOTAL'!$D$14:$Z$238,22,0) -> 2374 | Q19: =VLOOKUP(E19,'LLEGADA PAIS NACIONALIDAD TOTAL'!$D$14:$AB$238,24,0) -> 2158 | R19: 28298 | T19: 2.448853847
D20: 8 | E20: CHILE | F20: 2620 | G20: 2455 | H20: 3236 | I20: 2464 | J20: =VLOOKUP(E20,'LLEGADA PAIS NACIONALIDAD TOTAL'!$D$14:$AD$238,10,0) -> 1793 | K20: =+VLOOKUP(E20,'LLEGADA PAIS NACIONALIDAD TOTAL'!$D$14:$AD$238,12,0) -> 1588 | L20: 1829 | M20: =VLOOKUP(E20,'LLEGADA PAIS NACIONALIDAD TOTAL'!$D$14:$T$238,16,0) -> 2350 | N20: 1985 | O20: =VLOOKUP(E20,'LLEGADA PAIS NACIONALIDAD TOTAL'!$D$14:$W$238,20,0) -> 2757 | P20: =VLOOKUP(E20,'LLEGADA PAIS NACIONALIDAD TOTAL'!$D$14:$Z$238,22,0) -> 2171 | Q20: =VLOOKUP(E20,'LLEGADA PAIS NACIONALIDAD TOTAL'!$D$14:$AB$238,24,0) -> 1812 | R20: 27060 | T20: 2.341719736
D21: 9 | E21: ITALIA | F21: 2595 | G21: 2192 | H21: 2193 | I21: 1871 | J21: =VLOOKUP(E21,'LLEGADA PAIS NACIONALIDAD TOTAL'!$D$14:$AD$238,10,0) -> 1581 | K21: =+VLOOKUP(E21,'LLEGADA PAIS NACIONALIDAD TOTAL'!$D$14:$AD$238,12,0) -> 1450 | L21: 1707 | M21: =VLOOKUP(E21,'LLEGADA PAIS NACIONALIDAD TOTAL'!$D$14:$T$238,16,0) -> 1832 | N21: 3085 | O21: =VLOOKUP(E21,'LLEGADA PAIS NACIONALIDAD TOTAL'!$D$14:$W$238,20,0) -> 1692 | P21: =VLOOKUP(E21,'LLEGADA PAIS NACIONALIDAD TOTAL'!$D$14:$Z$238,22,0) -> 1201 | Q21: =VLOOKUP(E21,'LLEGADA PAIS NACIONALIDAD TOTAL'!$D$14:$AB$238,24,0) -> 974 | R21: 22373 | T21: 1.936115878
D22: 10 | E22: BRASIL | F22: 918 | G22: 879 | H22: 1043 | I22: 1093 | J22: =VLOOKUP(E22,'LLEGADA PAIS NACIONALIDAD TOTAL'!$D$14:$AD$238,10,0) -> 992 | K22: =+VLOOKUP(E22,'LLEGADA PAIS NACIONALIDAD TOTAL'!$D$14:$AD$238,12,0) -> 915 | L22: 2810 | M22: =VLOOKUP(E22,'LLEGADA PAIS NACIONALIDAD TOTAL'!$D$14:$T$238,16,0) -> 1229 | N22: 1178 | O22: =VLOOKUP(E22,'LLEGADA PAIS NACIONALIDAD TOTAL'!$D$14:$W$238,20,0) -> 1154 | P22: =VLOOKUP(E22,'LLEGADA PAIS NACIONALIDAD TOTAL'!$D$14:$Z$238,22,0) -> 1230 | Q22: =VLOOKUP(E22,'LLEGADA PAIS NACIONALIDAD TOTAL'!$D$14:$AB$238,24,0) -> 955 | R22: 14396 | T22: 1.245801823
D23: 11 | E23: VENEZUELA | F23: 2240 | G23: 1223 | H23: 1554 | I23: 1027 | J23: =VLOOKUP(E23,'LLEGADA PAIS NACIONALIDAD TOTAL'!$D$14:$AD$238,10,0) -> 1052 | K23: =+VLOOKUP(E23,'LLEGADA PAIS NACIONALIDAD TOTAL'!$D$14:$AD$238,12,0) -> 915 | L23: 1349 | M23: =VLOOKUP(E23,'LLEGADA PAIS NACIONALIDAD TOTAL'!$D$14:$T$238,16,0) -> 1191 | N23: 1060 | O23: =VLOOKUP(E23,'LLEGADA PAIS NACIONALIDAD TOTAL'!$D$14:$W$238,20,0) -> 805 | P23: =VLOOKUP(E23,'LLEGADA PAIS NACIONALIDAD TOTAL'!$D$14:$Z$238,22,0) -> 743 | Q23: =VLOOKUP(E23,'LLEGADA PAIS NACIONALIDAD TOTAL'!$D$14:$AB$238,24,0) -> 851 | R23: 14010 | T23: =+R23/R$235*100 -> 1.212398134
D24: 12 | E24: CUBA | F24: 642 | G24: 1424 | H24: 905 | I24: 888 | J24: =VLOOKUP(E24,'LLEGADA PAIS NACIONALIDAD TOTAL'!$D$14:$AD$238,10,0) -> 691 | K24: =+VLOOKUP(E24,'LLEGADA PAIS NACIONALIDAD TOTAL'!$D$14:$AD$238,12,0) -> 628 | L24: 899 | M24: =VLOOKUP(E24,'LLEGADA PAIS NACIONALIDAD TOTAL'!$D$14:$T$238,16,0) -> 879 | N24: 1179 | O24: =VLOOKUP(E24,'LLEGADA PAIS NACIONALIDAD TOTAL'!$D$14:$W$238,20,0) -> 818 | P24: =VLOOKUP(E24,'LLEGADA PAIS NACIONALIDAD TOTAL'!$D$14:$Z$238,22,0) -> 680 | Q24: =VLOOKUP(E24,'LLEGADA PAIS NACIONALIDAD TOTAL'!$D$14:$AB$238,24,0) -> 872 | R24: 10505 | T24: =+R24/R$235*100 -> 0.9090822553
D25: 13 | E25: REP. DOMINICANA | F25: 550 | G25: 1338 | H25: 343 | I25: 539 | J25: =VLOOKUP(E25,'LLEGADA PAIS NACIONALIDAD TOTAL'!$D$14:$AD$238,10,0) -> 1222 | K25: =+VLOOKUP(E25,'LLEGADA PAIS NACIONALIDAD TOTAL'!$D$14:$AD$238,12,0) -> 514 | L25: 1887 | M25: =VLOOKUP(E25,'LLEGADA PAIS NACIONALIDAD TOTAL'!$D$14:$T$238,16,0) -> 754 | N25: 427 | O25: =VLOOKUP(E25,'LLEGADA PAIS NACIONALIDAD TOTAL'!$D$14:$W$238,20,0) -> 1542 | P25: =VLOOKUP(E25,'LLEGADA PAIS NACIONALIDAD TOTAL'!$D$14:$Z$238,22,0) -> 305 | Q25: =VLOOKUP(E25,'LLEGADA PAIS NACIONALIDAD TOTAL'!$D$14:$AB$238,24,0) -> 291 | R25: 9712 | T25: 0.8404575786
D26: 14 | E26: HOLANDA | F26: 531 | G26: 322 | H26: 582 | I26: 625 | J26: =VLOOKUP(E26,'LLEGADA PAIS NACIONALIDAD TOTAL'!$D$14:$AD$238,10,0) -> 683 | K26: =+VLOOKUP(E26,'LLEGADA PAIS NACIONALIDAD TOTAL'!$D$14:$AD$238,12,0) -> 719 | L26: 857 | M26: =VLOOKUP(E26,'LLEGADA PAIS NACIONALIDAD TOTAL'!$D$14:$T$238,16,0) -> 862 | N26: 673 | O26: =VLOOKUP(E26,'LLEGADA PAIS NACIONALIDAD TOTAL'!$D$14:$W$238,20,0) -> 472 | P26: =VLOOKUP(E26,'LLEGADA PAIS NACIONALIDAD TOTAL'!$D$14:$Z$238,22,0) -> 452 | Q26: =VLOOKUP(E26,'LLEGADA PAIS NACIONALIDAD TOTAL'!$D$14:$AB$238,24,0) -> 365 | R26: 7143 | T26: 0.6181413184
D27: 15 | E27: CANADÁ | F27: 665 | G27: 434 | H27: 574 | I27: 534 | J27: =VLOOKUP(E27,'LLEGADA PAIS NACIONALIDAD TOTAL'!$D$14:$AD$238,10,0) -> 646 | K27: =+VLOOKUP(E27,'LLEGADA PAIS NACIONALIDAD TOTAL'!$D$14:$AD$238,12,0) -> 533 | L27: 655 | M27: =VLOOKUP(E27,'LLEGADA PAIS NACIONALIDAD TOTAL'!$D$14:$T$238,16,0) -> 854 | N27: 766 | O27: =VLOOKUP(E27,'LLEGADA PAIS NACIONALIDAD TOTAL'!$D$14:$W$238,20,0) -> 405 | P27: =VLOOKUP(E27,'LLEGADA PAIS NACIONALIDAD TOTAL'!$D$14:$Z$238,22,0) -> 340 | Q27: =VLOOKUP(E27,'LLEGADA PAIS NACIONALIDAD TOTAL'!$D$14:$AB$238,24,0) -> 383 | R27: 6789 | T27: 0.5875068473
D28: 16 | E28: ALEMANIA | F28: 434 | G28: 427 | H28: 442 | I28: 532 | J28: =VLOOKUP(E28,'LLEGADA PAIS NACIONALIDAD TOTAL'!$D$14:$AD$238,10,0) -> 360 | K28: =+VLOOKUP(E28,'LLEGADA PAIS NACIONALIDAD TOTAL'!$D$14:$AD$238,12,0) -> 430 | L28: 558 | M28: =VLOOKUP(E28,'LLEGADA PAIS NACIONALIDAD TOTAL'!$D$14:$T$238,16,0) -> 522 | N28: 617 | O28: =VLOOKUP(E28,'LLEGADA PAIS NACIONALIDAD TOTAL'!$D$14:$W$238,20,0) -> 507 | P28: =VLOOKUP(E28,'LLEGADA PAIS NACIONALIDAD TOTAL'!$D$14:$Z$238,22,0) -> 269 | Q28: =VLOOKUP(E28,'LLEGADA PAIS NACIONALIDAD TOTAL'!$D$14:$AB$238,24,0) -> 294 | R28: 5392 | T28: 0.4666131861
D29: 17 | E29: COSTA RICA | F29: 591 | G29: 317 | H29: 324 | I29: 459 | J29: =VLOOKUP(E29,'LLEGADA PAIS NACIONALIDAD TOTAL'!$D$14:$AD$238,10,0) -> 327 | K29: =+VLOOKUP(E29,'LLEGADA PAIS NACIONALIDAD TOTAL'!$D$14:$AD$238,12,0) -> 338 | L29: 345 | M29: =VLOOKUP(E29,'LLEGADA PAIS NACIONALIDAD TOTAL'!$D$14:$T$238,16,0) -> 331 | N29: 361 | O29: =VLOOKUP(E29,'LLEGADA PAIS NACIONALIDAD TOTAL'!$D$14:$W$238,20,0) -> 276 | P29: =VLOOKUP(E29,'LLEGADA PAIS NACIONALIDAD TOTAL'!$D$14:$Z$238,22,0) -> 272 | Q29: =VLOOKUP(E29,'LLEGADA PAIS NACIONALIDAD TOTAL'!$D$14:$AB$238,24,0) -> 254 | R29: 4195 | T29: 0.3630271357
D30: 18 | E30: FRANCIA | F30: 245 | G30: 220 | H30: 275 | I30: 176 | J30: =VLOOKUP(E30,'LLEGADA PAIS NACIONALIDAD TOTAL'!$D$14:$AD$238,10,0) -> 325 | K30: =+VLOOKUP(E30,'LLEGADA PAIS NACIONALIDAD TOTAL'!$D$14:$AD$238,12,0) -> 276 | L30: 394 | M30: =VLOOKUP(E30,'LLEGADA PAIS NACIONALIDAD TOTAL'!$D$14:$T$238,16,0) -> 554 | N30: 482 | O30: =VLOOKUP(E30,'LLEGADA PAIS NACIONALIDAD TOTAL'!$D$14:$W$238,20,0) -> 341 | P30: =VLOOKUP(E30,'LLEGADA PAIS NACIONALIDAD TOTAL'!$D$14:$Z$238,22,0) -> 222 | Q30: =VLOOKUP(E30,'LLEGADA PAIS NACIONALIDAD TOTAL'!$D$14:$AB$238,24,0) -> 180 | R30: 3690 | T30: 0.3193254186
D31: 19 | E31: EL SALVADOR | F31: 198 | G31: 218 | H31: 264 | I31: 361 | J31: =VLOOKUP(E31,'LLEGADA PAIS NACIONALIDAD TOTAL'!$D$14:$AD$238,10,0) -> 298 | K31: =+VLOOKUP(E31,'LLEGADA PAIS NACIONALIDAD TOTAL'!$D$14:$AD$238,12,0) -> 305 | L31: 387 | M31: =VLOOKUP(E31,'LLEGADA PAIS NACIONALIDAD TOTAL'!$D$14:$T$238,16,0) -> 306 | N31: 246 | O31: =VLOOKUP(E31,'LLEGADA PAIS NACIONALIDAD TOTAL'!$D$14:$W$238,20,0) -> 223 | P31: =VLOOKUP(E31,'LLEGADA PAIS NACIONALIDAD TOTAL'!$D$14:$Z$238,22,0) -> 355 | Q31: =VLOOKUP(E31,'LLEGADA PAIS NACIONALIDAD TOTAL'!$D$14:$AB$238,24,0) -> 199 | R31: 3360 | T31: 0.2907678608
D32: 20 | E32: GRAN BRETAÑA | F32: 251 | G32: 190 | H32: 204 | I32: 181 | J32: 192 | K32: =+VLOOKUP(E32,'LLEGADA PAIS NACIONALIDAD TOTAL'!$D$14:$AD$238,12,0) -> 195 | L32: 290 | M32: =VLOOKUP(E32,'LLEGADA PAIS NACIONALIDAD TOTAL'!$D$14:$T$238,16,0) -> 285 | N32: 540 | O32: =VLOOKUP(E32,'LLEGADA PAIS NACIONALIDAD TOTAL'!$D$14:$W$238,20,0) -> 235 | P32: =VLOOKUP(E32,'LLEGADA PAIS NACIONALIDAD TOTAL'!$D$14:$Z$238,22,0) -> 203 | Q32: =VLOOKUP(E32,'LLEGADA PAIS NACIONALIDAD TOTAL'!$D$14:$AB$238,24,0) -> 173 | R32: 2939 | T32: 0.2543353402
D33: 21 | E33: SUIZA | F33: 336 | G33: 186 | H33: 182 | I33: 166 | J33: =VLOOKUP(E33,'LLEGADA PAIS NACIONALIDAD TOTAL'!$D$14:$AD$238,10,0) -> 163 | K33: =+VLOOKUP(E33,'LLEGADA PAIS NACIONALIDAD TOTAL'!$D$14:$AD$238,12,0) -> 174 | L33: 314 | M33: =VLOOKUP(E33,'LLEGADA PAIS NACIONALIDAD TOTAL'!$D$14:$T$238,16,0) -> 377 | N33: 220 | O33: =VLOOKUP(E33,'LLEGADA PAIS NACIONALIDAD TOTAL'!$D$14:$W$238,20,0) -> 202 | P33: =VLOOKUP(E33,'LLEGADA PAIS NACIONALIDAD TOTAL'!$D$14:$Z$238,22,0) -> 144 | Q33: =VLOOKUP(E33,'LLEGADA PAIS NACIONALIDAD TOTAL'!$D$14:$AB$238,24,0) -> 134 | R33: 2598 | T33: 0.2248258638
D34: 23 | E34: CHINA POPULAR (PEKIN) | F34: 127 | G34: 157 | H34: 197 | I34: 325 | J34: =VLOOKUP(E34,'LLEGADA PAIS NACIONALIDAD TOTAL'!$D$14:$AD$238,10,0) -> 265 | K34: =+VLOOKUP(E34,'LLEGADA PAIS NACIONALIDAD TOTAL'!$D$14:$AD$238,12,0) -> 190 | L34: 183 | M34: =VLOOKUP(E34,'LLEGADA PAIS NACIONALIDAD TOTAL'!$D$14:$T$238,16,0) -> 206 | N34: 285 | O34: =VLOOKUP(E34,'LLEGADA PAIS NACIONALIDAD TOTAL'!$D$14:$W$238,20,0) -> 362 | P34: =VLOOKUP(E34,'LLEGADA PAIS NACIONALIDAD TOTAL'!$D$14:$Z$238,22,0) -> 216 | Q34: =VLOOKUP(E34,'LLEGADA PAIS NACIONALIDAD TOTAL'!$D$14:$AB$238,24,0) -> 73 | R34: 2586 | T34: 0.2237874072
D35: 22 | E35: HONDURAS | F35: 321 | G35: 116 | H35: 178 | I35: 361 | J35: =VLOOKUP(E35,'LLEGADA PAIS NACIONALIDAD TOTAL'!$D$14:$AD$238,10,0) -> 330 | K35: =+VLOOKUP(E35,'LLEGADA PAIS NACIONALIDAD TOTAL'!$D$14:$AD$238,12,0) -> 223 | L35: 169 | M35: =VLOOKUP(E35,'LLEGADA PAIS NACIONALIDAD TOTAL'!$D$14:$T$238,16,0) -> 182 | N35: 139 | O35: =VLOOKUP(E35,'LLEGADA PAIS NACIONALIDAD TOTAL'!$D$14:$W$238,20,0) -> 106 | P35: =VLOOKUP(E35,'LLEGADA PAIS NACIONALIDAD TOTAL'!$D$14:$Z$238,22,0) -> 91 | Q35: =VLOOKUP(E35,'LLEGADA PAIS NACIONALIDAD TOTAL'!$D$14:$AB$238,24,0) -> 283 | R35: 2499 | T35: 0.2162585965
D36: 25 | E36: BOLIVIA | F36: 155 | G36: 160 | H36: 135 | I36: 132 | J36: =VLOOKUP(E36,'LLEGADA PAIS NACIONALIDAD TOTAL'!$D$14:$AD$238,10,0) -> 139 | K36: =+VLOOKUP(E36,'LLEGADA PAIS NACIONALIDAD TOTAL'!$D$14:$AD$238,12,0) -> 159 | L36: 205 | M36: =VLOOKUP(E36,'LLEGADA PAIS NACIONALIDAD TOTAL'!$D$14:$T$238,16,0) -> 205 | N36: 381 | O36: =VLOOKUP(E36,'LLEGADA PAIS NACIONALIDAD TOTAL'!$D$14:$W$238,20,0) -> 312 | P36: =VLOOKUP(E36,'LLEGADA PAIS NACIONALIDAD TOTAL'!$D$14:$Z$238,22,0) -> 254 | Q36: =VLOOKUP(E36,'LLEGADA PAIS NACIONALIDAD TOTAL'!$D$14:$AB$238,24,0) -> 155 | R36: 2392 | T36: 0.2069990247
D37: 24 | E37: GUATEMALA | F37: 117 | G37: 193 | H37: 180 | I37: 226 | J37: =VLOOKUP(E37,'LLEGADA PAIS NACIONALIDAD TOTAL'!$D$14:$AD$238,10,0) -> 140 | K37: =+VLOOKUP(E37,'LLEGADA PAIS NACIONALIDAD TOTAL'!$D$14:$AD$238,12,0) -> 129 | L37: 110 | M37: =VLOOKUP(E37,'LLEGADA PAIS NACIONALIDAD TOTAL'!$D$14:$T$238,16,0) -> 127 | N37: 133 | O37: =VLOOKUP(E37,'LLEGADA PAIS NACIONALIDAD TOTAL'!$D$14:$W$238,20,0) -> 177 | P37: =VLOOKUP(E37,'LLEGADA PAIS NACIONALIDAD TOTAL'!$D$14:$Z$238,22,0) -> 231 | Q37: =VLOOKUP(E37,'LLEGADA PAIS NACIONALIDAD TOTAL'!$D$14:$AB$238,24,0) -> 124 | R37: 1887 | T37: 0.1632973075
D38: 26 | E38: BÉLGICA | F38: 185 | G38: 115 | H38: 120 | I38: 105 | J38: =VLOOKUP(E38,'LLEGADA PAIS NACIONALIDAD TOTAL'!$D$14:$AD$238,10,0) -> 56 | K38: =+VLOOKUP(E38,'LLEGADA PAIS NACIONALIDAD TOTAL'!$D$14:$AD$238,12,0) -> 96 | L38: 209 | M38: =VLOOKUP(E38,'LLEGADA PAIS NACIONALIDAD TOTAL'!$D$14:$T$238,16,0) -> 368 | N38: 219 | O38: =VLOOKUP(E38,'LLEGADA PAIS NACIONALIDAD TOTAL'!$D$14:$W$238,20,0) -> 95 | P38: =VLOOKUP(E38,'LLEGADA PAIS NACIONALIDAD TOTAL'!$D$14:$Z$238,22,0) -> 64 | Q38: =VLOOKUP(E38,'LLEGADA PAIS NACIONALIDAD TOTAL'!$D$14:$AB$238,24,0) -> 66 | R38: 1698 | T38: 0.1469416154
D39: 27 | E39: CURAZAO | F39: 295 | G39: 77 | H39: 59 | I39: 78 | J39: =VLOOKUP(E39,'LLEGADA PAIS NACIONALIDAD TOTAL'!$D$14:$AD$238,10,0) -> 110 | K39: =+VLOOKUP(E39,'LLEGADA PAIS NACIONALIDAD TOTAL'!$D$14:$AD$238,12,0) -> 33 | L39: 43 | M39: =VLOOKUP(E39,'LLEGADA PAIS NACIONALIDAD TOTAL'!$D$14:$T$238,16,0) -> 703 | N39: 59 | O39: =VLOOKUP(E39,'LLEGADA PAIS NACIONALIDAD TOTAL'!$D$14:$W$238,20,0) -> 137 | P39: =VLOOKUP(E39,'LLEGADA PAIS NACIONALIDAD TOTAL'!$D$14:$Z$238,22,0) -> 28 | Q39: =VLOOKUP(E39,'LLEGADA PAIS NACIONALIDAD TOTAL'!$D$14:$AB$238,24,0) -> 47 | R39: 1669 | T39: 0.1444320118
D40: 29 | E40: JAMAICA | F40: 19 | G40: 180 | H40: 41 | I40: 8 | J40: =VLOOKUP(E40,'LLEGADA PAIS NACIONALIDAD TOTAL'!$D$14:$AD$238,10,0) -> 33 | K40: =+VLOOKUP(E40,'LLEGADA PAIS NACIONALIDAD TOTAL'!$D$14:$AD$238,12,0) -> 15 | L40: 252 | M40: =VLOOKUP(E40,'LLEGADA PAIS NACIONALIDAD TOTAL'!$D$14:$T$238,16,0) -> 1024 | N40: 23 | O40: =VLOOKUP(E40,'LLEGADA PAIS NACIONALIDAD TOTAL'!$D$14:$W$238,20,0) -> 19 | P40: =VLOOKUP(E40,'LLEGADA PAIS NACIONALIDAD TOTAL'!$D$14:$Z$238,22,0) -> 15 | Q40: =VLOOKUP(E40,'LLEGADA PAIS NACIONALIDAD TOTAL'!$D$14:$AB$238,24,0) -> 23 | R40: 1652 | T40: 0.1429608649
D41: 28 | E41: NICARAGUA | F41: 319 | G41: 183 | H41: 291 | I41: 137 | J41: =VLOOKUP(E41,'LLEGADA PAIS NACIONALIDAD TOTAL'!$D$14:$AD$238,10,0) -> 90 | K41: =+VLOOKUP(E41,'LLEGADA PAIS NACIONALIDAD TOTAL'!$D$14:$AD$238,12,0) -> 77 | L41: 50 | M41: =VLOOKUP(E41,'LLEGADA PAIS NACIONALIDAD TOTAL'!$D$14:$T$238,16,0) -> 51 | N41: 44 | O41: =VLOOKUP(E41,'LLEGADA PAIS NACIONALIDAD TOTAL'!$D$14:$W$238,20,0) -> 76 | P41: =VLOOKUP(E41,'LLEGADA PAIS NACIONALIDAD TOTAL'!$D$14:$Z$238,22,0) -> 93 | Q41: =VLOOKUP(E41,'LLEGADA PAIS NACIONALIDAD TOTAL'!$D$14:$AB$238,24,0) -> 39 | R41: 1450 | T41: 0.125480178
D42: 30 | E42: URUGUAY | F42: 49 | G42: 137 | H42: 107 | I42: 167 | J42: =VLOOKUP(E42,'LLEGADA PAIS NACIONALIDAD TOTAL'!$D$14:$AD$238,10,0) -> 144 | K42: =+VLOOKUP(E42,'LLEGADA PAIS NACIONALIDAD TOTAL'!$D$14:$AD$238,12,0) -> 56 | L42: 90 | M42: =VLOOKUP(E42,'LLEGADA PAIS NACIONALIDAD TOTAL'!$D$14:$T$238,16,0) -> 75 | N42: 74 | O42: =VLOOKUP(E42,'LLEGADA PAIS NACIONALIDAD TOTAL'!$D$14:$W$238,20,0) -> 124 | P42: =VLOOKUP(E42,'LLEGADA PAIS NACIONALIDAD TOTAL'!$D$14:$Z$238,22,0) -> 198 | Q42: =VLOOKUP(E42,'LLEGADA PAIS NACIONALIDAD TOTAL'!$D$14:$AB$238,24,0) -> 104 | R42: 1325 | T42: 0.1146629213
D43: 31 | E43: ISRAEL | F43: 32 | G43: 62 | H43: 62 | I43: 65 | J43: =VLOOKUP(E43,'LLEGADA PAIS NACIONALIDAD TOTAL'!$D$14:$AD$238,10,0) -> 79 | K43: =+VLOOKUP(E43,'LLEGADA PAIS NACIONALIDAD TOTAL'!$D$14:$AD$238,12,0) -> 93 | L43: 82 | M43: =VLOOKUP(E43,'LLEGADA PAIS NACIONALIDAD TOTAL'!$D$14:$T$238,16,0) -> 39 | N43: 190 | O43: =VLOOKUP(E43,'LLEGADA PAIS NACIONALIDAD TOTAL'!$D$14:$W$238,20,0) -> 107 | P43: =VLOOKUP(E43,'LLEGADA PAIS NACIONALIDAD TOTAL'!$D$14:$Z$238,22,0) -> 49 | Q43: =VLOOKUP(E43,'LLEGADA PAIS NACIONALIDAD TOTAL'!$D$14:$AB$238,24,0) -> 22 | R43: 882 | T43: 0.07632656346
D44: 32 | E44: PARAGUAY | F44: 50 | G44: 53 | H44: 63 | I44: 56 | J44: =VLOOKUP(E44,'LLEGADA PAIS NACIONALIDAD TOTAL'!$D$14:$AD$238,10,0) -> 97 | K44: =+VLOOKUP(E44,'LLEGADA PAIS NACIONALIDAD TOTAL'!$D$14:$AD$238,12,0) -> 33 | L44: 64 | M44: =VLOOKUP(E44,'LLEGADA PAIS NACIONALIDAD TOTAL'!$D$14:$T$238,16,0) -> 84 | N44: 95 | O44: =VLOOKUP(E44,'LLEGADA PAIS NACIONALIDAD TOTAL'!$D$14:$W$238,20,0) -> 69 | P44: =VLOOKUP(E44,'LLEGADA PAIS NACIONALIDAD TOTAL'!$D$14:$Z$238,22,0) -> 72 | Q44: =VLOOKUP(E44,'LLEGADA PAIS NACIONALIDAD TOTAL'!$D$14:$AB$238,24,0) -> 50 | R44: 786 | T44: 0.0680189103
D45: 33 | E45: AUSTRALIA | F45: 64 | G45: 106 | H45: 37 | I45: 25 | J45: =VLOOKUP(E45,'LLEGADA PAIS NACIONALIDAD TOTAL'!$D$14:$AD$238,10,0) -> 44 | K45: =+VLOOKUP(E45,'LLEGADA PAIS NACIONALIDAD TOTAL'!$D$14:$AD$238,12,0) -> 35 | L45: 147 | M45: =VLOOKUP(E45,'LLEGADA PAIS NACIONALIDAD TOTAL'!$D$14:$T$238,16,0) -> 60 | N45: 53 | O45: =VLOOKUP(E45,'LLEGADA PAIS NACIONALIDAD TOTAL'!$D$14:$W$238,20,0) -> 33 | P45: =VLOOKUP(E45,'LLEGADA PAIS NACIONALIDAD TOTAL'!$D$14:$Z$238,22,0) -> 46 | Q45: =VLOOKUP(E45,'LLEGADA PAIS NACIONALIDAD TOTAL'!$D$14:$AB$238,24,0) -> 58 | R45: 708 | T45: 0.0612689421
D46: 34 | E46: HAITI | F46: 133 | G46: 9 | H46: 125 | I46: 44 | J46: =VLOOKUP(E46,'LLEGADA PAIS NACIONALIDAD TOTAL'!$D$14:$AD$238,10,0) -> 42 | K46: =+VLOOKUP(E46,'LLEGADA PAIS NACIONALIDAD TOTAL'!$D$14:$AD$238,12,0) -> 49 | L46: 126 | M46: =VLOOKUP(E46,'LLEGADA PAIS NACIONALIDAD TOTAL'!$D$14:$T$238,16,0) -> 5 | N46: 19 | O46: =VLOOKUP(E46,'LLEGADA PAIS NACIONALIDAD TOTAL'!$D$14:$W$238,20,0) -> 27 | P46: =VLOOKUP(E46,'LLEGADA PAIS NACIONALIDAD TOTAL'!$D$14:$Z$238,22,0) -> 22 | Q46: =VLOOKUP(E46,'LLEGADA PAIS NACIONALIDAD TOTAL'!$D$14:$AB$238,24,0) -> 51 | R46: 652 | T46: =+R46/R$235*100 -> 0.05642281108
D47: 35 | E47: PUERTO RICO | F47: 48 | G47: 60 | H47: 51 | I47: 49 | J47: =VLOOKUP(E47,'LLEGADA PAIS NACIONALIDAD TOTAL'!$D$14:$AD$238,10,0) -> 36 | K47: =+VLOOKUP(E47,'LLEGADA PAIS NACIONALIDAD TOTAL'!$D$14:$AD$238,12,0) -> 54 | L47: 56 | M47: =VLOOKUP(E47,'LLEGADA PAIS NACIONALIDAD TOTAL'!$D$14:$T$238,16,0) -> 80 | N47: 34 | O47: =VLOOKUP(E47,'LLEGADA PAIS NACIONALIDAD TOTAL'!$D$14:$W$238,20,0) -> 63 | P47: =VLOOKUP(E47,'LLEGADA PAIS NACIONALIDAD TOTAL'!$D$14:$Z$238,22,0) -> 54 | Q47: =VLOOKUP(E47,'LLEGADA PAIS NACIONALIDAD TOTAL'!$D$14:$AB$238,24,0) -> 54 | R47: 639 | T47: =+R47/R$235*100 -> 0.05529781639
D48: 36 | E48: SUECIA | F48: 47 | G48: 45 | H48: 59 | I48: 24 | J48: =VLOOKUP(E48,'LLEGADA PAIS NACIONALIDAD TOTAL'!$D$14:$AD$238,10,0) -> 36 | K48: =+VLOOKUP(E48,'LLEGADA PAIS NACIONALIDAD TOTAL'!$D$14:$AD$238,12,0) -> 40 | L48: 58 | M48: =VLOOKUP(E48,'LLEGADA PAIS NACIONALIDAD TOTAL'!$D$14:$T$238,16,0) -> 75 | N48: 21 | O48: =VLOOKUP(E48,'LLEGADA PAIS NACIONALIDAD TOTAL'!$D$14:$W$238,20,0) -> 11 | P48: =VLOOKUP(E48,'LLEGADA PAIS NACIONALIDAD TOTAL'!$D$14:$Z$238,22,0) -> 23 | Q48: =VLOOKUP(E48,'LLEGADA PAIS NACIONALIDAD TOTAL'!$D$14:$AB$238,24,0) -> 13 | R48: 452 | T48: 0.03911520032
D49: 38 | E49: EGIPTO | F49: 4 | G49: 47 | H49: 43 | I49: 50 | J49: =VLOOKUP(E49,'LLEGADA PAIS NACIONALIDAD TOTAL'!$D$14:$AD$238,10,0) -> 50 | K49: =+VLOOKUP(E49,'LLEGADA PAIS NACIONALIDAD TOTAL'!$D$14:$AD$238,12,0) -> 30 | L49: 70 | M49: =VLOOKUP(E49,'LLEGADA PAIS NACIONALIDAD TOTAL'!$D$14:$T$238,16,0) -> 39 | N49: 36 | O49: =VLOOKUP(E49,'LLEGADA PAIS NACIONALIDAD TOTAL'!$D$14:$W$238,20,0) -> 72 | P49: =VLOOKUP(E49,'LLEGADA PAIS NACIONALIDAD TOTAL'!$D$14:$Z$238,22,0) -> 6 | Q49: =VLOOKUP(E49,'LLEGADA PAIS NACIONALIDAD TOTAL'!$D$14:$AB$238,24,0) -> 3 | R49: 450 | T49: 0.03894212421
D50: 37 | E50: BAHAMAS | F50: 49 | G50: 29 | H50: 11 | I50: 18 | J50: =VLOOKUP(E50,'LLEGADA PAIS NACIONALIDAD TOTAL'!$D$14:$AD$238,10,0) -> 25 | K50: =+VLOOKUP(E50,'LLEGADA PAIS NACIONALIDAD TOTAL'!$D$14:$AD$238,12,0) -> 71 | L50: 25 | M50: =VLOOKUP(E50,'LLEGADA PAIS NACIONALIDAD TOTAL'!$D$14:$T$238,16,0) -> 76 | N50: 35 | O50: =VLOOKUP(E50,'LLEGADA PAIS NACIONALIDAD TOTAL'!$D$14:$W$238,20,0) -> 30 | P50: =VLOOKUP(E50,'LLEGADA PAIS NACIONALIDAD TOTAL'!$D$14:$Z$238,22,0) -> 16 | Q50: =VLOOKUP(E50,'LLEGADA PAIS NACIONALIDAD TOTAL'!$D$14:$AB$238,24,0) -> 19 | R50: 404 | T50: 0.03496137374
D51: 39 | E51: UCRANIA | F51: 7 | G51: 4 | H51: 4 | I51: 4 | J51: =VLOOKUP(E51,'LLEGADA PAIS NACIONALIDAD TOTAL'!$D$14:$AD$238,10,0) -> 10 | K51: =+VLOOKUP(E51,'LLEGADA PAIS NACIONALIDAD TOTAL'!$D$14:$AD$238,12,0) -> 5 | L51: 36 | M51: =VLOOKUP(E51,'LLEGADA PAIS NACIONALIDAD TOTAL'!$D$14:$T$238,16,0) -> 40 | N51: 38 | O51: =VLOOKUP(E51,'LLEGADA PAIS NACIONALIDAD TOTAL'!$D$14:$W$238,20,0) -> 131 | P51: =VLOOKUP(E51,'LLEGADA PAIS NACIONALIDAD TOTAL'!$D$14:$Z$238,22,0) -> 50 | Q51: =VLOOKUP(E51,'LLEGADA PAIS NACIONALIDAD TOTAL'!$D$14:$AB$238,24,0) -> 65 | R51: 394 | T51: 0.0340959932
D52: 40 | E52: JAPÓN | F52: 26 | G52: 14 | H52: 25 | I52: 20 | J52: =VLOOKUP(E52,'LLEGADA PAIS NACIONALIDAD TOTAL'!$D$14:$AD$238,10,0) -> 30 | K52: =+VLOOKUP(E52,'LLEGADA PAIS NACIONALIDAD TOTAL'!$D$14:$AD$238,12,0) -> 20 | L52: 31 | M52: =VLOOKUP(E52,'LLEGADA PAIS NACIONALIDAD TOTAL'!$D$14:$T$238,16,0) -> 32 | N52: 35 | O52: =VLOOKUP(E52,'LLEGADA PAIS NACIONALIDAD TOTAL'!$D$14:$W$238,20,0) -> 54 | P52: =VLOOKUP(E52,'LLEGADA PAIS NACIONALIDAD TOTAL'!$D$14:$Z$238,22,0) -> 32 | Q52: =VLOOKUP(E52,'LLEGADA PAIS NACIONALIDAD TOTAL'!$D$14:$AB$238,24,0) -> 11 | R52: 330 | T52: 0.02855755776
D53: 41 | E53: AUSTRIA | F53: 25 | G53: 25 | H53: 28 | I53: 17 | J53: =VLOOKUP(E53,'LLEGADA PAIS NACIONALIDAD TOTAL'!$D$14:$AD$238,10,0) -> 29 | K53: =+VLOOKUP(E53,'LLEGADA PAIS NACIONALIDAD TOTAL'!$D$14:$AD$238,12,0) -> 16 | L53: 48 | M53: =VLOOKUP(E53,'LLEGADA PAIS NACIONALIDAD TOTAL'!$D$14:$T$238,16,0) -> 30 | N53: 47 | O53: =VLOOKUP(E53,'LLEGADA PAIS NACIONALIDAD TOTAL'!$D$14:$W$238,20,0) -> 26 | P53: =VLOOKUP(E53,'LLEGADA PAIS NACIONALIDAD TOTAL'!$D$14:$Z$238,22,0) -> 11 | Q53: =VLOOKUP(E53,'LLEGADA PAIS NACIONALIDAD TOTAL'!$D$14:$AB$238,24,0) -> 19 | R53: 321 | T53: 0.02777871527
D54: 42 | E54: TURQUÍA | F54: 18 | G54: 14 | H54: 31 | I54: 22 | J54: =VLOOKUP(E54,'LLEGADA PAIS NACIONALIDAD TOTAL'!$D$14:$AD$238,10,0) -> 34 | K54: =+VLOOKUP(E54,'LLEGADA PAIS NACIONALIDAD TOTAL'!$D$14:$AD$238,12,0) -> 31 | L54: 27 | M54: =VLOOKUP(E54,'LLEGADA PAIS NACIONALIDAD TOTAL'!$D$14:$T$238,16,0) -> 36 | N54: 44 | O54: =VLOOKUP(E54,'LLEGADA PAIS NACIONALIDAD TOTAL'!$D$14:$W$238,20,0) -> 23 | P54: =VLOOKUP(E54,'LLEGADA PAIS NACIONALIDAD TOTAL'!$D$14:$Z$238,22,0) -> 13 | Q54: =VLOOKUP(E54,'LLEGADA PAIS NACIONALIDAD TOTAL'!$D$14:$AB$238,24,0) -> 18 | R54: 311 | T54: 0.02691333474
D55: 43 | E55: EMIRATOS A. UNIDOS | F55: 35 | G55: 24 | H55: 17 | I55: 22 | J55: =VLOOKUP(E55,'LLEGADA PAIS NACIONALIDAD TOTAL'!$D$14:$AD$238,10,0) -> 32 | K55: =+VLOOKUP(E55,'LLEGADA PAIS NACIONALIDAD TOTAL'!$D$14:$AD$238,12,0) -> 13 | L55: 17 | M55: =VLOOKUP(E55,'LLEGADA PAIS NACIONALIDAD TOTAL'!$D$14:$T$238,16,0) -> 13 | N55: 24 | O55: =VLOOKUP(E55,'LLEGADA PAIS NACIONALIDAD TOTAL'!$D$14:$W$238,20,0) -> 34 | P55: =VLOOKUP(E55,'LLEGADA PAIS NACIONALIDAD TOTAL'!$D$14:$Z$238,22,0) -> 20 | Q55: =VLOOKUP(E55,'LLEGADA PAIS NACIONALIDAD TOTAL'!$D$14:$AB$238,24,0) -> 31 | R55: 282 | T55: 0.02440373117
D56: 44 | E56: INDIA | F56: 21 | G56: 23 | H56: 30 | I56: 6 | J56: =VLOOKUP(E56,'LLEGADA PAIS NACIONALIDAD TOTAL'!$D$14:$AD$238,10,0) -> 14 | K56: =+VLOOKUP(E56,'LLEGADA PAIS NACIONALIDAD TOTAL'!$D$14:$AD$238,12,0) -> 8 | L56: 17 | M56: =VLOOKUP(E56,'LLEGADA PAIS NACIONALIDAD TOTAL'!$D$14:$T$238,16,0) -> 3 | N56: 23 | O56: =VLOOKUP(E56,'LLEGADA PAIS NACIONALIDAD TOTAL'!$D$14:$W$238,20,0) -> 26 | P56: =VLOOKUP(E56,'LLEGADA PAIS NACIONALIDAD TOTAL'!$D$14:$Z$238,22,0) -> 39 | Q56: =VLOOKUP(E56,'LLEGADA PAIS NACIONALIDAD TOTAL'!$D$14:$AB$238,24,0) -> 72 | R56: 282 | T56: 0.02440373117
D57: 46 | E57: PORTUGAL | F57: 19 | G57: 16 | H57: 16 | I57: 33 | J57: =VLOOKUP(E57,'LLEGADA PAIS NACIONALIDAD TOTAL'!$D$14:$AD$238,10,0) -> 21 | K57: =+VLOOKUP(E57,'LLEGADA PAIS NACIONALIDAD TOTAL'!$D$14:$AD$238,12,0) -> 15 | L57: 28 | M57: =VLOOKUP(E57,'LLEGADA PAIS NACIONALIDAD TOTAL'!$D$14:$T$238,16,0) -> 4 | N57: 26 | O57: =VLOOKUP(E57,'LLEGADA PAIS NACIONALIDAD TOTAL'!$D$14:$W$238,20,0) -> 24 | P57: =VLOOKUP(E57,'LLEGADA PAIS NACIONALIDAD TOTAL'!$D$14:$Z$238,22,0) -> 31 | Q57: =VLOOKUP(E57,'LLEGADA PAIS NACIONALIDAD TOTAL'!$D$14:$AB$238,24,0) -> 15 | R57: 248 | T57: 0.02146143735
D58: 45 | E58: HONG KONG | F58: 12 | G58: 19 | H58: 16 | I58: 35 | J58: =VLOOKUP(E58,'LLEGADA PAIS NACIONALIDAD TOTAL'!$D$14:$AD$238,10,0) -> 16 | K58: =+VLOOKUP(E58,'LLEGADA PAIS NACIONALIDAD TOTAL'!$D$14:$AD$238,12,0) -> 24 | L58: 6 | M58: =VLOOKUP(E58,'LLEGADA PAIS NACIONALIDAD TOTAL'!$D$14:$T$238,16,0) -> 15 | N58: 9 | O58: =VLOOKUP(E58,'LLEGADA PAIS NACIONALIDAD TOTAL'!$D$14:$W$238,20,0) -> 48 | P58: =VLOOKUP(E58,'LLEGADA PAIS NACIONALIDAD TOTAL'!$D$14:$Z$238,22,0) -> 7 | Q58: =VLOOKUP(E58,'LLEGADA PAIS NACIONALIDAD TOTAL'!$D$14:$AB$238,24,0) -> 5 | R58: 212 | T58: 0.01834606741
D59: 47 | E59: NORUEGA | F59: 27 | G59: 13 | H59: 7 | I59: 16 | J59: =VLOOKUP(E59,'LLEGADA PAIS NACIONALIDAD TOTAL'!$D$14:$AD$238,10,0) -> 5 | K59: =+VLOOKUP(E59,'LLEGADA PAIS NACIONALIDAD TOTAL'!$D$14:$AD$238,12,0) -> 27 | L59: 31 | M59: =VLOOKUP(E59,'LLEGADA PAIS NACIONALIDAD TOTAL'!$D$14:$T$238,16,0) -> 34 | N59: 11 | O59: =VLOOKUP(E59,'LLEGADA PAIS NACIONALIDAD TOTAL'!$D$14:$W$238,20,0) -> 6 | P59: =VLOOKUP(E59,'LLEGADA PAIS NACIONALIDAD TOTAL'!$D$14:$Z$238,22,0) -> 19 | Q59: =VLOOKUP(E59,'LLEGADA PAIS NACIONALIDAD TOTAL'!$D$14:$AB$238,24,0) -> 11 | R59: 207 | T59: 0.01791337714
D60: 48 | E60: DINAMARCA | F60: 15 | G60: 15 | H60: 9 | I60: 15 | J60: =VLOOKUP(E60,'LLEGADA PAIS NACIONALIDAD TOTAL'!$D$14:$AD$238,10,0) -> 14 | K60: =+VLOOKUP(E60,'LLEGADA PAIS NACIONALIDAD TOTAL'!$D$14:$AD$238,12,0) -> 14 | L60: 26 | M60: =VLOOKUP(E60,'LLEGADA PAIS NACIONALIDAD TOTAL'!$D$14:$T$238,16,0) -> 35 | N60: 21 | O60: =VLOOKUP(E60,'LLEGADA PAIS NACIONALIDAD TOTAL'!$D$14:$W$238,20,0) -> 9 | P60: =VLOOKUP(E60,'LLEGADA PAIS NACIONALIDAD TOTAL'!$D$14:$Z$238,22,0) -> 10 | Q60: =VLOOKUP(E60,'LLEGADA PAIS NACIONALIDAD TOTAL'!$D$14:$AB$238,24,0) -> 11 | R60: 194 | T60: 0.01678838244
D61: 49 | E61: SAN MARINO | F61: 1 | G61: 0 | H61: 0 | I61: 0 | J61: =VLOOKUP(E61,'LLEGADA PAIS NACIONALIDAD TOTAL'!$D$14:$AD$238,10,0) -> 1 | K61: =+VLOOKUP(E61,'LLEGADA PAIS NACIONALIDAD TOTAL'!$D$14:$AD$238,12,0) -> 0 | L61: 7 | M61: =VLOOKUP(E61,'LLEGADA PAIS NACIONALIDAD TOTAL'!$D$14:$T$238,16,0) -> 136 | N61: 0 | O61: =VLOOKUP(E61,'LLEGADA PAIS NACIONALIDAD TOTAL'!$D$14:$W$238,20,0) -> 0 | P61: =VLOOKUP(E61,'LLEGADA PAIS NACIONALIDAD TOTAL'!$D$14:$Z$238,22,0) -> 1 | Q61: =VLOOKUP(E61,'LLEGADA PAIS NACIONALIDAD TOTAL'!$D$14:$AB$238,24,0) -> 0 | R61: 146 | T61: 0.01263455586
D62: 50 | E62: TRINIDAD Y TOBAGO | F62: 7 | G62: 11 | H62: 16 | I62: 1 | J62: =VLOOKUP(E62,'LLEGADA PAIS NACIONALIDAD TOTAL'!$D$14:$AD$238,10,0) -> 6 | K62: =+VLOOKUP(E62,'LLEGADA PAIS NACIONALIDAD TOTAL'!$D$14:$AD$238,12,0) -> 11 | L62: 17 | M62: =VLOOKUP(E62,'LLEGADA PAIS NACIONALIDAD TOTAL'!$D$14:$T$238,16,0) -> 25 | N62: 11 | O62: =VLOOKUP(E62,'LLEGADA PAIS NACIONALIDAD TOTAL'!$D$14:$W$238,20,0) -> 13 | P62: =VLOOKUP(E62,'LLEGADA PAIS NACIONALIDAD TOTAL'!$D$14:$Z$238,22,0) -> 13 | Q62: =VLOOKUP(E62,'LLEGADA PAIS NACIONALIDAD TOTAL'!$D$14:$AB$238,24,0) -> 11 | R62: 142 | T62: 0.01228840364
D63: 55 | E63: POLINESIA FRANCESA | F63: 0 | G63: 0 | H63: 0 | I63: 2 | J63: =VLOOKUP(E63,'LLEGADA PAIS NACIONALIDAD TOTAL'!$D$14:$AD$238,10,0) -> 0 | K63: =+VLOOKUP(E63,'LLEGADA PAIS NACIONALIDAD TOTAL'!$D$14:$AD$238,12,0) -> 0 | L63: 0 | M63: =VLOOKUP(E63,'LLEGADA PAIS NACIONALIDAD TOTAL'!$D$14:$T$238,16,0) -> 134 | N63: 0 | O63: =VLOOKUP(E63,'LLEGADA PAIS NACIONALIDAD TOTAL'!$D$14:$W$238,20,0) -> 0 | P63: =VLOOKUP(E63,'LLEGADA PAIS NACIONALIDAD TOTAL'!$D$14:$Z$238,22,0) -> 0 | Q63: =VLOOKUP(E63,'LLEGADA PAIS NACIONALIDAD TOTAL'!$D$14:$AB$238,24,0) -> 3 | R63: 139 | T63: =+R63/R$235*100 -> 0.01202878948
D64: 51 | E64: SURINAM | F64: 1 | G64: 0 | H64: 1 | I64: 0 | J64: =VLOOKUP(E64,'LLEGADA PAIS NACIONALIDAD TOTAL'!$D$14:$AD$238,10,0) -> 2 | K64: =+VLOOKUP(E64,'LLEGADA PAIS NACIONALIDAD TOTAL'!$D$14:$AD$238,12,0) -> 0 | L64: 1 | M64: =VLOOKUP(E64,'LLEGADA PAIS NACIONALIDAD TOTAL'!$D$14:$T$238,16,0) -> 19 | N64: 0 | O64: =VLOOKUP(E64,'LLEGADA PAIS NACIONALIDAD TOTAL'!$D$14:$W$238,20,0) -> 58 | P64: =VLOOKUP(E64,'LLEGADA PAIS NACIONALIDAD TOTAL'!$D$14:$Z$238,22,0) -> 54 | Q64: =VLOOKUP(E64,'LLEGADA PAIS NACIONALIDAD TOTAL'!$D$14:$AB$238,24,0) -> 2 | R64: 138 | T64: =+R64/R$235*100 -> 0.01194225143
D65: 52 | E65: AFRICA SUD OCCIDENTAL | F65: 5 | G65: 15 | H65: 13 | I65: 11 | J65: =VLOOKUP(E65,'LLEGADA PAIS NACIONALIDAD TOTAL'!$D$14:$AD$238,10,0) -> 17 | K65: =+VLOOKUP(E65,'LLEGADA PAIS NACIONALIDAD TOTAL'!$D$14:$AD$238,12,0) -> 7 | L65: 9 | M65: =VLOOKUP(E65,'LLEGADA PAIS NACIONALIDAD TOTAL'!$D$14:$T$238,16,0) -> 19 | N65: 7 | O65: =VLOOKUP(E65,'LLEGADA PAIS NACIONALIDAD TOTAL'!$D$14:$W$238,20,0) -> 9 | P65: =VLOOKUP(E65,'LLEGADA PAIS NACIONALIDAD TOTAL'!$D$14:$Z$238,22,0) -> 20 | Q65: =VLOOKUP(E65,'LLEGADA PAIS NACIONALIDAD TOTAL'!$D$14:$AB$238,24,0) -> 5 | R65: 137 | T65: 0.01185571337
D66: 53 | E66: SUDÁFRICA | F66: 5 | G66: 15 | H66: 13 | I66: 11 | J66: =VLOOKUP(E66,'LLEGADA PAIS NACIONALIDAD TOTAL'!$D$14:$AD$238,10,0) -> 17 | K66: =+VLOOKUP(E66,'LLEGADA PAIS NACIONALIDAD TOTAL'!$D$14:$AD$238,12,0) -> 7 | L66: 9 | M66: =VLOOKUP(E66,'LLEGADA PAIS NACIONALIDAD TOTAL'!$D$14:$T$238,16,0) -> 19 | N66: 7 | O66: =VLOOKUP(E66,'LLEGADA PAIS NACIONALIDAD TOTAL'!$D$14:$W$238,20,0) -> 9 | P66: =VLOOKUP(E66,'LLEGADA PAIS NACIONALIDAD TOTAL'!$D$14:$Z$238,22,0) -> 20 | Q66: =VLOOKUP(E66,'LLEGADA PAIS NACIONALIDAD TOTAL'!$D$14:$AB$238,24,0) -> 5 | R66: 137 | T66: 0.01185571337
D67: 54 | E67: ARABIA SAUDITA | F67: 9 | G67: 11 | H67: 5 | I67: 4 | J67: =VLOOKUP(E67,'LLEGADA PAIS NACIONALIDAD TOTAL'!$D$14:$AD$238,10,0) -> 1 | K67: =+VLOOKUP(E67,'LLEGADA PAIS NACIONALIDAD TOTAL'!$D$14:$AD$238,12,0) -> 7 | L67: 8 | M67: =VLOOKUP(E67,'LLEGADA PAIS NACIONALIDAD TOTAL'!$D$14:$T$238,16,0) -> 7 | N67: 10 | O67: =VLOOKUP(E67,'LLEGADA PAIS NACIONALIDAD TOTAL'!$D$14:$W$238,20,0) -> 20 | P67: =VLOOKUP(E67,'LLEGADA PAIS NACIONALIDAD TOTAL'!$D$14:$Z$238,22,0) -> 16 | Q67: =VLOOKUP(E67,'LLEGADA PAIS NACIONALIDAD TOTAL'!$D$14:$AB$238,24,0) -> 10 | R67: 108 | T67: 0.009346109812
D68: 58 | E68: TAIWAN-CHINA | F68: 4 | G68: 7 | H68: 10 | I68: 6 | J68: =VLOOKUP(E68,'LLEGADA PAIS NACIONALIDAD TOTAL'!$D$14:$AD$238,10,0) -> 4 | K68: =+VLOOKUP(E68,'LLEGADA PAIS NACIONALIDAD TOTAL'!$D$14:$AD$238,12,0) -> 6 | L68: 4 | M68: =VLOOKUP(E68,'LLEGADA PAIS NACIONALIDAD TOTAL'!$D$14:$T$238,16,0) -> 15 | N68: 16 | O68: =VLOOKUP(E68,'LLEGADA PAIS NACIONALIDAD TOTAL'!$D$14:$W$238,20,0) -> 20 | P68: =VLOOKUP(E68,'LLEGADA PAIS NACIONALIDAD TOTAL'!$D$14:$Z$238,22,0) -> 6 | Q68: =VLOOKUP(E68,'LLEGADA PAIS NACIONALIDAD TOTAL'!$D$14:$AB$238,24,0) -> 5 | R68: 103 | T68: 0.008913419543
D69: 57 | E69: FINLANDIA | F69: 11 | G69: 4 | H69: 16 | I69: 5 | J69: =VLOOKUP(E69,'LLEGADA PAIS NACIONALIDAD TOTAL'!$D$14:$AD$238,10,0) -> 10 | K69: =+VLOOKUP(E69,'LLEGADA PAIS NACIONALIDAD TOTAL'!$D$14:$AD$238,12,0) -> 11 | L69: 7 | M69: =VLOOKUP(E69,'LLEGADA PAIS NACIONALIDAD TOTAL'!$D$14:$T$238,16,0) -> 11 | N69: 5 | O69: =VLOOKUP(E69,'LLEGADA PAIS NACIONALIDAD TOTAL'!$D$14:$W$238,20,0) -> 8 | P69: =VLOOKUP(E69,'LLEGADA PAIS NACIONALIDAD TOTAL'!$D$14:$Z$238,22,0) -> 12 | Q69: =VLOOKUP(E69,'LLEGADA PAIS NACIONALIDAD TOTAL'!$D$14:$AB$238,24,0) -> 1 | R69: 101 | T69: 0.008740343435
D70: 56 | E70: POLONIA | F70: 7 | G70: 6 | H70: 2 | I70: 11 | J70: =VLOOKUP(E70,'LLEGADA PAIS NACIONALIDAD TOTAL'!$D$14:$AD$238,10,0) -> 7 | K70: =+VLOOKUP(E70,'LLEGADA PAIS NACIONALIDAD TOTAL'!$D$14:$AD$238,12,0) -> 8 | L70: 9 | M70: =VLOOKUP(E70,'LLEGADA PAIS NACIONALIDAD TOTAL'!$D$14:$T$238,16,0) -> 5 | N70: 14 | O70: =VLOOKUP(E70,'LLEGADA PAIS NACIONALIDAD TOTAL'!$D$14:$W$238,20,0) -> 3 | P70: =VLOOKUP(E70,'LLEGADA PAIS NACIONALIDAD TOTAL'!$D$14:$Z$238,22,0) -> 16 | Q70: =VLOOKUP(E70,'LLEGADA PAIS NACIONALIDAD TOTAL'!$D$14:$AB$238,24,0) -> 8 | R70: 96 | T70: 0.008307653166
D71: 59 | E71: TAILANDIA | F71: 4 | G71: 14 | H71: 9 | I71: 5 | J71: =VLOOKUP(E71,'LLEGADA PAIS NACIONALIDAD TOTAL'!$D$14:$AD$238,10,0) -> 6 | K71: =+VLOOKUP(E71,'LLEGADA PAIS NACIONALIDAD TOTAL'!$D$14:$AD$238,12,0) -> 8 | L71: 8 | M71: =VLOOKUP(E71,'LLEGADA PAIS NACIONALIDAD TOTAL'!$D$14:$T$238,16,0) -> 4 | N71: 8 | O71: =VLOOKUP(E71,'LLEGADA PAIS NACIONALIDAD TOTAL'!$D$14:$W$238,20,0) -> 12 | P71: =VLOOKUP(E71,'LLEGADA PAIS NACIONALIDAD TOTAL'!$D$14:$Z$238,22,0) -> 7 | Q71: =VLOOKUP(E71,'LLEGADA PAIS NACIONALIDAD TOTAL'!$D$14:$AB$238,24,0) -> 2 | R71: 87 | T71: 0.007528810682
D72: 60 | E72: IRAK | F72: 8 | G72: 3 | H72: 2 | I72: 10 | J72: =VLOOKUP(E72,'LLEGADA PAIS NACIONALIDAD TOTAL'!$D$14:$AD$238,10,0) -> 5 | K72: =+VLOOKUP(E72,'LLEGADA PAIS NACIONALIDAD TOTAL'!$D$14:$AD$238,12,0) -> 11 | L72: 8 | M72: =VLOOKUP(E72,'LLEGADA PAIS NACIONALIDAD TOTAL'!$D$14:$T$238,16,0) -> 12 | N72: 6 | O72: =VLOOKUP(E72,'LLEGADA PAIS NACIONALIDAD TOTAL'!$D$14:$W$238,20,0) -> 8 | P72: =VLOOKUP(E72,'LLEGADA PAIS NACIONALIDAD TOTAL'!$D$14:$Z$238,22,0) -> 8 | Q72: =VLOOKUP(E72,'LLEGADA PAIS NACIONALIDAD TOTAL'!$D$14:$AB$238,24,0) -> 4 | R72: 85 | T72: 0.007355734574
D73: 62 | E73: GRECIA | F73: 5 | G73: 2 | H73: 0 | I73: 11 | J73: =VLOOKUP(E73,'LLEGADA PAIS NACIONALIDAD TOTAL'!$D$14:$AD$238,10,0) -> 13 | K73: =+VLOOKUP(E73,'LLEGADA PAIS NACIONALIDAD TOTAL'!$D$14:$AD$238,12,0) -> 7 | L73: 11 | M73: =VLOOKUP(E73,'LLEGADA PAIS NACIONALIDAD TOTAL'!$D$14:$T$238,16,0) -> 10 | N73: 11 | O73: =VLOOKUP(E73,'LLEGADA PAIS NACIONALIDAD TOTAL'!$D$14:$W$238,20,0) -> 5 | P73: =VLOOKUP(E73,'LLEGADA PAIS NACIONALIDAD TOTAL'!$D$14:$Z$238,22,0) -> 6 | Q73: =VLOOKUP(E73,'LLEGADA PAIS NACIONALIDAD TOTAL'!$D$14:$AB$238,24,0) -> 1 | R73: 82 | T73: 0.007096120413
D74: 61 | E74: QATAR | F74: 2 | G74: 2 | H74: 1 | I74: 4 | J74: =VLOOKUP(E74,'LLEGADA PAIS NACIONALIDAD TOTAL'!$D$14:$AD$238,10,0) -> 6 | K74: =+VLOOKUP(E74,'LLEGADA PAIS NACIONALIDAD TOTAL'!$D$14:$AD$238,12,0) -> 2 | L74: 4 | M74: =VLOOKUP(E74,'LLEGADA PAIS NACIONALIDAD TOTAL'!$D$14:$T$238,16,0) -> 5 | N74: 3 | O74: =VLOOKUP(E74,'LLEGADA PAIS NACIONALIDAD TOTAL'!$D$14:$W$238,20,0) -> 41 | P74: =VLOOKUP(E74,'LLEGADA PAIS NACIONALIDAD TOTAL'!$D$14:$Z$238,22,0) -> 0 | Q74: =VLOOKUP(E74,'LLEGADA PAIS NACIONALIDAD TOTAL'!$D$14:$AB$238,24,0) -> 11 | R74: 81 | T74: 0.007009582359
D75: 63 | E75: SINGAPUR | F75: 13 | G75: 3 | H75: 2 | I75: 2 | J75: =VLOOKUP(E75,'LLEGADA PAIS NACIONALIDAD TOTAL'!$D$14:$AD$238,10,0) -> 4 | K75: =+VLOOKUP(E75,'LLEGADA PAIS NACIONALIDAD TOTAL'!$D$14:$AD$238,12,0) -> 3 | L75: 4 | M75: =VLOOKUP(E75,'LLEGADA PAIS NACIONALIDAD TOTAL'!$D$14:$T$238,16,0) -> 13 | N75: 8 | O75: =VLOOKUP(E75,'LLEGADA PAIS NACIONALIDAD TOTAL'!$D$14:$W$238,20,0) -> 11 | P75: =VLOOKUP(E75,'LLEGADA PAIS NACIONALIDAD TOTAL'!$D$14:$Z$238,22,0) -> 4 | Q75: =VLOOKUP(E75,'LLEGADA PAIS NACIONALIDAD TOTAL'!$D$14:$AB$238,24,0) -> 4 | R75: 71 | T75: 0.006144201821
D76: 64 | E76: MALASIA | F76: 12 | G76: 4 | H76: 1 | I76: 3 | J76: =VLOOKUP(E76,'LLEGADA PAIS NACIONALIDAD TOTAL'!$D$14:$AD$238,10,0) -> 5 | K76: =+VLOOKUP(E76,'LLEGADA PAIS NACIONALIDAD TOTAL'!$D$14:$AD$238,12,0) -> 6 | L76: 1 | M76: =VLOOKUP(E76,'LLEGADA PAIS NACIONALIDAD TOTAL'!$D$14:$T$238,16,0) -> 16 | N76: 6 | O76: =VLOOKUP(E76,'LLEGADA PAIS NACIONALIDAD TOTAL'!$D$14:$W$238,20,0) -> 8 | P76: =VLOOKUP(E76,'LLEGADA PAIS NACIONALIDAD TOTAL'!$D$14:$Z$238,22,0) -> 5 | Q76: =VLOOKUP(E76,'LLEGADA PAIS NACIONALIDAD TOTAL'!$D$14:$AB$238,24,0) -> 2 | R76: 69 | T76: 0.005971125713
D77: 65 | E77: ARGELIA | F77: 2 | G77: 25 | H77: 3 | I77: 6 | J77: =VLOOKUP(E77,'LLEGADA PAIS NACIONALIDAD TOTAL'!$D$14:$AD$238,10,0) -> 4 | K77: =+VLOOKUP(E77,'LLEGADA PAIS NACIONALIDAD TOTAL'!$D$14:$AD$238,12,0) -> 2 | L77: 4 | M77: =VLOOKUP(E77,'LLEGADA PAIS NACIONALIDAD TOTAL'!$D$14:$T$238,16,0) -> 3 | N77: 0 | O77: =VLOOKUP(E77,'LLEGADA PAIS NACIONALIDAD TOTAL'!$D$14:$W$238,20,0) -> 5 | P77: =VLOOKUP(E77,'LLEGADA PAIS NACIONALIDAD TOTAL'!$D$14:$Z$238,22,0) -> 9 | Q77: =VLOOKUP(E77,'LLEGADA PAIS NACIONALIDAD TOTAL'!$D$14:$AB$238,24,0) -> 3 | R77: 66 | T77: 0.005711511552
D78: 67 | E78: IRLANDA | F78: 3 | G78: 5 | H78: 5 | I78: 10 | J78: =VLOOKUP(E78,'LLEGADA PAIS NACIONALIDAD TOTAL'!$D$14:$AD$238,10,0) -> 4 | K78: =+VLOOKUP(E78,'LLEGADA PAIS NACIONALIDAD TOTAL'!$D$14:$AD$238,12,0) -> 8 | L78: 8 | M78: =VLOOKUP(E78,'LLEGADA PAIS NACIONALIDAD TOTAL'!$D$14:$T$238,16,0) -> 6 | N78: 2 | O78: =VLOOKUP(E78,'LLEGADA PAIS NACIONALIDAD TOTAL'!$D$14:$W$238,20,0) -> 8 | P78: =VLOOKUP(E78,'LLEGADA PAIS NACIONALIDAD TOTAL'!$D$14:$Z$238,22,0) -> 2 | Q78: =VLOOKUP(E78,'LLEGADA PAIS NACIONALIDAD TOTAL'!$D$14:$AB$238,24,0) -> 5 | R78: 66 | T78: 0.005711511552
D79: 68 | E79: NUEVA ZELANDIA | F79: 12 | G79: 4 | H79: 3 | I79: 2 | J79: =VLOOKUP(E79,'LLEGADA PAIS NACIONALIDAD TOTAL'!$D$14:$AD$238,10,0) -> 1 | K79: =+VLOOKUP(E79,'LLEGADA PAIS NACIONALIDAD TOTAL'!$D$14:$AD$238,12,0) -> 6 | L79: 10 | M79: =VLOOKUP(E79,'LLEGADA PAIS NACIONALIDAD TOTAL'!$D$14:$T$238,16,0) -> 7 | N79: 5 | O79: =VLOOKUP(E79,'LLEGADA PAIS NACIONALIDAD TOTAL'!$D$14:$W$238,20,0) -> 6 | P79: =VLOOKUP(E79,'LLEGADA PAIS NACIONALIDAD TOTAL'!$D$14:$Z$238,22,0) -> 7 | Q79: =VLOOKUP(E79,'LLEGADA PAIS NACIONALIDAD TOTAL'!$D$14:$AB$238,24,0) -> 2 | R79: 65 | T79: 0.005624973498
D80: 66 | E80: INDONESIA | F80: 6 | G80: 1 | H80: 3 | I80: 3 | J80: =VLOOKUP(E80,'LLEGADA PAIS NACIONALIDAD TOTAL'!$D$14:$AD$238,10,0) -> 4 | K80: =+VLOOKUP(E80,'LLEGADA PAIS NACIONALIDAD TOTAL'!$D$14:$AD$238,12,0) -> 5 | L80: 7 | M80: =VLOOKUP(E80,'LLEGADA PAIS NACIONALIDAD TOTAL'!$D$14:$T$238,16,0) -> 8 | N80: 3 | O80: =VLOOKUP(E80,'LLEGADA PAIS NACIONALIDAD TOTAL'!$D$14:$W$238,20,0) -> 9 | P80: =VLOOKUP(E80,'LLEGADA PAIS NACIONALIDAD TOTAL'!$D$14:$Z$238,22,0) -> 11 | Q80: =VLOOKUP(E80,'LLEGADA PAIS NACIONALIDAD TOTAL'!$D$14:$AB$238,24,0) -> 1 | R80: 61 | T80: 0.005278821282
D81: 69 | E81: KIRIBATI | F81: 6 | G81: 2 | H81: 3 | I81: 1 | J81: =VLOOKUP(E81,'LLEGADA PAIS NACIONALIDAD TOTAL'!$D$14:$AD$238,10,0) -> 21 | K81: =+VLOOKUP(E81,'LLEGADA PAIS NACIONALIDAD TOTAL'!$D$14:$AD$238,12,0) -> 9 | L81: 0 | M81: =VLOOKUP(E81,'LLEGADA PAIS NACIONALIDAD TOTAL'!$D$14:$T$238,16,0) -> 2 | N81: 2 | O81: =VLOOKUP(E81,'LLEGADA PAIS NACIONALIDAD TOTAL'!$D$14:$W$238,20,0) -> 0 | P81: =VLOOKUP(E81,'LLEGADA PAIS NACIONALIDAD TOTAL'!$D$14:$Z$238,22,0) -> 6 | Q81: =VLOOKUP(E81,'LLEGADA PAIS NACIONALIDAD TOTAL'!$D$14:$AB$238,24,0) -> 6 | R81: 58 | T81: 0.005019207121
D82: 70 | E82: ESCOCIA | F82: 5 | G82: 2 | H82: 4 | I82: 3 | J82: =VLOOKUP(E82,'LLEGADA PAIS NACIONALIDAD TOTAL'!$D$14:$AD$238,10,0) -> 4 | K82: =+VLOOKUP(E82,'LLEGADA PAIS NACIONALIDAD TOTAL'!$D$14:$AD$238,12,0) -> 3 | L82: 6 | M82: =VLOOKUP(E82,'LLEGADA PAIS NACIONALIDAD TOTAL'!$D$14:$T$238,16,0) -> 3 | N82: 9 | O82: =VLOOKUP(E82,'LLEGADA PAIS NACIONALIDAD TOTAL'!$D$14:$W$238,20,0) -> 5 | P82: =VLOOKUP(E82,'LLEGADA PAIS NACIONALIDAD TOTAL'!$D$14:$Z$238,22,0) -> 4 | Q82: =VLOOKUP(E82,'LLEGADA PAIS NACIONALIDAD TOTAL'!$D$14:$AB$238,24,0) -> 9 | R82: =SUM(F82:Q82) -> 57 | T82: 0.004932669067
D83: 73 | E83: CHECOSLOVAQUIA | F83: 1 | G83: 4 | H83: 1 | I83: 2 | J83: =VLOOKUP(E83,'LLEGADA PAIS NACIONALIDAD TOTAL'!$D$14:$AD$238,10,0) -> 8 | K83: =+VLOOKUP(E83,'LLEGADA PAIS NACIONALIDAD TOTAL'!$D$14:$AD$238,12,0) -> 2 | L83: 2 | M83: =VLOOKUP(E83,'LLEGADA PAIS NACIONALIDAD TOTAL'!$D$14:$T$238,16,0) -> 9 | N83: 14 | O83: =VLOOKUP(E83,'LLEGADA PAIS NACIONALIDAD TOTAL'!$D$14:$W$238,20,0) -> 2 | P83: =VLOOKUP(E83,'LLEGADA PAIS NACIONALIDAD TOTAL'!$D$14:$Z$238,22,0) -> 7 | Q83: =VLOOKUP(E83,'LLEGADA PAIS NACIONALIDAD TOTAL'!$D$14:$AB$238,24,0) -> 0 | R83: 52 | T83: 0.004499978798
D84: 71 | E84: FILIPINAS | F84: 2 | G84: 3 | H84: 2 | I84: 5 | J84: =VLOOKUP(E84,'LLEGADA PAIS NACIONALIDAD TOTAL'!$D$14:$AD$238,10,0) -> 2 | K84: =+VLOOKUP(E84,'LLEGADA PAIS NACIONALIDAD TOTAL'!$D$14:$AD$238,12,0) -> 5 | L84: 9 | M84: =VLOOKUP(E84,'LLEGADA PAIS NACIONALIDAD TOTAL'!$D$14:$T$238,16,0) -> 11 | N84: 6 | O84: =VLOOKUP(E84,'LLEGADA PAIS NACIONALIDAD TOTAL'!$D$14:$W$238,20,0) -> 1 | P84: =VLOOKUP(E84,'LLEGADA PAIS NACIONALIDAD TOTAL'!$D$14:$Z$238,22,0) -> 4 | Q84: =VLOOKUP(E84,'LLEGADA PAIS NACIONALIDAD TOTAL'!$D$14:$AB$238,24,0) -> 0 | R84: 50 | T84: 0.004326902691
D85: 72 | E85: BIELORUS | F85: 2 | G85: 5 | H85: 1 | I85: 1 | J85: =VLOOKUP(E85,'LLEGADA PAIS NACIONALIDAD TOTAL'!$D$14:$AD$238,10,0) -> 0 | K85: =+VLOOKUP(E85,'LLEGADA PAIS NACIONALIDAD TOTAL'!$D$14:$AD$238,12,0) -> 0 | L85: 3 | M85: =VLOOKUP(E85,'LLEGADA PAIS NACIONALIDAD TOTAL'!$D$14:$T$238,16,0) -> 2 | N85: 7 | O85: =VLOOKUP(E85,'LLEGADA PAIS NACIONALIDAD TOTAL'!$D$14:$W$238,20,0) -> 20 | P85: =VLOOKUP(E85,'LLEGADA PAIS NACIONALIDAD TOTAL'!$D$14:$Z$238,22,0) -> 1 | Q85: =VLOOKUP(E85,'LLEGADA PAIS NACIONALIDAD TOTAL'!$D$14:$AB$238,24,0) -> 3 | R85: 45 | T85: 0.003894212421
D86: 75 | E86: RUMANIA | F86: 0 | G86: 1 | H86: 2 | I86: 1 | J86: =VLOOKUP(E86,'LLEGADA PAIS NACIONALIDAD TOTAL'!$D$14:$AD$238,10,0) -> 8 | K86: =+VLOOKUP(E86,'LLEGADA PAIS NACIONALIDAD TOTAL'!$D$14:$AD$238,12,0) -> 5 | L86: 8 | M86: =VLOOKUP(E86,'LLEGADA PAIS NACIONALIDAD TOTAL'!$D$14:$T$238,16,0) -> 4 | N86: 5 | O86: =VLOOKUP(E86,'LLEGADA PAIS NACIONALIDAD TOTAL'!$D$14:$W$238,20,0) -> 5 | P86: =VLOOKUP(E86,'LLEGADA PAIS NACIONALIDAD TOTAL'!$D$14:$Z$238,22,0) -> 1 | Q86: =VLOOKUP(E86,'LLEGADA PAIS NACIONALIDAD TOTAL'!$D$14:$AB$238,24,0) -> 4 | R86: 44 | T86: =+R86/R$235*100 -> 0.003807674368
D87: 76 | E87: HUNGRÍA | F87: 0 | G87: 3 | H87: 1 | I87: 8 | J87: =VLOOKUP(E87,'LLEGADA PAIS NACIONALIDAD TOTAL'!$D$14:$AD$238,10,0) -> 6 | K87: =+VLOOKUP(E87,'LLEGADA PAIS NACIONALIDAD TOTAL'!$D$14:$AD$238,12,0) -> 1 | L87: 9 | M87: =VLOOKUP(E87,'LLEGADA PAIS NACIONALIDAD TOTAL'!$D$14:$T$238,16,0) -> 1 | N87: 7 | O87: =VLOOKUP(E87,'LLEGADA PAIS NACIONALIDAD TOTAL'!$D$14:$W$238,20,0) -> 2 | P87: =VLOOKUP(E87,'LLEGADA PAIS NACIONALIDAD TOTAL'!$D$14:$Z$238,22,0) -> 2 | Q87: =VLOOKUP(E87,'LLEGADA PAIS NACIONALIDAD TOTAL'!$D$14:$AB$238,24,0) -> 4 | R87: 44 | T87: =+R87/R$235*100 -> 0.003807674368
D88: 77 | E88: OMAN | F88: 13 | G88: 1 | H88: 2 | I88: 1 | J88: =VLOOKUP(E88,'LLEGADA PAIS NACIONALIDAD TOTAL'!$D$14:$AD$238,10,0) -> 2 | K88: =+VLOOKUP(E88,'LLEGADA PAIS NACIONALIDAD TOTAL'!$D$14:$AD$238,12,0) -> 0 | L88: 1 | M88: =VLOOKUP(E88,'LLEGADA PAIS NACIONALIDAD TOTAL'!$D$14:$T$238,16,0) -> 13 | N88: 3 | O88: =VLOOKUP(E88,'LLEGADA PAIS NACIONALIDAD TOTAL'!$D$14:$W$238,20,0) -> 2 | P88: =VLOOKUP(E88,'LLEGADA PAIS NACIONALIDAD TOTAL'!$D$14:$Z$238,22,0) -> 2 | Q88: =VLOOKUP(E88,'LLEGADA PAIS NACIONALIDAD TOTAL'!$D$14:$AB$238,24,0) -> 4 | R88: 44 | T88: =+R88/R$235*100 -> 0.003807674368
D89: 78 | E89: MARRUECOS | F89: 2 | G89: 1 | H89: 3 | I89: 0 | J89: =VLOOKUP(E89,'LLEGADA PAIS NACIONALIDAD TOTAL'!$D$14:$AD$238,10,0) -> 3 | K89: =+VLOOKUP(E89,'LLEGADA PAIS NACIONALIDAD TOTAL'!$D$14:$AD$238,12,0) -> 7 | L89: 0 | M89: =VLOOKUP(E89,'LLEGADA PAIS NACIONALIDAD TOTAL'!$D$14:$T$238,16,0) -> 1 | N89: 17 | O89: =VLOOKUP(E89,'LLEGADA PAIS NACIONALIDAD TOTAL'!$D$14:$W$238,20,0) -> 0 | P89: =VLOOKUP(E89,'LLEGADA PAIS NACIONALIDAD TOTAL'!$D$14:$Z$238,22,0) -> 9 | Q89: =VLOOKUP(E89,'LLEGADA PAIS NACIONALIDAD TOTAL'!$D$14:$AB$238,24,0) -> 0 | R89: 43 | T89: 0.003721136314
D90: 74 | E90: LÍBANO | F90: 0 | G90: 1 | H90: 2 | I90: 1 | J90: =VLOOKUP(E90,'LLEGADA PAIS NACIONALIDAD TOTAL'!$D$14:$AD$238,10,0) -> 0 | K90: =+VLOOKUP(E90,'LLEGADA PAIS NACIONALIDAD TOTAL'!$D$14:$AD$238,12,0) -> 12 | L90: 1 | M90: =VLOOKUP(E90,'LLEGADA PAIS NACIONALIDAD TOTAL'!$D$14:$T$238,16,0) -> 16 | N90: 4 | O90: =VLOOKUP(E90,'LLEGADA PAIS NACIONALIDAD TOTAL'!$D$14:$W$238,20,0) -> 1 | P90: =VLOOKUP(E90,'LLEGADA PAIS NACIONALIDAD TOTAL'!$D$14:$Z$238,22,0) -> 0 | Q90: =VLOOKUP(E90,'LLEGADA PAIS NACIONALIDAD TOTAL'!$D$14:$AB$238,24,0) -> 2 | R90: 40 | T90: 0.003461522152
D91: 79 | E91: ANGOLA | F91: 8 | G91: 1 | H91: 3 | I91: 1 | J91: =VLOOKUP(E91,'LLEGADA PAIS NACIONALIDAD TOTAL'!$D$14:$AD$238,10,0) -> 2 | K91: =+VLOOKUP(E91,'LLEGADA PAIS NACIONALIDAD TOTAL'!$D$14:$AD$238,12,0) -> 1 | L91: 5 | M91: =VLOOKUP(E91,'LLEGADA PAIS NACIONALIDAD TOTAL'!$D$14:$T$238,16,0) -> 7 | N91: 3 | O91: =VLOOKUP(E91,'LLEGADA PAIS NACIONALIDAD TOTAL'!$D$14:$W$238,20,0) -> 3 | P91: =VLOOKUP(E91,'LLEGADA PAIS NACIONALIDAD TOTAL'!$D$14:$Z$238,22,0) -> 2 | Q91: =VLOOKUP(E91,'LLEGADA PAIS NACIONALIDAD TOTAL'!$D$14:$AB$238,24,0) -> 0 | R91: 36 | T91: 0.003115369937
D92: 80 | E92: BELICE | F92: 13 | G92: 9 | H92: 7 | I92: 1 | J92: =VLOOKUP(E92,'LLEGADA PAIS NACIONALIDAD TOTAL'!$D$14:$AD$238,10,0) -> 0 | K92: =+VLOOKUP(E92,'LLEGADA PAIS NACIONALIDAD TOTAL'!$D$14:$AD$238,12,0) -> 1 | L92: 0 | M92: =VLOOKUP(E92,'LLEGADA PAIS NACIONALIDAD TOTAL'!$D$14:$T$238,16,0) -> 0 | N92: 0 | O92: =VLOOKUP(E92,'LLEGADA PAIS NACIONALIDAD TOTAL'!$D$14:$W$238,20,0) -> 1 | P92: =VLOOKUP(E92,'LLEGADA PAIS NACIONALIDAD TOTAL'!$D$14:$Z$238,22,0) -> 0 | Q92: =VLOOKUP(E92,'LLEGADA PAIS NACIONALIDAD TOTAL'!$D$14:$AB$238,24,0) -> 2 | R92: 34 | T92: 0.00294229383
D93: 82 | E93: KENIA | F93: 2 | G93: 2 | H93: 1 | I93: 2 | J93: =VLOOKUP(E93,'LLEGADA PAIS NACIONALIDAD TOTAL'!$D$14:$AD$238,10,0) -> 4 | K93: =+VLOOKUP(E93,'LLEGADA PAIS NACIONALIDAD TOTAL'!$D$14:$AD$238,12,0) -> 3 | L93: 2 | M93: =VLOOKUP(E93,'LLEGADA PAIS NACIONALIDAD TOTAL'!$D$14:$T$238,16,0) -> 9 | N93: 4 | O93: =VLOOKUP(E93,'LLEGADA PAIS NACIONALIDAD TOTAL'!$D$14:$W$238,20,0) -> 2 | P93: =VLOOKUP(E93,'LLEGADA PAIS NACIONALIDAD TOTAL'!$D$14:$Z$238,22,0) -> 2 | Q93: =VLOOKUP(E93,'LLEGADA PAIS NACIONALIDAD TOTAL'!$D$14:$AB$238,24,0) -> 0 | R93: 33 | T93: 0.002855755776
D94: 81 | E94: PAKISTÁN | F94: 4 | G94: 2 | H94: 2 | I94: 3 | J94: =VLOOKUP(E94,'LLEGADA PAIS NACIONALIDAD TOTAL'!$D$14:$AD$238,10,0) -> 1 | K94: =+VLOOKUP(E94,'LLEGADA PAIS NACIONALIDAD TOTAL'!$D$14:$AD$238,12,0) -> 1 | L94: 1 | M94: =VLOOKUP(E94,'LLEGADA PAIS NACIONALIDAD TOTAL'!$D$14:$T$238,16,0) -> 2 | N94: 4 | O94: =VLOOKUP(E94,'LLEGADA PAIS NACIONALIDAD TOTAL'!$D$14:$W$238,20,0) -> 7 | P94: =VLOOKUP(E94,'LLEGADA PAIS NACIONALIDAD TOTAL'!$D$14:$Z$238,22,0) -> 2 | Q94: =VLOOKUP(E94,'LLEGADA PAIS NACIONALIDAD TOTAL'!$D$14:$AB$238,24,0) -> 3 | R94: 32 | T94: 0.002769217722
D95: 83 | E95: LUXEMBURGO | F95: 2 | G95: 5 | H95: 3 | I95: 0 | J95: =VLOOKUP(E95,'LLEGADA PAIS NACIONALIDAD TOTAL'!$D$14:$AD$238,10,0) -> 0 | K95: =+VLOOKUP(E95,'LLEGADA PAIS NACIONALIDAD TOTAL'!$D$14:$AD$238,12,0) -> 0 | L95: 1 | M95: =VLOOKUP(E95,'LLEGADA PAIS NACIONALIDAD TOTAL'!$D$14:$T$238,16,0) -> 3 | N95: 6 | O95: =VLOOKUP(E95,'LLEGADA PAIS NACIONALIDAD TOTAL'!$D$14:$W$238,20,0) -> 4 | P95: =VLOOKUP(E95,'LLEGADA PAIS NACIONALIDAD TOTAL'!$D$14:$Z$238,22,0) -> 4 | Q95: =VLOOKUP(E95,'LLEGADA PAIS NACIONALIDAD TOTAL'!$D$14:$AB$238,24,0) -> 1 | R95: 29 | T95: 0.002509603561
D96: 84 | E96: KUWAIT | F96: 9 | G96: 2 | H96: 0 | I96: 1 | J96: =VLOOKUP(E96,'LLEGADA PAIS NACIONALIDAD TOTAL'!$D$14:$AD$238,10,0) -> 1 | K96: =+VLOOKUP(E96,'LLEGADA PAIS NACIONALIDAD TOTAL'!$D$14:$AD$238,12,0) -> 2 | L96: 1 | M96: =VLOOKUP(E96,'LLEGADA PAIS NACIONALIDAD TOTAL'!$D$14:$T$238,16,0) -> 9 | N96: 0 | O96: =VLOOKUP(E96,'LLEGADA PAIS NACIONALIDAD TOTAL'!$D$14:$W$238,20,0) -> 1 | P96: =VLOOKUP(E96,'LLEGADA PAIS NACIONALIDAD TOTAL'!$D$14:$Z$238,22,0) -> 0 | Q96: =VLOOKUP(E96,'LLEGADA PAIS NACIONALIDAD TOTAL'!$D$14:$AB$238,24,0) -> 2 | R96: 28 | T96: 0.002423065507
D97: 85 | E97: ETIOPIA | F97: 1 | G97: 1 | H97: 2 | I97: 0 | J97: =VLOOKUP(E97,'LLEGADA PAIS NACIONALIDAD TOTAL'!$D$14:$AD$238,10,0) -> 2 | K97: =+VLOOKUP(E97,'LLEGADA PAIS NACIONALIDAD TOTAL'!$D$14:$AD$238,12,0) -> 0 | L97: 3 | M97: =VLOOKUP(E97,'LLEGADA PAIS NACIONALIDAD TOTAL'!$D$14:$T$238,16,0) -> 0 | N97: 8 | O97: =VLOOKUP(E97,'LLEGADA PAIS NACIONALIDAD TOTAL'!$D$14:$W$238,20,0) -> 1 | P97: =VLOOKUP(E97,'LLEGADA PAIS NACIONALIDAD TOTAL'!$D$14:$Z$238,22,0) -> 2 | Q97: =VLOOKUP(E97,'LLEGADA PAIS NACIONALIDAD TOTAL'!$D$14:$AB$238,24,0) -> 2 | R97: 22 | T97: 0.001903837184
D98: 88 | E98: UZBEKISTAN | F98: 0 | G98: 0 | H98: 0 | I98: 21 | J98: =VLOOKUP(E98,'LLEGADA PAIS NACIONALIDAD TOTAL'!$D$14:$AD$238,10,0) -> 0 | K98: =+VLOOKUP(E98,'LLEGADA PAIS NACIONALIDAD TOTAL'!$D$14:$AD$238,12,0) -> 0 | L98: 0 | M98: =VLOOKUP(E98,'LLEGADA PAIS NACIONALIDAD TOTAL'!$D$14:$T$238,16,0) -> 0 | N98: 0 | O98: =VLOOKUP(E98,'LLEGADA PAIS NACIONALIDAD TOTAL'!$D$14:$W$238,20,0) -> 0 | P98: =VLOOKUP(E98,'LLEGADA PAIS NACIONALIDAD TOTAL'!$D$14:$Z$238,22,0) -> 0 | Q98: =VLOOKUP(E98,'LLEGADA PAIS NACIONALIDAD TOTAL'!$D$14:$AB$238,24,0) -> 0 | R98: 21 | T98: 0.00181729913
D99: 86 | E99: VIETNAM NORTE | F99: 5 | G99: 1 | H99: 0 | I99: 0 | J99: =VLOOKUP(E99,'LLEGADA PAIS NACIONALIDAD TOTAL'!$D$14:$AD$238,10,0) -> 1 | K99: =+VLOOKUP(E99,'LLEGADA PAIS NACIONALIDAD TOTAL'!$D$14:$AD$238,12,0) -> 3 | L99: 4 | M99: =VLOOKUP(E99,'LLEGADA PAIS NACIONALIDAD TOTAL'!$D$14:$T$238,16,0) -> 5 | N99: 0 | O99: =VLOOKUP(E99,'LLEGADA PAIS NACIONALIDAD TOTAL'!$D$14:$W$238,20,0) -> 0 | P99: =VLOOKUP(E99,'LLEGADA PAIS NACIONALIDAD TOTAL'!$D$14:$Z$238,22,0) -> 0 | Q99: =VLOOKUP(E99,'LLEGADA PAIS NACIONALIDAD TOTAL'!$D$14:$AB$238,24,0) -> 2 | R99: 21 | T99: 0.00181729913
D100: 89 | E100: VIETNAM SUR | F100: 5 | G100: 1 | H100: 0 | I100: 0 | J100: =VLOOKUP(E100,'LLEGADA PAIS NACIONALIDAD TOTAL'!$D$14:$AD$238,10,0) -> 1 | K100: =+VLOOKUP(E100,'LLEGADA PAIS NACIONALIDAD TOTAL'!$D$14:$AD$238,12,0) -> 3 | L100: 4 | M100: =VLOOKUP(E100,'LLEGADA PAIS NACIONALIDAD TOTAL'!$D$14:$T$238,16,0) -> 5 | N100: 0 | O100: =VLOOKUP(E100,'LLEGADA PAIS NACIONALIDAD TOTAL'!$D$14:$W$238,20,0) -> 0 | P100: =VLOOKUP(E100,'LLEGADA PAIS NACIONALIDAD TOTAL'!$D$14:$Z$238,22,0) -> 0 | Q100: =VLOOKUP(E100,'LLEGADA PAIS NACIONALIDAD TOTAL'!$D$14:$AB$238,24,0) -> 2 | R100: 21 | T100: 0.00181729913
D101: 90 | E101: CROACIA | F101: 1 | G101: 0 | H101: 5 | I101: 2 | J101: =VLOOKUP(E101,'LLEGADA PAIS NACIONALIDAD TOTAL'!$D$14:$AD$238,10,0) -> 1 | K101: =+VLOOKUP(E101,'LLEGADA PAIS NACIONALIDAD TOTAL'!$D$14:$AD$238,12,0) -> 1 | L101: 3 | M101: =VLOOKUP(E101,'LLEGADA PAIS NACIONALIDAD TOTAL'!$D$14:$T$238,16,0) -> 1 | N101: 2 | O101: =VLOOKUP(E101,'LLEGADA PAIS NACIONALIDAD TOTAL'!$D$14:$W$238,20,0) -> 0 | P101: =VLOOKUP(E101,'LLEGADA PAIS NACIONALIDAD TOTAL'!$D$14:$Z$238,22,0) -> 0 | Q101: =VLOOKUP(E101,'LLEGADA PAIS NACIONALIDAD TOTAL'!$D$14:$AB$238,24,0) -> 5 | R101: 21 | T101: 0.00181729913
D102: 93 | E102: GUINEA | F102: 7 | G102: 0 | H102: 2 | I102: 2 | J102: =VLOOKUP(E102,'LLEGADA PAIS NACIONALIDAD TOTAL'!$D$14:$AD$238,10,0) -> 2 | K102: =+VLOOKUP(E102,'LLEGADA PAIS NACIONALIDAD TOTAL'!$D$14:$AD$238,12,0) -> 0 | L102: 0 | M102: =VLOOKUP(E102,'LLEGADA PAIS NACIONALIDAD TOTAL'!$D$14:$T$238,16,0) -> 2 | N102: 1 | O102: =VLOOKUP(E102,'LLEGADA PAIS NACIONALIDAD TOTAL'!$D$14:$W$238,20,0) -> 3 | P102: =VLOOKUP(E102,'LLEGADA PAIS NACIONALIDAD TOTAL'!$D$14:$Z$238,22,0) -> 1 | Q102: =VLOOKUP(E102,'LLEGADA PAIS NACIONALIDAD TOTAL'!$D$14:$AB$238,24,0) -> 0 | R102: 20 | T102: 0.001730761076
D103: 87 | E103: MALTA | F103: 1 | G103: 2 | H103: 2 | I103: 1 | J103: =VLOOKUP(E103,'LLEGADA PAIS NACIONALIDAD TOTAL'!$D$14:$AD$238,10,0) -> 0 | K103: =+VLOOKUP(E103,'LLEGADA PAIS NACIONALIDAD TOTAL'!$D$14:$AD$238,12,0) -> 1 | L103: 2 | M103: =VLOOKUP(E103,'LLEGADA PAIS NACIONALIDAD TOTAL'!$D$14:$T$238,16,0) -> 1 | N103: 7 | O103: =VLOOKUP(E103,'LLEGADA PAIS NACIONALIDAD TOTAL'!$D$14:$W$238,20,0) -> 0 | P103: =VLOOKUP(E103,'LLEGADA PAIS NACIONALIDAD TOTAL'!$D$14:$Z$238,22,0) -> 2 | Q103: =VLOOKUP(E103,'LLEGADA PAIS NACIONALIDAD TOTAL'!$D$14:$AB$238,24,0) -> 0 | R103: 19 | T103: =+R103/R$235*100 -> 0.001644223022
D104: 91 | E104: GUYANA | F104: 2 | G104: 0 | H104: 3 | I104: 0 | J104: =VLOOKUP(E104,'LLEGADA PAIS NACIONALIDAD TOTAL'!$D$14:$AD$238,10,0) -> 6 | K104: =+VLOOKUP(E104,'LLEGADA PAIS NACIONALIDAD TOTAL'!$D$14:$AD$238,12,0) -> 1 | L104: 2 | M104: =VLOOKUP(E104,'LLEGADA PAIS NACIONALIDAD TOTAL'!$D$14:$T$238,16,0) -> 1 | N104: 0 | O104: =VLOOKUP(E104,'LLEGADA PAIS NACIONALIDAD TOTAL'!$D$14:$W$238,20,0) -> 2 | P104: =VLOOKUP(E104,'LLEGADA PAIS NACIONALIDAD TOTAL'!$D$14:$Z$238,22,0) -> 0 | Q104: =VLOOKUP(E104,'LLEGADA PAIS NACIONALIDAD TOTAL'!$D$14:$AB$238,24,0) -> 1 | R104: 18 | T104: =+R104/R$235*100 -> 0.001557684969
D105: 92 | E105: COSTA DE MARFIL | F105: 3 | G105: 4 | H105: 0 | I105: 2 | J105: =VLOOKUP(E105,'LLEGADA PAIS NACIONALIDAD TOTAL'!$D$14:$AD$238,10,0) -> 1 | K105: =+VLOOKUP(E105,'LLEGADA PAIS NACIONALIDAD TOTAL'!$D$14:$AD$238,12,0) -> 0 | L105: 1 | M105: =VLOOKUP(E105,'LLEGADA PAIS NACIONALIDAD TOTAL'!$D$14:$T$238,16,0) -> 2 | N105: 1 | O105: =VLOOKUP(E105,'LLEGADA PAIS NACIONALIDAD TOTAL'!$D$14:$W$238,20,0) -> 1 | P105: =VLOOKUP(E105,'LLEGADA PAIS NACIONALIDAD TOTAL'!$D$14:$Z$238,22,0) -> 0 | Q105: =VLOOKUP(E105,'LLEGADA PAIS NACIONALIDAD TOTAL'!$D$14:$AB$238,24,0) -> 1 | R105: 16 | T105: 0.001384608861
D106: 94 | E106: JORDANIA | F106: 2 | G106: 1 | H106: 1 | I106: 1 | J106: =VLOOKUP(E106,'LLEGADA PAIS NACIONALIDAD TOTAL'!$D$14:$AD$238,10,0) -> 1 | K106: =+VLOOKUP(E106,'LLEGADA PAIS NACIONALIDAD TOTAL'!$D$14:$AD$238,12,0) -> 0 | L106: 2 | M106: =VLOOKUP(E106,'LLEGADA PAIS NACIONALIDAD TOTAL'!$D$14:$T$238,16,0) -> 1 | N106: 3 | O106: =VLOOKUP(E106,'LLEGADA PAIS NACIONALIDAD TOTAL'!$D$14:$W$238,20,0) -> 3 | P106: =VLOOKUP(E106,'LLEGADA PAIS NACIONALIDAD TOTAL'!$D$14:$Z$238,22,0) -> 0 | Q106: =VLOOKUP(E106,'LLEGADA PAIS NACIONALIDAD TOTAL'!$D$14:$AB$238,24,0) -> 0 | R106: 15 | T106: 0.001298070807
D107: 95 | E107: ESTONIA | F107: 0 | G107: 0 | H107: 0 | I107: 1 | J107: =VLOOKUP(E107,'LLEGADA PAIS NACIONALIDAD TOTAL'!$D$14:$AD$238,10,0) -> 0 | K107: =+VLOOKUP(E107,'LLEGADA PAIS NACIONALIDAD TOTAL'!$D$14:$AD$238,12,0) -> 11 | L107: 0 | M107: =VLOOKUP(E107,'LLEGADA PAIS NACIONALIDAD TOTAL'!$D$14:$T$238,16,0) -> 1 | N107: 1 | O107: =VLOOKUP(E107,'LLEGADA PAIS NACIONALIDAD TOTAL'!$D$14:$W$238,20,0) -> 0 | P107: =VLOOKUP(E107,'LLEGADA PAIS NACIONALIDAD TOTAL'!$D$14:$Z$238,22,0) -> 0 | Q107: =VLOOKUP(E107,'LLEGADA PAIS NACIONALIDAD TOTAL'!$D$14:$AB$238,24,0) -> 0 | R107: 14 | T107: 0.001211532753
D108: 96 | E108: BERMUDAS | F108: 1 | G108: 1 | H108: 3 | I108: 1 | J108: =VLOOKUP(E108,'LLEGADA PAIS NACIONALIDAD TOTAL'!$D$14:$AD$238,10,0) -> 0 | K108: =+VLOOKUP(E108,'LLEGADA PAIS NACIONALIDAD TOTAL'!$D$14:$AD$238,12,0) -> 0 | L108: 0 | M108: =VLOOKUP(E108,'LLEGADA PAIS NACIONALIDAD TOTAL'!$D$14:$T$238,16,0) -> 3 | N108: 3 | O108: =VLOOKUP(E108,'LLEGADA PAIS NACIONALIDAD TOTAL'!$D$14:$W$238,20,0) -> 1 | P108: =VLOOKUP(E108,'LLEGADA PAIS NACIONALIDAD TOTAL'!$D$14:$Z$238,22,0) -> 0 | Q108: =VLOOKUP(E108,'LLEGADA PAIS NACIONALIDAD TOTAL'!$D$14:$AB$238,24,0) -> 1 | R108: 14 | T108: 0.001211532753
D109: 97 | E109: ESLOVENIA | F109: 1 | G109: 1 | H109: 1 | I109: 0 | J109: =VLOOKUP(E109,'LLEGADA PAIS NACIONALIDAD TOTAL'!$D$14:$AD$238,10,0) -> 0 | K109: =+VLOOKUP(E109,'LLEGADA PAIS NACIONALIDAD TOTAL'!$D$14:$AD$238,12,0) -> 1 | L109: 1 | M109: =VLOOKUP(E109,'LLEGADA PAIS NACIONALIDAD TOTAL'!$D$14:$T$238,16,0) -> 0 | N109: 0 | O109: =VLOOKUP(E109,'LLEGADA PAIS NACIONALIDAD TOTAL'!$D$14:$W$238,20,0) -> 7 | P109: =VLOOKUP(E109,'LLEGADA PAIS NACIONALIDAD TOTAL'!$D$14:$Z$238,22,0) -> 0 | Q109: =VLOOKUP(E109,'LLEGADA PAIS NACIONALIDAD TOTAL'!$D$14:$AB$238,24,0) -> 0 | R109: 12 | T109: 0.001038456646
D110: 98 | E110: SAMOA OCCIDENTAL | F110: 0 | G110: 1 | H110: 2 | I110: 0 | J110: =VLOOKUP(E110,'LLEGADA PAIS NACIONALIDAD TOTAL'!$D$14:$AD$238,10,0) -> 0 | K110: =+VLOOKUP(E110,'LLEGADA PAIS NACIONALIDAD TOTAL'!$D$14:$AD$238,12,0) -> 0 | L110: 6 | M110: =VLOOKUP(E110,'LLEGADA PAIS NACIONALIDAD TOTAL'!$D$14:$T$238,16,0) -> 0 | N110: 0 | O110: =VLOOKUP(E110,'LLEGADA PAIS NACIONALIDAD TOTAL'!$D$14:$W$238,20,0) -> 1 | P110: =VLOOKUP(E110,'LLEGADA PAIS NACIONALIDAD TOTAL'!$D$14:$Z$238,22,0) -> 0 | Q110: =VLOOKUP(E110,'LLEGADA PAIS NACIONALIDAD TOTAL'!$D$14:$AB$238,24,0) -> 1 | R110: 11 | T110: 0.0009519185919
D111: 99 | E111: KAZAJSTAN | F111: 2 | G111: 1 | H111: 2 | I111: 2 | J111: =VLOOKUP(E111,'LLEGADA PAIS NACIONALIDAD TOTAL'!$D$14:$AD$238,10,0) -> 0 | K111: =+VLOOKUP(E111,'LLEGADA PAIS NACIONALIDAD TOTAL'!$D$14:$AD$238,12,0) -> 0 | L111: 1 | M111: =VLOOKUP(E111,'LLEGADA PAIS NACIONALIDAD TOTAL'!$D$14:$T$238,16,0) -> 0 | N111: 1 | O111: =VLOOKUP(E111,'LLEGADA PAIS NACIONALIDAD TOTAL'!$D$14:$W$238,20,0) -> 1 | P111: =VLOOKUP(E111,'LLEGADA PAIS NACIONALIDAD TOTAL'!$D$14:$Z$238,22,0) -> 0 | Q111: =VLOOKUP(E111,'LLEGADA PAIS NACIONALIDAD TOTAL'!$D$14:$AB$238,24,0) -> 0 | R111: 10 | T111: 0.0008653805381
D112: 100 | E112: ANDORRA | F112: 2 | G112: 2 | H112: 0 | I112: 1 | J112: =VLOOKUP(E112,'LLEGADA PAIS NACIONALIDAD TOTAL'!$D$14:$AD$238,10,0) -> 0 | K112: =+VLOOKUP(E112,'LLEGADA PAIS NACIONALIDAD TOTAL'!$D$14:$AD$238,12,0) -> 0 | L112: 0 | M112: =VLOOKUP(E112,'LLEGADA PAIS NACIONALIDAD TOTAL'!$D$14:$T$238,16,0) -> 0 | N112: 0 | O112: =VLOOKUP(E112,'LLEGADA PAIS NACIONALIDAD TOTAL'!$D$14:$W$238,20,0) -> 1 | P112: =VLOOKUP(E112,'LLEGADA PAIS NACIONALIDAD TOTAL'!$D$14:$Z$238,22,0) -> 4 | Q112: =VLOOKUP(E112,'LLEGADA PAIS NACIONALIDAD TOTAL'!$D$14:$AB$238,24,0) -> 0 | R112: 10 | T112: 0.0008653805381
D113: 101 | E113: TÚNEZ | F113: 1 | G113: 1 | H113: 3 | I113: 1 | J113: =VLOOKUP(E113,'LLEGADA PAIS NACIONALIDAD TOTAL'!$D$14:$AD$238,10,0) -> 0 | K113: =+VLOOKUP(E113,'LLEGADA PAIS NACIONALIDAD TOTAL'!$D$14:$AD$238,12,0) -> 0 | L113: 0 | M113: =VLOOKUP(E113,'LLEGADA PAIS NACIONALIDAD TOTAL'!$D$14:$T$238,16,0) -> 1 | N113: 0 | O113: =VLOOKUP(E113,'LLEGADA PAIS NACIONALIDAD TOTAL'!$D$14:$W$238,20,0) -> 0 | P113: =VLOOKUP(E113,'LLEGADA PAIS NACIONALIDAD TOTAL'!$D$14:$Z$238,22,0) -> 2 | Q113: =VLOOKUP(E113,'LLEGADA PAIS NACIONALIDAD TOTAL'!$D$14:$AB$238,24,0) -> 0 | R113: 9 | T113: 0.0007788424843
D114: 102 | E114: GABON | F114: 2 | G114: 0 | H114: 0 | I114: 2 | J114: =VLOOKUP(E114,'LLEGADA PAIS NACIONALIDAD TOTAL'!$D$14:$AD$238,10,0) -> 0 | K114: =+VLOOKUP(E114,'LLEGADA PAIS NACIONALIDAD TOTAL'!$D$14:$AD$238,12,0) -> 0 | L114: 1 | M114: =VLOOKUP(E114,'LLEGADA PAIS NACIONALIDAD TOTAL'!$D$14:$T$238,16,0) -> 0 | N114: 2 | O114: =VLOOKUP(E114,'LLEGADA PAIS NACIONALIDAD TOTAL'!$D$14:$W$238,20,0) -> 0 | P114: =VLOOKUP(E114,'LLEGADA PAIS NACIONALIDAD TOTAL'!$D$14:$Z$238,22,0) -> 2 | Q114: =VLOOKUP(E114,'LLEGADA PAIS NACIONALIDAD TOTAL'!$D$14:$AB$238,24,0) -> 0 | R114: 9 | T114: 0.0007788424843
D115: 103 | E115: LIBIA | F115: 2 | G115: 0 | H115: 1 | I115: 1 | J115: =VLOOKUP(E115,'LLEGADA PAIS NACIONALIDAD TOTAL'!$D$14:$AD$238,10,0) -> 3 | K115: =+VLOOKUP(E115,'LLEGADA PAIS NACIONALIDAD TOTAL'!$D$14:$AD$238,12,0) -> 0 | L115: 0 | M115: =VLOOKUP(E115,'LLEGADA PAIS NACIONALIDAD TOTAL'!$D$14:$T$238,16,0) -> 0 | N115: 0 | O115: =VLOOKUP(E115,'LLEGADA PAIS NACIONALIDAD TOTAL'!$D$14:$W$238,20,0) -> 1 | P115: =VLOOKUP(E115,'LLEGADA PAIS NACIONALIDAD TOTAL'!$D$14:$Z$238,22,0) -> 0 | Q115: =VLOOKUP(E115,'LLEGADA PAIS NACIONALIDAD TOTAL'!$D$14:$AB$238,24,0) -> 0 | R115: 8 | T115: 0.0006923044305
D116: 104 | E116: AFGANISTAN | F116: 1 | G116: 0 | H116: 0 | I116: 1 | J116: =VLOOKUP(E116,'LLEGADA PAIS NACIONALIDAD TOTAL'!$D$14:$AD$238,10,0) -> 0 | K116: =+VLOOKUP(E116,'LLEGADA PAIS NACIONALIDAD TOTAL'!$D$14:$AD$238,12,0) -> 4 | L116: 0 | M116: =VLOOKUP(E116,'LLEGADA PAIS NACIONALIDAD TOTAL'!$D$14:$T$238,16,0) -> 1 | N116: 0 | O116: =VLOOKUP(E116,'LLEGADA PAIS NACIONALIDAD TOTAL'!$D$14:$W$238,20,0) -> 0 | P116: =VLOOKUP(E116,'LLEGADA PAIS NACIONALIDAD TOTAL'!$D$14:$Z$238,22,0) -> 1 | Q116: =VLOOKUP(E116,'LLEGADA PAIS NACIONALIDAD TOTAL'!$D$14:$AB$238,24,0) -> 0 | R116: 8 | T116: 0.0006923044305
D117: 105 | E117: BULGARIA | F117: 0 | G117: 0 | H117: 0 | I117: 0 | J117: =VLOOKUP(E117,'LLEGADA PAIS NACIONALIDAD TOTAL'!$D$14:$AD$238,10,0) -> 2 | K117: =+VLOOKUP(E117,'LLEGADA PAIS NACIONALIDAD TOTAL'!$D$14:$AD$238,12,0) -> 0 | L117: 3 | M117: =VLOOKUP(E117,'LLEGADA PAIS NACIONALIDAD TOTAL'!$D$14:$T$238,16,0) -> 0 | N117: 0 | O117: =VLOOKUP(E117,'LLEGADA PAIS NACIONALIDAD TOTAL'!$D$14:$W$238,20,0) -> 1 | P117: =VLOOKUP(E117,'LLEGADA PAIS NACIONALIDAD TOTAL'!$D$14:$Z$238,22,0) -> 1 | Q117: =VLOOKUP(E117,'LLEGADA PAIS NACIONALIDAD TOTAL'!$D$14:$AB$238,24,0) -> 1 | R117: 8 | T117: 0.0006923044305
D118: 110 | E118: GUADALUPE | F118: 2 | G118: 5 | H118: 0 | I118: 0 | J118: =VLOOKUP(E118,'LLEGADA PAIS NACIONALIDAD TOTAL'!$D$14:$AD$238,10,0) -> 0 | K118: =+VLOOKUP(E118,'LLEGADA PAIS NACIONALIDAD TOTAL'!$D$14:$AD$238,12,0) -> 0 | L118: 0 | M118: =VLOOKUP(E118,'LLEGADA PAIS NACIONALIDAD TOTAL'!$D$14:$T$238,16,0) -> 0 | N118: 0 | O118: =VLOOKUP(E118,'LLEGADA PAIS NACIONALIDAD TOTAL'!$D$14:$W$238,20,0) -> 0 | P118: =VLOOKUP(E118,'LLEGADA PAIS NACIONALIDAD TOTAL'!$D$14:$Z$238,22,0) -> 0 | Q118: =VLOOKUP(E118,'LLEGADA PAIS NACIONALIDAD TOTAL'!$D$14:$AB$238,24,0) -> 0 | R118: 7 | T118: 0.0006057663767
D119: 106 | E119: BARBADOS | F119: 0 | G119: 5 | H119: 0 | I119: 0 | J119: =VLOOKUP(E119,'LLEGADA PAIS NACIONALIDAD TOTAL'!$D$14:$AD$238,10,0) -> 0 | K119: =+VLOOKUP(E119,'LLEGADA PAIS NACIONALIDAD TOTAL'!$D$14:$AD$238,12,0) -> 1 | L119: 0 | M119: =VLOOKUP(E119,'LLEGADA PAIS NACIONALIDAD TOTAL'!$D$14:$T$238,16,0) -> 0 | N119: 1 | O119: =VLOOKUP(E119,'LLEGADA PAIS NACIONALIDAD TOTAL'!$D$14:$W$238,20,0) -> 0 | P119: =VLOOKUP(E119,'LLEGADA PAIS NACIONALIDAD TOTAL'!$D$14:$Z$238,22,0) -> 0 | Q119: =VLOOKUP(E119,'LLEGADA PAIS NACIONALIDAD TOTAL'!$D$14:$AB$238,24,0) -> 0 | R119: 7 | T119: 0.0006057663767
D120: 107 | E120: GUINEA ECUATORIAL | F120: 0 | G120: 1 | H120: 1 | I120: 1 | J120: =VLOOKUP(E120,'LLEGADA PAIS NACIONALIDAD TOTAL'!$D$14:$AD$238,10,0) -> 0 | K120: =+VLOOKUP(E120,'LLEGADA PAIS NACIONALIDAD TOTAL'!$D$14:$AD$238,12,0) -> 0 | L120: 2 | M120: =VLOOKUP(E120,'LLEGADA PAIS NACIONALIDAD TOTAL'!$D$14:$T$238,16,0) -> 0 | N120: 1 | O120: =VLOOKUP(E120,'LLEGADA PAIS NACIONALIDAD TOTAL'!$D$14:$W$238,20,0) -> 1 | P120: =VLOOKUP(E120,'LLEGADA PAIS NACIONALIDAD TOTAL'!$D$14:$Z$238,22,0) -> 0 | Q120: =VLOOKUP(E120,'LLEGADA PAIS NACIONALIDAD TOTAL'!$D$14:$AB$238,24,0) -> 0 | R120: 7 | T120: 0.0006057663767
D121: 108 | E121: MOZAMBIQUE | F121: 1 | G121: 1 | H121: 1 | I121: 0 | J121: =VLOOKUP(E121,'LLEGADA PAIS NACIONALIDAD TOTAL'!$D$14:$AD$238,10,0) -> 0 | K121: =+VLOOKUP(E121,'LLEGADA PAIS NACIONALIDAD TOTAL'!$D$14:$AD$238,12,0) -> 0 | L121: 1 | M121: =VLOOKUP(E121,'LLEGADA PAIS NACIONALIDAD TOTAL'!$D$14:$T$238,16,0) -> 0 | N121: 2 | O121: =VLOOKUP(E121,'LLEGADA PAIS NACIONALIDAD TOTAL'!$D$14:$W$238,20,0) -> 0 | P121: =VLOOKUP(E121,'LLEGADA PAIS NACIONALIDAD TOTAL'!$D$14:$Z$238,22,0) -> 1 | Q121: =VLOOKUP(E121,'LLEGADA PAIS NACIONALIDAD TOTAL'!$D$14:$AB$238,24,0) -> 0 | R121: 7 | T121: 0.0006057663767
D122: 109 | E122: LITUANIA | F122: 0 | G122: 0 | H122: 1 | I122: 1 | J122: =VLOOKUP(E122,'LLEGADA PAIS NACIONALIDAD TOTAL'!$D$14:$AD$238,10,0) -> 0 | K122: =+VLOOKUP(E122,'LLEGADA PAIS NACIONALIDAD TOTAL'!$D$14:$AD$238,12,0) -> 0 | L122: 3 | M122: =VLOOKUP(E122,'LLEGADA PAIS NACIONALIDAD TOTAL'!$D$14:$T$238,16,0) -> 0 | N122: 0 | O122: =VLOOKUP(E122,'LLEGADA PAIS NACIONALIDAD TOTAL'!$D$14:$W$238,20,0) -> 0 | P122: =VLOOKUP(E122,'LLEGADA PAIS NACIONALIDAD TOTAL'!$D$14:$Z$238,22,0) -> 1 | Q122: =VLOOKUP(E122,'LLEGADA PAIS NACIONALIDAD TOTAL'!$D$14:$AB$238,24,0) -> 1 | R122: 7 | T122: =+R122/R$235*100 -> 0.0006057663767
D123: 112 | E123: BANGLADESH | F123: 2 | G123: 0 | H123: 1 | I123: 0 | J123: =VLOOKUP(E123,'LLEGADA PAIS NACIONALIDAD TOTAL'!$D$14:$AD$238,10,0) -> 1 | K123: =+VLOOKUP(E123,'LLEGADA PAIS NACIONALIDAD TOTAL'!$D$14:$AD$238,12,0) -> 0 | L123: 1 | M123: =VLOOKUP(E123,'LLEGADA PAIS NACIONALIDAD TOTAL'!$D$14:$T$238,16,0) -> 0 | N123: 0 | O123: =VLOOKUP(E123,'LLEGADA PAIS NACIONALIDAD TOTAL'!$D$14:$W$238,20,0) -> 1 | P123: =VLOOKUP(E123,'LLEGADA PAIS NACIONALIDAD TOTAL'!$D$14:$Z$238,22,0) -> 0 | Q123: =VLOOKUP(E123,'LLEGADA PAIS NACIONALIDAD TOTAL'!$D$14:$AB$238,24,0) -> 0 | R123: 6 | T123: =+R123/R$235*100 -> 0.0005192283229
D124: 111 | E124: DOMINICA | F124: 0 | G124: 0 | H124: 0 | I124: 0 | J124: =VLOOKUP(E124,'LLEGADA PAIS NACIONALIDAD TOTAL'!$D$14:$AD$238,10,0) -> 3 | K124: =+VLOOKUP(E124,'LLEGADA PAIS NACIONALIDAD TOTAL'!$D$14:$AD$238,12,0) -> 0 | L124: 0 | M124: =VLOOKUP(E124,'LLEGADA PAIS NACIONALIDAD TOTAL'!$D$14:$T$238,16,0) -> 1 | N124: 0 | O124: =VLOOKUP(E124,'LLEGADA PAIS NACIONALIDAD TOTAL'!$D$14:$W$238,20,0) -> 1 | P124: =VLOOKUP(E124,'LLEGADA PAIS NACIONALIDAD TOTAL'!$D$14:$Z$238,22,0) -> 1 | Q124: =VLOOKUP(E124,'LLEGADA PAIS NACIONALIDAD TOTAL'!$D$14:$AB$238,24,0) -> 0 | R124: 6 | T124: 0.0005192283229
D125: 113 | E125: ISLANDIA | F125: 0 | G125: 0 | H125: 4 | I125: 0 | J125: =VLOOKUP(E125,'LLEGADA PAIS NACIONALIDAD TOTAL'!$D$14:$AD$238,10,0) -> 0 | K125: =+VLOOKUP(E125,'LLEGADA PAIS NACIONALIDAD TOTAL'!$D$14:$AD$238,12,0) -> 0 | L125: 0 | M125: =VLOOKUP(E125,'LLEGADA PAIS NACIONALIDAD TOTAL'!$D$14:$T$238,16,0) -> 0 | N125: 0 | O125: =VLOOKUP(E125,'LLEGADA PAIS NACIONALIDAD TOTAL'!$D$14:$W$238,20,0) -> 0 | P125: =VLOOKUP(E125,'LLEGADA PAIS NACIONALIDAD TOTAL'!$D$14:$Z$238,22,0) -> 0 | Q125: =VLOOKUP(E125,'LLEGADA PAIS NACIONALIDAD TOTAL'!$D$14:$AB$238,24,0) -> 2 | R125: 6 | T125: 0.0005192283229
D126: 116 | E126: NIGERIA | F126: 0 | G126: 0 | H126: 1 | I126: 2 | J126: =VLOOKUP(E126,'LLEGADA PAIS NACIONALIDAD TOTAL'!$D$14:$AD$238,10,0) -> 0 | K126: =+VLOOKUP(E126,'LLEGADA PAIS NACIONALIDAD TOTAL'!$D$14:$AD$238,12,0) -> 0 | L126: 0 | M126: =VLOOKUP(E126,'LLEGADA PAIS NACIONALIDAD TOTAL'!$D$14:$T$238,16,0) -> 0 | N126: 0 | O126: =VLOOKUP(E126,'LLEGADA PAIS NACIONALIDAD TOTAL'!$D$14:$W$238,20,0) -> 1 | P126: =VLOOKUP(E126,'LLEGADA PAIS NACIONALIDAD TOTAL'!$D$14:$Z$238,22,0) -> 0 | Q126: =VLOOKUP(E126,'LLEGADA PAIS NACIONALIDAD TOTAL'!$D$14:$AB$238,24,0) -> 2 | R126: 6 | T126: 0.0005192283229
D127: 123 | E127: AZERBAIYAN | F127: 0 | G127: 0 | H127: 3 | I127: 1 | J127: =VLOOKUP(E127,'LLEGADA PAIS NACIONALIDAD TOTAL'!$D$14:$AD$238,10,0) -> 0 | K127: =+VLOOKUP(E127,'LLEGADA PAIS NACIONALIDAD TOTAL'!$D$14:$AD$238,12,0) -> 0 | L127: 0 | M127: =VLOOKUP(E127,'LLEGADA PAIS NACIONALIDAD TOTAL'!$D$14:$T$238,16,0) -> 1 | N127: 0 | O127: =VLOOKUP(E127,'LLEGADA PAIS NACIONALIDAD TOTAL'!$D$14:$W$238,20,0) -> 0 | P127: =VLOOKUP(E127,'LLEGADA PAIS NACIONALIDAD TOTAL'!$D$14:$Z$238,22,0) -> 0 | Q127: =VLOOKUP(E127,'LLEGADA PAIS NACIONALIDAD TOTAL'!$D$14:$AB$238,24,0) -> 0 | R127: 5 | T127: 0.0004326902691
D128: 114 | E128: FIJI | F128: 0 | G128: 1 | H128: 0 | I128: 1 | J128: =VLOOKUP(E128,'LLEGADA PAIS NACIONALIDAD TOTAL'!$D$14:$AD$238,10,0) -> 0 | K128: =+VLOOKUP(E128,'LLEGADA PAIS NACIONALIDAD TOTAL'!$D$14:$AD$238,12,0) -> 0 | L128: 1 | M128: =VLOOKUP(E128,'LLEGADA PAIS NACIONALIDAD TOTAL'!$D$14:$T$238,16,0) -> 0 | N128: 1 | O128: =VLOOKUP(E128,'LLEGADA PAIS NACIONALIDAD TOTAL'!$D$14:$W$238,20,0) -> 0 | P128: =VLOOKUP(E128,'LLEGADA PAIS NACIONALIDAD TOTAL'!$D$14:$Z$238,22,0) -> 0 | Q128: =VLOOKUP(E128,'LLEGADA PAIS NACIONALIDAD TOTAL'!$D$14:$AB$238,24,0) -> 1 | R128: 5 | T128: 0.0004326902691
D129: 119 | E129: GAMBIA | F129: 0 | G129: 0 | H129: 0 | I129: 4 | J129: =VLOOKUP(E129,'LLEGADA PAIS NACIONALIDAD TOTAL'!$D$14:$AD$238,10,0) -> 0 | K129: =+VLOOKUP(E129,'LLEGADA PAIS NACIONALIDAD TOTAL'!$D$14:$AD$238,12,0) -> 0 | L129: 0 | M129: =VLOOKUP(E129,'LLEGADA PAIS NACIONALIDAD TOTAL'!$D$14:$T$238,16,0) -> 0 | N129: 0 | O129: =VLOOKUP(E129,'LLEGADA PAIS NACIONALIDAD TOTAL'!$D$14:$W$238,20,0) -> 0 | P129: =VLOOKUP(E129,'LLEGADA PAIS NACIONALIDAD TOTAL'!$D$14:$Z$238,22,0) -> 0 | Q129: =VLOOKUP(E129,'LLEGADA PAIS NACIONALIDAD TOTAL'!$D$14:$AB$238,24,0) -> 0 | R129: 4 | T129: 0.0003461522152
D130: 115 | E130: UGANDA | F130: 2 | G130: 1 | H130: 0 | I130: 0 | J130: =VLOOKUP(E130,'LLEGADA PAIS NACIONALIDAD TOTAL'!$D$14:$AD$238,10,0) -> 0 | K130: =+VLOOKUP(E130,'LLEGADA PAIS NACIONALIDAD TOTAL'!$D$14:$AD$238,12,0) -> 1 | L130: 0 | M130: =VLOOKUP(E130,'LLEGADA PAIS NACIONALIDAD TOTAL'!$D$14:$T$238,16,0) -> 0 | N130: 0 | O130: =VLOOKUP(E130,'LLEGADA PAIS NACIONALIDAD TOTAL'!$D$14:$W$238,20,0) -> 0 | P130: =VLOOKUP(E130,'LLEGADA PAIS NACIONALIDAD TOTAL'!$D$14:$Z$238,22,0) -> 0 | Q130: =VLOOKUP(E130,'LLEGADA PAIS NACIONALIDAD TOTAL'!$D$14:$AB$238,24,0) -> 0 | R130: 4 | T130: 0.0003461522152
D131: 117 | E131: ALBANIA | F131: 0 | G131: 1 | H131: 1 | I131: 1 | J131: =VLOOKUP(E131,'LLEGADA PAIS NACIONALIDAD TOTAL'!$D$14:$AD$238,10,0) -> 0 | K131: =+VLOOKUP(E131,'LLEGADA PAIS NACIONALIDAD TOTAL'!$D$14:$AD$238,12,0) -> 0 | L131: 1 | M131: =VLOOKUP(E131,'LLEGADA PAIS NACIONALIDAD TOTAL'!$D$14:$T$238,16,0) -> 0 | N131: 0 | O131: =VLOOKUP(E131,'LLEGADA PAIS NACIONALIDAD TOTAL'!$D$14:$W$238,20,0) -> 0 | P131: =VLOOKUP(E131,'LLEGADA PAIS NACIONALIDAD TOTAL'!$D$14:$Z$238,22,0) -> 0 | Q131: =VLOOKUP(E131,'LLEGADA PAIS NACIONALIDAD TOTAL'!$D$14:$AB$238,24,0) -> 0 | R131: 4 | T131: 0.0003461522152
D132: 118 | E132: RUSIA | F132: 0 | G132: 0 | H132: 0 | I132: 0 | J132: =VLOOKUP(E132,'LLEGADA PAIS NACIONALIDAD TOTAL'!$D$14:$AD$238,10,0) -> 0 | K132: =+VLOOKUP(E132,'LLEGADA PAIS NACIONALIDAD TOTAL'!$D$14:$AD$238,12,0) -> 0 | L132: 3 | M132: =VLOOKUP(E132,'LLEGADA PAIS NACIONALIDAD TOTAL'!$D$14:$T$238,16,0) -> 1 | N132: 0 | O132: =VLOOKUP(E132,'LLEGADA PAIS NACIONALIDAD TOTAL'!$D$14:$W$238,20,0) -> 0 | P132: =VLOOKUP(E132,'LLEGADA PAIS NACIONALIDAD TOTAL'!$D$14:$Z$238,22,0) -> 0 | Q132: =VLOOKUP(E132,'LLEGADA PAIS NACIONALIDAD TOTAL'!$D$14:$AB$238,24,0) -> 0 | R132: 4 | T132: 0.0003461522152
D133: 120 | E133: SANTA LUCÍA | F133: 2 | G133: 0 | H133: 0 | I133: 0 | J133: =VLOOKUP(E133,'LLEGADA PAIS NACIONALIDAD TOTAL'!$D$14:$AD$238,10,0) -> 0 | K133: =+VLOOKUP(E133,'LLEGADA PAIS NACIONALIDAD TOTAL'!$D$14:$AD$238,12,0) -> 0 | L133: 0 | M133: =VLOOKUP(E133,'LLEGADA PAIS NACIONALIDAD TOTAL'!$D$14:$T$238,16,0) -> 2 | N133: 0 | O133: =VLOOKUP(E133,'LLEGADA PAIS NACIONALIDAD TOTAL'!$D$14:$W$238,20,0) -> 0 | P133: =VLOOKUP(E133,'LLEGADA PAIS NACIONALIDAD TOTAL'!$D$14:$Z$238,22,0) -> 0 | Q133: =VLOOKUP(E133,'LLEGADA PAIS NACIONALIDAD TOTAL'!$D$14:$AB$238,24,0) -> 0 | R133: 4 | T133: 0.0003461522152
D134: 121 | E134: GRANADA | F134: 1 | G134: 0 | H134: 0 | I134: 0 | J134: =VLOOKUP(E134,'LLEGADA PAIS NACIONALIDAD TOTAL'!$D$14:$AD$238,10,0) -> 0 | K134: =+VLOOKUP(E134,'LLEGADA PAIS NACIONALIDAD TOTAL'!$D$14:$AD$238,12,0) -> 0 | L134: 1 | M134: =VLOOKUP(E134,'LLEGADA PAIS NACIONALIDAD TOTAL'!$D$14:$T$238,16,0) -> 2 | N134: 0 | O134: =VLOOKUP(E134,'LLEGADA PAIS NACIONALIDAD TOTAL'!$D$14:$W$238,20,0) -> 0 | P134: =VLOOKUP(E134,'LLEGADA PAIS NACIONALIDAD TOTAL'!$D$14:$Z$238,22,0) -> 0 | Q134: =VLOOKUP(E134,'LLEGADA PAIS NACIONALIDAD TOTAL'!$D$14:$AB$238,24,0) -> 0 | R134: 4 | T134: 0.0003461522152
D135: 122 | E135: CABO VERDE | F135: 1 | G135: 0 | H135: 0 | I135: 0 | J135: =VLOOKUP(E135,'LLEGADA PAIS NACIONALIDAD TOTAL'!$D$14:$AD$238,10,0) -> 0 | K135: =+VLOOKUP(E135,'LLEGADA PAIS NACIONALIDAD TOTAL'!$D$14:$AD$238,12,0) -> 0 | L135: 0 | M135: =VLOOKUP(E135,'LLEGADA PAIS NACIONALIDAD TOTAL'!$D$14:$T$238,16,0) -> 0 | N135: 0 | O135: =VLOOKUP(E135,'LLEGADA PAIS NACIONALIDAD TOTAL'!$D$14:$W$238,20,0) -> 3 | P135: =VLOOKUP(E135,'LLEGADA PAIS NACIONALIDAD TOTAL'!$D$14:$Z$238,22,0) -> 0 | Q135: =VLOOKUP(E135,'LLEGADA PAIS NACIONALIDAD TOTAL'!$D$14:$AB$238,24,0) -> 0 | R135: 4 | T135: 0.0003461522152
D136: 124 | E136: SANTO TOME Y PRINCIPE | F136: 0 | G136: 0 | H136: 1 | I136: 0 | J136: =VLOOKUP(E136,'LLEGADA PAIS NACIONALIDAD TOTAL'!$D$14:$AD$238,10,0) -> 0 | K136: =+VLOOKUP(E136,'LLEGADA PAIS NACIONALIDAD TOTAL'!$D$14:$AD$238,12,0) -> 0 | L136: 0 | M136: =VLOOKUP(E136,'LLEGADA PAIS NACIONALIDAD TOTAL'!$D$14:$T$238,16,0) -> 0 | N136: 0 | O136: =VLOOKUP(E136,'LLEGADA PAIS NACIONALIDAD TOTAL'!$D$14:$W$238,20,0) -> 3 | P136: =VLOOKUP(E136,'LLEGADA PAIS NACIONALIDAD TOTAL'!$D$14:$Z$238,22,0) -> 0 | Q136: =VLOOKUP(E136,'LLEGADA PAIS NACIONALIDAD TOTAL'!$D$14:$AB$238,24,0) -> 0 | R136: 4 | T136: 0.0003461522152
D137: 125 | E137: PAPUA NUEVA GUINEA | F137: 0 | G137: 0 | H137: 1 | I137: 0 | J137: =VLOOKUP(E137,'LLEGADA PAIS NACIONALIDAD TOTAL'!$D$14:$AD$238,10,0) -> 0 | K137: =+VLOOKUP(E137,'LLEGADA PAIS NACIONALIDAD TOTAL'!$D$14:$AD$238,12,0) -> 0 | L137: 0 | M137: =VLOOKUP(E137,'LLEGADA PAIS NACIONALIDAD TOTAL'!$D$14:$T$238,16,0) -> 0 | N137: 0 | O137: =VLOOKUP(E137,'LLEGADA PAIS NACIONALIDAD TOTAL'!$D$14:$W$238,20,0) -> 3 | P137: =VLOOKUP(E137,'LLEGADA PAIS NACIONALIDAD TOTAL'!$D$14:$Z$238,22,0) -> 0 | Q137: =VLOOKUP(E137,'LLEGADA PAIS NACIONALIDAD TOTAL'!$D$14:$AB$238,24,0) -> 0 | R137: 4 | T137: 0.0003461522152
D138: 126 | E138: LIBERIA | F138: 1 | G138: 0 | H138: 0 | I138: 0 | J138: =VLOOKUP(E138,'LLEGADA PAIS NACIONALIDAD TOTAL'!$D$14:$AD$238,10,0) -> 0 | K138: =+VLOOKUP(E138,'LLEGADA PAIS NACIONALIDAD TOTAL'!$D$14:$AD$238,12,0) -> 0 | L138: 0 | M138: =VLOOKUP(E138,'LLEGADA PAIS NACIONALIDAD TOTAL'!$D$14:$T$238,16,0) -> 0 | N138: 1 | O138: =VLOOKUP(E138,'LLEGADA PAIS NACIONALIDAD TOTAL'!$D$14:$W$238,20,0) -> 0 | P138: =VLOOKUP(E138,'LLEGADA PAIS NACIONALIDAD TOTAL'!$D$14:$Z$238,22,0) -> 0 | Q138: =VLOOKUP(E138,'LLEGADA PAIS NACIONALIDAD TOTAL'!$D$14:$AB$238,24,0) -> 2 | R138: 4 | T138: 0.0003461522152
D139: 142 | E139: BRUNEI | F139: 0 | G139: 3 | H139: 0 | I139: 0 | J139: =VLOOKUP(E139,'LLEGADA PAIS NACIONALIDAD TOTAL'!$D$14:$AD$238,10,0) -> 0 | K139: =+VLOOKUP(E139,'LLEGADA PAIS NACIONALIDAD TOTAL'!$D$14:$AD$238,12,0) -> 0 | L139: 0 | M139: =VLOOKUP(E139,'LLEGADA PAIS NACIONALIDAD TOTAL'!$D$14:$T$238,16,0) -> 0 | N139: 0 | O139: =VLOOKUP(E139,'LLEGADA PAIS NACIONALIDAD TOTAL'!$D$14:$W$238,20,0) -> 0 | P139: =VLOOKUP(E139,'LLEGADA PAIS NACIONALIDAD TOTAL'!$D$14:$Z$238,22,0) -> 0 | Q139: =VLOOKUP(E139,'LLEGADA PAIS NACIONALIDAD TOTAL'!$D$14:$AB$238,24,0) -> 0 | R139: 3 | T139: 0.0002596141614
D140: 127 | E140: CAMERUN | F140: 0 | G140: 0 | H140: 1 | I140: 0 | J140: =VLOOKUP(E140,'LLEGADA PAIS NACIONALIDAD TOTAL'!$D$14:$AD$238,10,0) -> 0 | K140: =+VLOOKUP(E140,'LLEGADA PAIS NACIONALIDAD TOTAL'!$D$14:$AD$238,12,0) -> 1 | L140: 1 | M140: =VLOOKUP(E140,'LLEGADA PAIS NACIONALIDAD TOTAL'!$D$14:$T$238,16,0) -> 0 | N140: 0 | O140: =VLOOKUP(E140,'LLEGADA PAIS NACIONALIDAD TOTAL'!$D$14:$W$238,20,0) -> 0 | P140: =VLOOKUP(E140,'LLEGADA PAIS NACIONALIDAD TOTAL'!$D$14:$Z$238,22,0) -> 0 | Q140: =VLOOKUP(E140,'LLEGADA PAIS NACIONALIDAD TOTAL'!$D$14:$AB$238,24,0) -> 0 | R140: 3 | T140: 0.0002596141614
D141: 128 | E141: MÓNACO | F141: 0 | G141: 0 | H141: 1 | I141: 0 | J141: =VLOOKUP(E141,'LLEGADA PAIS NACIONALIDAD TOTAL'!$D$14:$AD$238,10,0) -> 0 | K141: =+VLOOKUP(E141,'LLEGADA PAIS NACIONALIDAD TOTAL'!$D$14:$AD$238,12,0) -> 0 | L141: 2 | M141: =VLOOKUP(E141,'LLEGADA PAIS NACIONALIDAD TOTAL'!$D$14:$T$238,16,0) -> 0 | N141: 0 | O141: =VLOOKUP(E141,'LLEGADA PAIS NACIONALIDAD TOTAL'!$D$14:$W$238,20,0) -> 0 | P141: =VLOOKUP(E141,'LLEGADA PAIS NACIONALIDAD TOTAL'!$D$14:$Z$238,22,0) -> 0 | Q141: =VLOOKUP(E141,'LLEGADA PAIS NACIONALIDAD TOTAL'!$D$14:$AB$238,24,0) -> 0 | R141: 3 | T141: 0.0002596141614
D142: 129 | E142: LIECHTENSTEIN | F142: 0 | G142: 0 | H142: 0 | I142: 0 | J142: =VLOOKUP(E142,'LLEGADA PAIS NACIONALIDAD TOTAL'!$D$14:$AD$238,10,0) -> 1 | K142: =+VLOOKUP(E142,'LLEGADA PAIS NACIONALIDAD TOTAL'!$D$14:$AD$238,12,0) -> 0 | L142: 2 | M142: =VLOOKUP(E142,'LLEGADA PAIS NACIONALIDAD TOTAL'!$D$14:$T$238,16,0) -> 0 | N142: 0 | O142: =VLOOKUP(E142,'LLEGADA PAIS NACIONALIDAD TOTAL'!$D$14:$W$238,20,0) -> 0 | P142: =VLOOKUP(E142,'LLEGADA PAIS NACIONALIDAD TOTAL'!$D$14:$Z$238,22,0) -> 0 | Q142: =VLOOKUP(E142,'LLEGADA PAIS NACIONALIDAD TOTAL'!$D$14:$AB$238,24,0) -> 0 | R142: 3 | T142: 0.0002596141614
D143: 130 | E143: SUDÁN | F143: 1 | G143: 0 | H143: 0 | I143: 0 | J143: =VLOOKUP(E143,'LLEGADA PAIS NACIONALIDAD TOTAL'!$D$14:$AD$238,10,0) -> 0 | K143: =+VLOOKUP(E143,'LLEGADA PAIS NACIONALIDAD TOTAL'!$D$14:$AD$238,12,0) -> 0 | L143: 1 | M143: =VLOOKUP(E143,'LLEGADA PAIS NACIONALIDAD TOTAL'!$D$14:$T$238,16,0) -> 1 | N143: 0 | O143: =VLOOKUP(E143,'LLEGADA PAIS NACIONALIDAD TOTAL'!$D$14:$W$238,20,0) -> 0 | P143: =VLOOKUP(E143,'LLEGADA PAIS NACIONALIDAD TOTAL'!$D$14:$Z$238,22,0) -> 0 | Q143: =VLOOKUP(E143,'LLEGADA PAIS NACIONALIDAD TOTAL'!$D$14:$AB$238,24,0) -> 0 | R143: 3 | T143: 0.0002596141614
D144: 131 | E144: YUGOSLAVIA | F144: 0 | G144: 0 | H144: 1 | I144: 0 | J144: =VLOOKUP(E144,'LLEGADA PAIS NACIONALIDAD TOTAL'!$D$14:$AD$238,10,0) -> 0 | K144: =+VLOOKUP(E144,'LLEGADA PAIS NACIONALIDAD TOTAL'!$D$14:$AD$238,12,0) -> 0 | L144: 1 | M144: =VLOOKUP(E144,'LLEGADA PAIS NACIONALIDAD TOTAL'!$D$14:$T$238,16,0) -> 0 | N144: 1 | O144: =VLOOKUP(E144,'LLEGADA PAIS NACIONALIDAD TOTAL'!$D$14:$W$238,20,0) -> 0 | P144: =VLOOKUP(E144,'LLEGADA PAIS NACIONALIDAD TOTAL'!$D$14:$Z$238,22,0) -> 0 | Q144: =VLOOKUP(E144,'LLEGADA PAIS NACIONALIDAD TOTAL'!$D$14:$AB$238,24,0) -> 0 | R144: 3 | T144: 0.0002596141614
D145: 132 | E145: COREA SUR | F145: 0 | G145: 0 | H145: 0 | I145: 0 | J145: =VLOOKUP(E145,'LLEGADA PAIS NACIONALIDAD TOTAL'!$D$14:$AD$238,10,0) -> 0 | K145: =+VLOOKUP(E145,'LLEGADA PAIS NACIONALIDAD TOTAL'!$D$14:$AD$238,12,0) -> 0 | L145: 0 | M145: =VLOOKUP(E145,'LLEGADA PAIS NACIONALIDAD TOTAL'!$D$14:$T$238,16,0) -> 1 | N145: 2 | O145: =VLOOKUP(E145,'LLEGADA PAIS NACIONALIDAD TOTAL'!$D$14:$W$238,20,0) -> 0 | P145: =VLOOKUP(E145,'LLEGADA PAIS NACIONALIDAD TOTAL'!$D$14:$Z$238,22,0) -> 0 | Q145: =VLOOKUP(E145,'LLEGADA PAIS NACIONALIDAD TOTAL'!$D$14:$AB$238,24,0) -> 0 | R145: 3 | T145: =+R145/R$235*100 -> 0.0002596141614
D146: 133 | E146: MONGOLIA | F146: 0 | G146: 0 | H146: 0 | I146: 0 | J146: =VLOOKUP(E146,'LLEGADA PAIS NACIONALIDAD TOTAL'!$D$14:$AD$238,10,0) -> 0 | K146: =+VLOOKUP(E146,'LLEGADA PAIS NACIONALIDAD TOTAL'!$D$14:$AD$238,12,0) -> 0 | L146: 0 | M146: =VLOOKUP(E146,'LLEGADA PAIS NACIONALIDAD TOTAL'!$D$14:$T$238,16,0) -> 0 | N146: 0 | O146: =VLOOKUP(E146,'LLEGADA PAIS NACIONALIDAD TOTAL'!$D$14:$W$238,20,0) -> 3 | P146: =VLOOKUP(E146,'LLEGADA PAIS NACIONALIDAD TOTAL'!$D$14:$Z$238,22,0) -> 0 | Q146: =VLOOKUP(E146,'LLEGADA PAIS NACIONALIDAD TOTAL'!$D$14:$AB$238,24,0) -> 0 | R146: =SUM(F146:Q146) -> 3 | T146: =+R146/R$235*100 -> 0.0002596141614
D147: 134 | E147: GHANA | F147: 0 | G147: 0 | H147: 1 | I147: 0 | J147: =VLOOKUP(E147,'LLEGADA PAIS NACIONALIDAD TOTAL'!$D$14:$AD$238,10,0) -> 0 | K147: =+VLOOKUP(E147,'LLEGADA PAIS NACIONALIDAD TOTAL'!$D$14:$AD$238,12,0) -> 1 | L147: 0 | M147: =VLOOKUP(E147,'LLEGADA PAIS NACIONALIDAD TOTAL'!$D$14:$T$238,16,0) -> 0 | N147: 0 | O147: =VLOOKUP(E147,'LLEGADA PAIS NACIONALIDAD TOTAL'!$D$14:$W$238,20,0) -> 0 | P147: =VLOOKUP(E147,'LLEGADA PAIS NACIONALIDAD TOTAL'!$D$14:$Z$238,22,0) -> 1 | Q147: =VLOOKUP(E147,'LLEGADA PAIS NACIONALIDAD TOTAL'!$D$14:$AB$238,24,0) -> 0 | R147: 3 | T147: 0.0002596141614
D148: 135 | E148: CONGO | F148: 0 | G148: 0 | H148: 0 | I148: 0 | J148: =VLOOKUP(E148,'LLEGADA PAIS NACIONALIDAD TOTAL'!$D$14:$AD$238,10,0) -> 0 | K148: =+VLOOKUP(E148,'LLEGADA PAIS NACIONALIDAD TOTAL'!$D$14:$AD$238,12,0) -> 0 | L148: 0 | M148: =VLOOKUP(E148,'LLEGADA PAIS NACIONALIDAD TOTAL'!$D$14:$T$238,16,0) -> 0 | N148: 1 | O148: =VLOOKUP(E148,'LLEGADA PAIS NACIONALIDAD TOTAL'!$D$14:$W$238,20,0) -> 1 | P148: =VLOOKUP(E148,'LLEGADA PAIS NACIONALIDAD TOTAL'!$D$14:$Z$238,22,0) -> 1 | Q148: =VLOOKUP(E148,'LLEGADA PAIS NACIONALIDAD TOTAL'!$D$14:$AB$238,24,0) -> 0 | R148: 3 | T148: 0.0002596141614
D149: 136 | E149: ANTIGUA BARBUDA | F149: 1 | G149: 0 | H149: 0 | I149: 0 | J149: =VLOOKUP(E149,'LLEGADA PAIS NACIONALIDAD TOTAL'!$D$14:$AD$238,10,0) -> 0 | K149: =+VLOOKUP(E149,'LLEGADA PAIS NACIONALIDAD TOTAL'!$D$14:$AD$238,12,0) -> 0 | L149: 1 | M149: =VLOOKUP(E149,'LLEGADA PAIS NACIONALIDAD TOTAL'!$D$14:$T$238,16,0) -> 0 | N149: 0 | O149: =VLOOKUP(E149,'LLEGADA PAIS NACIONALIDAD TOTAL'!$D$14:$W$238,20,0) -> 0 | P149: =VLOOKUP(E149,'LLEGADA PAIS NACIONALIDAD TOTAL'!$D$14:$Z$238,22,0) -> 0 | Q149: =VLOOKUP(E149,'LLEGADA PAIS NACIONALIDAD TOTAL'!$D$14:$AB$238,24,0) -> 1 | R149: 3 | T149: 0.0002596141614
D150: 138 | E150: NUEVA CALEDONIA | F150: 0 | G150: 0 | H150: 0 | I150: 1 | J150: =VLOOKUP(E150,'LLEGADA PAIS NACIONALIDAD TOTAL'!$D$14:$AD$238,10,0) -> 1 | K150: =+VLOOKUP(E150,'LLEGADA PAIS NACIONALIDAD TOTAL'!$D$14:$AD$238,12,0) -> 0 | L150: 0 | M150: =VLOOKUP(E150,'LLEGADA PAIS NACIONALIDAD TOTAL'!$D$14:$T$238,16,0) -> 0 | N150: 0 | O150: =VLOOKUP(E150,'LLEGADA PAIS NACIONALIDAD TOTAL'!$D$14:$W$238,20,0) -> 0 | P150: =VLOOKUP(E150,'LLEGADA PAIS NACIONALIDAD TOTAL'!$D$14:$Z$238,22,0) -> 0 | Q150: =VLOOKUP(E150,'LLEGADA PAIS NACIONALIDAD TOTAL'!$D$14:$AB$238,24,0) -> 0 | R150: 2 | T150: 0.0001730761076
D151: 137 | E151: CHIPRE | F151: 0 | G151: 0 | H151: 0 | I151: 0 | J151: =VLOOKUP(E151,'LLEGADA PAIS NACIONALIDAD TOTAL'!$D$14:$AD$238,10,0) -> 0 | K151: =+VLOOKUP(E151,'LLEGADA PAIS NACIONALIDAD TOTAL'!$D$14:$AD$238,12,0) -> 0 | L151: 2 | M151: =VLOOKUP(E151,'LLEGADA PAIS NACIONALIDAD TOTAL'!$D$14:$T$238,16,0) -> 0 | N151: 0 | O151: =VLOOKUP(E151,'LLEGADA PAIS NACIONALIDAD TOTAL'!$D$14:$W$238,20,0) -> 0 | P151: =VLOOKUP(E151,'LLEGADA PAIS NACIONALIDAD TOTAL'!$D$14:$Z$238,22,0) -> 0 | Q151: =VLOOKUP(E151,'LLEGADA PAIS NACIONALIDAD TOTAL'!$D$14:$AB$238,24,0) -> 0 | R151: 2 | T151: 0.0001730761076
D152: 139 | E152: MAURICIO | F152: 0 | G152: 0 | H152: 0 | I152: 0 | J152: =VLOOKUP(E152,'LLEGADA PAIS NACIONALIDAD TOTAL'!$D$14:$AD$238,10,0) -> 0 | K152: =+VLOOKUP(E152,'LLEGADA PAIS NACIONALIDAD TOTAL'!$D$14:$AD$238,12,0) -> 0 | L152: 2 | M152: =VLOOKUP(E152,'LLEGADA PAIS NACIONALIDAD TOTAL'!$D$14:$T$238,16,0) -> 0 | N152: 0 | O152: =VLOOKUP(E152,'LLEGADA PAIS NACIONALIDAD TOTAL'!$D$14:$W$238,20,0) -> 0 | P152: =VLOOKUP(E152,'LLEGADA PAIS NACIONALIDAD TOTAL'!$D$14:$Z$238,22,0) -> 0 | Q152: =VLOOKUP(E152,'LLEGADA PAIS NACIONALIDAD TOTAL'!$D$14:$AB$238,24,0) -> 0 | R152: 2 | T152: 0.0001730761076
D153: 140 | E153: SRILANKA | F153: 0 | G153: 0 | H153: 1 | I153: 0 | J153: =VLOOKUP(E153,'LLEGADA PAIS NACIONALIDAD TOTAL'!$D$14:$AD$238,10,0) -> 0 | K153: =+VLOOKUP(E153,'LLEGADA PAIS NACIONALIDAD TOTAL'!$D$14:$AD$238,12,0) -> 0 | L153: 0 | M153: =VLOOKUP(E153,'LLEGADA PAIS NACIONALIDAD TOTAL'!$D$14:$T$238,16,0) -> 0 | N153: 1 | O153: =VLOOKUP(E153,'LLEGADA PAIS NACIONALIDAD TOTAL'!$D$14:$W$238,20,0) -> 0 | P153: =VLOOKUP(E153,'LLEGADA PAIS NACIONALIDAD TOTAL'!$D$14:$Z$238,22,0) -> 0 | Q153: =VLOOKUP(E153,'LLEGADA PAIS NACIONALIDAD TOTAL'!$D$14:$AB$238,24,0) -> 0 | R153: 2 | T153: 0.0001730761076
D154: 141 | E154: GEORGIA | F154: 0 | G154: 0 | H154: 0 | I154: 0 | J154: =VLOOKUP(E154,'LLEGADA PAIS NACIONALIDAD TOTAL'!$D$14:$AD$238,10,0) -> 0 | K154: =+VLOOKUP(E154,'LLEGADA PAIS NACIONALIDAD TOTAL'!$D$14:$AD$238,12,0) -> 1 | L154: 0 | M154: =VLOOKUP(E154,'LLEGADA PAIS NACIONALIDAD TOTAL'!$D$14:$T$238,16,0) -> 0 | N154: 1 | O154: =VLOOKUP(E154,'LLEGADA PAIS NACIONALIDAD TOTAL'!$D$14:$W$238,20,0) -> 0 | P154: =VLOOKUP(E154,'LLEGADA PAIS NACIONALIDAD TOTAL'!$D$14:$Z$238,22,0) -> 0 | Q154: =VLOOKUP(E154,'LLEGADA PAIS NACIONALIDAD TOTAL'!$D$14:$AB$238,24,0) -> 0 | R154: 2 | T154: 0.0001730761076
D155: 143 | E155: KIRGUISTAN | F155: 0 | G155: 0 | H155: 0 | I155: 0 | J155: =VLOOKUP(E155,'LLEGADA PAIS NACIONALIDAD TOTAL'!$D$14:$AD$238,10,0) -> 0 | K155: =+VLOOKUP(E155,'LLEGADA PAIS NACIONALIDAD TOTAL'!$D$14:$AD$238,12,0) -> 0 | L155: 0 | M155: =VLOOKUP(E155,'LLEGADA PAIS NACIONALIDAD TOTAL'!$D$14:$T$238,16,0) -> 0 | N155: 2 | O155: =VLOOKUP(E155,'LLEGADA PAIS NACIONALIDAD TOTAL'!$D$14:$W$238,20,0) -> 0 | P155: =VLOOKUP(E155,'LLEGADA PAIS NACIONALIDAD TOTAL'!$D$14:$Z$238,22,0) -> 0 | Q155: =VLOOKUP(E155,'LLEGADA PAIS NACIONALIDAD TOTAL'!$D$14:$AB$238,24,0) -> 0 | R155: 2 | T155: 0.0001730761076
D156: 144 | E156: LETONIA | F156: 0 | G156: 0 | H156: 0 | I156: 0 | J156: =VLOOKUP(E156,'LLEGADA PAIS NACIONALIDAD TOTAL'!$D$14:$AD$238,10,0) -> 0 | K156: =+VLOOKUP(E156,'LLEGADA PAIS NACIONALIDAD TOTAL'!$D$14:$AD$238,12,0) -> 0 | L156: 0 | M156: =VLOOKUP(E156,'LLEGADA PAIS NACIONALIDAD TOTAL'!$D$14:$T$238,16,0) -> 1 | N156: 1 | O156: =VLOOKUP(E156,'LLEGADA PAIS NACIONALIDAD TOTAL'!$D$14:$W$238,20,0) -> 0 | P156: =VLOOKUP(E156,'LLEGADA PAIS NACIONALIDAD TOTAL'!$D$14:$Z$238,22,0) -> 0 | Q156: =VLOOKUP(E156,'LLEGADA PAIS NACIONALIDAD TOTAL'!$D$14:$AB$238,24,0) -> 0 | R156: 2 | T156: 0.0001730761076
D157: 145 | E157: VATICANO O SANTA SEDE | F157: 0 | G157: 0 | H157: 0 | I157: 0 | J157: 0 | K157: 0 | L157: 0 | M157: 0 | N157: 2 | O157: =VLOOKUP(E157,'LLEGADA PAIS NACIONALIDAD TOTAL'!$D$14:$W$238,20,0) -> 0 | P157: =VLOOKUP(E157,'LLEGADA PAIS NACIONALIDAD TOTAL'!$D$14:$Z$238,22,0) -> 0 | Q157: =VLOOKUP(E157,'LLEGADA PAIS NACIONALIDAD TOTAL'!$D$14:$AB$238,24,0) -> 0 | R157: 2 | T157: 0.0001730761076
D158: 146 | E158: ZAMBIA | F158: 0 | G158: 0 | H158: 0 | I158: 0 | J158: 0 | K158: 0 | L158: 0 | M158: 1 | N158: 0 | O158: =VLOOKUP(E158,'LLEGADA PAIS NACIONALIDAD TOTAL'!$D$14:$W$238,20,0) -> 1 | P158: =VLOOKUP(E158,'LLEGADA PAIS NACIONALIDAD TOTAL'!$D$14:$Z$238,22,0) -> 0 | Q158: =VLOOKUP(E158,'LLEGADA PAIS NACIONALIDAD TOTAL'!$D$14:$AB$238,24,0) -> 0 | R158: 2 | T158: 0.0001730761076
D159: 147 | E159: SENEGAL | F159: 0 | G159: 0 | H159: 0 | I159: 0 | J159: =VLOOKUP(E159,'LLEGADA PAIS NACIONALIDAD TOTAL'!$D$14:$AD$238,10,0) -> 0 | K159: =+VLOOKUP(E159,'LLEGADA PAIS NACIONALIDAD TOTAL'!$D$14:$AD$238,12,0) -> 0 | L159: 0 | M159: =VLOOKUP(E159,'LLEGADA PAIS NACIONALIDAD TOTAL'!$D$14:$T$238,16,0) -> 0 | N159: 0 | O159: =VLOOKUP(E159,'LLEGADA PAIS NACIONALIDAD TOTAL'!$D$14:$W$238,20,0) -> 0 | P159: =VLOOKUP(E159,'LLEGADA PAIS NACIONALIDAD TOTAL'!$D$14:$Z$238,22,0) -> 2 | Q159: =VLOOKUP(E159,'LLEGADA PAIS NACIONALIDAD TOTAL'!$D$14:$AB$238,24,0) -> 0 | R159: 2 | T159: 0.0001730761076
D160: 148 | E160: SIRIA | F160: 0 | G160: 0 | H160: 0 | I160: 1 | J160: =VLOOKUP(E160,'LLEGADA PAIS NACIONALIDAD TOTAL'!$D$14:$AD$238,10,0) -> 0 | K160: =+VLOOKUP(E160,'LLEGADA PAIS NACIONALIDAD TOTAL'!$D$14:$AD$238,12,0) -> 0 | L160: 0 | M160: =VLOOKUP(E160,'LLEGADA PAIS NACIONALIDAD TOTAL'!$D$14:$T$238,16,0) -> 0 | N160: 0 | O160: =VLOOKUP(E160,'LLEGADA PAIS NACIONALIDAD TOTAL'!$D$14:$W$238,20,0) -> 0 | P160: =VLOOKUP(E160,'LLEGADA PAIS NACIONALIDAD TOTAL'!$D$14:$Z$238,22,0) -> 0 | Q160: =VLOOKUP(E160,'LLEGADA PAIS NACIONALIDAD TOTAL'!$D$14:$AB$238,24,0) -> 0 | R160: 1 | T160: 8.653805381e-05
D161: 149 | E161: NEPAL | F161: 0 | G161: 0 | H161: 0 | I161: 1 | J161: =VLOOKUP(E161,'LLEGADA PAIS NACIONALIDAD TOTAL'!$D$14:$AD$238,10,0) -> 0 | K161: =+VLOOKUP(E161,'LLEGADA PAIS NACIONALIDAD TOTAL'!$D$14:$AD$238,12,0) -> 0 | L161: 0 | M161: =VLOOKUP(E161,'LLEGADA PAIS NACIONALIDAD TOTAL'!$D$14:$T$238,16,0) -> 0 | N161: 0 | O161: =VLOOKUP(E161,'LLEGADA PAIS NACIONALIDAD TOTAL'!$D$14:$W$238,20,0) -> 0 | P161: =VLOOKUP(E161,'LLEGADA PAIS NACIONALIDAD TOTAL'!$D$14:$Z$238,22,0) -> 0 | Q161: =VLOOKUP(E161,'LLEGADA PAIS NACIONALIDAD TOTAL'!$D$14:$AB$238,24,0) -> 0 | R161: 1 | T161: 8.653805381e-05
D162: 150 | E162: BAHREIN | F162: 1 | G162: 0 | H162: 0 | I162: 0 | J162: =VLOOKUP(E162,'LLEGADA PAIS NACIONALIDAD TOTAL'!$D$14:$AD$238,10,0) -> 0 | K162: =+VLOOKUP(E162,'LLEGADA PAIS NACIONALIDAD TOTAL'!$D$14:$AD$238,12,0) -> 0 | L162: 0 | M162: =VLOOKUP(E162,'LLEGADA PAIS NACIONALIDAD TOTAL'!$D$14:$T$238,16,0) -> 0 | N162: 0 | O162: =VLOOKUP(E162,'LLEGADA PAIS NACIONALIDAD TOTAL'!$D$14:$W$238,20,0) -> 0 | P162: =VLOOKUP(E162,'LLEGADA PAIS NACIONALIDAD TOTAL'!$D$14:$Z$238,22,0) -> 0 | Q162: =VLOOKUP(E162,'LLEGADA PAIS NACIONALIDAD TOTAL'!$D$14:$AB$238,24,0) -> 0 | R162: 1 | T162: 8.653805381e-05
D163: 151 | E163: ARMENIA | F163: 0 | G163: 1 | H163: 0 | I163: 0 | J163: =VLOOKUP(E163,'LLEGADA PAIS NACIONALIDAD TOTAL'!$D$14:$AD$238,10,0) -> 0 | K163: =+VLOOKUP(E163,'LLEGADA PAIS NACIONALIDAD TOTAL'!$D$14:$AD$238,12,0) -> 0 | L163: 0 | M163: =VLOOKUP(E163,'LLEGADA PAIS NACIONALIDAD TOTAL'!$D$14:$T$238,16,0) -> 0 | N163: 0 | O163: =VLOOKUP(E163,'LLEGADA PAIS NACIONALIDAD TOTAL'!$D$14:$W$238,20,0) -> 0 | P163: =VLOOKUP(E163,'LLEGADA PAIS NACIONALIDAD TOTAL'!$D$14:$Z$238,22,0) -> 0 | Q163: =VLOOKUP(E163,'LLEGADA PAIS NACIONALIDAD TOTAL'!$D$14:$AB$238,24,0) -> 0 | R163: 1 | T163: 8.653805381e-05
D164: 152 | E164: MADAGASCAR | F164: 0 | G164: 0 | H164: 0 | I164: 0 | J164: =VLOOKUP(E164,'LLEGADA PAIS NACIONALIDAD TOTAL'!$D$14:$AD$238,10,0) -> 0 | K164: =+VLOOKUP(E164,'LLEGADA PAIS NACIONALIDAD TOTAL'!$D$14:$AD$238,12,0) -> 1 | L164: 0 | M164: =VLOOKUP(E164,'LLEGADA PAIS NACIONALIDAD TOTAL'!$D$14:$T$238,16,0) -> 0 | N164: 0 | O164: =VLOOKUP(E164,'LLEGADA PAIS NACIONALIDAD TOTAL'!$D$14:$W$238,20,0) -> 0 | P164: =VLOOKUP(E164,'LLEGADA PAIS NACIONALIDAD TOTAL'!$D$14:$Z$238,22,0) -> 0 | Q164: =VLOOKUP(E164,'LLEGADA PAIS NACIONALIDAD TOTAL'!$D$14:$AB$238,24,0) -> 0 | R164: 1 | T164: =+R164/R$235*100 -> 8.653805381e-05
D165: 153 | E165: ZIMBABWE | F165: 0 | G165: 0 | H165: 0 | I165: 0 | J165: =VLOOKUP(E165,'LLEGADA PAIS NACIONALIDAD TOTAL'!$D$14:$AD$238,10,0) -> 0 | K165: =+VLOOKUP(E165,'LLEGADA PAIS NACIONALIDAD TOTAL'!$D$14:$AD$238,12,0) -> 0 | L165: 0 | M165: =VLOOKUP(E165,'LLEGADA PAIS NACIONALIDAD TOTAL'!$D$14:$T$238,16,0) -> 1 | N165: 0 | O165: =VLOOKUP(E165,'LLEGADA PAIS NACIONALIDAD TOTAL'!$D$14:$W$238,20,0) -> 0 | P165: =VLOOKUP(E165,'LLEGADA PAIS NACIONALIDAD TOTAL'!$D$14:$Z$238,22,0) -> 0 | Q165: =VLOOKUP(E165,'LLEGADA PAIS NACIONALIDAD TOTAL'!$D$14:$AB$238,24,0) -> 0 | R165: 1 | T165: =+R165/R$235*100 -> 8.653805381e-05
D166: 154 | E166: VANUATO | F166: 0 | G166: 0 | H166: 0 | I166: 0 | J166: =VLOOKUP(E166,'LLEGADA PAIS NACIONALIDAD TOTAL'!$D$14:$AD$238,10,0) -> 0 | K166: =+VLOOKUP(E166,'LLEGADA PAIS NACIONALIDAD TOTAL'!$D$14:$AD$238,12,0) -> 0 | L166: 0 | M166: =VLOOKUP(E166,'LLEGADA PAIS NACIONALIDAD TOTAL'!$D$14:$T$238,16,0) -> 0 | N166: 1 | O166: =VLOOKUP(E166,'LLEGADA PAIS NACIONALIDAD TOTAL'!$D$14:$W$238,20,0) -> 0 | P166: =VLOOKUP(E166,'LLEGADA PAIS NACIONALIDAD TOTAL'!$D$14:$Z$238,22,0) -> 0 | Q166: =VLOOKUP(E166,'LLEGADA PAIS NACIONALIDAD TOTAL'!$D$14:$AB$238,24,0) -> 0 | R166: 1 | T166: 8.653805381e-05
D167: 155 | E167: TANZANIA | F167: 0 | G167: 0 | H167: 0 | I167: 0 | J167: =VLOOKUP(E167,'LLEGADA PAIS NACIONALIDAD TOTAL'!$D$14:$AD$238,10,0) -> 0 | K167: =+VLOOKUP(E167,'LLEGADA PAIS NACIONALIDAD TOTAL'!$D$14:$AD$238,12,0) -> 0 | L167: 0 | M167: =VLOOKUP(E167,'LLEGADA PAIS NACIONALIDAD TOTAL'!$D$14:$T$238,16,0) -> 1 | N167: 0 | O167: =VLOOKUP(E167,'LLEGADA PAIS NACIONALIDAD TOTAL'!$D$14:$W$238,20,0) -> 0 | P167: =VLOOKUP(E167,'LLEGADA PAIS NACIONALIDAD TOTAL'!$D$14:$Z$238,22,0) -> 0 | Q167: =VLOOKUP(E167,'LLEGADA PAIS NACIONALIDAD TOTAL'!$D$14:$AB$238,24,0) -> 0 | R167: 1 | T167: 8.653805381e-05
D168: 156 | E168: NAMIBIA | F168: 0 | G168: 0 | H168: 0 | I168: 0 | J168: =VLOOKUP(E168,'LLEGADA PAIS NACIONALIDAD TOTAL'!$D$14:$AD$238,10,0) -> 0 | K168: =+VLOOKUP(E168,'LLEGADA PAIS NACIONALIDAD TOTAL'!$D$14:$AD$238,12,0) -> 0 | L168: 0 | M168: =VLOOKUP(E168,'LLEGADA PAIS NACIONALIDAD TOTAL'!$D$14:$T$238,16,0) -> 0 | N168: 0 | O168: =VLOOKUP(E168,'LLEGADA PAIS NACIONALIDAD TOTAL'!$D$14:$W$238,20,0) -> 1 | P168: =VLOOKUP(E168,'LLEGADA PAIS NACIONALIDAD TOTAL'!$D$14:$Z$238,22,0) -> 0 | Q168: =VLOOKUP(E168,'LLEGADA PAIS NACIONALIDAD TOTAL'!$D$14:$AB$238,24,0) -> 0 | R168: 1 | T168: 8.653805381e-05
D169: 157 | E169: BURUNDI | F169: 0 | G169: 0 | H169: 0 | I169: 0 | J169: =VLOOKUP(E169,'LLEGADA PAIS NACIONALIDAD TOTAL'!$D$14:$AD$238,10,0) -> 0 | K169: =+VLOOKUP(E169,'LLEGADA PAIS NACIONALIDAD TOTAL'!$D$14:$AD$238,12,0) -> 0 | L169: 0 | M169: =VLOOKUP(E169,'LLEGADA PAIS NACIONALIDAD TOTAL'!$D$14:$T$238,16,0) -> 0 | N169: 0 | O169: =VLOOKUP(E169,'LLEGADA PAIS NACIONALIDAD TOTAL'!$D$14:$W$238,20,0) -> 0 | P169: =VLOOKUP(E169,'LLEGADA PAIS NACIONALIDAD TOTAL'!$D$14:$Z$238,22,0) -> 1 | Q169: =VLOOKUP(E169,'LLEGADA PAIS NACIONALIDAD TOTAL'!$D$14:$AB$238,24,0) -> 0 | R169: 1 | T169: 8.653805381e-05
D170: 158 | E170: IRAN | F170: 0 | G170: 0 | H170: 0 | I170: 0 | J170: =VLOOKUP(E170,'LLEGADA PAIS NACIONALIDAD TOTAL'!$D$14:$AD$238,10,0) -> 0 | K170: =+VLOOKUP(E170,'LLEGADA PAIS NACIONALIDAD TOTAL'!$D$14:$AD$238,12,0) -> 0 | L170: 0 | M170: =VLOOKUP(E170,'LLEGADA PAIS NACIONALIDAD TOTAL'!$D$14:$T$238,16,0) -> 0 | N170: 0 | O170: =VLOOKUP(E170,'LLEGADA PAIS NACIONALIDAD TOTAL'!$D$14:$W$238,20,0) -> 0 | P170: =VLOOKUP(E170,'LLEGADA PAIS NACIONALIDAD TOTAL'!$D$14:$Z$238,22,0) -> 1 | Q170: =VLOOKUP(E170,'LLEGADA PAIS NACIONALIDAD TOTAL'!$D$14:$AB$238,24,0) -> 0 | R170: 1 | T170: 8.653805381e-05
D171: 159 | E171: BURKINA FASO | F171: 0 | G171: 0 | H171: 0 | I171: 0 | J171: 0 | K171: 0 | L171: 0 | M171: 0 | N171: 0 | O171: 0 | P171: 1 | Q171: 0 | R171: 1 | T171: 8.653805381e-05
D172: 160 | E172: O.N. AMERICA | F172: 0 | G172: 0 | H172: 0 | I172: 0 | J172: =VLOOKUP(E172,'LLEGADA PAIS NACIONALIDAD TOTAL'!$D$14:$AD$238,10,0) -> 0 | K172: =+VLOOKUP(E172,'LLEGADA PAIS NACIONALIDAD TOTAL'!$D$14:$AD$238,12,0) -> 0 | L172: 0 | M172: =VLOOKUP(E172,'LLEGADA PAIS NACIONALIDAD TOTAL'!$D$14:$T$238,16,0) -> 0 | N172: 0 | O172: =VLOOKUP(E172,'LLEGADA PAIS NACIONALIDAD TOTAL'!$D$14:$W$238,20,0) -> 0 | P172: =VLOOKUP(E172,'LLEGADA PAIS NACIONALIDAD TOTAL'!$D$14:$Z$238,22,0) -> 0 | Q172: =VLOOKUP(E172,'LLEGADA PAIS NACIONALIDAD TOTAL'!$D$14:$AB$238,24,0) -> 0 | R172: =SUM(F172:Q172) -> 0 | T172: 0
D173: 161 | E173: O.N. OCEANIA | F173: 0 | G173: 0 | H173: 0 | I173: 0 | J173: =VLOOKUP(E173,'LLEGADA PAIS NACIONALIDAD TOTAL'!$D$14:$AD$238,10,0) -> 0 | K173: =+VLOOKUP(E173,'LLEGADA PAIS NACIONALIDAD TOTAL'!$D$14:$AD$238,12,0) -> 0 | L173: 0 | M173: =VLOOKUP(E173,'LLEGADA PAIS NACIONALIDAD TOTAL'!$D$14:$T$238,16,0) -> 0 | N173: 0 | O173: =VLOOKUP(E173,'LLEGADA PAIS NACIONALIDAD TOTAL'!$D$14:$W$238,20,0) -> 0 | P173: =VLOOKUP(E173,'LLEGADA PAIS NACIONALIDAD TOTAL'!$D$14:$Z$238,22,0) -> 0 | Q173: =VLOOKUP(E173,'LLEGADA PAIS NACIONALIDAD TOTAL'!$D$14:$AB$238,24,0) -> 0 | R173: 0 | T173: 0
D174: 162 | E174: DJIBOUTI | F174: 0 | G174: 0 | H174: 0 | I174: 0 | J174: =VLOOKUP(E174,'LLEGADA PAIS NACIONALIDAD TOTAL'!$D$14:$AD$238,10,0) -> 0 | K174: =+VLOOKUP(E174,'LLEGADA PAIS NACIONALIDAD TOTAL'!$D$14:$AD$238,12,0) -> 0 | L174: 0 | M174: =VLOOKUP(E174,'LLEGADA PAIS NACIONALIDAD TOTAL'!$D$14:$T$238,16,0) -> 0 | N174: 0 | O174: =VLOOKUP(E174,'LLEGADA PAIS NACIONALIDAD TOTAL'!$D$14:$W$238,20,0) -> 0 | P174: =VLOOKUP(E174,'LLEGADA PAIS NACIONALIDAD TOTAL'!$D$14:$Z$238,22,0) -> 0 | Q174: =VLOOKUP(E174,'LLEGADA PAIS NACIONALIDAD TOTAL'!$D$14:$AB$238,24,0) -> 0 | R174: 0 | T174: 0
D175: 163 | E175: NIGER | F175: 0 | G175: 0 | H175: 0 | I175: 0 | J175: =VLOOKUP(E175,'LLEGADA PAIS NACIONALIDAD TOTAL'!$D$14:$AD$238,10,0) -> 0 | K175: =+VLOOKUP(E175,'LLEGADA PAIS NACIONALIDAD TOTAL'!$D$14:$AD$238,12,0) -> 0 | L175: 0 | M175: =VLOOKUP(E175,'LLEGADA PAIS NACIONALIDAD TOTAL'!$D$14:$T$238,16,0) -> 0 | N175: 0 | O175: =VLOOKUP(E175,'LLEGADA PAIS NACIONALIDAD TOTAL'!$D$14:$W$238,20,0) -> 0 | P175: =VLOOKUP(E175,'LLEGADA PAIS NACIONALIDAD TOTAL'!$D$14:$Z$238,22,0) -> 0 | Q175: =VLOOKUP(E175,'LLEGADA PAIS NACIONALIDAD TOTAL'!$D$14:$AB$238,24,0) -> 0 | R175: 0 | T175: 0
D176: 164 | E176: MAURITANIA | F176: 0 | G176: 0 | H176: 0 | I176: 0 | J176: =VLOOKUP(E176,'LLEGADA PAIS NACIONALIDAD TOTAL'!$D$14:$AD$238,10,0) -> 0 | K176: =+VLOOKUP(E176,'LLEGADA PAIS NACIONALIDAD TOTAL'!$D$14:$AD$238,12,0) -> 0 | L176: 0 | M176: =VLOOKUP(E176,'LLEGADA PAIS NACIONALIDAD TOTAL'!$D$14:$T$238,16,0) -> 0 | N176: 0 | O176: =VLOOKUP(E176,'LLEGADA PAIS NACIONALIDAD TOTAL'!$D$14:$W$238,20,0) -> 0 | P176: =VLOOKUP(E176,'LLEGADA PAIS NACIONALIDAD TOTAL'!$D$14:$Z$238,22,0) -> 0 | Q176: =VLOOKUP(E176,'LLEGADA PAIS NACIONALIDAD TOTAL'!$D$14:$AB$238,24,0) -> 0 | R176: 0 | T176: 0
D177: 165 | E177: MOLDOVA | F177: 0 | G177: 0 | H177: 0 | I177: 0 | J177: =VLOOKUP(E177,'LLEGADA PAIS NACIONALIDAD TOTAL'!$D$14:$AD$238,10,0) -> 0 | K177: =+VLOOKUP(E177,'LLEGADA PAIS NACIONALIDAD TOTAL'!$D$14:$AD$238,12,0) -> 0 | L177: 0 | M177: =VLOOKUP(E177,'LLEGADA PAIS NACIONALIDAD TOTAL'!$D$14:$T$238,16,0) -> 0 | N177: 0 | O177: =VLOOKUP(E177,'LLEGADA PAIS NACIONALIDAD TOTAL'!$D$14:$W$238,20,0) -> 0 | P177: =VLOOKUP(E177,'LLEGADA PAIS NACIONALIDAD TOTAL'!$D$14:$Z$238,22,0) -> 0 | Q177: =VLOOKUP(E177,'LLEGADA PAIS NACIONALIDAD TOTAL'!$D$14:$AB$238,24,0) -> 0 | R177: 0 | T177: 0
D178: 166 | E178: REPÚBLICA ESLOVACA/ESLOVAQUIA | F178: 0 | G178: 0 | H178: 0 | I178: 0 | J178: =VLOOKUP(E178,'LLEGADA PAIS NACIONALIDAD TOTAL'!$D$14:$AD$238,10,0) -> 0 | K178: =+VLOOKUP(E178,'LLEGADA PAIS NACIONALIDAD TOTAL'!$D$14:$AD$238,12,0) -> 0 | L178: 0 | M178: =VLOOKUP(E178,'LLEGADA PAIS NACIONALIDAD TOTAL'!$D$14:$T$238,16,0) -> 0 | N178: 0 | O178: =VLOOKUP(E178,'LLEGADA PAIS NACIONALIDAD TOTAL'!$D$14:$W$238,20,0) -> 0 | P178: =VLOOKUP(E178,'LLEGADA PAIS NACIONALIDAD TOTAL'!$D$14:$Z$238,22,0) -> 0 | Q178: =VLOOKUP(E178,'LLEGADA PAIS NACIONALIDAD TOTAL'!$D$14:$AB$238,24,0) -> 0 | R178: 0 | T178: 0
D179: 167 | E179: BENIN | F179: 0 | G179: 0 | H179: 0 | I179: 0 | J179: =VLOOKUP(E179,'LLEGADA PAIS NACIONALIDAD TOTAL'!$D$14:$AD$238,10,0) -> 0 | K179: =+VLOOKUP(E179,'LLEGADA PAIS NACIONALIDAD TOTAL'!$D$14:$AD$238,12,0) -> 0 | L179: 0 | M179: =VLOOKUP(E179,'LLEGADA PAIS NACIONALIDAD TOTAL'!$D$14:$T$238,16,0) -> 0 | N179: 0 | O179: =VLOOKUP(E179,'LLEGADA PAIS NACIONALIDAD TOTAL'!$D$14:$W$238,20,0) -> 0 | P179: =VLOOKUP(E179,'LLEGADA PAIS NACIONALIDAD TOTAL'!$D$14:$Z$238,22,0) -> 0 | Q179: =VLOOKUP(E179,'LLEGADA PAIS NACIONALIDAD TOTAL'!$D$14:$AB$238,24,0) -> 0 | R179: 0 | T179: 0
D180: 168 | E180: LAOS | F180: 0 | G180: 0 | H180: 0 | I180: 0 | J180: =VLOOKUP(E180,'LLEGADA PAIS NACIONALIDAD TOTAL'!$D$14:$AD$238,10,0) -> 0 | K180: =+VLOOKUP(E180,'LLEGADA PAIS NACIONALIDAD TOTAL'!$D$14:$AD$238,12,0) -> 0 | L180: 0 | M180: =VLOOKUP(E180,'LLEGADA PAIS NACIONALIDAD TOTAL'!$D$14:$T$238,16,0) -> 0 | N180: 0 | O180: =VLOOKUP(E180,'LLEGADA PAIS NACIONALIDAD TOTAL'!$D$14:$W$238,20,0) -> 0 | P180: =VLOOKUP(E180,'LLEGADA PAIS NACIONALIDAD TOTAL'!$D$14:$Z$238,22,0) -> 0 | Q180: =VLOOKUP(E180,'LLEGADA PAIS NACIONALIDAD TOTAL'!$D$14:$AB$238,24,0) -> 0 | R180: 0 | T180: 0
D181: 169 | E181: MICRONESIA | F181: 0 | G181: 0 | H181: 0 | I181: 0 | J181: =VLOOKUP(E181,'LLEGADA PAIS NACIONALIDAD TOTAL'!$D$14:$AD$238,10,0) -> 0 | K181: =+VLOOKUP(E181,'LLEGADA PAIS NACIONALIDAD TOTAL'!$D$14:$AD$238,12,0) -> 0 | L181: 0 | M181: =VLOOKUP(E181,'LLEGADA PAIS NACIONALIDAD TOTAL'!$D$14:$T$238,16,0) -> 0 | N181: 0 | O181: =VLOOKUP(E181,'LLEGADA PAIS NACIONALIDAD TOTAL'!$D$14:$W$238,20,0) -> 0 | P181: =VLOOKUP(E181,'LLEGADA PAIS NACIONALIDAD TOTAL'!$D$14:$Z$238,22,0) -> 0 | Q181: =VLOOKUP(E181,'LLEGADA PAIS NACIONALIDAD TOTAL'!$D$14:$AB$238,24,0) -> 0 | R181: 0 | T181: 0
D182: 170 | E182: MYANMAR | F182: 0 | G182: 0 | H182: 0 | I182: 0 | J182: =VLOOKUP(E182,'LLEGADA PAIS NACIONALIDAD TOTAL'!$D$14:$AD$238,10,0) -> 0 | K182: =+VLOOKUP(E182,'LLEGADA PAIS NACIONALIDAD TOTAL'!$D$14:$AD$238,12,0) -> 0 | L182: 0 | M182: =VLOOKUP(E182,'LLEGADA PAIS NACIONALIDAD TOTAL'!$D$14:$T$238,16,0) -> 0 | N182: 0 | O182: =VLOOKUP(E182,'LLEGADA PAIS NACIONALIDAD TOTAL'!$D$14:$W$238,20,0) -> 0 | P182: =VLOOKUP(E182,'LLEGADA PAIS NACIONALIDAD TOTAL'!$D$14:$Z$238,22,0) -> 0 | Q182: =VLOOKUP(E182,'LLEGADA PAIS NACIONALIDAD TOTAL'!$D$14:$AB$238,24,0) -> 0 | R182: 0 | T182: 0
D183: 171 | E183: YEMEN ARABE | F183: 0 | G183: 0 | H183: 0 | I183: 0 | J183: =VLOOKUP(E183,'LLEGADA PAIS NACIONALIDAD TOTAL'!$D$14:$AD$238,10,0) -> 0 | K183: =+VLOOKUP(E183,'LLEGADA PAIS NACIONALIDAD TOTAL'!$D$14:$AD$238,12,0) -> 0 | L183: 0 | M183: =VLOOKUP(E183,'LLEGADA PAIS NACIONALIDAD TOTAL'!$D$14:$T$238,16,0) -> 0 | N183: 0 | O183: =VLOOKUP(E183,'LLEGADA PAIS NACIONALIDAD TOTAL'!$D$14:$W$238,20,0) -> 0 | P183: =VLOOKUP(E183,'LLEGADA PAIS NACIONALIDAD TOTAL'!$D$14:$Z$238,22,0) -> 0 | Q183: =VLOOKUP(E183,'LLEGADA PAIS NACIONALIDAD TOTAL'!$D$14:$AB$238,24,0) -> 0 | R183: 0 | T183: 0
D184: 172 | E184: YEMEN POPULAR | F184: 0 | G184: 0 | H184: 0 | I184: 0 | J184: =VLOOKUP(E184,'LLEGADA PAIS NACIONALIDAD TOTAL'!$D$14:$AD$238,10,0) -> 0 | K184: =+VLOOKUP(E184,'LLEGADA PAIS NACIONALIDAD TOTAL'!$D$14:$AD$238,12,0) -> 0 | L184: 0 | M184: =VLOOKUP(E184,'LLEGADA PAIS NACIONALIDAD TOTAL'!$D$14:$T$238,16,0) -> 0 | N184: 0 | O184: =VLOOKUP(E184,'LLEGADA PAIS NACIONALIDAD TOTAL'!$D$14:$W$238,20,0) -> 0 | P184: =VLOOKUP(E184,'LLEGADA PAIS NACIONALIDAD TOTAL'!$D$14:$Z$238,22,0) -> 0 | Q184: =VLOOKUP(E184,'LLEGADA PAIS NACIONALIDAD TOTAL'!$D$14:$AB$238,24,0) -> 0 | R184: 0 | T184: 0
D185: 173 | E185: PAÍSES BAJOS (LOS) | F185: 0 | G185: 0 | H185: 0 | I185: 0 | J185: =VLOOKUP(E185,'LLEGADA PAIS NACIONALIDAD TOTAL'!$D$14:$AD$238,10,0) -> 0 | K185: =+VLOOKUP(E185,'LLEGADA PAIS NACIONALIDAD TOTAL'!$D$14:$AD$238,12,0) -> 0 | L185: 0 | M185: =VLOOKUP(E185,'LLEGADA PAIS NACIONALIDAD TOTAL'!$D$14:$T$238,16,0) -> 0 | N185: 0 | O185: =VLOOKUP(E185,'LLEGADA PAIS NACIONALIDAD TOTAL'!$D$14:$W$238,20,0) -> 0 | P185: =VLOOKUP(E185,'LLEGADA PAIS NACIONALIDAD TOTAL'!$D$14:$Z$238,22,0) -> 0 | Q185: =VLOOKUP(E185,'LLEGADA PAIS NACIONALIDAD TOTAL'!$D$14:$AB$238,24,0) -> 0 | R185: 0 | T185: 0
D186: 174 | E186: SAHARA OCCIDENTAL | F186: 0 | G186: 0 | H186: 0 | I186: 0 | J186: =VLOOKUP(E186,'LLEGADA PAIS NACIONALIDAD TOTAL'!$D$14:$AD$238,10,0) -> 0 | K186: =+VLOOKUP(E186,'LLEGADA PAIS NACIONALIDAD TOTAL'!$D$14:$AD$238,12,0) -> 0 | L186: 0 | M186: =VLOOKUP(E186,'LLEGADA PAIS NACIONALIDAD TOTAL'!$D$14:$T$238,16,0) -> 0 | N186: 0 | O186: =VLOOKUP(E186,'LLEGADA PAIS NACIONALIDAD TOTAL'!$D$14:$W$238,20,0) -> 0 | P186: =VLOOKUP(E186,'LLEGADA PAIS NACIONALIDAD TOTAL'!$D$14:$Z$238,22,0) -> 0 | Q186: =VLOOKUP(E186,'LLEGADA PAIS NACIONALIDAD TOTAL'!$D$14:$AB$238,24,0) -> 0 | R186: 0 | T186: 0
D187: 175 | E187: BOSNIA HERZEGOVINA | F187: 0 | G187: 0 | H187: 0 | I187: 0 | J187: =VLOOKUP(E187,'LLEGADA PAIS NACIONALIDAD TOTAL'!$D$14:$AD$238,10,0) -> 0 | K187: =+VLOOKUP(E187,'LLEGADA PAIS NACIONALIDAD TOTAL'!$D$14:$AD$238,12,0) -> 0 | L187: 0 | M187: =VLOOKUP(E187,'LLEGADA PAIS NACIONALIDAD TOTAL'!$D$14:$T$238,16,0) -> 0 | N187: 0 | O187: =VLOOKUP(E187,'LLEGADA PAIS NACIONALIDAD TOTAL'!$D$14:$W$238,20,0) -> 0 | P187: =VLOOKUP(E187,'LLEGADA PAIS NACIONALIDAD TOTAL'!$D$14:$Z$238,22,0) -> 0 | Q187: =VLOOKUP(E187,'LLEGADA PAIS NACIONALIDAD TOTAL'!$D$14:$AB$238,24,0) -> 0 | R187: 0 | T187: 0
D188: 176 | E188: BUTAN | F188: 0 | G188: 0 | H188: 0 | I188: 0 | J188: =VLOOKUP(E188,'LLEGADA PAIS NACIONALIDAD TOTAL'!$D$14:$AD$238,10,0) -> 0 | K188: =+VLOOKUP(E188,'LLEGADA PAIS NACIONALIDAD TOTAL'!$D$14:$AD$238,12,0) -> 0 | L188: 0 | M188: =VLOOKUP(E188,'LLEGADA PAIS NACIONALIDAD TOTAL'!$D$14:$T$238,16,0) -> 0 | N188: 0 | O188: =VLOOKUP(E188,'LLEGADA PAIS NACIONALIDAD TOTAL'!$D$14:$W$238,20,0) -> 0 | P188: =VLOOKUP(E188,'LLEGADA PAIS NACIONALIDAD TOTAL'!$D$14:$Z$238,22,0) -> 0 | Q188: =VLOOKUP(E188,'LLEGADA PAIS NACIONALIDAD TOTAL'!$D$14:$AB$238,24,0) -> 0 | R188: 0 | T188: =+R188/R$235*100 -> 0
D189: 177 | E189: CAMBOYA | F189: 0 | G189: 0 | H189: 0 | I189: 0 | J189: =VLOOKUP(E189,'LLEGADA PAIS NACIONALIDAD TOTAL'!$D$14:$AD$238,10,0) -> 0 | K189: =+VLOOKUP(E189,'LLEGADA PAIS NACIONALIDAD TOTAL'!$D$14:$AD$238,12,0) -> 0 | L189: 0 | M189: =VLOOKUP(E189,'LLEGADA PAIS NACIONALIDAD TOTAL'!$D$14:$T$238,16,0) -> 0 | N189: 0 | O189: =VLOOKUP(E189,'LLEGADA PAIS NACIONALIDAD TOTAL'!$D$14:$W$238,20,0) -> 0 | P189: =VLOOKUP(E189,'LLEGADA PAIS NACIONALIDAD TOTAL'!$D$14:$Z$238,22,0) -> 0 | Q189: =VLOOKUP(E189,'LLEGADA PAIS NACIONALIDAD TOTAL'!$D$14:$AB$238,24,0) -> 0 | R189: 0 | T189: =+R189/R$235*100 -> 0
D190: 178 | E190: CHAD | F190: 0 | G190: 0 | H190: 0 | I190: 0 | J190: =VLOOKUP(E190,'LLEGADA PAIS NACIONALIDAD TOTAL'!$D$14:$AD$238,10,0) -> 0 | K190: =+VLOOKUP(E190,'LLEGADA PAIS NACIONALIDAD TOTAL'!$D$14:$AD$238,12,0) -> 0 | L190: 0 | M190: =VLOOKUP(E190,'LLEGADA PAIS NACIONALIDAD TOTAL'!$D$14:$T$238,16,0) -> 0 | N190: 0 | O190: =VLOOKUP(E190,'LLEGADA PAIS NACIONALIDAD TOTAL'!$D$14:$W$238,20,0) -> 0 | P190: =VLOOKUP(E190,'LLEGADA PAIS NACIONALIDAD TOTAL'!$D$14:$Z$238,22,0) -> 0 | Q190: =VLOOKUP(E190,'LLEGADA PAIS NACIONALIDAD TOTAL'!$D$14:$AB$238,24,0) -> 0 | R190: 0 | T190: 0
D191: 179 | E191: CISKEI | F191: 0 | G191: 0 | H191: 0 | I191: 0 | J191: =VLOOKUP(E191,'LLEGADA PAIS NACIONALIDAD TOTAL'!$D$14:$AD$238,10,0) -> 0 | K191: =+VLOOKUP(E191,'LLEGADA PAIS NACIONALIDAD TOTAL'!$D$14:$AD$238,12,0) -> 0 | L191: 0 | M191: =VLOOKUP(E191,'LLEGADA PAIS NACIONALIDAD TOTAL'!$D$14:$T$238,16,0) -> 0 | N191: 0 | O191: =VLOOKUP(E191,'LLEGADA PAIS NACIONALIDAD TOTAL'!$D$14:$W$238,20,0) -> 0 | P191: =VLOOKUP(E191,'LLEGADA PAIS NACIONALIDAD TOTAL'!$D$14:$Z$238,22,0) -> 0 | Q191: =VLOOKUP(E191,'LLEGADA PAIS NACIONALIDAD TOTAL'!$D$14:$AB$238,24,0) -> 0 | R191: 0 | T191: 0
D192: 180 | E192: MANCHURIA | F192: 0 | G192: 0 | H192: 0 | I192: 0 | J192: =VLOOKUP(E192,'LLEGADA PAIS NACIONALIDAD TOTAL'!$D$14:$AD$238,10,0) -> 0 | K192: =+VLOOKUP(E192,'LLEGADA PAIS NACIONALIDAD TOTAL'!$D$14:$AD$238,12,0) -> 0 | L192: 0 | M192: =VLOOKUP(E192,'LLEGADA PAIS NACIONALIDAD TOTAL'!$D$14:$T$238,16,0) -> 0 | N192: 0 | O192: =VLOOKUP(E192,'LLEGADA PAIS NACIONALIDAD TOTAL'!$D$14:$W$238,20,0) -> 0 | P192: =VLOOKUP(E192,'LLEGADA PAIS NACIONALIDAD TOTAL'!$D$14:$Z$238,22,0) -> 0 | Q192: =VLOOKUP(E192,'LLEGADA PAIS NACIONALIDAD TOTAL'!$D$14:$AB$238,24,0) -> 0 | R192: 0 | T192: 0
D193: 181 | E193: PALESTINA | F193: 0 | G193: 0 | H193: 0 | I193: 0 | J193: =VLOOKUP(E193,'LLEGADA PAIS NACIONALIDAD TOTAL'!$D$14:$AD$238,10,0) -> 0 | K193: =+VLOOKUP(E193,'LLEGADA PAIS NACIONALIDAD TOTAL'!$D$14:$AD$238,12,0) -> 0 | L193: 0 | M193: =VLOOKUP(E193,'LLEGADA PAIS NACIONALIDAD TOTAL'!$D$14:$T$238,16,0) -> 0 | N193: 0 | O193: =VLOOKUP(E193,'LLEGADA PAIS NACIONALIDAD TOTAL'!$D$14:$W$238,20,0) -> 0 | P193: =VLOOKUP(E193,'LLEGADA PAIS NACIONALIDAD TOTAL'!$D$14:$Z$238,22,0) -> 0 | Q193: =VLOOKUP(E193,'LLEGADA PAIS NACIONALIDAD TOTAL'!$D$14:$AB$238,24,0) -> 0 | R193: 0 | T193: 0
D194: 182 | E194: REP.ARABE UNIDA | F194: 0 | G194: 0 | H194: 0 | I194: 0 | J194: =VLOOKUP(E194,'LLEGADA PAIS NACIONALIDAD TOTAL'!$D$14:$AD$238,10,0) -> 0 | K194: =+VLOOKUP(E194,'LLEGADA PAIS NACIONALIDAD TOTAL'!$D$14:$AD$238,12,0) -> 0 | L194: 0 | M194: =VLOOKUP(E194,'LLEGADA PAIS NACIONALIDAD TOTAL'!$D$14:$T$238,16,0) -> 0 | N194: 0 | O194: =VLOOKUP(E194,'LLEGADA PAIS NACIONALIDAD TOTAL'!$D$14:$W$238,20,0) -> 0 | P194: =VLOOKUP(E194,'LLEGADA PAIS NACIONALIDAD TOTAL'!$D$14:$Z$238,22,0) -> 0 | Q194: =VLOOKUP(E194,'LLEGADA PAIS NACIONALIDAD TOTAL'!$D$14:$AB$238,24,0) -> 0 | R194: 0 | T194: 0
D195: 183 | E195: RUANDA | F195: 0 | G195: 0 | H195: 0 | I195: 0 | J195: =VLOOKUP(E195,'LLEGADA PAIS NACIONALIDAD TOTAL'!$D$14:$AD$238,10,0) -> 0 | K195: =+VLOOKUP(E195,'LLEGADA PAIS NACIONALIDAD TOTAL'!$D$14:$AD$238,12,0) -> 0 | L195: 0 | M195: =VLOOKUP(E195,'LLEGADA PAIS NACIONALIDAD TOTAL'!$D$14:$T$238,16,0) -> 0 | N195: 0 | O195: =VLOOKUP(E195,'LLEGADA PAIS NACIONALIDAD TOTAL'!$D$14:$W$238,20,0) -> 0 | P195: =VLOOKUP(E195,'LLEGADA PAIS NACIONALIDAD TOTAL'!$D$14:$Z$238,22,0) -> 0 | Q195: =VLOOKUP(E195,'LLEGADA PAIS NACIONALIDAD TOTAL'!$D$14:$AB$238,24,0) -> 0 | R195: 0 | T195: =+R195/R$235*100 -> 0
D196: 184 | E196: SOMALIA | F196: 0 | G196: 0 | H196: 0 | I196: 0 | J196: =VLOOKUP(E196,'LLEGADA PAIS NACIONALIDAD TOTAL'!$D$14:$AD$238,10,0) -> 0 | K196: =+VLOOKUP(E196,'LLEGADA PAIS NACIONALIDAD TOTAL'!$D$14:$AD$238,12,0) -> 0 | L196: 0 | M196: =VLOOKUP(E196,'LLEGADA PAIS NACIONALIDAD TOTAL'!$D$14:$T$238,16,0) -> 0 | N196: 0 | O196: =VLOOKUP(E196,'LLEGADA PAIS NACIONALIDAD TOTAL'!$D$14:$W$238,20,0) -> 0 | P196: =VLOOKUP(E196,'LLEGADA PAIS NACIONALIDAD TOTAL'!$D$14:$Z$238,22,0) -> 0 | Q196: =VLOOKUP(E196,'LLEGADA PAIS NACIONALIDAD TOTAL'!$D$14:$AB$238,24,0) -> 0 | R196: 0 | T196: =+R196/R$235*100 -> 0
D197: 185 | E197: TANGANICA | F197: 0 | G197: 0 | H197: 0 | I197: 0 | J197: =VLOOKUP(E197,'LLEGADA PAIS NACIONALIDAD TOTAL'!$D$14:$AD$238,10,0) -> 0 | K197: =+VLOOKUP(E197,'LLEGADA PAIS NACIONALIDAD TOTAL'!$D$14:$AD$238,12,0) -> 0 | L197: 0 | M197: =VLOOKUP(E197,'LLEGADA PAIS NACIONALIDAD TOTAL'!$D$14:$T$238,16,0) -> 0 | N197: 0 | O197: =VLOOKUP(E197,'LLEGADA PAIS NACIONALIDAD TOTAL'!$D$14:$W$238,20,0) -> 0 | P197: =VLOOKUP(E197,'LLEGADA PAIS NACIONALIDAD TOTAL'!$D$14:$Z$238,22,0) -> 0 | Q197: =VLOOKUP(E197,'LLEGADA PAIS NACIONALIDAD TOTAL'!$D$14:$AB$238,24,0) -> 0 | R197: 0 | T197: 0
D198: 186 | E198: TRANSKEI | F198: 0 | G198: 0 | H198: 0 | I198: 0 | J198: =VLOOKUP(E198,'LLEGADA PAIS NACIONALIDAD TOTAL'!$D$14:$AD$238,10,0) -> 0 | K198: =+VLOOKUP(E198,'LLEGADA PAIS NACIONALIDAD TOTAL'!$D$14:$AD$238,12,0) -> 0 | L198: 0 | M198: =VLOOKUP(E198,'LLEGADA PAIS NACIONALIDAD TOTAL'!$D$14:$T$238,16,0) -> 0 | N198: 0 | O198: =VLOOKUP(E198,'LLEGADA PAIS NACIONALIDAD TOTAL'!$D$14:$W$238,20,0) -> 0 | P198: =VLOOKUP(E198,'LLEGADA PAIS NACIONALIDAD TOTAL'!$D$14:$Z$238,22,0) -> 0 | Q198: =VLOOKUP(E198,'LLEGADA PAIS NACIONALIDAD TOTAL'!$D$14:$AB$238,24,0) -> 0 | R198: 0 | T198: 0
D199: 187 | E199: VENDA | F199: 0 | G199: 0 | H199: 0 | I199: 0 | J199: =VLOOKUP(E199,'LLEGADA PAIS NACIONALIDAD TOTAL'!$D$14:$AD$238,10,0) -> 0 | K199: =+VLOOKUP(E199,'LLEGADA PAIS NACIONALIDAD TOTAL'!$D$14:$AD$238,12,0) -> 0 | L199: 0 | M199: =VLOOKUP(E199,'LLEGADA PAIS NACIONALIDAD TOTAL'!$D$14:$T$238,16,0) -> 0 | N199: 0 | O199: =VLOOKUP(E199,'LLEGADA PAIS NACIONALIDAD TOTAL'!$D$14:$W$238,20,0) -> 0 | P199: =VLOOKUP(E199,'LLEGADA PAIS NACIONALIDAD TOTAL'!$D$14:$Z$238,22,0) -> 0 | Q199: =VLOOKUP(E199,'LLEGADA PAIS NACIONALIDAD TOTAL'!$D$14:$AB$238,24,0) -> 0 | R199: 0 | T199: 0
D200: 188 | E200: ZAIRE | F200: 0 | G200: 0 | H200: 0 | I200: 0 | J200: =VLOOKUP(E200,'LLEGADA PAIS NACIONALIDAD TOTAL'!$D$14:$AD$238,10,0) -> 0 | K200: =+VLOOKUP(E200,'LLEGADA PAIS NACIONALIDAD TOTAL'!$D$14:$AD$238,12,0) -> 0 | L200: 0 | M200: =VLOOKUP(E200,'LLEGADA PAIS NACIONALIDAD TOTAL'!$D$14:$T$238,16,0) -> 0 | N200: 0 | O200: =VLOOKUP(E200,'LLEGADA PAIS NACIONALIDAD TOTAL'!$D$14:$W$238,20,0) -> 0 | P200: =VLOOKUP(E200,'LLEGADA PAIS NACIONALIDAD TOTAL'!$D$14:$Z$238,22,0) -> 0 | Q200: =VLOOKUP(E200,'LLEGADA PAIS NACIONALIDAD TOTAL'!$D$14:$AB$238,24,0) -> 0 | R200: 0 | T200: 0
D201: 189 | E201: ISLA BOUVET | F201: 0 | G201: 0 | H201: 0 | I201: 0 | J201: =VLOOKUP(E201,'LLEGADA PAIS NACIONALIDAD TOTAL'!$D$14:$AD$238,10,0) -> 0 | K201: =+VLOOKUP(E201,'LLEGADA PAIS NACIONALIDAD TOTAL'!$D$14:$AD$238,12,0) -> 0 | L201: 0 | M201: =VLOOKUP(E201,'LLEGADA PAIS NACIONALIDAD TOTAL'!$D$14:$T$238,16,0) -> 0 | N201: 0 | O201: =VLOOKUP(E201,'LLEGADA PAIS NACIONALIDAD TOTAL'!$D$14:$W$238,20,0) -> 0 | P201: =VLOOKUP(E201,'LLEGADA PAIS NACIONALIDAD TOTAL'!$D$14:$Z$238,22,0) -> 0 | Q201: =VLOOKUP(E201,'LLEGADA PAIS NACIONALIDAD TOTAL'!$D$14:$AB$238,24,0) -> 0 | R201: 0 | T201: 0
D202: 190 | E202: ALTO VOLTA | F202: 0 | G202: 0 | H202: 0 | I202: 0 | J202: =VLOOKUP(E202,'LLEGADA PAIS NACIONALIDAD TOTAL'!$D$14:$AD$238,10,0) -> 0 | K202: =+VLOOKUP(E202,'LLEGADA PAIS NACIONALIDAD TOTAL'!$D$14:$AD$238,12,0) -> 0 | L202: 0 | M202: =VLOOKUP(E202,'LLEGADA PAIS NACIONALIDAD TOTAL'!$D$14:$T$238,16,0) -> 0 | N202: 0 | O202: =VLOOKUP(E202,'LLEGADA PAIS NACIONALIDAD TOTAL'!$D$14:$W$238,20,0) -> 0 | P202: =VLOOKUP(E202,'LLEGADA PAIS NACIONALIDAD TOTAL'!$D$14:$Z$238,22,0) -> 0 | Q202: =VLOOKUP(E202,'LLEGADA PAIS NACIONALIDAD TOTAL'!$D$14:$AB$238,24,0) -> 0 | R202: 0 | T202: 0
D203: 191 | E203: APATRIDAS | F203: 0 | G203: 0 | H203: 0 | I203: 0 | J203: =VLOOKUP(E203,'LLEGADA PAIS NACIONALIDAD TOTAL'!$D$14:$AD$238,10,0) -> 0 | K203: =+VLOOKUP(E203,'LLEGADA PAIS NACIONALIDAD TOTAL'!$D$14:$AD$238,12,0) -> 0 | L203: 0 | M203: =VLOOKUP(E203,'LLEGADA PAIS NACIONALIDAD TOTAL'!$D$14:$T$238,16,0) -> 0 | N203: 0 | O203: =VLOOKUP(E203,'LLEGADA PAIS NACIONALIDAD TOTAL'!$D$14:$W$238,20,0) -> 0 | P203: =VLOOKUP(E203,'LLEGADA PAIS NACIONALIDAD TOTAL'!$D$14:$Z$238,22,0) -> 0 | Q203: =VLOOKUP(E203,'LLEGADA PAIS NACIONALIDAD TOTAL'!$D$14:$AB$238,24,0) -> 0 | R203: 0 | T203: 0
D204: 192 | E204: BELAU | F204: 0 | G204: 0 | H204: 0 | I204: 0 | J204: =VLOOKUP(E204,'LLEGADA PAIS NACIONALIDAD TOTAL'!$D$14:$AD$238,10,0) -> 0 | K204: =+VLOOKUP(E204,'LLEGADA PAIS NACIONALIDAD TOTAL'!$D$14:$AD$238,12,0) -> 0 | L204: 0 | M204: =VLOOKUP(E204,'LLEGADA PAIS NACIONALIDAD TOTAL'!$D$14:$T$238,16,0) -> 0 | N204: 0 | O204: =VLOOKUP(E204,'LLEGADA PAIS NACIONALIDAD TOTAL'!$D$14:$W$238,20,0) -> 0 | P204: =VLOOKUP(E204,'LLEGADA PAIS NACIONALIDAD TOTAL'!$D$14:$Z$238,22,0) -> 0 | Q204: =VLOOKUP(E204,'LLEGADA PAIS NACIONALIDAD TOTAL'!$D$14:$AB$238,24,0) -> 0 | R204: 0 | T204: 0
D205: 193 | E205: BOPHUTHATSWANA | F205: 0 | G205: 0 | H205: 0 | I205: 0 | J205: =VLOOKUP(E205,'LLEGADA PAIS NACIONALIDAD TOTAL'!$D$14:$AD$238,10,0) -> 0 | K205: =+VLOOKUP(E205,'LLEGADA PAIS NACIONALIDAD TOTAL'!$D$14:$AD$238,12,0) -> 0 | L205: 0 | M205: =VLOOKUP(E205,'LLEGADA PAIS NACIONALIDAD TOTAL'!$D$14:$T$238,16,0) -> 0 | N205: 0 | O205: =VLOOKUP(E205,'LLEGADA PAIS NACIONALIDAD TOTAL'!$D$14:$W$238,20,0) -> 0 | P205: =VLOOKUP(E205,'LLEGADA PAIS NACIONALIDAD TOTAL'!$D$14:$Z$238,22,0) -> 0 | Q205: =VLOOKUP(E205,'LLEGADA PAIS NACIONALIDAD TOTAL'!$D$14:$AB$238,24,0) -> 0 | R205: 0 | T205: 0
D206: 194 | E206: BOTSWANA | F206: 0 | G206: 0 | H206: 0 | I206: 0 | J206: =VLOOKUP(E206,'LLEGADA PAIS NACIONALIDAD TOTAL'!$D$14:$AD$238,10,0) -> 0 | K206: =+VLOOKUP(E206,'LLEGADA PAIS NACIONALIDAD TOTAL'!$D$14:$AD$238,12,0) -> 0 | L206: 0 | M206: =VLOOKUP(E206,'LLEGADA PAIS NACIONALIDAD TOTAL'!$D$14:$T$238,16,0) -> 0 | N206: 0 | O206: =VLOOKUP(E206,'LLEGADA PAIS NACIONALIDAD TOTAL'!$D$14:$W$238,20,0) -> 0 | P206: =VLOOKUP(E206,'LLEGADA PAIS NACIONALIDAD TOTAL'!$D$14:$Z$238,22,0) -> 0 | Q206: =VLOOKUP(E206,'LLEGADA PAIS NACIONALIDAD TOTAL'!$D$14:$AB$238,24,0) -> 0 | R206: 0 | T206: 0
D207: 195 | E207: CENTRO AFRICA REPUBLI | F207: 0 | G207: 0 | H207: 0 | I207: 0 | J207: =VLOOKUP(E207,'LLEGADA PAIS NACIONALIDAD TOTAL'!$D$14:$AD$238,10,0) -> 0 | K207: =+VLOOKUP(E207,'LLEGADA PAIS NACIONALIDAD TOTAL'!$D$14:$AD$238,12,0) -> 0 | L207: 0 | M207: =VLOOKUP(E207,'LLEGADA PAIS NACIONALIDAD TOTAL'!$D$14:$T$238,16,0) -> 0 | N207: 0 | O207: =VLOOKUP(E207,'LLEGADA PAIS NACIONALIDAD TOTAL'!$D$14:$W$238,20,0) -> 0 | P207: =VLOOKUP(E207,'LLEGADA PAIS NACIONALIDAD TOTAL'!$D$14:$Z$238,22,0) -> 0 | Q207: =VLOOKUP(E207,'LLEGADA PAIS NACIONALIDAD TOTAL'!$D$14:$AB$238,24,0) -> 0 | R207: 0 | T207: 0
D208: 196 | E208: COMORAS | F208: 0 | G208: 0 | H208: 0 | I208: 0 | J208: =VLOOKUP(E208,'LLEGADA PAIS NACIONALIDAD TOTAL'!$D$14:$AD$238,10,0) -> 0 | K208: =+VLOOKUP(E208,'LLEGADA PAIS NACIONALIDAD TOTAL'!$D$14:$AD$238,12,0) -> 0 | L208: 0 | M208: =VLOOKUP(E208,'LLEGADA PAIS NACIONALIDAD TOTAL'!$D$14:$T$238,16,0) -> 0 | N208: 0 | O208: =VLOOKUP(E208,'LLEGADA PAIS NACIONALIDAD TOTAL'!$D$14:$W$238,20,0) -> 0 | P208: =VLOOKUP(E208,'LLEGADA PAIS NACIONALIDAD TOTAL'!$D$14:$Z$238,22,0) -> 0 | Q208: =VLOOKUP(E208,'LLEGADA PAIS NACIONALIDAD TOTAL'!$D$14:$AB$238,24,0) -> 0 | R208: 0 | T208: 0
D209: 197 | E209: COREA NORTE | F209: 0 | G209: 0 | H209: 0 | I209: 0 | J209: =VLOOKUP(E209,'LLEGADA PAIS NACIONALIDAD TOTAL'!$D$14:$AD$238,10,0) -> 0 | K209: =+VLOOKUP(E209,'LLEGADA PAIS NACIONALIDAD TOTAL'!$D$14:$AD$238,12,0) -> 0 | L209: 0 | M209: =VLOOKUP(E209,'LLEGADA PAIS NACIONALIDAD TOTAL'!$D$14:$T$238,16,0) -> 0 | N209: 0 | O209: =VLOOKUP(E209,'LLEGADA PAIS NACIONALIDAD TOTAL'!$D$14:$W$238,20,0) -> 0 | P209: =VLOOKUP(E209,'LLEGADA PAIS NACIONALIDAD TOTAL'!$D$14:$Z$238,22,0) -> 0 | Q209: =VLOOKUP(E209,'LLEGADA PAIS NACIONALIDAD TOTAL'!$D$14:$AB$238,24,0) -> 0 | R209: 0 | T209: 0
D210: 198 | E210: ECUADOR | F210: 0 | G210: 0 | H210: 0 | I210: 0 | J210: =VLOOKUP(E210,'LLEGADA PAIS NACIONALIDAD TOTAL'!$D$14:$AD$238,10,0) -> 0 | K210: =+VLOOKUP(E210,'LLEGADA PAIS NACIONALIDAD TOTAL'!$D$14:$AD$238,12,0) -> 0 | L210: 0 | M210: =VLOOKUP(E210,'LLEGADA PAIS NACIONALIDAD TOTAL'!$D$14:$T$238,16,0) -> 0 | N210: 0 | O210: =VLOOKUP(E210,'LLEGADA PAIS NACIONALIDAD TOTAL'!$D$14:$W$238,20,0) -> 0 | P210: =VLOOKUP(E210,'LLEGADA PAIS NACIONALIDAD TOTAL'!$D$14:$Z$238,22,0) -> 0 | Q210: =VLOOKUP(E210,'LLEGADA PAIS NACIONALIDAD TOTAL'!$D$14:$AB$238,24,0) -> 0 | R210: 0 | T210: 0
... 28 more rows

Sheet INGRESO Y EGRESO DE DIVISAS
D10: TRIMESTRES | F10: 2012
F11: INGRESOS (a) | H11: TOTAL DE INGRESOS DE DIVISAS ( a) | I11: EGRESOS (b) | K11: TOTAL DE EGRESOS DE DIVISAS (b) | L11: SALDO c = ( a - b )
F12: VIAJES | G12: TRANSPORTE | I12: VIAJES | J12: TRANSPORTE
D13: I TRIMESTRE | F13: 248.6 | G13: 1.7 | H13: =+F13+G13 -> 250.3 | I13: 150 | J13: 78.6 | K13: =+I13+J13 -> 228.6 | L13: =+H13-K13 -> 21.7
D14: II TRIMESTRE | F14: 255.4 | G14: 1.6 | H14: =+F14+G14 -> 257 | I14: 154 | J14: 86.4 | K14: =+I14+J14 -> 240.4 | L14: =+H14-K14 -> 16.6
D15: III TRIMESTRE | F15: 258 | G15: 1.5 | H15: =+F15+G15 -> 259.5 | I15: 152.5 | J15: 86.7 | K15: =+I15+J15 -> 239.2 | L15: =+H15-K15 -> 20.3
D16: IV TRIMESTRE | F16: 270.5 | G16: 1.4 | H16: =+F16+G16 -> 271.9 | I16: 154.1 | J16: 81.3 | K16: =+I16+J16 -> 235.4 | L16: =+H16-K16 -> 36.5
D17: TOTAL | F17: =SUM(F13:F16) -> 1032.5 | G17: 6.2 | H17: 1038.7 | I17: 610.6 | J17: 333 | K17: 943.6 | L17: =+H17-K17 -> 95.1
D20: TRIMESTRES | F20: 2013 | M20: INGRESOS | N20: EGRESOS
F21: INGRESOS (a) | H21: TOTAL DE INGRESOS DE DIVISAS ( a) | I21: EGRESOS (b) | K21: TOTAL DE EGRESOS DE DIVISAS (b) | L21: SALDO c = ( a - b ) | M21: VAR% 2012/2011
F22: VIAJES | G22: TRANSPORTE | I22: VIAJES | J22: TRANSPORTE
D23: I TRIMESTRE | F23: 295.5 | G23: 1.4 | H23: =+F23+G23 -> 296.9 | I23: 152.2 | J23: 86.3 | K23: =+I23+J23 -> 238.5 | L23: =+H23-K23 -> 58.4 | M23: =+H23/H13*100-100 -> 18.61765881 | N23: =+K23/K13*100-100 -> 4.330708661
D24: II TRIMESTRE | F24: 261.6 | G24: 1.3 | H24: =+F24+G24 -> 262.9 | I24: 156.2 | J24: 94.8 | K24: =+I24+J24 -> 251 | L24: =+H24-K24 -> 11.9 | M24: =+H24/H14*100-100 -> 2.295719844 | N24: =+K24/K14*100-100 -> 4.409317804
D25: III TRIMESTRE
D26: IV TRIMESTRE
D27: SUB-TOTAL | F27: =SUM(F23:F26) -> 557.1 | G27: 2.7 | H27: 559.8 | I27: 308.4 | J27: 181.1 | K27: 489.5 | L27: 70.3 | M27: 10.3 | N27: 4.4
D30: Fuente : Banco Central del Ecuador
D31: 2013-12-04

Sheet UBICACION DEL TURISMO I Semest
H9: (Mill. USD)
D10: AÑOS/TRIM | E10: * TURISMO | F10: PETROLEO | G10: BANANO Y | H10: CAMARON | I10: DERIVADOS | J10: OTROS ELAB. | K10: MANUFACT. | L10: FLORES | M10: TOTAL EXPORTACIONES
F11: CRUDO | G11: PLATANO | I11: PETROLEO | J11: PROD. MAR | K11: DE METALES | L11: NATURALES | M11: (Productos Primarios
G12: 2) | I12: 3) | K12: 4) | M12: e Industrializados)
D14: 2012 | E14: 507.3 | F14: 6728.6 | G14: 1134.2 | H14: 656.4 | I14: 676.9 | J14: 514.4 | K14: 308.7 | L14: 407.3
M15: 12256.3
D17: UBICACION | E17: 6 | F17: 1 | G17: 2 | H17: 4 | I17: 3 | J17: 5 | K17: 8 | L17: 7
D20: 2013 | E20: 559.8 | F20: 6502.6 | G20: 1245.9 | H20: 788.6 | I20: 253.7 | J20: 748 | K20: 299.3 | L20: 459
M21: 12194.2
D23: UBICACION | E23: 5 | F23: 1 | G23: 2 | H23: 3 | I23: 8 | J23: 4 | K23: 7 | L23: 6
D26: (1) Cifras provisionales; su reproceso se realiza conforme a la recepción de documentos fuente de las operaciones de comercio exterior.
D27: (2) Se basan en las cifras de la Empresa Manifiestos y Banco Central del Ecuador.
D28: (3) Incluye exportaciones del sector privado de combustibles, lubricantes y otros derivados del petróleo.
D29: (4) Incluye exportaciones de vehículos.
D30: (*) Según Balanza de Pagos del Ecuador ( Ctas Viajes y Transporte de Pasajeros)
D33: Fuente : Banco Central del Ecuador
D34: 2013-12-04

Sheet UBICACION DEL TURISMO
D10: AÑOS | E10: * TURISMO | F10: PETROLEO CRUDO | G10: BANANO Y | H10: CAMARON | I10: DERIVADOS | J10: OTROS ELAB. | K10: MANUFACT. | L10: FLORES | M10: TOTAL EXPORTACIONES
G11: PLATANO | I11: PETROLEO | J11: PROD. MAR | K11: DE METALES | L11: NATURALES | M11: (Productos Primarios
G12: 2) | I12: 3) | K12: 4) | M12: e Industrializados)
D14: 2011 | E14: 849.7 | F14: 11799.97 | G14: 2246.5 | H14: 1178.4 | I14: 1144.9 | J14: 895.01 | K14: 695.9 | L14: 675.7
M15: 22322.4
D17: UBICACION | E17: 6 | F17: 1 | G17: 2 | H17: 3 | I17: 4 | J17: 5 | K17: 7 | L17: 8
D20: 2012 | E20: 1032.7 | F20: 12711.2 | G20: 2077.4 | H20: 1279.7 | I20: 1080.7 | J20: 1147.5 | K20: 898.9 | L20: 713.9
M21: 23769.6
D23: UBICACION | E23: 6 | F23: 1 | G23: 2 | H23: 3 | I23: 5 | J23: 4 | K23: 7 | L23: 8
D26: (1) Cifras provisionales; su reproceso se realiza conforme a la recepción de documentos fuente de las operaciones de comercio exterior.
D27: (2) Se basan en las cifras de la Empresa Manifiestos y Banco Central del Ecuador.
D28: (3) Incluye exportaciones del sector privado de combustibles, lubricantes y otros derivados del petróleo.
D29: (4) Incluye exportaciones de vehículos.
D30: (*) Según Balanza de Pagos del Ecuador ( Ctas Viajes y Transporte de Pasajeros)
D32: Fuente : Banco Central del Ecuador
D33: 2013-12-04

Sheet ENTRADAS MERCADOS TURISTICOS
D10: ENERO -DICIEMBRE / 2012 - 2013
D11: PRINCIPALES MERCADOS EMISORES | E11: 2012 | F11: 2013 | G11: Var% 2013/2012
D12: Colombia | E12: 349455 | F12: =VLOOKUP(D12,'LLEGADA PAIS NACIONALIDAD TOTAL'!$D$14:$AD$238,27,0) -> 344363 | G12: =+F12/E12*100-100 -> -1.457126096
D13: Estados Unidos | E13: 248064 | F13: =VLOOKUP(D13,'LLEGADA PAIS NACIONALIDAD TOTAL'!$D$14:$AD$238,27,0) -> 250785 | G13: 1.09689435
D14: Perú | E14: 137084 | F14: =VLOOKUP(D14,'LLEGADA PAIS NACIONALIDAD TOTAL'!$D$14:$AD$238,27,0) -> 150805 | G14: 10.00919144
D15: Venezuela | E15: 45701 | F15: =VLOOKUP(D15,'LLEGADA PAIS NACIONALIDAD TOTAL'!$D$14:$AD$238,27,0) -> 102317 | G15: =+F15/E15*100-100 -> 123.8835036
D16: España | E16: 65764 | F16: =VLOOKUP(D16,'LLEGADA PAIS NACIONALIDAD TOTAL'!$D$14:$AD$238,27,0) -> 65245 | G16: =+F16/E16*100-100 -> -0.7891855727
D17: Argentina | E17: 46199 | F17: =VLOOKUP(D17,'LLEGADA PAIS NACIONALIDAD TOTAL'!$D$14:$AD$238,27,0) -> 49575 | G17: 7.307517479
D18: Chile | E18: 41645 | F18: =VLOOKUP(D18,'LLEGADA PAIS NACIONALIDAD TOTAL'!$D$14:$AD$238,27,0) -> 40945 | G18: =+F18/E18*100-100 -> -1.680874055
D19: Alemania | E19: 29582 | F19: =VLOOKUP(D19,'LLEGADA PAIS NACIONALIDAD TOTAL'!$D$14:$AD$238,27,0) -> 28486 | G19: =+F19/E19*100-100 -> -3.704955716
D20: Canadá | E20: 26979 | F20: =VLOOKUP(D20,'LLEGADA PAIS NACIONALIDAD TOTAL'!$D$14:$AD$238,27,0) -> 28257 | G20: =+F20/E20*100-100 -> 4.73701768
D21: Gran Bretaña | E21: 21142 | F21: =VLOOKUP(D21,'LLEGADA PAIS NACIONALIDAD TOTAL'!$D$14:$AD$238,27,0) -> 23479 | G21: 11.05382651
D23: Fuente : Dirección Nacional de Migración
D24: Elaboración : Dirección de Investigación - Ministerio de Turismo
D25: 2013-12-09

Sheet SALIDAS MERCADOS TURISTICOS
D12: ENERO-DICIEMBRE / 2012 - 2013
D13: PRINCIPALES MERCADOS RECEPTORES | E13: 2012 | F13: 2013 | G13: Var% 2013/2012
D14: Estados Unidos | E14: 343310 | F14: =VLOOKUP(D14,'LLEGADA PAIS NACIONALIDAD TOTAL'!$D$14:$AC$238,26,0) -> 395071 | G14: =+F14/E14*100-100 -> 15.07704407
D15: Perú | E15: 177582 | F15: =VLOOKUP(D15,'LLEGADA PAIS NACIONALIDAD TOTAL'!$D$14:$AC$238,26,0) -> 203174 | G15: 14.41137052
D16: Colombia | E16: 113830 | F16: =VLOOKUP(D16,'LLEGADA PAIS NACIONALIDAD TOTAL'!$D$14:$AC$238,26,0) -> 107614 | G16: =+F16/E16*100-100 -> -5.46077484
D17: España | E17: 101557 | F17: =VLOOKUP(D17,'LLEGADA PAIS NACIONALIDAD TOTAL'!$D$14:$AC$238,26,0) -> 99560 | G17: =+F17/E17*100-100 -> -1.96638341
D18: Panamá | E18: 63520 | F18: =VLOOKUP(D18,'LLEGADA PAIS NACIONALIDAD TOTAL'!$D$14:$AC$238,26,0) -> 72560 | G18: 14.23173804
D19: Argentina | E19: 28269 | F19: =VLOOKUP(D19,'LLEGADA PAIS NACIONALIDAD TOTAL'!$D$14:$AC$238,26,0) -> 33346 | G19: =+F19/E19*100-100 -> 17.95960239
D20: México | E20: 26742 | F20: =VLOOKUP(D20,'LLEGADA PAIS NACIONALIDAD TOTAL'!$D$14:$AC$238,26,0) -> 28298 | G20: =+F20/E20*100-100 -> 5.818562561
D21: Chile | E21: 27396 | F21: =VLOOKUP(D21,'LLEGADA PAIS NACIONALIDAD TOTAL'!$D$14:$AC$238,26,0) -> 27060 | G21: =+F21/E21*100-100 -> -1.226456417
